Workbook

Sheet Kalkulator_raty
A1: Numer spłaty | B1: Data | C1: Spłacany kapitał | D1: Spłacane odsetki | E1: Kwota raty | F1: Kwota pozostała do spłaty | H1: Dodatkowe informacje
H2: Całkowita Kwota Pożyczki (kwota brutto) | I2: 3303.75
H3: Kwota prowizji | I3: =I7-I6 -> 0
H4: Prowizja [%] | L4: Wynik obliczeń
H5: Oprocentowanie [%] | L5: Pola obligatoryjne
H6: Należne odsetki umowne | L6: Pola edytowalne uzupełniane automatycznie
H7: Całkowity koszt
H8: Całkowita kwota do zapłaty | N8: =IFERROR(_xlfn.CONCAT("Rzeczywista Roczna Stopa Oprocentowania (RRSO) wynosi ", TEKST2(I9,"0.00%"), ", całkowita kwota kredytu (bez kredytowanych kosztów) ", TEKST2(I12,"0.00 zł"), ", całkowita kwota do zapłaty ", TEKST2(I8,"0.00 zł"),", oprocentowanie ", IF(OR(I13<=60,IFERROR(FIND("ss",K10,6),"t")<>"t"),"stałe","zmienne")," ", TEKST2(I5,"0.00%"),", całkowity koszt kredytu "&TEKST2(I7,"0.00 zł") & " (w tym: prowizja " & TEKST2(I3,"0.00 zł"),", odsetki ", TEKST2(I6,"0.00 zł"),"), ",I13, IF(E4<>ROUND(VLOOKUP(I13,A:E,5,0),2),_xlfn.CONCAT(" miesięcznych rat (w tym ",I13-1," równych rat w wysokości ", TEKST2(E4,"0.00 zł"),", ostatnia rata wyrównująca: ", TEKST2(VLOOKUP(I13,A:E,5,0),"0.00 zł"),")"),_xlfn.CONCAT(" miesięcznych równych rat w wysokości ", TEKST2(E4,"0.00 zł"))), ". Kalkulacja została dokonana na dzień ",TEKST2(I15,"dd.mm.yyyy"),"."),"") -> 
H9: RRSO (nie uwzględnia PUD) | K9: Produkt
H10: Data pierwszej raty | K10: EKO RATY Iss
H11: Pierwotna kwota brutto | I11: =I12*(1+I17) -> 10001
H12: Kwota pożyczki Netto | I12: 10000 | K12: Spłata całkowita po okresie kredytowania | L12: 5
H13: Liczba rat | I13: 24 | K13: Niezapadłe koszty | L13: =IF(L12="","",IFERROR((I3-(L12/(I13+(I18/30-1))*I3)) + SUMIF(A2:A200,">"&IF(L12="",0,L12-(I18/30-1)),D2:D200)-IF(L12<=(I18/30-1),((L12)*I2*I14/12),0),"")) -> 0
H14: Oprocentowanie [%] | I14: 0.0896 | J14: =IFERROR(VLOOKUP($I$13,Matryca!$A:$VZA,HLOOKUP(K10,Matryca!$A:$VZA,2,0),0),"") -> 0.0896
H15: Data uruchomienia | I15: 2022-05-24 | K15: Wysokość nadpłaty | L15: 71000
H16: Dzien pierwszej raty | I16: 24 | K16: Nadpłata po racie | L16: 5
H17: Stawka Prowizji | I17: 0.0001 | J17: =IFERROR(VLOOKUP($I$13,Matryca!$A:$VZA,HLOOKUP(K10,Matryca!$A:$VZA,2,0)+1,0),"") -> 0.0001 | K17: Orientacyjna wysokość raty | L17: =IF(OR(L15="",L16=""),"",IFERROR(IF(VLOOKUP($L$16,$A:$F,6,0)-$L$15>0,-PMT($I$14/12,$I$13-$L$16,VLOOKUP($L$16,$A:$F,6,0)-$L$15),"Kredyt spłacony"),"")) -> 
H18: Odroczenie w spłacie [dni] | I18: 30 | K18: Całkowity koszt zmniejszony o | L18: =IF(OR(L15="",L16=""),"",IFERROR($I$7-($I$3+SUMIF($A:$A,"<="&$L$16,$D:$D)+IF($L$17<>"Kredyt spłacony",($L$17*($I$13-$L$16)-(VLOOKUP($L$16,$A:$F,6,0)-$L$15)),-$I$3/$I$13*($I$13-$L$16))),"")) -> 
H19: Procent ubezpieczenia | I19: 0
H20: Kwota raty (przy automatycznej liczbie rat)
H21: Auto okres kredytowania | I21: 75
H23: Stawka PUD (np. 3 PLN dla Optimum) | I23: 0
H24: Kwota Prowizji | I24: =I12*I17 -> 1
H25: Kwota ubezpieczenia | I25: =I19*I11*I13 -> 0
H26: Wpłata własna | I26: 0
H27: Poziom zaokrrąglenia | I27: 100
H28: MPKK | I28: =MIN((I12*(0.15+(MAX(B:B)-I15-1)/365*0.06)),0.45*I12) -> -71989.31507
H29: MPKK - wskażnik | I29: =I28-I3-I23*I13>0 -> FALSE
N30: Wyliczenia kalkulatora mają charakter orientacyjny i nie stanowią oferty w rozumieniu Kodeksu Cywilnego
H31: ="RRSO WYNOSI: "&TEKST2(I9,"#\ ##0.00%") -> RRSO WYNOSI: | I31: =TEKST2(E4,"0.00 zł") & " / x "&I13&IF(OR(VALUE(RIGHT(I13,1))=2,VALUE(RIGHT(I13,1))=3,VALUE(RIGHT(I13,1))=4)," raty"," rat") -> / x 24 raty
N34: © 2019 Alior Bank SA
N35: DCF v3.22 Christmas z dnia 2022-05-11

Sheet Slowniki (hidden)
D1: 0 | E1: Produkt | F1: Segment | G1: TYP | H1: MIN | I1: MAX | J1: 30 | Q1: Numer aktualnego target.row | Y1: dziś | Z1: =TODAY() -> 2022-05-24 | AM1: Czy wymagana zgoda Dyrektora Sieci sprzedaży Kontrakt | AO1: =IFERROR(VLOOKUP(#REF!,$AK:$AN,2,0),0) -> 0 | AP1: =IFERROR(VLOOKUP(#REF!,$AK:$AN,4,0),0) -> 0 | AQ1: =Slowniki!AO1-(#REF!*2) ->  | BI1: A040040 | BJ1: =IFERROR(IF(OR(IFERROR(VLOOKUP(BI1,#REF!,5,0),1)=0,IFERROR(VLOOKUP(BI1&"_OGROD",#REF!,5,0),1)=0, IFERROR(VLOOKUP(REPLACE(BI1,FIND(" ",BI1,1),1,"_"),#REF!,5,0),1)=0),BK1,0),0) -> 0 | BK1: 1 | BL1: Honey
B2: TAK | E2: EKO RATY Iss | G2: Wynagrodzenie | H2: 12 | I2: 144 | J2: 30 | L2: Oferta 0% miesięcznie | M2: Wybrane produkty | Q2: 23 | U2: =IFERROR(VLOOKUP("TAK (wymagana zgoda Dyr. Reg.)",#REF!,2,0),"TAK") -> TAK | V2: =IFERROR(IF(VLOOKUP("TAK (wymagana zgoda DP CF)",#REF!,2,0)=0,2,0),0) -> 0 | AC2: Lista arkuszy | AH2: min | AI2: max | AM2: 0 | BI2: A045045 | BJ2: =IFERROR(IF(OR(IFERROR(VLOOKUP(BI2,#REF!,5,0),1)=0,IFERROR(VLOOKUP(BI2&"_OGROD",#REF!,5,0),1)=0, IFERROR(VLOOKUP(REPLACE(BI2,FIND(" ",BI2,1),1,"_"),#REF!,5,0),1)=0),BK2,0),0) -> 0 | BK2: 1 | BL2: Tatiana | BM2: v1.3
B3: NIE | E3: EKO RATY Iss z K1 | G3: Wynagrodzenie | H3: 12 | I3: 143 | J3: 60 | L3: 0% miesięcznie z karencją 1M | Q3: Aktualna formatka | R3: Ilość dni z karencją | V3: =IF(OR(AND(IFERROR(VLOOKUP("TAK (wymagana zgoda Dyr. Reg.)",#REF!,2,0),0)=0,U2<>"TAK")=TRUE,MAX($BJ$1:$BJ$390)=1),1,0) -> 0 | AD3: =IF(COUNTIF($AE$3:$AE$8,AC3)>=1,"",IF(AC3=""," ",AC3)) ->  | AH3: =IFERROR(VLOOKUP(#REF!,$E:$H,4,0),3) -> 3 | AI3: =IFERROR(VLOOKUP(#REF!,$E:$I,5,0),60) -> 60 | BI3: AZ001035 | BJ3: =IFERROR(IF(OR(IFERROR(VLOOKUP(BI3,#REF!,5,0),1)=0,IFERROR(VLOOKUP(BI3&"_OGROD",#REF!,5,0),1)=0, IFERROR(VLOOKUP(REPLACE(BI3,FIND(" ",BI3,1),1,"_"),#REF!,5,0),1)=0),BK3,0),0) -> 0 | BK3: 1 | BL3: Jill | BM3: v1.4
B4: 5PDK_J | L4: 0% miesięcznie z karencją 2M | Q4: Powyżej 60 rat | R4: =IFERROR(IF(LEFT(Q4,4) = "RATY", IFERROR(VLOOKUP(#REF!,D:J,7,0),30), IFERROR(VLOOKUP(#REF!,E:J,6,0),30)),30) -> 30 | V4: =IFERROR(IF(VLOOKUP("Weryfikacja po stronie centrali",#REF!,2,0)=0,0.5,0),0) -> 0 | AD4: =IF(COUNTIF($AE$3:$AE$8,AC4)>=1,"",IF(AC4=""," ",AC4)) ->  | AH4: =IFERROR(VLOOKUP(#REF!,Slowniki!E:H,4,0),12) -> 12 | AI4: =IFERROR(VLOOKUP(#REF!,Slowniki!E:I,5,0),120) -> 120 | AQ4: czy pakiet do wszystkich | BI4: AZ001045 | BJ4: =IFERROR(IF(OR(IFERROR(VLOOKUP(BI4,#REF!,5,0),1)=0,IFERROR(VLOOKUP(BI4&"_OGROD",#REF!,5,0),1)=0, IFERROR(VLOOKUP(REPLACE(BI4,FIND(" ",BI4,1),1,"_"),#REF!,5,0),1)=0),BK4,0),0) -> 0 | BK4: 1 | BL4: Domino | BM4: v1.5
B5: STACJONARNY | L5: 0% miesięcznie z karencją 3M | Q5: Edytowany produkt | V5: =IFERROR(IF(MAX($BJ$1:$BJ$390)=2,2,0),0) -> 0 | AD5: =IF(COUNTIF($AE$3:$AE$8,AC5)>=1,"",IF(AC5=""," ",AC5)) ->  | AH5: =IFERROR(VLOOKUP(#REF!,Slowniki!E:H,4,0),3) -> 3 | AI5: =IFERROR(VLOOKUP(#REF!,Slowniki!E:I,5,0),60) -> 60 | AQ5: 0 | BI5: AZ001040 | BJ5: =IFERROR(IF(OR(IFERROR(VLOOKUP(BI5,#REF!,5,0),1)=0,IFERROR(VLOOKUP(BI5&"_OGROD",#REF!,5,0),1)=0, IFERROR(VLOOKUP(REPLACE(BI5,FIND(" ",BI5,1),1,"_"),#REF!,5,0),1)=0),BK5,0),0) -> 0 | BK5: 1 | BL5: Kissy | BM5: v1.6
B6: BEZPOŚREDNI | L6: 0% miesięcznie z karencją 6M | Q6: EKO_RATY XXVIII | AH6: =IFERROR(VLOOKUP(#REF!,E:H,4,0),3) -> 3 | AI6: =IFERROR(VLOOKUP(#REF!,E:I,5,0),60) -> 60 | BI6: AZ003040 | BJ6: =IFERROR(IF(OR(IFERROR(VLOOKUP(BI6,#REF!,5,0),1)=0,IFERROR(VLOOKUP(BI6&"_OGROD",#REF!,5,0),1)=0, IFERROR(VLOOKUP(REPLACE(BI6,FIND(" ",BI6,1),1,"_"),#REF!,5,0),1)=0),BK6,0),0) -> 0 | BK6: 1 | BL6: Aki | BM6: v1.7
B7: EKO | Q7: PROCES | AH7: =IFERROR(IF(#REF! = "", 3, VLOOKUP(#REF!,D:H,5,0) ),3) -> 3 | AI7: =IFERROR(IF(#REF!="",60,VLOOKUP(#REF!,D:I,6,0)),60) -> 60 | BI7: AZ004040 | BJ7: =IFERROR(IF(OR(IFERROR(VLOOKUP(BI7,#REF!,5,0),1)=0,IFERROR(VLOOKUP(BI7&"_OGROD",#REF!,5,0),1)=0, IFERROR(VLOOKUP(REPLACE(BI7,FIND(" ",BI7,1),1,"_"),#REF!,5,0),1)=0),BK7,0),0) -> 0 | BK7: 1 | BL7: Tracy | BM7: v1.8
B8: ONLINE | Q8: =IF(#REF!="BEZPOŚREDNI"," D2D","") ->  | AH8: =IFERROR(IF(#REF!="",3,VLOOKUP(#REF!,D:H,5,0)),3) -> 3 | AI8: =IFERROR(IF(#REF! = "",60,VLOOKUP(#REF!,D:I,6,0)),60) -> 60 | BI8: AZ012050 | BJ8: =IFERROR(IF(OR(IFERROR(VLOOKUP(BI8,#REF!,5,0),1)=0,IFERROR(VLOOKUP(BI8&"_OGROD",#REF!,5,0),1)=0, IFERROR(VLOOKUP(REPLACE(BI8,FIND(" ",BI8,1),1,"_"),#REF!,5,0),1)=0),BK8,0),0) -> 0 | BK8: 1 | BL8: Tiffany | BM8: v2.0
B9: NIE | AH9: =IFERROR(IF(#REF!="",3,VLOOKUP(#REF!,D:H,5,0)),3) -> 3 | AI9: =IFERROR(IF(#REF! = "",144,VLOOKUP(#REF!,D:I,6,0)),144) -> 144 | BI9: AZ006040 | BJ9: =IFERROR(IF(OR(IFERROR(VLOOKUP(BI9,#REF!,5,0),1)=0,IFERROR(VLOOKUP(BI9&"_OGROD",#REF!,5,0),1)=0, IFERROR(VLOOKUP(REPLACE(BI9,FIND(" ",BI9,1),1,"_"),#REF!,5,0),1)=0),BK9,0),0) -> 0 | BK9: 1 | BL9: Solitaire | BM9: v2.2
B10: 1 okres | C10: Udział 0% per okres kredytowania | D10: =#REF!& "_OGROD" ->  | AK10: czy pierwsze uruchomienie | AL10: 1 | BI10: AZ006070 | BJ10: =IFERROR(IF(OR(IFERROR(VLOOKUP(BI10,#REF!,5,0),1)=0,IFERROR(VLOOKUP(BI10&"_OGROD",#REF!,5,0),1)=0, IFERROR(VLOOKUP(REPLACE(BI10,FIND(" ",BI10,1),1,"_"),#REF!,5,0),1)=0),BK10,0),0) -> 0 | BK10: 1 | BL10: Mary | BM10: v2.3
B11: 2 okresy | C11: Udział 0% łącznie | D11: =#REF!& "_OGROD" ->  | Q11: PI aktualne | BI11: AZ001042 | BJ11: =IFERROR(IF(OR(IFERROR(VLOOKUP(BI11,#REF!,5,0),1)=0,IFERROR(VLOOKUP(BI11&"_OGROD",#REF!,5,0),1)=0, IFERROR(VLOOKUP(REPLACE(BI11,FIND(" ",BI11,1),1,"_"),#REF!,5,0),1)=0),BK11,0),0) -> 0 | BK11: 1 | BL11: Holly | BM11: v2.4
B12: 3 okresy | C12: Dopłata od całości | D12: =#REF!& "_OGROD" ->  | Q12: PI06046 | S12: lista PI | BI12: AZ001061 | BJ12: =IFERROR(IF(OR(IFERROR(VLOOKUP(BI12,#REF!,5,0),1)=0,IFERROR(VLOOKUP(BI12&"_OGROD",#REF!,5,0),1)=0, IFERROR(VLOOKUP(REPLACE(BI12,FIND(" ",BI12,1),1,"_"),#REF!,5,0),1)=0),BK12,0),0) -> 0 | BK12: 1 | BL12: Anji | BM12: v2.5
C13: Dopłata od nadwyżki | D13: =#REF!& "_OGROD" ->  | Q13: =VLOOKUP(Q12,S13:W180,4,0) ->  | AK13: czy import | AL13: 0 | BI13: AZ007120 | BJ13: =IFERROR(IF(OR(IFERROR(VLOOKUP(BI13,#REF!,5,0),1)=0,IFERROR(VLOOKUP(BI13&"_OGROD",#REF!,5,0),1)=0, IFERROR(VLOOKUP(REPLACE(BI13,FIND(" ",BI13,1),1,"_"),#REF!,5,0),1)=0),BK13,0),0) -> 0 | BK13: 1 | BL13: Melina | BM13: v2.6
A14: USUŃ | B14: USUŃ | D14: =#REF!& "_OGROD" ->  | Q14: =VLOOKUP(Q12,S13:W180,5,0) ->  | AS14: 1 | BI14: AZ003056 | BJ14: =IFERROR(IF(OR(IFERROR(VLOOKUP(BI14,#REF!,5,0),1)=0,IFERROR(VLOOKUP(BI14&"_OGROD",#REF!,5,0),1)=0, IFERROR(VLOOKUP(REPLACE(BI14,FIND(" ",BI14,1),1,"_"),#REF!,5,0),1)=0),BK14,0),0) -> 0 | BK14: 1 | BL14: Octopus
A15: NIE | B15: EDYTUJ | D15: =#REF!& "_OGROD" ->  | AS15: 2 | BI15: AZ002040 odroczenie 6M | BJ15: =IFERROR(IF(OR(IFERROR(VLOOKUP(BI15,#REF!,5,0),1)=0,IFERROR(VLOOKUP(BI15&"_OGROD",#REF!,5,0),1)=0, IFERROR(VLOOKUP(REPLACE(BI15,FIND(" ",BI15,1),1,"_"),#REF!,5,0),1)=0),BK15,0),0) -> 0 | BK15: 1 | BL15: Stacey | BM15: v2.7
B16: NIE | D16: =#REF!& "_OGROD" ->  | AS16: 3 | BI16: AZ001037 odroczenie 6M | BJ16: =IFERROR(IF(OR(IFERROR(VLOOKUP(BI16,#REF!,5,0),1)=0,IFERROR(VLOOKUP(BI16&"_OGROD",#REF!,5,0),1)=0, IFERROR(VLOOKUP(REPLACE(BI16,FIND(" ",BI16,1),1,"_"),#REF!,5,0),1)=0),BK16,0),0) -> 0 | BK16: 1 | BL16: Kara | BM16: v2.8
B17: NIE | D17: =#REF!& "_OGROD" ->  | AS17: 4 | BI17: AZ003045 odroczenie 6M | BJ17: =IFERROR(IF(OR(IFERROR(VLOOKUP(BI17,#REF!,5,0),1)=0,IFERROR(VLOOKUP(BI17&"_OGROD",#REF!,5,0),1)=0, IFERROR(VLOOKUP(REPLACE(BI17,FIND(" ",BI17,1),1,"_"),#REF!,5,0),1)=0),BK17,0),0) -> 0 | BK17: 1 | BL17: Pam | BM17: v2.9
B18: TAK (wymagana zgoda DP CF) | D18: =#REF!& "_OGROD" ->  | AS18: 5 | BI18: AZ001038 odroczenie 6M | BJ18: =IFERROR(IF(OR(IFERROR(VLOOKUP(BI18,#REF!,5,0),1)=0,IFERROR(VLOOKUP(BI18&"_OGROD",#REF!,5,0),1)=0, IFERROR(VLOOKUP(REPLACE(BI18,FIND(" ",BI18,1),1,"_"),#REF!,5,0),1)=0),BK18,0),0) -> 0 | BK18: 1 | BL18: Natalya | BM18: v3.0
B19: TAK (wymagana zgoda Dyr. Reg.) | D19: =#REF!& "_OGROD" ->  | AS19: 6 | BI19: AZ004045 odroczenie 3M | BJ19: =IFERROR(IF(OR(IFERROR(VLOOKUP(BI19,#REF!,5,0),1)=0,IFERROR(VLOOKUP(BI19&"_OGROD",#REF!,5,0),1)=0, IFERROR(VLOOKUP(REPLACE(BI19,FIND(" ",BI19,1),1,"_"),#REF!,5,0),1)=0),BK19,0),0) -> 0 | BK19: 1 | BL19: Wai | BM19: v3.1
D20: =#REF!& "_OGROD" ->  | AS20: 7 | BI20: AZ001043 odroczenie 3M | BJ20: =IFERROR(IF(OR(IFERROR(VLOOKUP(BI20,#REF!,5,0),1)=0,IFERROR(VLOOKUP(BI20&"_OGROD",#REF!,5,0),1)=0, IFERROR(VLOOKUP(REPLACE(BI20,FIND(" ",BI20,1),1,"_"),#REF!,5,0),1)=0),BK20,0),0) -> 0 | BK20: 1 | BL20: Christmas | BM20: v3.2
D21: =#REF!& "_OGROD" ->  | AS21: 8 | BI21: AZ002035 odroczenie 6M | BJ21: =IFERROR(IF(OR(IFERROR(VLOOKUP(BI21,#REF!,5,0),1)=0,IFERROR(VLOOKUP(BI21&"_OGROD",#REF!,5,0),1)=0, IFERROR(VLOOKUP(REPLACE(BI21,FIND(" ",BI21,1),1,"_"),#REF!,5,0),1)=0),BK21,0),0) -> 0 | BK21: 1 | BL21: Jinx
B22: Karencja | D22: =#REF!& "_OGROD" ->  | AS22: 9 | BI22: AZ005045 odroczenie 6M | BJ22: =IFERROR(IF(OR(IFERROR(VLOOKUP(BI22,#REF!,5,0),1)=0,IFERROR(VLOOKUP(BI22&"_OGROD",#REF!,5,0),1)=0, IFERROR(VLOOKUP(REPLACE(BI22,FIND(" ",BI22,1),1,"_"),#REF!,5,0),1)=0),BK22,0),0) -> 0 | BK22: 1 | BL22: Vesper
B23: 30 | D23: =#REF!& "_OGROD" ->  | AS23: 10 | BI23: AZ005040 odroczenie 6M | BJ23: =IFERROR(IF(OR(IFERROR(VLOOKUP(BI23,#REF!,5,0),1)=0,IFERROR(VLOOKUP(BI23&"_OGROD",#REF!,5,0),1)=0, IFERROR(VLOOKUP(REPLACE(BI23,FIND(" ",BI23,1),1,"_"),#REF!,5,0),1)=0),BK23,0),0) -> 0 | BK23: 1 | BL23: Camile
A24: ZGODA | B24: 60 | C24: 1 m-c | D24: =#REF!& "_OGROD" ->  | AS24: 10.1 | BI24: AZ011050 odroczenie 6M | BJ24: =IFERROR(IF(OR(IFERROR(VLOOKUP(BI24,#REF!,5,0),1)=0,IFERROR(VLOOKUP(BI24&"_OGROD",#REF!,5,0),1)=0, IFERROR(VLOOKUP(REPLACE(BI24,FIND(" ",BI24,1),1,"_"),#REF!,5,0),1)=0),BK24,0),0) -> 0 | BK24: 1 | BL24: Severine
A25: BRAK ZGODY | B25: 90 | C25: 2 m-c | D25: =#REF!& "_OGROD" ->  | AS25: 10.2 | BI25: AZ001041 odroczenie 6M | BJ25: =IFERROR(IF(OR(IFERROR(VLOOKUP(BI25,#REF!,5,0),1)=0,IFERROR(VLOOKUP(BI25&"_OGROD",#REF!,5,0),1)=0, IFERROR(VLOOKUP(REPLACE(BI25,FIND(" ",BI25,1),1,"_"),#REF!,5,0),1)=0),BK25,0),0) -> 0 | BK25: 1 | BL25: Madeleine
B26: 120 | C26: 3 m-c | D26: =#REF!& "_OGROD" ->  | AS26: 12 | BI26: AZ001033 odroczenie 6M | BJ26: =IFERROR(IF(OR(IFERROR(VLOOKUP(BI26,#REF!,5,0),1)=0,IFERROR(VLOOKUP(BI26&"_OGROD",#REF!,5,0),1)=0, IFERROR(VLOOKUP(REPLACE(BI26,FIND(" ",BI26,1),1,"_"),#REF!,5,0),1)=0),BK26,0),0) -> 0 | BK26: 1
A27: 3 | B27: 150 | C27: 4 m-c | D27: =#REF!& "_OGROD" ->  | AS27: 12.1 | BI27: AZ015050 odroczenie 3M | BJ27: =IFERROR(IF(OR(IFERROR(VLOOKUP(BI27,#REF!,5,0),1)=0,IFERROR(VLOOKUP(BI27&"_OGROD",#REF!,5,0),1)=0, IFERROR(VLOOKUP(REPLACE(BI27,FIND(" ",BI27,1),1,"_"),#REF!,5,0),1)=0),BK27,0),0) -> 0 | BK27: 1
A28: 6 | B28: 180 | C28: 5 m-c | D28: =#REF!& "_OGROD" ->  | AS28: 12.2 | BI28: AZ016050 odroczenie 6M | BJ28: =IFERROR(IF(OR(IFERROR(VLOOKUP(BI28,#REF!,5,0),1)=0,IFERROR(VLOOKUP(BI28&"_OGROD",#REF!,5,0),1)=0, IFERROR(VLOOKUP(REPLACE(BI28,FIND(" ",BI28,1),1,"_"),#REF!,5,0),1)=0),BK28,0),0) -> 0 | BK28: 1
A29: 8 | B29: 210 | C29: 6 m-c | D29: =#REF!& "_OGROD" ->  | BI29: AZ002041 odroczenie 6M | BJ29: =IFERROR(IF(OR(IFERROR(VLOOKUP(BI29,#REF!,5,0),1)=0,IFERROR(VLOOKUP(BI29&"_OGROD",#REF!,5,0),1)=0, IFERROR(VLOOKUP(REPLACE(BI29,FIND(" ",BI29,1),1,"_"),#REF!,5,0),1)=0),BK29,0),0) -> 0 | BK29: 1 | BN29: =BV:BW
A30: 0 | D30: =#REF!& "_OGROD" ->  | BI30: Kredyt na modernizację 0.4 | BJ30: =IFERROR(IF(OR(IFERROR(VLOOKUP(BI30,#REF!,5,0),1)=0,IFERROR(VLOOKUP(BI30&"_OGROD",#REF!,5,0),1)=0, IFERROR(VLOOKUP(REPLACE(BI30,FIND(" ",BI30,1),1,"_"),#REF!,5,0),1)=0),BK30,0),0) -> 0 | BK30: 1
D31: =#REF!& "_OGROD" ->  | AS31: 1 | BI31: EKO RATY I | BJ31: =IFERROR(IF(OR(IFERROR(VLOOKUP(BI31,#REF!,5,0),1)=0,IFERROR(VLOOKUP(BI31&"_OGROD",#REF!,5,0),1)=0, IFERROR(VLOOKUP(REPLACE(BI31,FIND(" ",BI31,1),1,"_"),#REF!,5,0),1)=0),BK31,0),0) -> 0 | BK31: 1
B32: TAK | D32: =#REF!& "_OGROD" ->  | L32: =#REF! ->  | AS32: 1.1 | BI32: EKO RATY XX | BJ32: =IFERROR(IF(OR(IFERROR(VLOOKUP(BI32,#REF!,5,0),1)=0,IFERROR(VLOOKUP(BI32&"_OGROD",#REF!,5,0),1)=0, IFERROR(VLOOKUP(REPLACE(BI32,FIND(" ",BI32,1),1,"_"),#REF!,5,0),1)=0),BK32,0),0) -> 0 | BK32: 1
B33: NIE | D33: =#REF!& "_OGROD" ->  | L33: A010070 | AS33: 1.2 | BI33: EKO RATY XXVII | BJ33: =IFERROR(IF(OR(IFERROR(VLOOKUP(BI33,#REF!,5,0),1)=0,IFERROR(VLOOKUP(BI33&"_OGROD",#REF!,5,0),1)=0, IFERROR(VLOOKUP(REPLACE(BI33,FIND(" ",BI33,1),1,"_"),#REF!,5,0),1)=0),BK33,0),0) -> 0 | BK33: 1
B34: PER SKLEP | D34: =#REF!& "_OGROD" ->  | L34: A020020 | AS34: 2 | BI34: EKO RATY XXVIII | BJ34: =IFERROR(IF(OR(IFERROR(VLOOKUP(BI34,#REF!,5,0),1)=0,IFERROR(VLOOKUP(BI34&"_OGROD",#REF!,5,0),1)=0, IFERROR(VLOOKUP(REPLACE(BI34,FIND(" ",BI34,1),1,"_"),#REF!,5,0),1)=0),BK34,0),0) -> 0 | BK34: 1
D35: =#REF!& "_OGROD" ->  | L35: A020080 | AS35: 3 | BI35: EKO RATY XXIX | BJ35: =IFERROR(IF(OR(IFERROR(VLOOKUP(BI35,#REF!,5,0),1)=0,IFERROR(VLOOKUP(BI35&"_OGROD",#REF!,5,0),1)=0, IFERROR(VLOOKUP(REPLACE(BI35,FIND(" ",BI35,1),1,"_"),#REF!,5,0),1)=0),BK35,0),0) -> 0 | BK35: 1
B36: % | D36: =#REF!& "_OGROD" ->  | L36: A030060 | AS36: 4 | BI36: EKO RATY Iss | BJ36: =IFERROR(IF(OR(IFERROR(VLOOKUP(BI36,#REF!,5,0),1)=0,IFERROR(VLOOKUP(BI36&"_OGROD",#REF!,5,0),1)=0, IFERROR(VLOOKUP(REPLACE(BI36,FIND(" ",BI36,1),1,"_"),#REF!,5,0),1)=0),BK36,0),0) -> 0 | BK36: 1
B37: zł | D37: =#REF!& "_OGROD" ->  | L37: A030090 | BI37: EKO RATY Iss z K1 | BJ37: =IFERROR(IF(OR(IFERROR(VLOOKUP(BI37,#REF!,5,0),1)=0,IFERROR(VLOOKUP(BI37&"_OGROD",#REF!,5,0),1)=0, IFERROR(VLOOKUP(REPLACE(BI37,FIND(" ",BI37,1),1,"_"),#REF!,5,0),1)=0),BK37,0),0) -> 0 | BK37: 1
D38: =#REF!& "_OGROD" ->  | L38: 0.25 % miesięcznie | BI38: EKO RATY Iss z K2 | BJ38: =IFERROR(IF(OR(IFERROR(VLOOKUP(BI38,#REF!,5,0),1)=0,IFERROR(VLOOKUP(BI38&"_OGROD",#REF!,5,0),1)=0, IFERROR(VLOOKUP(REPLACE(BI38,FIND(" ",BI38,1),1,"_"),#REF!,5,0),1)=0),BK38,0),0) -> 0 | BK38: 1
D39: =#REF!& "_OGROD" ->  | L39: 0.3 % miesięcznie | AS39: 1 | BI39: EKO RATY Iss z K3 | BJ39: =IFERROR(IF(OR(IFERROR(VLOOKUP(BI39,#REF!,5,0),1)=0,IFERROR(VLOOKUP(BI39&"_OGROD",#REF!,5,0),1)=0, IFERROR(VLOOKUP(REPLACE(BI39,FIND(" ",BI39,1),1,"_"),#REF!,5,0),1)=0),BK39,0),0) -> 0 | BK39: 1
B40: 1 miesięczne | D40: =#REF!& "_OGROD" ->  | K40: A050050_OGROD | L40: 0.35 % miesięcznie | AS40: 2 | BI40: EKO RATY Iss z K6 | BJ40: =IFERROR(IF(OR(IFERROR(VLOOKUP(BI40,#REF!,5,0),1)=0,IFERROR(VLOOKUP(BI40&"_OGROD",#REF!,5,0),1)=0, IFERROR(VLOOKUP(REPLACE(BI40,FIND(" ",BI40,1),1,"_"),#REF!,5,0),1)=0),BK40,0),0) -> 0 | BK40: 1
B41: 2 miesięczne | D41: =#REF!& "_OGROD" ->  | K41: A060060_OGROD | L41: 0.4 % miesięcznie | AS41: 3 | BI41: EKO RATY XXss | BJ41: =IFERROR(IF(OR(IFERROR(VLOOKUP(BI41,#REF!,5,0),1)=0,IFERROR(VLOOKUP(BI41&"_OGROD",#REF!,5,0),1)=0, IFERROR(VLOOKUP(REPLACE(BI41,FIND(" ",BI41,1),1,"_"),#REF!,5,0),1)=0),BK41,0),0) -> 0 | BK41: 1
B42: 3 miesięczne | D42: =#REF!& "_OGROD" ->  | K42: A070070_OGROD | L42: 0.45 % miesięcznie | AS42: 4 | BI42: EKO RATY XXss z K1 | BJ42: =IFERROR(IF(OR(IFERROR(VLOOKUP(BI42,#REF!,5,0),1)=0,IFERROR(VLOOKUP(BI42&"_OGROD",#REF!,5,0),1)=0, IFERROR(VLOOKUP(REPLACE(BI42,FIND(" ",BI42,1),1,"_"),#REF!,5,0),1)=0),BK42,0),0) -> 0 | BK42: 1
B43: 6 miesięczne | D43: =#REF!& "_OGROD" ->  | K43: A080080_OGROD | L43: A040045 | AS43: 5 | BI43: EKO RATY XXss z K2 | BJ43: =IFERROR(IF(OR(IFERROR(VLOOKUP(BI43,#REF!,5,0),1)=0,IFERROR(VLOOKUP(BI43&"_OGROD",#REF!,5,0),1)=0, IFERROR(VLOOKUP(REPLACE(BI43,FIND(" ",BI43,1),1,"_"),#REF!,5,0),1)=0),BK43,0),0) -> 0 | BK43: 1
B44: Po zakończeniu kontraktu | D44: =#REF!& "_OGROD" ->  | K44: A090090_OGROD | L44: A040050 | AS44: 6 | BI44: EKO RATY XXss z K3 | BJ44: =IFERROR(IF(OR(IFERROR(VLOOKUP(BI44,#REF!,5,0),1)=0,IFERROR(VLOOKUP(BI44&"_OGROD",#REF!,5,0),1)=0, IFERROR(VLOOKUP(REPLACE(BI44,FIND(" ",BI44,1),1,"_"),#REF!,5,0),1)=0),BK44,0),0) -> 0 | BK44: 1
B45: 1 miesięczne z wyrównaniem | D45: =#REF!& "_OGROD" ->  | K45: B100100_OGROD | L45: A040060 | BI45: EKO RATY XXss z K6 | BJ45: =IFERROR(IF(OR(IFERROR(VLOOKUP(BI45,#REF!,5,0),1)=0,IFERROR(VLOOKUP(BI45&"_OGROD",#REF!,5,0),1)=0, IFERROR(VLOOKUP(REPLACE(BI45,FIND(" ",BI45,1),1,"_"),#REF!,5,0),1)=0),BK45,0),0) -> 0 | BK45: 1
B46: 2 miesięczne z wyrównaniem | D46: =#REF!& "_OGROD" ->  | K46: AZ001066 odroczenie 6M_OGROD | L46: A040070 | BI46: EKO RATY XXVIIss | BJ46: =IFERROR(IF(OR(IFERROR(VLOOKUP(BI46,#REF!,5,0),1)=0,IFERROR(VLOOKUP(BI46&"_OGROD",#REF!,5,0),1)=0, IFERROR(VLOOKUP(REPLACE(BI46,FIND(" ",BI46,1),1,"_"),#REF!,5,0),1)=0),BK46,0),0) -> 0 | BK46: 1
B47: 3 miesięczne z wyrównaniem | D47: =#REF!& "_OGROD" ->  | K47: AZ005050 odroczenie 6M_OGROD | L47: A045050 | BI47: EKO RATY XXVIIss z K1 | BJ47: =IFERROR(IF(OR(IFERROR(VLOOKUP(BI47,#REF!,5,0),1)=0,IFERROR(VLOOKUP(BI47&"_OGROD",#REF!,5,0),1)=0, IFERROR(VLOOKUP(REPLACE(BI47,FIND(" ",BI47,1),1,"_"),#REF!,5,0),1)=0),BK47,0),0) -> 0 | BK47: 1
B48: 6 miesięczne z wyrównaniem | D48: =#REF!& "_OGROD" ->  | K48: AZ003045 odroczenie 6M_OGROD | L48: 0.5 % miesięcznie | BI48: EKO RATY XXVIIIss | BJ48: =IFERROR(IF(OR(IFERROR(VLOOKUP(BI48,#REF!,5,0),1)=0,IFERROR(VLOOKUP(BI48&"_OGROD",#REF!,5,0),1)=0, IFERROR(VLOOKUP(REPLACE(BI48,FIND(" ",BI48,1),1,"_"),#REF!,5,0),1)=0),BK48,0),0) -> 0 | BK48: 1
D49: =#REF!& "_OGROD" ->  | K49: AZ001043 odroczenie 3M_OGROD | L49: A050060 | BI49: EKO RATY XXXss | BJ49: =IFERROR(IF(OR(IFERROR(VLOOKUP(BI49,#REF!,5,0),1)=0,IFERROR(VLOOKUP(BI49&"_OGROD",#REF!,5,0),1)=0, IFERROR(VLOOKUP(REPLACE(BI49,FIND(" ",BI49,1),1,"_"),#REF!,5,0),1)=0),BK49,0),0) -> 0 | BK49: 1
D50: =#REF!& "_OGROD" ->  | K50: AZ002035 odroczenie 6M_OGROD | L50: A050070 | BI50: Kredyt na modernizację 0.4ss | BJ50: =IFERROR(IF(OR(IFERROR(VLOOKUP(BI50,#REF!,5,0),1)=0,IFERROR(VLOOKUP(BI50&"_OGROD",#REF!,5,0),1)=0, IFERROR(VLOOKUP(REPLACE(BI50,FIND(" ",BI50,1),1,"_"),#REF!,5,0),1)=0),BK50,0),0) -> 0 | BK50: 1
D51: =#REF!& "_OGROD" ->  | K51: AZ001049 odroczenie 6M_OGROD | L51: A050080 | BI51: Czyste Powietrze VI | BJ51: =IFERROR(IF(OR(IFERROR(VLOOKUP(BI51,#REF!,5,0),1)=0,IFERROR(VLOOKUP(BI51&"_OGROD",#REF!,5,0),1)=0, IFERROR(VLOOKUP(REPLACE(BI51,FIND(" ",BI51,1),1,"_"),#REF!,5,0),1)=0),BK51,0),0) -> 0 | BK51: 1
D52: =#REF!& "_OGROD" ->  | K52: AZ005040 odroczenie 6M_OGROD | L52: 0.55 % miesięcznie | BI52: Czyste Powietrze VI z K1 | BJ52: =IFERROR(IF(OR(IFERROR(VLOOKUP(BI52,#REF!,5,0),1)=0,IFERROR(VLOOKUP(BI52&"_OGROD",#REF!,5,0),1)=0, IFERROR(VLOOKUP(REPLACE(BI52,FIND(" ",BI52,1),1,"_"),#REF!,5,0),1)=0),BK52,0),0) -> 0 | BK52: 1
B53: Całość | D53: =#REF!& "_OGROD" ->  | K53: AZ005045 odroczenie 6M_OGROD | L53: 0.6 % miesięcznie | BI53: Czyste Powietrze VI z K2 | BJ53: =IFERROR(IF(OR(IFERROR(VLOOKUP(BI53,#REF!,5,0),1)=0,IFERROR(VLOOKUP(BI53&"_OGROD",#REF!,5,0),1)=0, IFERROR(VLOOKUP(REPLACE(BI53,FIND(" ",BI53,1),1,"_"),#REF!,5,0),1)=0),BK53,0),0) -> 0 | BK53: 1
B54: Nadwyżka | D54: =#REF!& "_OGROD" ->  | K54: AZ011050 odroczenie 6M_OGROD | L54: A060065 | BI54: Czyste Powietrze VI z K3 | BJ54: =IFERROR(IF(OR(IFERROR(VLOOKUP(BI54,#REF!,5,0),1)=0,IFERROR(VLOOKUP(BI54&"_OGROD",#REF!,5,0),1)=0, IFERROR(VLOOKUP(REPLACE(BI54,FIND(" ",BI54,1),1,"_"),#REF!,5,0),1)=0),BK54,0),0) -> 0 | BK54: 1
D55: =#REF!& "_OGROD" ->  | K55: AK300050_OGROD | L55: A060080 | BI55: Czyste Powietrze VI z K6 | BJ55: =IFERROR(IF(OR(IFERROR(VLOOKUP(BI55,#REF!,5,0),1)=0,IFERROR(VLOOKUP(BI55&"_OGROD",#REF!,5,0),1)=0, IFERROR(VLOOKUP(REPLACE(BI55,FIND(" ",BI55,1),1,"_"),#REF!,5,0),1)=0),BK55,0),0) -> 0 | BK55: 1
B56: NFOŚ BEZPOŚREDNI | D56: =#REF!& "_OGROD" ->  | K56: AK300060_OGROD | L56: A060090 | BI56: Czyste Powietrze XIII | BJ56: =IFERROR(IF(OR(IFERROR(VLOOKUP(BI56,#REF!,5,0),1)=0,IFERROR(VLOOKUP(BI56&"_OGROD",#REF!,5,0),1)=0, IFERROR(VLOOKUP(REPLACE(BI56,FIND(" ",BI56,1),1,"_"),#REF!,5,0),1)=0),BK56,0),0) -> 0 | BK56: 1
D57: =#REF!& "_OGROD" ->  | L57: 0.65 % miesięcznie | BI57: Czyste Powietrze Iss | BJ57: =IFERROR(IF(OR(IFERROR(VLOOKUP(BI57,#REF!,5,0),1)=0,IFERROR(VLOOKUP(BI57&"_OGROD",#REF!,5,0),1)=0, IFERROR(VLOOKUP(REPLACE(BI57,FIND(" ",BI57,1),1,"_"),#REF!,5,0),1)=0),BK57,0),0) -> 0 | BK57: 1
B58: NFOŚ STACJONARNY | D58: =#REF!& "_OGROD" ->  | K58: AK300070_OGROD | L58: 0.7 % miesięcznie | BI58: Czyste Powietrze Iss z K1 | BJ58: =IFERROR(IF(OR(IFERROR(VLOOKUP(BI58,#REF!,5,0),1)=0,IFERROR(VLOOKUP(BI58&"_OGROD",#REF!,5,0),1)=0, IFERROR(VLOOKUP(REPLACE(BI58,FIND(" ",BI58,1),1,"_"),#REF!,5,0),1)=0),BK58,0),0) -> 0 | BK58: 1
B59: EKO - BEZPOŚREDNI | D59: =#REF!& "_OGROD" ->  | K59: AK300080_OGROD | L59: A070075 | BI59: Czyste Powietrze Iss z K2 | BJ59: =IFERROR(IF(OR(IFERROR(VLOOKUP(BI59,#REF!,5,0),1)=0,IFERROR(VLOOKUP(BI59&"_OGROD",#REF!,5,0),1)=0, IFERROR(VLOOKUP(REPLACE(BI59,FIND(" ",BI59,1),1,"_"),#REF!,5,0),1)=0),BK59,0),0) -> 0 | BK59: 1
B60: EKO - STACJONARNY | D60: =#REF!& "_OGROD" ->  | K60: AK300090_OGROD | L60: A070080 | BI60: Czyste Powietrze Iss z K3 | BJ60: =IFERROR(IF(OR(IFERROR(VLOOKUP(BI60,#REF!,5,0),1)=0,IFERROR(VLOOKUP(BI60&"_OGROD",#REF!,5,0),1)=0, IFERROR(VLOOKUP(REPLACE(BI60,FIND(" ",BI60,1),1,"_"),#REF!,5,0),1)=0),BK60,0),0) -> 0 | BK60: 1
B61: EKO MIX | D61: =#REF!& "_OGROD" ->  | K61: AK300100_OGROD | L61: A070090 | BI61: Czyste Powietrze XIX | BJ61: =IFERROR(IF(OR(IFERROR(VLOOKUP(BI61,#REF!,5,0),1)=0,IFERROR(VLOOKUP(BI61&"_OGROD",#REF!,5,0),1)=0, IFERROR(VLOOKUP(REPLACE(BI61,FIND(" ",BI61,1),1,"_"),#REF!,5,0),1)=0),BK61,0),0) -> 0 | BK61: 1
B62: NFOŚ - EKO STACJONARNY | D62: =#REF!& "_OGROD" ->  | K62: AK600050_OGROD | L62: =#REF! ->  | BI62: Czyste Powietrze XIX z K1 | BJ62: =IFERROR(IF(OR(IFERROR(VLOOKUP(BI62,#REF!,5,0),1)=0,IFERROR(VLOOKUP(BI62&"_OGROD",#REF!,5,0),1)=0, IFERROR(VLOOKUP(REPLACE(BI62,FIND(" ",BI62,1),1,"_"),#REF!,5,0),1)=0),BK62,0),0) -> 0 | BK62: 1
B63: NFOŚ - EKO BEZPOŚREDNI | D63: =#REF!& "_OGROD" ->  | K63: AK600060_OGROD | L63: 0.8 % miesięcznie | BI63: Czyste Powietrze XIX z K2 | BJ63: =IFERROR(IF(OR(IFERROR(VLOOKUP(BI63,#REF!,5,0),1)=0,IFERROR(VLOOKUP(BI63&"_OGROD",#REF!,5,0),1)=0, IFERROR(VLOOKUP(REPLACE(BI63,FIND(" ",BI63,1),1,"_"),#REF!,5,0),1)=0),BK63,0),0) -> 0 | BK63: 1
B64: NFOŚ - EKO MIX | D64: =#REF!& "_OGROD" ->  | K64: AK600070_OGROD | L64: A080085 | BI64: Czyste Powietrze XIX z K3 | BJ64: =IFERROR(IF(OR(IFERROR(VLOOKUP(BI64,#REF!,5,0),1)=0,IFERROR(VLOOKUP(BI64&"_OGROD",#REF!,5,0),1)=0, IFERROR(VLOOKUP(REPLACE(BI64,FIND(" ",BI64,1),1,"_"),#REF!,5,0),1)=0),BK64,0),0) -> 0 | BK64: 1
D65: =#REF!& "_OGROD" ->  | K65: AK600080_OGROD | L65: A080090 | BI65: Czyste Powietrze VIss | BJ65: =IFERROR(IF(OR(IFERROR(VLOOKUP(BI65,#REF!,5,0),1)=0,IFERROR(VLOOKUP(BI65&"_OGROD",#REF!,5,0),1)=0, IFERROR(VLOOKUP(REPLACE(BI65,FIND(" ",BI65,1),1,"_"),#REF!,5,0),1)=0),BK65,0),0) -> 0 | BK65: 1
B66: Dopłata | D66: =#REF!& "_OGROD" ->  | K66: AK600090_OGROD | L66: A080100 | BI66: Czyste Powietrze VIss z K1 | BJ66: =IFERROR(IF(OR(IFERROR(VLOOKUP(BI66,#REF!,5,0),1)=0,IFERROR(VLOOKUP(BI66&"_OGROD",#REF!,5,0),1)=0, IFERROR(VLOOKUP(REPLACE(BI66,FIND(" ",BI66,1),1,"_"),#REF!,5,0),1)=0),BK66,0),0) -> 0 | BK66: 1
B67: Wynagrodzenie | D67: =#REF!& "_OGROD" ->  | K67: AK600100_OGROD | L67: 0.9 % miesięcznie | BI67: Czyste Powietrze VIss z K2 | BJ67: =IFERROR(IF(OR(IFERROR(VLOOKUP(BI67,#REF!,5,0),1)=0,IFERROR(VLOOKUP(BI67&"_OGROD",#REF!,5,0),1)=0, IFERROR(VLOOKUP(REPLACE(BI67,FIND(" ",BI67,1),1,"_"),#REF!,5,0),1)=0),BK67,0),0) -> 0 | BK67: 1
D68: =#REF!& "_OGROD" ->  | L68: A090100 | BI68: Czyste Powietrze VIss z K3 | BJ68: =IFERROR(IF(OR(IFERROR(VLOOKUP(BI68,#REF!,5,0),1)=0,IFERROR(VLOOKUP(BI68&"_OGROD",#REF!,5,0),1)=0, IFERROR(VLOOKUP(REPLACE(BI68,FIND(" ",BI68,1),1,"_"),#REF!,5,0),1)=0),BK68,0),0) -> 0 | BK68: 1
B69: Wynagrodzenie standardowe | D69: =#REF!& "_OGROD" ->  | L69: A090110 | BI69: Czyste Powietrze VIss z K6 | BJ69: =IFERROR(IF(OR(IFERROR(VLOOKUP(BI69,#REF!,5,0),1)=0,IFERROR(VLOOKUP(BI69&"_OGROD",#REF!,5,0),1)=0, IFERROR(VLOOKUP(REPLACE(BI69,FIND(" ",BI69,1),1,"_"),#REF!,5,0),1)=0),BK69,0),0) -> 0 | BK69: 1
B70: Wynagrodzenie % | D70: =#REF!& "_OGROD" ->  | L70: =#REF! ->  | BI70: AD020020 D2D | BJ70: =IFERROR(IF(OR(IFERROR(VLOOKUP(BI70,#REF!,5,0),1)=0,IFERROR(VLOOKUP(BI70&"_OGROD",#REF!,5,0),1)=0, IFERROR(VLOOKUP(REPLACE(BI70,FIND(" ",BI70,1),1,"_"),#REF!,5,0),1)=0),BK70,0),0) -> 0 | BK70: 1
D71: =#REF!& "_OGROD" ->  | L71: =#REF! ->  | BI71: AD040040 D2D | BJ71: =IFERROR(IF(OR(IFERROR(VLOOKUP(BI71,#REF!,5,0),1)=0,IFERROR(VLOOKUP(BI71&"_OGROD",#REF!,5,0),1)=0, IFERROR(VLOOKUP(REPLACE(BI71,FIND(" ",BI71,1),1,"_"),#REF!,5,0),1)=0),BK71,0),0) -> 0 | BK71: 1
D72: =#REF!& "_OGROD" ->  | L72: A120130 | BI72: AD060060 D2D | BJ72: =IFERROR(IF(OR(IFERROR(VLOOKUP(BI72,#REF!,5,0),1)=0,IFERROR(VLOOKUP(BI72&"_OGROD",#REF!,5,0),1)=0, IFERROR(VLOOKUP(REPLACE(BI72,FIND(" ",BI72,1),1,"_"),#REF!,5,0),1)=0),BK72,0),0) -> 0 | BK72: 1
D73: =#REF!& "_OGROD" ->  | L73: A150160 | BI73: AK100040 | BJ73: =IFERROR(IF(OR(IFERROR(VLOOKUP(BI73,#REF!,5,0),1)=0,IFERROR(VLOOKUP(BI73&"_OGROD",#REF!,5,0),1)=0, IFERROR(VLOOKUP(REPLACE(BI73,FIND(" ",BI73,1),1,"_"),#REF!,5,0),1)=0),BK73,0),0) -> 0 | BK73: 1
D74: =#REF!& "_OGROD" ->  | L74: =#REF! ->  | BI74: AK200040 | BJ74: =IFERROR(IF(OR(IFERROR(VLOOKUP(BI74,#REF!,5,0),1)=0,IFERROR(VLOOKUP(BI74&"_OGROD",#REF!,5,0),1)=0, IFERROR(VLOOKUP(REPLACE(BI74,FIND(" ",BI74,1),1,"_"),#REF!,5,0),1)=0),BK74,0),0) -> 0 | BK74: 1
D75: =#REF!& "_OGROD" ->  | L75: AZ001020 | BI75: AK300040 | BJ75: =IFERROR(IF(OR(IFERROR(VLOOKUP(BI75,#REF!,5,0),1)=0,IFERROR(VLOOKUP(BI75&"_OGROD",#REF!,5,0),1)=0, IFERROR(VLOOKUP(REPLACE(BI75,FIND(" ",BI75,1),1,"_"),#REF!,5,0),1)=0),BK75,0),0) -> 0 | BK75: 1
D76: =#REF!& "_OGROD" ->  | L76: AZ001022 | BI76: AK600040 | BJ76: =IFERROR(IF(OR(IFERROR(VLOOKUP(BI76,#REF!,5,0),1)=0,IFERROR(VLOOKUP(BI76&"_OGROD",#REF!,5,0),1)=0, IFERROR(VLOOKUP(REPLACE(BI76,FIND(" ",BI76,1),1,"_"),#REF!,5,0),1)=0),BK76,0),0) -> 0 | BK76: 1
D77: =#REF!& "_OGROD" ->  | L77: AZ001025 | BI77: AK100045 | BJ77: =IFERROR(IF(OR(IFERROR(VLOOKUP(BI77,#REF!,5,0),1)=0,IFERROR(VLOOKUP(BI77&"_OGROD",#REF!,5,0),1)=0, IFERROR(VLOOKUP(REPLACE(BI77,FIND(" ",BI77,1),1,"_"),#REF!,5,0),1)=0),BK77,0),0) -> 0 | BK77: 1
D78: =#REF!& "_OGROD" ->  | L78: AZ001026 | BI78: AK200045 | BJ78: =IFERROR(IF(OR(IFERROR(VLOOKUP(BI78,#REF!,5,0),1)=0,IFERROR(VLOOKUP(BI78&"_OGROD",#REF!,5,0),1)=0, IFERROR(VLOOKUP(REPLACE(BI78,FIND(" ",BI78,1),1,"_"),#REF!,5,0),1)=0),BK78,0),0) -> 0 | BK78: 1
D79: =#REF!& "_OGROD" ->  | L79: =#REF! ->  | BI79: AK300045 | BJ79: =IFERROR(IF(OR(IFERROR(VLOOKUP(BI79,#REF!,5,0),1)=0,IFERROR(VLOOKUP(BI79&"_OGROD",#REF!,5,0),1)=0, IFERROR(VLOOKUP(REPLACE(BI79,FIND(" ",BI79,1),1,"_"),#REF!,5,0),1)=0),BK79,0),0) -> 0 | BK79: 1
D80: =#REF!& "_OGROD" ->  | L80: =#REF! ->  | BI80: EKO RATY I z K1 | BJ80: =IFERROR(IF(OR(IFERROR(VLOOKUP(BI80,#REF!,5,0),1)=0,IFERROR(VLOOKUP(BI80&"_OGROD",#REF!,5,0),1)=0, IFERROR(VLOOKUP(REPLACE(BI80,FIND(" ",BI80,1),1,"_"),#REF!,5,0),1)=0),BK80,0),0) -> 0 | BK80: 1
D81: =#REF!& "_OGROD" ->  | L81: AZ001030 | BI81: EKO RATY I z K2 | BJ81: =IFERROR(IF(OR(IFERROR(VLOOKUP(BI81,#REF!,5,0),1)=0,IFERROR(VLOOKUP(BI81&"_OGROD",#REF!,5,0),1)=0, IFERROR(VLOOKUP(REPLACE(BI81,FIND(" ",BI81,1),1,"_"),#REF!,5,0),1)=0),BK81,0),0) -> 0 | BK81: 1
D82: =#REF!& "_OGROD" ->  | L82: AZ001032 | BI82: EKO RATY I z K3 | BJ82: =IFERROR(IF(OR(IFERROR(VLOOKUP(BI82,#REF!,5,0),1)=0,IFERROR(VLOOKUP(BI82&"_OGROD",#REF!,5,0),1)=0, IFERROR(VLOOKUP(REPLACE(BI82,FIND(" ",BI82,1),1,"_"),#REF!,5,0),1)=0),BK82,0),0) -> 0 | BK82: 1
D83: =#REF!& "_OGROD" ->  | L83: AZ001035 | BI83: EKO RATY I z K6 | BJ83: =IFERROR(IF(OR(IFERROR(VLOOKUP(BI83,#REF!,5,0),1)=0,IFERROR(VLOOKUP(BI83&"_OGROD",#REF!,5,0),1)=0, IFERROR(VLOOKUP(REPLACE(BI83,FIND(" ",BI83,1),1,"_"),#REF!,5,0),1)=0),BK83,0),0) -> 0 | BK83: 1
D84: =#REF!& "_OGROD" ->  | L84: AZ001040 | BI84: EKO RATY XXVII z K1 | BJ84: =IFERROR(IF(OR(IFERROR(VLOOKUP(BI84,#REF!,5,0),1)=0,IFERROR(VLOOKUP(BI84&"_OGROD",#REF!,5,0),1)=0, IFERROR(VLOOKUP(REPLACE(BI84,FIND(" ",BI84,1),1,"_"),#REF!,5,0),1)=0),BK84,0),0) -> 0 | BK84: 1
D85: =#REF!& "_OGROD" ->  | L85: AZ001042 | BI85: EKO RATY XXVII z K2 | BJ85: =IFERROR(IF(OR(IFERROR(VLOOKUP(BI85,#REF!,5,0),1)=0,IFERROR(VLOOKUP(BI85&"_OGROD",#REF!,5,0),1)=0, IFERROR(VLOOKUP(REPLACE(BI85,FIND(" ",BI85,1),1,"_"),#REF!,5,0),1)=0),BK85,0),0) -> 0 | BK85: 1
D86: =#REF!& "_OGROD" ->  | L86: AZ001045 | BI86: EKO RATY XXVII z K3 | BJ86: =IFERROR(IF(OR(IFERROR(VLOOKUP(BI86,#REF!,5,0),1)=0,IFERROR(VLOOKUP(BI86&"_OGROD",#REF!,5,0),1)=0, IFERROR(VLOOKUP(REPLACE(BI86,FIND(" ",BI86,1),1,"_"),#REF!,5,0),1)=0),BK86,0),0) -> 0 | BK86: 1
D87: =#REF!& "_OGROD" ->  | L87: AZ001050 | BI87: EKO RATY XXVII z K6 | BJ87: =IFERROR(IF(OR(IFERROR(VLOOKUP(BI87,#REF!,5,0),1)=0,IFERROR(VLOOKUP(BI87&"_OGROD",#REF!,5,0),1)=0, IFERROR(VLOOKUP(REPLACE(BI87,FIND(" ",BI87,1),1,"_"),#REF!,5,0),1)=0),BK87,0),0) -> 0 | BK87: 1
D88: =#REF!& "_OGROD" ->  | L88: AZ001060 | BI88: EKO RATY XX z K1 | BJ88: =IFERROR(IF(OR(IFERROR(VLOOKUP(BI88,#REF!,5,0),1)=0,IFERROR(VLOOKUP(BI88&"_OGROD",#REF!,5,0),1)=0, IFERROR(VLOOKUP(REPLACE(BI88,FIND(" ",BI88,1),1,"_"),#REF!,5,0),1)=0),BK88,0),0) -> 0 | BK88: 1
D89: =#REF!& "_OGROD" ->  | L89: AZ001061 | BI89: A070080 | BJ89: =IFERROR(IF(OR(IFERROR(VLOOKUP(BI89,#REF!,5,0),1)=0,IFERROR(VLOOKUP(BI89&"_OGROD",#REF!,5,0),1)=0, IFERROR(VLOOKUP(REPLACE(BI89,FIND(" ",BI89,1),1,"_"),#REF!,5,0),1)=0),BK89,0),0) -> 0 | BK89: 1
D90: =#REF!& "_OGROD" ->  | L90: AZ001070 | BI90: A060080 | BJ90: =IFERROR(IF(OR(IFERROR(VLOOKUP(BI90,#REF!,5,0),1)=0,IFERROR(VLOOKUP(BI90&"_OGROD",#REF!,5,0),1)=0, IFERROR(VLOOKUP(REPLACE(BI90,FIND(" ",BI90,1),1,"_"),#REF!,5,0),1)=0),BK90,0),0) -> 0 | BK90: 1
D91: =#REF!& "_OGROD" ->  | L91: AZ001075 | BI91: B100110 | BJ91: =IFERROR(IF(OR(IFERROR(VLOOKUP(BI91,#REF!,5,0),1)=0,IFERROR(VLOOKUP(BI91&"_OGROD",#REF!,5,0),1)=0, IFERROR(VLOOKUP(REPLACE(BI91,FIND(" ",BI91,1),1,"_"),#REF!,5,0),1)=0),BK91,0),0) -> 0 | BK91: 1
D92: =#REF!& "_OGROD" ->  | L92: AZ001080 | BI92: A090110 | BJ92: =IFERROR(IF(OR(IFERROR(VLOOKUP(BI92,#REF!,5,0),1)=0,IFERROR(VLOOKUP(BI92&"_OGROD",#REF!,5,0),1)=0, IFERROR(VLOOKUP(REPLACE(BI92,FIND(" ",BI92,1),1,"_"),#REF!,5,0),1)=0),BK92,0),0) -> 0 | BK92: 1
D93: =#REF!& "_OGROD" ->  | L93: AZ001090 | BI93: A040050 | BJ93: =IFERROR(IF(OR(IFERROR(VLOOKUP(BI93,#REF!,5,0),1)=0,IFERROR(VLOOKUP(BI93&"_OGROD",#REF!,5,0),1)=0, IFERROR(VLOOKUP(REPLACE(BI93,FIND(" ",BI93,1),1,"_"),#REF!,5,0),1)=0),BK93,0),0) -> 0 | BK93: 1
D94: =#REF!& "_OGROD" ->  | L94: AZ001100 | BI94: A045050 | BJ94: =IFERROR(IF(OR(IFERROR(VLOOKUP(BI94,#REF!,5,0),1)=0,IFERROR(VLOOKUP(BI94&"_OGROD",#REF!,5,0),1)=0, IFERROR(VLOOKUP(REPLACE(BI94,FIND(" ",BI94,1),1,"_"),#REF!,5,0),1)=0),BK94,0),0) -> 0 | BK94: 1
D95: =#REF!& "_OGROD" ->  | L95: AZ001110 | BI95: A070075 | BJ95: =IFERROR(IF(OR(IFERROR(VLOOKUP(BI95,#REF!,5,0),1)=0,IFERROR(VLOOKUP(BI95&"_OGROD",#REF!,5,0),1)=0, IFERROR(VLOOKUP(REPLACE(BI95,FIND(" ",BI95,1),1,"_"),#REF!,5,0),1)=0),BK95,0),0) -> 0 | BK95: 1
D96: =#REF!& "_OGROD" ->  | L96: AZ001120 | BI96: A040045 | BJ96: =IFERROR(IF(OR(IFERROR(VLOOKUP(BI96,#REF!,5,0),1)=0,IFERROR(VLOOKUP(BI96&"_OGROD",#REF!,5,0),1)=0, IFERROR(VLOOKUP(REPLACE(BI96,FIND(" ",BI96,1),1,"_"),#REF!,5,0),1)=0),BK96,0),0) -> 0 | BK96: 1
D97: =#REF!& "_OGROD" ->  | L97: AZ001130 | BI97: B100120 | BJ97: =IFERROR(IF(OR(IFERROR(VLOOKUP(BI97,#REF!,5,0),1)=0,IFERROR(VLOOKUP(BI97&"_OGROD",#REF!,5,0),1)=0, IFERROR(VLOOKUP(REPLACE(BI97,FIND(" ",BI97,1),1,"_"),#REF!,5,0),1)=0),BK97,0),0) -> 0 | BK97: 1
D98: =#REF!& "_OGROD" ->  | L98: AZ001140 | BI98: B110120 | BJ98: =IFERROR(IF(OR(IFERROR(VLOOKUP(BI98,#REF!,5,0),1)=0,IFERROR(VLOOKUP(BI98&"_OGROD",#REF!,5,0),1)=0, IFERROR(VLOOKUP(REPLACE(BI98,FIND(" ",BI98,1),1,"_"),#REF!,5,0),1)=0),BK98,0),0) -> 0 | BK98: 1
D99: =#REF!& "_OGROD" ->  | L99: AZ001150 | BI99: A040060 | BJ99: =IFERROR(IF(OR(IFERROR(VLOOKUP(BI99,#REF!,5,0),1)=0,IFERROR(VLOOKUP(BI99&"_OGROD",#REF!,5,0),1)=0, IFERROR(VLOOKUP(REPLACE(BI99,FIND(" ",BI99,1),1,"_"),#REF!,5,0),1)=0),BK99,0),0) -> 0 | BK99: 1
D100: =#REF!& "_OGROD" ->  | L100: AZ001160 | BI100: A050060 | BJ100: =IFERROR(IF(OR(IFERROR(VLOOKUP(BI100,#REF!,5,0),1)=0,IFERROR(VLOOKUP(BI100&"_OGROD",#REF!,5,0),1)=0, IFERROR(VLOOKUP(REPLACE(BI100,FIND(" ",BI100,1),1,"_"),#REF!,5,0),1)=0),BK100,0),0) -> 0 | BK100: 1
D101: =#REF!& "_OGROD" ->  | L101: AZ001180 | BI101: A090100 | BJ101: =IFERROR(IF(OR(IFERROR(VLOOKUP(BI101,#REF!,5,0),1)=0,IFERROR(VLOOKUP(BI101&"_OGROD",#REF!,5,0),1)=0, IFERROR(VLOOKUP(REPLACE(BI101,FIND(" ",BI101,1),1,"_"),#REF!,5,0),1)=0),BK101,0),0) -> 0 | BK101: 1
D102: =#REF!& "_OGROD" ->  | L102: AZ001200 | BI102: A080100 | BJ102: =IFERROR(IF(OR(IFERROR(VLOOKUP(BI102,#REF!,5,0),1)=0,IFERROR(VLOOKUP(BI102&"_OGROD",#REF!,5,0),1)=0, IFERROR(VLOOKUP(REPLACE(BI102,FIND(" ",BI102,1),1,"_"),#REF!,5,0),1)=0),BK102,0),0) -> 0 | BK102: 1
D103: =#REF!& "_OGROD" ->  | L103: AZ002020 | BI103: A080090 | BJ103: =IFERROR(IF(OR(IFERROR(VLOOKUP(BI103,#REF!,5,0),1)=0,IFERROR(VLOOKUP(BI103&"_OGROD",#REF!,5,0),1)=0, IFERROR(VLOOKUP(REPLACE(BI103,FIND(" ",BI103,1),1,"_"),#REF!,5,0),1)=0),BK103,0),0) -> 0 | BK103: 1
D104: =#REF!& "_OGROD" ->  | L104: AZ002025 | BI104: A070090 | BJ104: =IFERROR(IF(OR(IFERROR(VLOOKUP(BI104,#REF!,5,0),1)=0,IFERROR(VLOOKUP(BI104&"_OGROD",#REF!,5,0),1)=0, IFERROR(VLOOKUP(REPLACE(BI104,FIND(" ",BI104,1),1,"_"),#REF!,5,0),1)=0),BK104,0),0) -> 0 | BK104: 1
D105: =#REF!& "_OGROD" ->  | L105: AZ002066 | BI105: A060065 | BJ105: =IFERROR(IF(OR(IFERROR(VLOOKUP(BI105,#REF!,5,0),1)=0,IFERROR(VLOOKUP(BI105&"_OGROD",#REF!,5,0),1)=0, IFERROR(VLOOKUP(REPLACE(BI105,FIND(" ",BI105,1),1,"_"),#REF!,5,0),1)=0),BK105,0),0) -> 0 | BK105: 1
D106: =#REF!& "_OGROD" ->  | L106: AZ002027 | BI106: A080085 | BJ106: =IFERROR(IF(OR(IFERROR(VLOOKUP(BI106,#REF!,5,0),1)=0,IFERROR(VLOOKUP(BI106&"_OGROD",#REF!,5,0),1)=0, IFERROR(VLOOKUP(REPLACE(BI106,FIND(" ",BI106,1),1,"_"),#REF!,5,0),1)=0),BK106,0),0) -> 0 | BK106: 1
D107: =#REF!& "_OGROD" ->  | L107: AZ002030 | BI107: B110115 | BJ107: =IFERROR(IF(OR(IFERROR(VLOOKUP(BI107,#REF!,5,0),1)=0,IFERROR(VLOOKUP(BI107&"_OGROD",#REF!,5,0),1)=0, IFERROR(VLOOKUP(REPLACE(BI107,FIND(" ",BI107,1),1,"_"),#REF!,5,0),1)=0),BK107,0),0) -> 0 | BK107: 1
D108: =#REF!& "_OGROD" ->  | L108: AZ002045 | BI108: A050070 | BJ108: =IFERROR(IF(OR(IFERROR(VLOOKUP(BI108,#REF!,5,0),1)=0,IFERROR(VLOOKUP(BI108&"_OGROD",#REF!,5,0),1)=0, IFERROR(VLOOKUP(REPLACE(BI108,FIND(" ",BI108,1),1,"_"),#REF!,5,0),1)=0),BK108,0),0) -> 0 | BK108: 1
D109: =#REF!& "_OGROD" ->  | L109: AZ002050 | BI109: A120130 | BJ109: =IFERROR(IF(OR(IFERROR(VLOOKUP(BI109,#REF!,5,0),1)=0,IFERROR(VLOOKUP(BI109&"_OGROD",#REF!,5,0),1)=0, IFERROR(VLOOKUP(REPLACE(BI109,FIND(" ",BI109,1),1,"_"),#REF!,5,0),1)=0),BK109,0),0) -> 0 | BK109: 1
D110: =#REF!& "_OGROD" ->  | L110: AZ002055 | BI110: A090095 | BJ110: =IFERROR(IF(OR(IFERROR(VLOOKUP(BI110,#REF!,5,0),1)=0,IFERROR(VLOOKUP(BI110&"_OGROD",#REF!,5,0),1)=0, IFERROR(VLOOKUP(REPLACE(BI110,FIND(" ",BI110,1),1,"_"),#REF!,5,0),1)=0),BK110,0),0) -> 0 | BK110: 1
D111: =#REF!& "_OGROD" ->  | L111: AZ002070 | BI111: A150160 | BJ111: =IFERROR(IF(OR(IFERROR(VLOOKUP(BI111,#REF!,5,0),1)=0,IFERROR(VLOOKUP(BI111&"_OGROD",#REF!,5,0),1)=0, IFERROR(VLOOKUP(REPLACE(BI111,FIND(" ",BI111,1),1,"_"),#REF!,5,0),1)=0),BK111,0),0) -> 0 | BK111: 1
D112: =#REF!& "_OGROD" ->  | L112: AZ002080 | BI112: AZ013100 | BJ112: =IFERROR(IF(OR(IFERROR(VLOOKUP(BI112,#REF!,5,0),1)=0,IFERROR(VLOOKUP(BI112&"_OGROD",#REF!,5,0),1)=0, IFERROR(VLOOKUP(REPLACE(BI112,FIND(" ",BI112,1),1,"_"),#REF!,5,0),1)=0),BK112,0),0) -> 0 | BK112: 1
D113: =#REF!& "_OGROD" ->  | L113: AZ002090 | BI113: AZ002066 | BJ113: =IFERROR(IF(OR(IFERROR(VLOOKUP(BI113,#REF!,5,0),1)=0,IFERROR(VLOOKUP(BI113&"_OGROD",#REF!,5,0),1)=0, IFERROR(VLOOKUP(REPLACE(BI113,FIND(" ",BI113,1),1,"_"),#REF!,5,0),1)=0),BK113,0),0) -> 0 | BK113: 1
D114: =#REF!& "_OGROD" ->  | L114: AZ002100 | BI114: Czyste Powietrze IVss | BJ114: =IFERROR(IF(OR(IFERROR(VLOOKUP(BI114,#REF!,5,0),1)=0,IFERROR(VLOOKUP(BI114&"_OGROD",#REF!,5,0),1)=0, IFERROR(VLOOKUP(REPLACE(BI114,FIND(" ",BI114,1),1,"_"),#REF!,5,0),1)=0),BK114,0),0) -> 0 | BK114: 1
D115: =#REF!& "_OGROD" ->  | L115: AZ002120 | BI115: EKO RATY XXXII z K1 | BJ115: =IFERROR(IF(OR(IFERROR(VLOOKUP(BI115,#REF!,5,0),1)=0,IFERROR(VLOOKUP(BI115&"_OGROD",#REF!,5,0),1)=0, IFERROR(VLOOKUP(REPLACE(BI115,FIND(" ",BI115,1),1,"_"),#REF!,5,0),1)=0),BK115,0),0) -> 0 | BK115: 1
D116: =#REF!& "_OGROD" ->  | L116: AZ002140 | BI116: EKO RATY XXXII z K6 | BJ116: =IFERROR(IF(OR(IFERROR(VLOOKUP(BI116,#REF!,5,0),1)=0,IFERROR(VLOOKUP(BI116&"_OGROD",#REF!,5,0),1)=0, IFERROR(VLOOKUP(REPLACE(BI116,FIND(" ",BI116,1),1,"_"),#REF!,5,0),1)=0),BK116,0),0) -> 0 | BK116: 1
D117: =#REF!& "_OGROD" ->  | L117: AZ002160 | BI117: EKO RATY XXXII | BJ117: =IFERROR(IF(OR(IFERROR(VLOOKUP(BI117,#REF!,5,0),1)=0,IFERROR(VLOOKUP(BI117&"_OGROD",#REF!,5,0),1)=0, IFERROR(VLOOKUP(REPLACE(BI117,FIND(" ",BI117,1),1,"_"),#REF!,5,0),1)=0),BK117,0),0) -> 0 | BK117: 1
D118: =#REF!& "_OGROD" ->  | L118: AZ003030 | BI118: EKO RATY XXXIIss z K1 | BJ118: =IFERROR(IF(OR(IFERROR(VLOOKUP(BI118,#REF!,5,0),1)=0,IFERROR(VLOOKUP(BI118&"_OGROD",#REF!,5,0),1)=0, IFERROR(VLOOKUP(REPLACE(BI118,FIND(" ",BI118,1),1,"_"),#REF!,5,0),1)=0),BK118,0),0) -> 0 | BK118: 1
D119: =#REF!& "_OGROD" ->  | L119: AZ003040 | BI119: EKO RATY XXXII z K8 | BJ119: =IFERROR(IF(OR(IFERROR(VLOOKUP(BI119,#REF!,5,0),1)=0,IFERROR(VLOOKUP(BI119&"_OGROD",#REF!,5,0),1)=0, IFERROR(VLOOKUP(REPLACE(BI119,FIND(" ",BI119,1),1,"_"),#REF!,5,0),1)=0),BK119,0),0) -> 0 | BK119: 1
D120: =#REF!& "_OGROD" ->  | L120: AZ003050 | BI120: EKO RATY I z K4 | BJ120: =IFERROR(IF(OR(IFERROR(VLOOKUP(BI120,#REF!,5,0),1)=0,IFERROR(VLOOKUP(BI120&"_OGROD",#REF!,5,0),1)=0, IFERROR(VLOOKUP(REPLACE(BI120,FIND(" ",BI120,1),1,"_"),#REF!,5,0),1)=0),BK120,0),0) -> 0 | BK120: 1
D121: =#REF!& "_OGROD" ->  | L121: =#REF! ->  | BI121: EKO RATY XXXIIss | BJ121: =IFERROR(IF(OR(IFERROR(VLOOKUP(BI121,#REF!,5,0),1)=0,IFERROR(VLOOKUP(BI121&"_OGROD",#REF!,5,0),1)=0, IFERROR(VLOOKUP(REPLACE(BI121,FIND(" ",BI121,1),1,"_"),#REF!,5,0),1)=0),BK121,0),0) -> 0 | BK121: 1
D122: =#REF!& "_OGROD" ->  | L122: AZ003060 | BI122: AZ001000 | BJ122: =IFERROR(IF(OR(IFERROR(VLOOKUP(BI122,#REF!,5,0),1)=0,IFERROR(VLOOKUP(BI122&"_OGROD",#REF!,5,0),1)=0, IFERROR(VLOOKUP(REPLACE(BI122,FIND(" ",BI122,1),1,"_"),#REF!,5,0),1)=0),BK122,0),0) -> 0 | BK122: 2
D123: =#REF!& "_OGROD" ->  | L123: AZ003090 | BI123: AZ002025 | BJ123: =IFERROR(IF(OR(IFERROR(VLOOKUP(BI123,#REF!,5,0),1)=0,IFERROR(VLOOKUP(BI123&"_OGROD",#REF!,5,0),1)=0, IFERROR(VLOOKUP(REPLACE(BI123,FIND(" ",BI123,1),1,"_"),#REF!,5,0),1)=0),BK123,0),0) -> 0 | BK123: 2
D124: =#REF!& "_OGROD" ->  | L124: AZ003100 | BI124: AZ001026 | BJ124: =IFERROR(IF(OR(IFERROR(VLOOKUP(BI124,#REF!,5,0),1)=0,IFERROR(VLOOKUP(BI124&"_OGROD",#REF!,5,0),1)=0, IFERROR(VLOOKUP(REPLACE(BI124,FIND(" ",BI124,1),1,"_"),#REF!,5,0),1)=0),BK124,0),0) -> 0 | BK124: 2
D125: =#REF!& "_OGROD" ->  | L125: AZ003120 | BI125: AZ001022 | BJ125: =IFERROR(IF(OR(IFERROR(VLOOKUP(BI125,#REF!,5,0),1)=0,IFERROR(VLOOKUP(BI125&"_OGROD",#REF!,5,0),1)=0, IFERROR(VLOOKUP(REPLACE(BI125,FIND(" ",BI125,1),1,"_"),#REF!,5,0),1)=0),BK125,0),0) -> 0 | BK125: 2
D126: =#REF!& "_OGROD" ->  | L126: =#REF! ->  | BI126: AZ002020 | BJ126: =IFERROR(IF(OR(IFERROR(VLOOKUP(BI126,#REF!,5,0),1)=0,IFERROR(VLOOKUP(BI126&"_OGROD",#REF!,5,0),1)=0, IFERROR(VLOOKUP(REPLACE(BI126,FIND(" ",BI126,1),1,"_"),#REF!,5,0),1)=0),BK126,0),0) -> 0 | BK126: 2
D127: =#REF!& "_OGROD" ->  | L127: AZ004040 | BI127: AZ002027 | BJ127: =IFERROR(IF(OR(IFERROR(VLOOKUP(BI127,#REF!,5,0),1)=0,IFERROR(VLOOKUP(BI127&"_OGROD",#REF!,5,0),1)=0, IFERROR(VLOOKUP(REPLACE(BI127,FIND(" ",BI127,1),1,"_"),#REF!,5,0),1)=0),BK127,0),0) -> 0 | BK127: 2
D128: =#REF!& "_OGROD" ->  | L128: AZ004050 | BI128: AZ020020 | BJ128: =IFERROR(IF(OR(IFERROR(VLOOKUP(BI128,#REF!,5,0),1)=0,IFERROR(VLOOKUP(BI128&"_OGROD",#REF!,5,0),1)=0, IFERROR(VLOOKUP(REPLACE(BI128,FIND(" ",BI128,1),1,"_"),#REF!,5,0),1)=0),BK128,0),0) -> 0 | BK128: 2
D129: =#REF!& "_OGROD" ->  | L129: AZ004060 | BI129: AZ001030 | BJ129: =IFERROR(IF(OR(IFERROR(VLOOKUP(BI129,#REF!,5,0),1)=0,IFERROR(VLOOKUP(BI129&"_OGROD",#REF!,5,0),1)=0, IFERROR(VLOOKUP(REPLACE(BI129,FIND(" ",BI129,1),1,"_"),#REF!,5,0),1)=0),BK129,0),0) -> 0 | BK129: 2
D130: =#REF!& "_OGROD" ->  | L130: AZ004070 | BI130: AZ003030 | BJ130: =IFERROR(IF(OR(IFERROR(VLOOKUP(BI130,#REF!,5,0),1)=0,IFERROR(VLOOKUP(BI130&"_OGROD",#REF!,5,0),1)=0, IFERROR(VLOOKUP(REPLACE(BI130,FIND(" ",BI130,1),1,"_"),#REF!,5,0),1)=0),BK130,0),0) -> 0 | BK130: 2
D131: =#REF!& "_OGROD" ->  | L131: AZ004080 | BI131: AZ001032 | BJ131: =IFERROR(IF(OR(IFERROR(VLOOKUP(BI131,#REF!,5,0),1)=0,IFERROR(VLOOKUP(BI131&"_OGROD",#REF!,5,0),1)=0, IFERROR(VLOOKUP(REPLACE(BI131,FIND(" ",BI131,1),1,"_"),#REF!,5,0),1)=0),BK131,0),0) -> 0 | BK131: 2
D132: =#REF!& "_OGROD" ->  | L132: AZ004100 | BI132: AZ001028 | BJ132: =IFERROR(IF(OR(IFERROR(VLOOKUP(BI132,#REF!,5,0),1)=0,IFERROR(VLOOKUP(BI132&"_OGROD",#REF!,5,0),1)=0, IFERROR(VLOOKUP(REPLACE(BI132,FIND(" ",BI132,1),1,"_"),#REF!,5,0),1)=0),BK132,0),0) -> 0 | BK132: 2
D133: =#REF!& "_OGROD" ->  | L133: AZ004120 | BI133: AZ001029 | BJ133: =IFERROR(IF(OR(IFERROR(VLOOKUP(BI133,#REF!,5,0),1)=0,IFERROR(VLOOKUP(BI133&"_OGROD",#REF!,5,0),1)=0, IFERROR(VLOOKUP(REPLACE(BI133,FIND(" ",BI133,1),1,"_"),#REF!,5,0),1)=0),BK133,0),0) -> 0 | BK133: 2
D134: =#REF!& "_OGROD" ->  | L134: AZ005060 | BI134: AZ004030 | BJ134: =IFERROR(IF(OR(IFERROR(VLOOKUP(BI134,#REF!,5,0),1)=0,IFERROR(VLOOKUP(BI134&"_OGROD",#REF!,5,0),1)=0, IFERROR(VLOOKUP(REPLACE(BI134,FIND(" ",BI134,1),1,"_"),#REF!,5,0),1)=0),BK134,0),0) -> 0 | BK134: 2
D135: =#REF!& "_OGROD" ->  | L135: AZ005070 | BI135: AZ001020 | BJ135: =IFERROR(IF(OR(IFERROR(VLOOKUP(BI135,#REF!,5,0),1)=0,IFERROR(VLOOKUP(BI135&"_OGROD",#REF!,5,0),1)=0, IFERROR(VLOOKUP(REPLACE(BI135,FIND(" ",BI135,1),1,"_"),#REF!,5,0),1)=0),BK135,0),0) -> 0 | BK135: 2
D136: =#REF!& "_OGROD" ->  | L136: AZ005080 | BI136: AZ001025 | BJ136: =IFERROR(IF(OR(IFERROR(VLOOKUP(BI136,#REF!,5,0),1)=0,IFERROR(VLOOKUP(BI136&"_OGROD",#REF!,5,0),1)=0, IFERROR(VLOOKUP(REPLACE(BI136,FIND(" ",BI136,1),1,"_"),#REF!,5,0),1)=0),BK136,0),0) -> 0 | BK136: 2
D137: =#REF!& "_OGROD" ->  | L137: AZ005090 | BI137: AZ002030 | BJ137: =IFERROR(IF(OR(IFERROR(VLOOKUP(BI137,#REF!,5,0),1)=0,IFERROR(VLOOKUP(BI137&"_OGROD",#REF!,5,0),1)=0, IFERROR(VLOOKUP(REPLACE(BI137,FIND(" ",BI137,1),1,"_"),#REF!,5,0),1)=0),BK137,0),0) -> 0 | BK137: 2
D138: =#REF!& "_OGROD" ->  | L138: AZ005100 | BI138: A010010 | BJ138: =IFERROR(IF(OR(IFERROR(VLOOKUP(BI138,#REF!,5,0),1)=0,IFERROR(VLOOKUP(BI138&"_OGROD",#REF!,5,0),1)=0, IFERROR(VLOOKUP(REPLACE(BI138,FIND(" ",BI138,1),1,"_"),#REF!,5,0),1)=0),BK138,0),0) -> 0 | BK138: 2
D139: =#REF!& "_OGROD" ->  | L139: AZ005120 | BI139: A020020 | BJ139: =IFERROR(IF(OR(IFERROR(VLOOKUP(BI139,#REF!,5,0),1)=0,IFERROR(VLOOKUP(BI139&"_OGROD",#REF!,5,0),1)=0, IFERROR(VLOOKUP(REPLACE(BI139,FIND(" ",BI139,1),1,"_"),#REF!,5,0),1)=0),BK139,0),0) -> 0 | BK139: 2
D140: =#REF!& "_OGROD" ->  | L140: AZ006050 | BI140: A025025 | BJ140: =IFERROR(IF(OR(IFERROR(VLOOKUP(BI140,#REF!,5,0),1)=0,IFERROR(VLOOKUP(BI140&"_OGROD",#REF!,5,0),1)=0, IFERROR(VLOOKUP(REPLACE(BI140,FIND(" ",BI140,1),1,"_"),#REF!,5,0),1)=0),BK140,0),0) -> 0 | BK140: 2
D141: =#REF!& "_OGROD" ->  | L141: AZ006060 | BI141: A030030 | BJ141: =IFERROR(IF(OR(IFERROR(VLOOKUP(BI141,#REF!,5,0),1)=0,IFERROR(VLOOKUP(BI141&"_OGROD",#REF!,5,0),1)=0, IFERROR(VLOOKUP(REPLACE(BI141,FIND(" ",BI141,1),1,"_"),#REF!,5,0),1)=0),BK141,0),0) -> 0 | BK141: 2
D142: =#REF!& "_OGROD" ->  | L142: AZ006070 | BI142: AK100030 | BJ142: =IFERROR(IF(OR(IFERROR(VLOOKUP(BI142,#REF!,5,0),1)=0,IFERROR(VLOOKUP(BI142&"_OGROD",#REF!,5,0),1)=0, IFERROR(VLOOKUP(REPLACE(BI142,FIND(" ",BI142,1),1,"_"),#REF!,5,0),1)=0),BK142,0),0) -> 0 | BK142: 2
D143: =#REF!& "_OGROD" ->  | L143: AZ006080 | BI143: AK200030 | BJ143: =IFERROR(IF(OR(IFERROR(VLOOKUP(BI143,#REF!,5,0),1)=0,IFERROR(VLOOKUP(BI143&"_OGROD",#REF!,5,0),1)=0, IFERROR(VLOOKUP(REPLACE(BI143,FIND(" ",BI143,1),1,"_"),#REF!,5,0),1)=0),BK143,0),0) -> 0 | BK143: 2
D144: =#REF!& "_OGROD" ->  | L144: AZ006090 | BI144: AK300030 | BJ144: =IFERROR(IF(OR(IFERROR(VLOOKUP(BI144,#REF!,5,0),1)=0,IFERROR(VLOOKUP(BI144&"_OGROD",#REF!,5,0),1)=0, IFERROR(VLOOKUP(REPLACE(BI144,FIND(" ",BI144,1),1,"_"),#REF!,5,0),1)=0),BK144,0),0) -> 0 | BK144: 2
D145: =#REF!& "_OGROD" ->  | L145: AZ006120 | BI145: AK400030 | BJ145: =IFERROR(IF(OR(IFERROR(VLOOKUP(BI145,#REF!,5,0),1)=0,IFERROR(VLOOKUP(BI145&"_OGROD",#REF!,5,0),1)=0, IFERROR(VLOOKUP(REPLACE(BI145,FIND(" ",BI145,1),1,"_"),#REF!,5,0),1)=0),BK145,0),0) -> 0 | BK145: 2
D146: =#REF!& "_OGROD" ->  | L146: AZ007070 | BI146: A035035 | BJ146: =IFERROR(IF(OR(IFERROR(VLOOKUP(BI146,#REF!,5,0),1)=0,IFERROR(VLOOKUP(BI146&"_OGROD",#REF!,5,0),1)=0, IFERROR(VLOOKUP(REPLACE(BI146,FIND(" ",BI146,1),1,"_"),#REF!,5,0),1)=0),BK146,0),0) -> 0 | BK146: 2
D147: =#REF!& "_OGROD" ->  | L147: AZ007090 | BI147: AK100035 | BJ147: =IFERROR(IF(OR(IFERROR(VLOOKUP(BI147,#REF!,5,0),1)=0,IFERROR(VLOOKUP(BI147&"_OGROD",#REF!,5,0),1)=0, IFERROR(VLOOKUP(REPLACE(BI147,FIND(" ",BI147,1),1,"_"),#REF!,5,0),1)=0),BK147,0),0) -> 0 | BK147: 2
D148: =#REF!& "_OGROD" ->  | L148: AZ007100 | BI148: AK200035 | BJ148: =IFERROR(IF(OR(IFERROR(VLOOKUP(BI148,#REF!,5,0),1)=0,IFERROR(VLOOKUP(BI148&"_OGROD",#REF!,5,0),1)=0, IFERROR(VLOOKUP(REPLACE(BI148,FIND(" ",BI148,1),1,"_"),#REF!,5,0),1)=0),BK148,0),0) -> 0 | BK148: 2
D149: =#REF!& "_OGROD" ->  | L149: AZ007120 | BI149: AK300035 | BJ149: =IFERROR(IF(OR(IFERROR(VLOOKUP(BI149,#REF!,5,0),1)=0,IFERROR(VLOOKUP(BI149&"_OGROD",#REF!,5,0),1)=0, IFERROR(VLOOKUP(REPLACE(BI149,FIND(" ",BI149,1),1,"_"),#REF!,5,0),1)=0),BK149,0),0) -> 0 | BK149: 2
D150: =#REF!& "_OGROD" ->  | L150: AZ008050 | BI150: AK400035 | BJ150: =IFERROR(IF(OR(IFERROR(VLOOKUP(BI150,#REF!,5,0),1)=0,IFERROR(VLOOKUP(BI150&"_OGROD",#REF!,5,0),1)=0, IFERROR(VLOOKUP(REPLACE(BI150,FIND(" ",BI150,1),1,"_"),#REF!,5,0),1)=0),BK150,0),0) -> 0 | BK150: 2
D151: =#REF!& "_OGROD" ->  | L151: AZ008100 | BI151: C260260 | BJ151: =IFERROR(IF(OR(IFERROR(VLOOKUP(BI151,#REF!,5,0),1)=0,IFERROR(VLOOKUP(BI151&"_OGROD",#REF!,5,0),1)=0, IFERROR(VLOOKUP(REPLACE(BI151,FIND(" ",BI151,1),1,"_"),#REF!,5,0),1)=0),BK151,0),0) -> 0 | BK151: 2
D152: =#REF!& "_OGROD" ->  | L152: AZ009050 | BI152: C280280 | BJ152: =IFERROR(IF(OR(IFERROR(VLOOKUP(BI152,#REF!,5,0),1)=0,IFERROR(VLOOKUP(BI152&"_OGROD",#REF!,5,0),1)=0, IFERROR(VLOOKUP(REPLACE(BI152,FIND(" ",BI152,1),1,"_"),#REF!,5,0),1)=0),BK152,0),0) -> 0 | BK152: 2
D153: =#REF!& "_OGROD" ->  | L153: AZ009060 | BI153: EKO RATY IV | BJ153: =IFERROR(IF(OR(IFERROR(VLOOKUP(BI153,#REF!,5,0),1)=0,IFERROR(VLOOKUP(BI153&"_OGROD",#REF!,5,0),1)=0, IFERROR(VLOOKUP(REPLACE(BI153,FIND(" ",BI153,1),1,"_"),#REF!,5,0),1)=0),BK153,0),0) -> 0 | BK153: 2
D154: =#REF!& "_OGROD" ->  | L154: AZ009100 | BI154: EKO RATY IV z K1 | BJ154: =IFERROR(IF(OR(IFERROR(VLOOKUP(BI154,#REF!,5,0),1)=0,IFERROR(VLOOKUP(BI154&"_OGROD",#REF!,5,0),1)=0, IFERROR(VLOOKUP(REPLACE(BI154,FIND(" ",BI154,1),1,"_"),#REF!,5,0),1)=0),BK154,0),0) -> 0 | BK154: 2
D155: =#REF!& "_OGROD" ->  | L155: AZ010050 | BI155: EKO RATY IV z K2 | BJ155: =IFERROR(IF(OR(IFERROR(VLOOKUP(BI155,#REF!,5,0),1)=0,IFERROR(VLOOKUP(BI155&"_OGROD",#REF!,5,0),1)=0, IFERROR(VLOOKUP(REPLACE(BI155,FIND(" ",BI155,1),1,"_"),#REF!,5,0),1)=0),BK155,0),0) -> 0 | BK155: 2
D156: =#REF!& "_OGROD" ->  | L156: AZ010060 | BI156: EKO RATY IV z K3 | BJ156: =IFERROR(IF(OR(IFERROR(VLOOKUP(BI156,#REF!,5,0),1)=0,IFERROR(VLOOKUP(BI156&"_OGROD",#REF!,5,0),1)=0, IFERROR(VLOOKUP(REPLACE(BI156,FIND(" ",BI156,1),1,"_"),#REF!,5,0),1)=0),BK156,0),0) -> 0 | BK156: 2
D157: =#REF!& "_OGROD" ->  | L157: AZ010080 | BI157: EKO RATY IV z K4 | BJ157: =IFERROR(IF(OR(IFERROR(VLOOKUP(BI157,#REF!,5,0),1)=0,IFERROR(VLOOKUP(BI157&"_OGROD",#REF!,5,0),1)=0, IFERROR(VLOOKUP(REPLACE(BI157,FIND(" ",BI157,1),1,"_"),#REF!,5,0),1)=0),BK157,0),0) -> 0 | BK157: 2
D158: =#REF!& "_OGROD" ->  | L158: AZ011060 | BI158: EKO RATY IV z K6 | BJ158: =IFERROR(IF(OR(IFERROR(VLOOKUP(BI158,#REF!,5,0),1)=0,IFERROR(VLOOKUP(BI158&"_OGROD",#REF!,5,0),1)=0, IFERROR(VLOOKUP(REPLACE(BI158,FIND(" ",BI158,1),1,"_"),#REF!,5,0),1)=0),BK158,0),0) -> 0 | BK158: 2
D159: =#REF!& "_OGROD" ->  | L159: AZ011080 | BI159: EKO RATY V z K1 | BJ159: =IFERROR(IF(OR(IFERROR(VLOOKUP(BI159,#REF!,5,0),1)=0,IFERROR(VLOOKUP(BI159&"_OGROD",#REF!,5,0),1)=0, IFERROR(VLOOKUP(REPLACE(BI159,FIND(" ",BI159,1),1,"_"),#REF!,5,0),1)=0),BK159,0),0) -> 0 | BK159: 2
D160: =#REF!& "_OGROD" ->  | L160: AZ011100 | BI160: EKO RATY VII z K2 | BJ160: =IFERROR(IF(OR(IFERROR(VLOOKUP(BI160,#REF!,5,0),1)=0,IFERROR(VLOOKUP(BI160&"_OGROD",#REF!,5,0),1)=0, IFERROR(VLOOKUP(REPLACE(BI160,FIND(" ",BI160,1),1,"_"),#REF!,5,0),1)=0),BK160,0),0) -> 0 | BK160: 2
D161: =#REF!& "_OGROD" ->  | L161: AZ012050 | BI161: EKO RATY IX | BJ161: =IFERROR(IF(OR(IFERROR(VLOOKUP(BI161,#REF!,5,0),1)=0,IFERROR(VLOOKUP(BI161&"_OGROD",#REF!,5,0),1)=0, IFERROR(VLOOKUP(REPLACE(BI161,FIND(" ",BI161,1),1,"_"),#REF!,5,0),1)=0),BK161,0),0) -> 0 | BK161: 2
D162: =#REF!& "_OGROD" ->  | L162: AZ012100 | BI162: EKO RATY IX z K1 | BJ162: =IFERROR(IF(OR(IFERROR(VLOOKUP(BI162,#REF!,5,0),1)=0,IFERROR(VLOOKUP(BI162&"_OGROD",#REF!,5,0),1)=0, IFERROR(VLOOKUP(REPLACE(BI162,FIND(" ",BI162,1),1,"_"),#REF!,5,0),1)=0),BK162,0),0) -> 0 | BK162: 2
D163: =#REF!& "_OGROD" ->  | L163: =#REF! ->  | BI163: EKO RATY IX z K2 | BJ163: =IFERROR(IF(OR(IFERROR(VLOOKUP(BI163,#REF!,5,0),1)=0,IFERROR(VLOOKUP(BI163&"_OGROD",#REF!,5,0),1)=0, IFERROR(VLOOKUP(REPLACE(BI163,FIND(" ",BI163,1),1,"_"),#REF!,5,0),1)=0),BK163,0),0) -> 0 | BK163: 2
D164: =#REF!& "_OGROD" ->  | L164: AZ020020 | BI164: EKO RATY IX z K3 | BJ164: =IFERROR(IF(OR(IFERROR(VLOOKUP(BI164,#REF!,5,0),1)=0,IFERROR(VLOOKUP(BI164&"_OGROD",#REF!,5,0),1)=0, IFERROR(VLOOKUP(REPLACE(BI164,FIND(" ",BI164,1),1,"_"),#REF!,5,0),1)=0),BK164,0),0) -> 0 | BK164: 2
D165: =#REF!& "_OGROD" ->  | L165: AZ001119 | BI165: EKO RATY IX z K4 | BJ165: =IFERROR(IF(OR(IFERROR(VLOOKUP(BI165,#REF!,5,0),1)=0,IFERROR(VLOOKUP(BI165&"_OGROD",#REF!,5,0),1)=0, IFERROR(VLOOKUP(REPLACE(BI165,FIND(" ",BI165,1),1,"_"),#REF!,5,0),1)=0),BK165,0),0) -> 0 | BK165: 2
D166: =#REF!& "_OGROD" ->  | L166: AZ001120 | BI166: EKO RATY IX z K6 | BJ166: =IFERROR(IF(OR(IFERROR(VLOOKUP(BI166,#REF!,5,0),1)=0,IFERROR(VLOOKUP(BI166&"_OGROD",#REF!,5,0),1)=0, IFERROR(VLOOKUP(REPLACE(BI166,FIND(" ",BI166,1),1,"_"),#REF!,5,0),1)=0),BK166,0),0) -> 0 | BK166: 2
D167: =#REF!& "_OGROD" ->  | L167: AZ001121 | BI167: EKO RATY XII | BJ167: =IFERROR(IF(OR(IFERROR(VLOOKUP(BI167,#REF!,5,0),1)=0,IFERROR(VLOOKUP(BI167&"_OGROD",#REF!,5,0),1)=0, IFERROR(VLOOKUP(REPLACE(BI167,FIND(" ",BI167,1),1,"_"),#REF!,5,0),1)=0),BK167,0),0) -> 0 | BK167: 2
D168: =#REF!& "_OGROD" ->  | L168: AZ001122 | BI168: EKO RATY XII z K1 | BJ168: =IFERROR(IF(OR(IFERROR(VLOOKUP(BI168,#REF!,5,0),1)=0,IFERROR(VLOOKUP(BI168&"_OGROD",#REF!,5,0),1)=0, IFERROR(VLOOKUP(REPLACE(BI168,FIND(" ",BI168,1),1,"_"),#REF!,5,0),1)=0),BK168,0),0) -> 0 | BK168: 2
D169: =#REF!& "_OGROD" ->  | L169: AZ001123 | BI169: EKO RATY XII z K2 | BJ169: =IFERROR(IF(OR(IFERROR(VLOOKUP(BI169,#REF!,5,0),1)=0,IFERROR(VLOOKUP(BI169&"_OGROD",#REF!,5,0),1)=0, IFERROR(VLOOKUP(REPLACE(BI169,FIND(" ",BI169,1),1,"_"),#REF!,5,0),1)=0),BK169,0),0) -> 0 | BK169: 2
D170: =#REF!& "_OGROD" ->  | L170: AZ001124 | BI170: EKO RATY XII z K3 | BJ170: =IFERROR(IF(OR(IFERROR(VLOOKUP(BI170,#REF!,5,0),1)=0,IFERROR(VLOOKUP(BI170&"_OGROD",#REF!,5,0),1)=0, IFERROR(VLOOKUP(REPLACE(BI170,FIND(" ",BI170,1),1,"_"),#REF!,5,0),1)=0),BK170,0),0) -> 0 | BK170: 2
D171: =#REF!& "_OGROD" ->  | L171: AZ001125 | BI171: EKO RATY IVss | BJ171: =IFERROR(IF(OR(IFERROR(VLOOKUP(BI171,#REF!,5,0),1)=0,IFERROR(VLOOKUP(BI171&"_OGROD",#REF!,5,0),1)=0, IFERROR(VLOOKUP(REPLACE(BI171,FIND(" ",BI171,1),1,"_"),#REF!,5,0),1)=0),BK171,0),0) -> 0 | BK171: 2
D172: =#REF!& "_OGROD" ->  | L172: AZ001126 | BI172: EKO RATY IVss z K1 | BJ172: =IFERROR(IF(OR(IFERROR(VLOOKUP(BI172,#REF!,5,0),1)=0,IFERROR(VLOOKUP(BI172&"_OGROD",#REF!,5,0),1)=0, IFERROR(VLOOKUP(REPLACE(BI172,FIND(" ",BI172,1),1,"_"),#REF!,5,0),1)=0),BK172,0),0) -> 0 | BK172: 2
D173: =#REF!& "_OGROD" ->  | L173: AZ001127 | BI173: EKO RATY IVss z K2 | BJ173: =IFERROR(IF(OR(IFERROR(VLOOKUP(BI173,#REF!,5,0),1)=0,IFERROR(VLOOKUP(BI173&"_OGROD",#REF!,5,0),1)=0, IFERROR(VLOOKUP(REPLACE(BI173,FIND(" ",BI173,1),1,"_"),#REF!,5,0),1)=0),BK173,0),0) -> 0 | BK173: 2
D174: =#REF!& "_OGROD" ->  | L174: B040100 | BI174: EKO RATY IVss z K3 | BJ174: =IFERROR(IF(OR(IFERROR(VLOOKUP(BI174,#REF!,5,0),1)=0,IFERROR(VLOOKUP(BI174&"_OGROD",#REF!,5,0),1)=0, IFERROR(VLOOKUP(REPLACE(BI174,FIND(" ",BI174,1),1,"_"),#REF!,5,0),1)=0),BK174,0),0) -> 0 | BK174: 2
D175: =#REF!& "_OGROD" ->  | L175: B050110 | BI175: EKO RATY IVss z K6 | BJ175: =IFERROR(IF(OR(IFERROR(VLOOKUP(BI175,#REF!,5,0),1)=0,IFERROR(VLOOKUP(BI175&"_OGROD",#REF!,5,0),1)=0, IFERROR(VLOOKUP(REPLACE(BI175,FIND(" ",BI175,1),1,"_"),#REF!,5,0),1)=0),BK175,0),0) -> 0 | BK175: 2
D176: =#REF!& "_OGROD" ->  | L176: B060120 | BI176: EKO RATY X | BJ176: =IFERROR(IF(OR(IFERROR(VLOOKUP(BI176,#REF!,5,0),1)=0,IFERROR(VLOOKUP(BI176&"_OGROD",#REF!,5,0),1)=0, IFERROR(VLOOKUP(REPLACE(BI176,FIND(" ",BI176,1),1,"_"),#REF!,5,0),1)=0),BK176,0),0) -> 0 | BK176: 2
D177: =#REF!& "_OGROD" ->  | L177: B070100 | BI177: EKO RATY X z K1 | BJ177: =IFERROR(IF(OR(IFERROR(VLOOKUP(BI177,#REF!,5,0),1)=0,IFERROR(VLOOKUP(BI177&"_OGROD",#REF!,5,0),1)=0, IFERROR(VLOOKUP(REPLACE(BI177,FIND(" ",BI177,1),1,"_"),#REF!,5,0),1)=0),BK177,0),0) -> 0 | BK177: 2
D178: =#REF!& "_OGROD" ->  | L178: B070130 | BI178: EKO RATY X z K2 | BJ178: =IFERROR(IF(OR(IFERROR(VLOOKUP(BI178,#REF!,5,0),1)=0,IFERROR(VLOOKUP(BI178&"_OGROD",#REF!,5,0),1)=0, IFERROR(VLOOKUP(REPLACE(BI178,FIND(" ",BI178,1),1,"_"),#REF!,5,0),1)=0),BK178,0),0) -> 0 | BK178: 2
D179: =#REF!& "_OGROD" ->  | L179: B080110 | BI179: EKO RATY X z K3 | BJ179: =IFERROR(IF(OR(IFERROR(VLOOKUP(BI179,#REF!,5,0),1)=0,IFERROR(VLOOKUP(BI179&"_OGROD",#REF!,5,0),1)=0, IFERROR(VLOOKUP(REPLACE(BI179,FIND(" ",BI179,1),1,"_"),#REF!,5,0),1)=0),BK179,0),0) -> 0 | BK179: 2
D180: =#REF!& "_OGROD" ->  | L180: B080140 | BI180: EKO RATY X z K6 | BJ180: =IFERROR(IF(OR(IFERROR(VLOOKUP(BI180,#REF!,5,0),1)=0,IFERROR(VLOOKUP(BI180&"_OGROD",#REF!,5,0),1)=0, IFERROR(VLOOKUP(REPLACE(BI180,FIND(" ",BI180,1),1,"_"),#REF!,5,0),1)=0),BK180,0),0) -> 0 | BK180: 2
D181: =#REF!& "_OGROD" ->  | L181: B090120 | BI181: EKO RATY XI | BJ181: =IFERROR(IF(OR(IFERROR(VLOOKUP(BI181,#REF!,5,0),1)=0,IFERROR(VLOOKUP(BI181&"_OGROD",#REF!,5,0),1)=0, IFERROR(VLOOKUP(REPLACE(BI181,FIND(" ",BI181,1),1,"_"),#REF!,5,0),1)=0),BK181,0),0) -> 0 | BK181: 2
D182: =#REF!& "_OGROD" ->  | L182: B090150 | BI182: EKO RATY XI z K1 | BJ182: =IFERROR(IF(OR(IFERROR(VLOOKUP(BI182,#REF!,5,0),1)=0,IFERROR(VLOOKUP(BI182&"_OGROD",#REF!,5,0),1)=0, IFERROR(VLOOKUP(REPLACE(BI182,FIND(" ",BI182,1),1,"_"),#REF!,5,0),1)=0),BK182,0),0) -> 0 | BK182: 2
D183: =#REF!& "_OGROD" ->  | L183: 1 % miesięcznie | BI183: EKO RATY XI z K2 | BJ183: =IFERROR(IF(OR(IFERROR(VLOOKUP(BI183,#REF!,5,0),1)=0,IFERROR(VLOOKUP(BI183&"_OGROD",#REF!,5,0),1)=0, IFERROR(VLOOKUP(REPLACE(BI183,FIND(" ",BI183,1),1,"_"),#REF!,5,0),1)=0),BK183,0),0) -> 0 | BK183: 2
D184: =#REF!& "_OGROD" ->  | L184: =#REF! ->  | BI184: EKO RATY XI z K3 | BJ184: =IFERROR(IF(OR(IFERROR(VLOOKUP(BI184,#REF!,5,0),1)=0,IFERROR(VLOOKUP(BI184&"_OGROD",#REF!,5,0),1)=0, IFERROR(VLOOKUP(REPLACE(BI184,FIND(" ",BI184,1),1,"_"),#REF!,5,0),1)=0),BK184,0),0) -> 0 | BK184: 2
D185: =#REF!& "_OGROD" ->  | L185: B100110 | BI185: EKO RATY XI z K6 | BJ185: =IFERROR(IF(OR(IFERROR(VLOOKUP(BI185,#REF!,5,0),1)=0,IFERROR(VLOOKUP(BI185&"_OGROD",#REF!,5,0),1)=0, IFERROR(VLOOKUP(REPLACE(BI185,FIND(" ",BI185,1),1,"_"),#REF!,5,0),1)=0),BK185,0),0) -> 0 | BK185: 2
D186: =#REF!& "_OGROD" ->  | L186: B100120 | BI186: EKO RATY XVII | BJ186: =IFERROR(IF(OR(IFERROR(VLOOKUP(BI186,#REF!,5,0),1)=0,IFERROR(VLOOKUP(BI186&"_OGROD",#REF!,5,0),1)=0, IFERROR(VLOOKUP(REPLACE(BI186,FIND(" ",BI186,1),1,"_"),#REF!,5,0),1)=0),BK186,0),0) -> 0 | BK186: 2
D187: =#REF!& "_OGROD" ->  | L187: B100130 | BI187: EKO RATY XVII z K1 | BJ187: =IFERROR(IF(OR(IFERROR(VLOOKUP(BI187,#REF!,5,0),1)=0,IFERROR(VLOOKUP(BI187&"_OGROD",#REF!,5,0),1)=0, IFERROR(VLOOKUP(REPLACE(BI187,FIND(" ",BI187,1),1,"_"),#REF!,5,0),1)=0),BK187,0),0) -> 0 | BK187: 2
D188: =#REF!& "_OGROD" ->  | L188: B100160 | BI188: EKO RATY XIXss | BJ188: =IFERROR(IF(OR(IFERROR(VLOOKUP(BI188,#REF!,5,0),1)=0,IFERROR(VLOOKUP(BI188&"_OGROD",#REF!,5,0),1)=0, IFERROR(VLOOKUP(REPLACE(BI188,FIND(" ",BI188,1),1,"_"),#REF!,5,0),1)=0),BK188,0),0) -> 0 | BK188: 2
D189: =#REF!& "_OGROD" ->  | L189: 1.1 % miesięcznie | BI189: EKO RATY XIXss z K1 | BJ189: =IFERROR(IF(OR(IFERROR(VLOOKUP(BI189,#REF!,5,0),1)=0,IFERROR(VLOOKUP(BI189&"_OGROD",#REF!,5,0),1)=0, IFERROR(VLOOKUP(REPLACE(BI189,FIND(" ",BI189,1),1,"_"),#REF!,5,0),1)=0),BK189,0),0) -> 0 | BK189: 2
D190: =#REF!& "_OGROD" ->  | L190: B110115 | BI190: EKO RATY XIXss z K2 | BJ190: =IFERROR(IF(OR(IFERROR(VLOOKUP(BI190,#REF!,5,0),1)=0,IFERROR(VLOOKUP(BI190&"_OGROD",#REF!,5,0),1)=0, IFERROR(VLOOKUP(REPLACE(BI190,FIND(" ",BI190,1),1,"_"),#REF!,5,0),1)=0),BK190,0),0) -> 0 | BK190: 2
D191: =#REF!& "_OGROD" ->  | L191: B110120 | BI191: EKO RATY XIXss z K3 | BJ191: =IFERROR(IF(OR(IFERROR(VLOOKUP(BI191,#REF!,5,0),1)=0,IFERROR(VLOOKUP(BI191&"_OGROD",#REF!,5,0),1)=0, IFERROR(VLOOKUP(REPLACE(BI191,FIND(" ",BI191,1),1,"_"),#REF!,5,0),1)=0),BK191,0),0) -> 0 | BK191: 2
D192: =#REF!& "_OGROD" ->  | L192: B110140 | BI192: EKO RATY XIXss z K6 | BJ192: =IFERROR(IF(OR(IFERROR(VLOOKUP(BI192,#REF!,5,0),1)=0,IFERROR(VLOOKUP(BI192&"_OGROD",#REF!,5,0),1)=0, IFERROR(VLOOKUP(REPLACE(BI192,FIND(" ",BI192,1),1,"_"),#REF!,5,0),1)=0),BK192,0),0) -> 0 | BK192: 2
D193: =#REF!& "_OGROD" ->  | L193: B110170 | BI193: EKO RATY XVIIss | BJ193: =IFERROR(IF(OR(IFERROR(VLOOKUP(BI193,#REF!,5,0),1)=0,IFERROR(VLOOKUP(BI193&"_OGROD",#REF!,5,0),1)=0, IFERROR(VLOOKUP(REPLACE(BI193,FIND(" ",BI193,1),1,"_"),#REF!,5,0),1)=0),BK193,0),0) -> 0 | BK193: 2
D194: =#REF!& "_OGROD" ->  | L194: 1.2 % mieięcznie | BI194: EKO RATY XVIIss z K6 | BJ194: =IFERROR(IF(OR(IFERROR(VLOOKUP(BI194,#REF!,5,0),1)=0,IFERROR(VLOOKUP(BI194&"_OGROD",#REF!,5,0),1)=0, IFERROR(VLOOKUP(REPLACE(BI194,FIND(" ",BI194,1),1,"_"),#REF!,5,0),1)=0),BK194,0),0) -> 0 | BK194: 2
D195: =#REF!& "_OGROD" ->  | L195: =#REF! ->  | BI195: Czyste Powietrze IX | BJ195: =IFERROR(IF(OR(IFERROR(VLOOKUP(BI195,#REF!,5,0),1)=0,IFERROR(VLOOKUP(BI195&"_OGROD",#REF!,5,0),1)=0, IFERROR(VLOOKUP(REPLACE(BI195,FIND(" ",BI195,1),1,"_"),#REF!,5,0),1)=0),BK195,0),0) -> 0 | BK195: 2
D196: =#REF!& "_OGROD" ->  | L196: B120150 | BI196: Czyste Powietrze IX z K1 | BJ196: =IFERROR(IF(OR(IFERROR(VLOOKUP(BI196,#REF!,5,0),1)=0,IFERROR(VLOOKUP(BI196&"_OGROD",#REF!,5,0),1)=0, IFERROR(VLOOKUP(REPLACE(BI196,FIND(" ",BI196,1),1,"_"),#REF!,5,0),1)=0),BK196,0),0) -> 0 | BK196: 2
D197: =#REF!& "_OGROD" ->  | L197: B120180 | BI197: Czyste Powietrze IX z K2 | BJ197: =IFERROR(IF(OR(IFERROR(VLOOKUP(BI197,#REF!,5,0),1)=0,IFERROR(VLOOKUP(BI197&"_OGROD",#REF!,5,0),1)=0, IFERROR(VLOOKUP(REPLACE(BI197,FIND(" ",BI197,1),1,"_"),#REF!,5,0),1)=0),BK197,0),0) -> 0 | BK197: 2
D198: =#REF!& "_OGROD" ->  | L198: 1.3 % miesięcznie | BI198: Czyste Powietrze IX z K3 | BJ198: =IFERROR(IF(OR(IFERROR(VLOOKUP(BI198,#REF!,5,0),1)=0,IFERROR(VLOOKUP(BI198&"_OGROD",#REF!,5,0),1)=0, IFERROR(VLOOKUP(REPLACE(BI198,FIND(" ",BI198,1),1,"_"),#REF!,5,0),1)=0),BK198,0),0) -> 0 | BK198: 2
D199: =#REF!& "_OGROD" ->  | L199: B130160 | BI199: Czyste Powietrze IX z K6 | BJ199: =IFERROR(IF(OR(IFERROR(VLOOKUP(BI199,#REF!,5,0),1)=0,IFERROR(VLOOKUP(BI199&"_OGROD",#REF!,5,0),1)=0, IFERROR(VLOOKUP(REPLACE(BI199,FIND(" ",BI199,1),1,"_"),#REF!,5,0),1)=0),BK199,0),0) -> 0 | BK199: 2
D200: =#REF!& "_OGROD" ->  | L200: B130190 | BI200: Czyste Powietrze X | BJ200: =IFERROR(IF(OR(IFERROR(VLOOKUP(BI200,#REF!,5,0),1)=0,IFERROR(VLOOKUP(BI200&"_OGROD",#REF!,5,0),1)=0, IFERROR(VLOOKUP(REPLACE(BI200,FIND(" ",BI200,1),1,"_"),#REF!,5,0),1)=0),BK200,0),0) -> 0 | BK200: 2
... 303 more rows

Sheet Matryca (hidden)
B1: A000000 | E1: A000000 Czyste Powietrze | H1: A000000 Czyste Powietrze z K1 | K1: A000000 Czyste Powietrze z K2 | N1: A000000 Czyste Powietrze z K3 | Q1: A000000 Czyste Powietrze z K6 | T1: A000000 D2D | W1: A000000 EKO RATY | Z1: A000000 na modernizację | AC1: A010010 | AF1: A010070 | AI1: A020020 | AL1: A020080 | AO1: A025025 | AR1: A030030 | AU1: A030060 | AX1: A030090 | BA1: A035035 | BD1: A040040 | BG1: A040045 | BJ1: A040050 | BM1: A040060 | BP1: A040070 | BS1: A045045 | BV1: A045050 | BY1: A050050 | CB1: A050060 | CE1: A050070 | CH1: A050080 | CK1: A055055 | CN1: A060060 | CQ1: A060065 | CT1: A060080 | CW1: A060090 | CZ1: A070070 | DC1: A070075 | DF1: A070080 | DI1: A070090 | DL1: A075075 | DO1: A080080 | DR1: A080080 D2D | DU1: A080085 | DX1: A080090 | EA1: A080100 | ED1: A090090 | EG1: A090090 D2D | EJ1: A090095 | EM1: A090100 | EP1: A090110 | ES1: A095095 | EV1: A120130 | EY1: A150160 | FB1: AD020020 D2D | FE1: AD040040 D2D | FH1: AD060060 D2D | FK1: AK100000 | FN1: AK100030 | FQ1: AK100035 | FT1: AK100040 | FW1: AK100045 | FZ1: AK100050 | GC1: AK100055 | GF1: AK100060 | GI1: AK100070 | GL1: AK100080 | GO1: AK100090 | GR1: AK100100 | GU1: AK100110 | GX1: AK100120 | HA1: AK100125 | HD1: AK100130 | HG1: AK100140 | HJ1: AK100150 | HM1: AK100160 | HP1: AK100165 | HS1: AK100170 | HV1: AK100180 | HY1: AK100200 | IB1: AK200000 | IE1: AK200030 | IH1: AK200035 | IK1: AK200040 | IN1: AK200045 | IQ1: AK200050 | IT1: AK200060 | IW1: AK200070 | IZ1: AK200080 | JC1: AK200090 | JF1: AK200100 | JI1: AK200110 | JL1: AK200120 | JO1: AK200125 | JR1: AK200130 | JU1: AK200140 | JX1: AK200150 | KA1: AK200160 | KD1: AK200165 | KG1: AK200170 | KJ1: AK300000 | KM1: AK300030 | KP1: AK300035 | KS1: AK300040 | KV1: AK300045 | KY1: AK300050 | LB1: AK300055 | LE1: AK300060 | LH1: AK300070 | LK1: AK300080 | LN1: AK300090 | LQ1: AK300100 | LT1: AK300110 | LW1: AK300120 | LZ1: AK300125 | MC1: AK300130 | MF1: AK300140 | MI1: AK300150 | ML1: AK300160 | MO1: AK300165 | MR1: AK300170 | MU1: AK300180 | MX1: AK300200 | NA1: AK400030 | ND1: AK400035 | NG1: AK400050 | NJ1: AK600000 | NM1: AK600040 | NP1: AK600050 | NS1: AK600060 | NV1: AK600070 | NY1: AK600080 | OB1: AK600090 | OE1: AK600100 | OH1: AK600110 | OK1: AK600120 | ON1: AK600130 | OQ1: AK600140 | OT1: AK600150 | OW1: AK600200 | OZ1: AK800060 | PC1: AK800070 | PF1: AZ001000 | PI1: AZ001020 | PL1: AZ001022 | PO1: AZ001025 | PR1: AZ001026 | PU1: AZ001028 | PX1: AZ001029 | QA1: AZ001030 | QD1: AZ001032 | QG1: AZ001033 odroczenie 6M | QJ1: AZ001035 | QM1: AZ001037 odroczenie 6M | QP1: AZ001038 odroczenie 6M | QS1: AZ001040 | QV1: AZ001041 odroczenie 6M | QY1: AZ001042 | RB1: AZ001043 odroczenie 3M | RE1: AZ001045 | RH1: AZ001048 odroczenie 6M | RK1: AZ001049 odroczenie 6M | RN1: AZ001050 | RQ1: AZ001055 odroczenie 3M | RT1: AZ001056 odroczenie 6M | RW1: AZ001058 odroczenie 3M | RZ1: AZ001059 odroczenie 6M | SC1: AZ001060 | SF1: AZ001061 | SI1: AZ001062 odroczenie 6M | SL1: AZ001066 odroczenie 6M | SO1: AZ001070 | SR1: AZ001072 odroczenie 3M | SU1: AZ001075 | SX1: AZ001080 | TA1: AZ001087 odroczenie 6M | TD1: AZ001090 | TG1: AZ001100 | TJ1: AZ001110 | TM1: AZ001119 | TP1: AZ001120 | TS1: AZ001130 | TV1: AZ001140 | TY1: AZ001150 | UB1: AZ001160 | UE1: AZ001180 | UH1: AZ001200 | UK1: AZ002020 | UN1: AZ002025 | UQ1: AZ002027 | UT1: AZ002030 | UW1: AZ002035 odroczenie 6M | UZ1: AZ002040 odroczenie 6M | VC1: AZ002041 odroczenie 6M | VF1: AZ002045 | VI1: AZ002050 | VL1: AZ002050 odroczenie 1M | VO1: AZ002055 | VR1: AZ002056 odroczenie 6M | VU1: AZ002060 odroczenie 3M | VX1: AZ002066 | WA1: AZ002070 | WD1: AZ002080 | WG1: AZ002090 | WJ1: AZ002100 | WM1: AZ002119 | WP1: AZ002120 | WS1: AZ002140 | WV1: AZ002160 | WY1: AZ003030 | XB1: AZ003040 | XE1: AZ003045 odroczenie 6M | XH1: AZ003050 | XK1: AZ003056 | XN1: AZ003060 | XQ1: AZ003070 odroczenie 3M | XT1: AZ003080 odroczenie 3M | XW1: AZ003090 | XZ1: AZ003100 | YC1: AZ003119 | YF1: AZ003120 | YI1: AZ004030 | YL1: AZ004040 | YO1: AZ004045 odroczenie 3M | YR1: AZ004050 | YU1: AZ004050 odroczenie 1M | YX1: AZ004060 | ZA1: AZ004070 | ZD1: AZ004080 | ZG1: AZ004090 odroczenie 3M | ZJ1: AZ004100 | ZM1: AZ004119 | ZP1: AZ004120 | ZS1: AZ005040 odroczenie 6M | ZV1: AZ005045 odroczenie 6M | ZY1: AZ005050 odroczenie 6M | AAB1: AZ005060 | AAE1: AZ005070 | AAH1: AZ005080 | AAK1: AZ005090 | AAN1: AZ005100 | AAQ1: AZ005119 | AAT1: AZ005120 | AAW1: AZ006040 | AAZ1: AZ006050 | ABC1: AZ006060 | ABF1: AZ006070 | ABI1: AZ006080 | ABL1: AZ006080 odroczenie 3M | ABO1: AZ006080 odroczenie 6M | ABR1: AZ006090 | ABU1: AZ006100 odroczenie 3M | ABX1: AZ006119 | ACA1: AZ006120 | ACD1: AZ007050 odroczenie 3M | ACG1: AZ007060 odroczenie 3M | ACJ1: AZ007070 | ACM1: AZ007080 odroczenie 3M | ACP1: AZ007090 | ACS1: AZ007100 | ACV1: AZ007120 | ACY1: AZ008050 | ADB1: AZ008060 odroczenie 6M | ADE1: AZ008070 odroczenie 6M | ADH1: AZ008080 odroczenie 6M | ADK1: AZ008100 | ADN1: AZ009050 | ADQ1: AZ009060 | ADT1: AZ009070 odroczenie 6M | ADW1: AZ009080 odroczenie 6M | ADZ1: AZ009100 | AEC1: AZ010050 | AEF1: AZ010060 | AEI1: AZ010060 odroczenie 3M | AEL1: AZ010060 odroczenie 6M | AEO1: AZ010080 | AER1: AZ010100 odroczenie 6M | AEU1: AZ011050 odroczenie 6M | AEX1: AZ011060 | AFA1: AZ011080 | AFD1: AZ011100 | AFG1: AZ012050 | AFJ1: AZ012100 | AFM1: AZ013050 | AFP1: AZ013100 | AFS1: AZ014050 | AFV1: AZ015050 odroczenie 3M | AFY1: AZ016050 odroczenie 6M | AGB1: AZ020020 | AGE1: B040100 | AGH1: B050110 | AGK1: B060120 | AGN1: B070100 | AGQ1: B070130 | AGT1: B080110 | AGW1: B080140 | AGZ1: B090120 | AHC1: B090150 | AHF1: B100100 | AHI1: B100100 D2D | AHL1: B100110 | AHO1: B100120 | AHR1: B100130 | AHU1: B100160 | AHX1: B105105 | AIA1: B110110 | AID1: B110110 D2D | AIG1: B110115 | AIJ1: B110120 | AIM1: B110140 | AIP1: B110170 | AIS1: B120120 | AIV1: B120120 D2D | AIY1: B120150 | AJB1: B120180 | AJE1: B125125 | AJH1: B130130 | AJK1: B130130 D2D | AJN1: B130160 | AJQ1: B130190 | AJT1: B140140 | AJW1: B140140 D2D | AJZ1: B140170 | AKC1: B150150 | AKF1: B150150 D2D | AKI1: B150180 | AKL1: B160160 | AKO1: B160160 D2D | AKR1: B160190 | AKU1: B165165 | AKX1: B170170 | ALA1: B170170 D2D | ALD1: B180180 | ALG1: B180180 D2D | ALJ1: B190190 | ALM1: B190190 D2D | ALP1: C140200 | ALS1: C170200 | ALV1: C200200 | ALY1: C200200 D2D | AMB1: C201201 | AME1: C201201 D2D | AMH1: C210210 | AMK1: C210210 D2D | AMN1: C220220 | AMQ1: C220220 D2D | AMT1: C230230 | AMW1: C230230 D2D | AMZ1: C240240 | ANC1: C240240 D2D | ANF1: C250250 | ANI1: C250250 D2D | ANL1: C260260 | ANO1: C280280 | ANR1: Czyste Powietrze Iss | ANU1: Czyste Powietrze Iss z K1 | ANX1: Czyste Powietrze Iss z K2 | AOA1: Czyste Powietrze Iss z K3 | AOD1: Czyste Powietrze IV | AOG1: Czyste Powietrze IV z K1 | AOJ1: Czyste Powietrze IV z K2 | AOM1: Czyste Powietrze IV z K3 | AOP1: Czyste Powietrze IV z K6 | AOS1: Czyste Powietrze IVss | AOV1: Czyste Powietrze IVss z K1 | AOY1: Czyste Powietrze IVss z K2 | APB1: Czyste Powietrze IVss z K3 | APE1: Czyste Powietrze IX | APH1: Czyste Powietrze IX z K1 | APK1: Czyste Powietrze IX z K2 | APN1: Czyste Powietrze IX z K3 | APQ1: Czyste Powietrze IX z K6 | APT1: Czyste Powietrze VI | APW1: Czyste Powietrze VI z K1 | APZ1: Czyste Powietrze VI z K2 | AQC1: Czyste Powietrze VI z K3 | AQF1: Czyste Powietrze VI z K6 | AQI1: Czyste Powietrze VIss | AQL1: Czyste Powietrze VIss z K1 | AQO1: Czyste Powietrze VIss z K2 | AQR1: Czyste Powietrze VIss z K3 | AQU1: Czyste Powietrze VIss z K6 | AQX1: Czyste Powietrze X | ARA1: Czyste Powietrze X z K1 | ARD1: Czyste Powietrze X z K2 | ARG1: Czyste Powietrze X z K3 | ARJ1: Czyste Powietrze X z K6 | ARM1: Czyste Powietrze XI | ARP1: Czyste Powietrze XI z K1 | ARS1: Czyste Powietrze XI z K2 | ARV1: Czyste Powietrze XI z K3 | ARY1: Czyste Powietrze XI z K6 | ASB1: Czyste Powietrze XIII | ASE1: Czyste Powietrze XIX | ASH1: Czyste Powietrze XIX z K1 | ASK1: Czyste Powietrze XIX z K2 | ASN1: Czyste Powietrze XIX z K3 | ASQ1: Czyste Powietrze XVII | AST1: Czyste Powietrze XVII z K1 | ASW1: Czyste Powietrze XVII z K2 | ASZ1: Czyste Powietrze XVII z K3 | ATC1: Czyste Powietrze XVII z K6 | ATF1: Czyste Powietrze XVIIss | ATI1: EKO RATY I | ATL1: EKO RATY I z K1 | ATO1: EKO RATY I z K2 | ATR1: EKO RATY I z K3 | ATU1: EKO RATY I z K6 | ATX1: EKO RATY II | AUA1: EKO RATY II z K1 | AUD1: EKO RATY II z K2 | AUG1: EKO RATY II z K3 | AUJ1: EKO RATY III | AUM1: EKO RATY III z K1 | AUP1: EKO RATY III z K2 | AUS1: EKO RATY III z K3 | AUV1: EKO RATY IIIss | AUY1: EKO RATY IIIss z K1 | AVB1: EKO RATY IIIss z K2 | AVE1: EKO RATY IIIss z K3 | AVH1: EKO RATY IIIss z K6 | AVK1: EKO RATY Iss | AVN1: EKO RATY Iss z K1 | AVQ1: EKO RATY Iss z K2 | AVT1: EKO RATY Iss z K3 | AVW1: EKO RATY Iss z K6 | AVZ1: EKO RATY IV | AWC1: EKO RATY IV z K1 | AWF1: EKO RATY IV z K2 | AWI1: EKO RATY IV z K3 | AWL1: EKO RATY IV z K4 | AWO1: EKO RATY IV z K6 | AWR1: EKO RATY IVss | AWU1: EKO RATY IVss z K1 | AWX1: EKO RATY IVss z K2 | AXA1: EKO RATY IVss z K3 | AXD1: EKO RATY IVss z K6 | AXG1: EKO RATY IX | AXJ1: EKO RATY IX z K1 | AXM1: EKO RATY IX z K2 | AXP1: EKO RATY IX z K3 | AXS1: EKO RATY IX z K4 | AXV1: EKO RATY IX z K6 | AXY1: EKO RATY V z K1 | AYB1: EKO RATY VI | AYE1: EKO RATY VI z K1 | AYH1: EKO RATY VI z K2 | AYK1: EKO RATY VI z K3 | AYN1: EKO RATY VI z K6 | AYQ1: EKO RATY VII z K2 | AYT1: EKO RATY VIII | AYW1: EKO RATY VIss | AYZ1: EKO RATY X | AZC1: EKO RATY X z K1 | AZF1: EKO RATY X z K2 | AZI1: EKO RATY X z K3 | AZL1: EKO RATY X z K6 | AZO1: EKO RATY XI | AZR1: EKO RATY XI z K1 | AZU1: EKO RATY XI z K2 | AZX1: EKO RATY XI z K3 | BAA1: EKO RATY XI z K6 | BAD1: EKO RATY XII | BAG1: EKO RATY XII z K1 | BAJ1: EKO RATY XII z K2 | BAM1: EKO RATY XII z K3 | BAP1: EKO RATY XIII | BAS1: EKO RATY XIV | BAV1: EKO RATY XIX | BAY1: EKO RATY XIX z K1 | BBB1: EKO RATY XIX z K2 | BBE1: EKO RATY XIX z K3 | BBH1: EKO RATY XIX z K6 | BBK1: EKO RATY XIXss | BBN1: EKO RATY XIXss z K1 | BBQ1: EKO RATY XIXss z K2 | BBT1: EKO RATY XIXss z K3 | BBW1: EKO RATY XIXss z K6 | BBZ1: EKO RATY XV | BCC1: EKO RATY XVI | BCF1: EKO RATY XVII | BCI1: EKO RATY XVII z K1 | BCL1: EKO RATY XVIIss | BCO1: EKO RATY XVIIss z K6 | BCR1: EKO RATY XX | BCU1: EKO RATY XX z K1 | BCX1: EKO RATY XXI | BDA1: EKO RATY XXII | BDD1: EKO RATY XXIII | BDG1: EKO RATY XXIV | BDJ1: EKO RATY XXIVss | BDM1: EKO RATY XXIX | BDP1: EKO RATY XXIXss | BDS1: EKO RATY XXss | BDV1: EKO RATY XXss z K1 | BDY1: EKO RATY XXss z K2 | BEB1: EKO RATY XXss z K3 | BEE1: EKO RATY XXss z K6 | BEH1: EKO RATY XXV | BEK1: EKO RATY XXVI | BEN1: EKO RATY XXVII | BEQ1: EKO RATY XXVII z K1 | BET1: EKO RATY XXVII z K2 | BEW1: EKO RATY XXVII z K3 | BEZ1: EKO RATY XXVII z K6 | BFC1: EKO RATY XXVIII | BFF1: EKO RATY XXVIIIss | BFI1: EKO RATY XXVIIss | BFL1: EKO RATY XXVIIss z K1 | BFO1: EKO RATY XXVIss | BFR1: EKO RATY XXVss | BFU1: EKO RATY XXXI | BFX1: EKO RATY XXXss | BGA1: Kredyt na moder. 0.5ss z K1 | BGD1: Kredyt na modernizację 0.3 | BGG1: Kredyt na modernizację 0.33 | BGJ1: Kredyt na modernizację 0.33ss | BGM1: Kredyt na modernizację 0.3ss | BGP1: Kredyt na modernizację 0.4 | BGS1: Kredyt na modernizację 0.4ss | BGV1: Kredyt na modernizację 0.5 | BGY1: Kredyt na modernizację 0.5 z K1 | BHB1: Kredyt na modernizację 0.5 z K3 | BHE1: Kredyt na modernizację 0.5ss | BHH1: Kredyt na modernizację 0.6 | BHK1: Kredyt na modernizację 0.7 | BHN1: Kredyt na modernizację 0.7 z K1 | BHQ1: Kredyt na modernizację 0.7 z K3 | BHT1: Kredyt na modernizację 0.7 z K6 | BHW1: Kredyt na modernizację 0.8 | BHZ1: Kredyt na modernizację 0.9 | BIC1: Kredyt na modernizację 0.9 z K1 | BIF1: Kredyt na modernizację 0.9 z K3 | BII1: Kredyt na modernizację 0.9 z K6 | BIL1: A065065 | BIO1: EKO RATY I z K4 | BIR1: EKO RATY VIss Vosti | BIU1: EKO RATY XXXII | BIX1: EKO RATY XXXII z K1 | BJA1: EKO RATY XXXII z K6 | BJD1: EKO RATY XXXII z K8 | BJG1: EKO RATY XXXIIss | BJJ1: EKO RATY XXXIIss z K1 | BJM1: AZ001119_A | BJP1: EKO RATY 1 | BJS1: EKO RATY 1 D2D | BJV1: EKO RATY 1 z karencją 1M | BJY1: EKO RATY 1 z karencją 1M D2D | BKB1: EKO RATY 2 | BKE1: EKO RATY 2 D2D | BKH1: EKO RATY 2 z karencją 1M | BKK1: EKO RATY 2 z karencją 1M D2D | BKN1: EKO RATY 3 | BKQ1: EKO RATY 3 D2D | BKT1: EKO RATY 3 z karencją 1M | BKW1: EKO RATY 3 z karencją 1M D2D | BKZ1: EKO RATY 3x0% bez ubezp. | BLC1: EKO RATY 3x0% bez ubezp. D2D | BLF1: EKO RATY IV D2D | BLI1: EKO RATY IX D2D | BLL1: EKO RATY X D2D | BLO1: Elastyczna zerówka | BLR1: Elastyczna zerówka D2D | BLU1: Kredyt na modernizację 0,7% m-c | BLX1: Kredyt na modernizację 0,7% m-c D2D | BMA1: Kredyt na modernizację 0,9% m-c | BMD1: Kredyt na modernizację 0,9% m-c D2D | BMG1: Oferta 0% z odroczeniem 1M | BMJ1: Oferta 0,5% m-c bez ubezp. | BMM1: Oferta 0,6% m-c bez ubezp. | BMP1: Oferta 0,6% m-c bez ubezp. D2D | BMS1: Oferta 0,7% m-c bez ubezp. | BMV1: Oferta 0,7% m-c bez ubezp. D2D | BMY1: Oferta 0,8% m-c bez ubezp. | BNB1: Oferta 0,8% m-c bez ubezp. D2D | BNE1: Oferta 0,8% m-c odroczony o 3M | BNH1: Oferta 0,8% m-c odroczony o 3M D2D | BNK1: Oferta 0,9% m-c bez ubezp. | BNN1: Oferta 0,9% m-c bez ubezp. D2D | BNQ1: Oferta 1% m-c odroczony o 1M | BNT1: Oferta 1% m-c odroczony o 1M D2D | BNW1: Oferta 1% m-c odroczony o 3M | BNZ1: Oferta 1% m-c odroczony o 3M D2D | BOC1: Oferta 1,0% m-c bez ubezp. | BOF1: Oferta 1,0% m-c bez ubezp. D2D | BOI1: Oferta 1,1% m-c bez ubezp. | BOL1: Oferta 1,1% m-c bez ubezp. D2D | BOO1: Oferta 1,2% m-c bez ubezp. | BOR1: Oferta 1,2% m-c bez ubezp. D2D | BOU1: Oferta 1,2% m-c odroczony o 3M | BOX1: Oferta 1,3% m-c bez ubezp. | BPA1: Oferta 1,3% m-c bez ubezp. D2D | BPD1: Oferta 1,3% m-c odroczony o 1M | BPG1: Oferta 1,3% m-c odroczony o 2M | BPJ1: Oferta 1,3% m-c odroczony o 3M | BPM1: Oferta 1,4% m-c bez ubezp. | BPP1: Oferta 1,4% m-c bez ubezp. D2D | BPS1: Oferta 1,4% m-c odroczony o 3M | BPV1: Oferta 1,5% m-c bez ubezp. | BPY1: Oferta 1,5% m-c bez ubezp. D2D | BQB1: Oferta 1,6% m-c bez ubezp. | BQE1: Oferta 1,6% m-c bez ubezp. D2D | BQH1: Oferta 1,7% m-c bez ubezp. | BQK1: Oferta 1,7% m-c bez ubezp. D2D | BQN1: Oferta 1,8% m-c bez ubezp. | BQQ1: Oferta 1,8% m-c bez ubezp. D2D | BQT1: Oferta 1,9% m-c bez ubezp. | BQW1: Oferta 1,9% m-c bez ubezp. D2D | BQZ1: Oferta 2,0% m-c bez ubezp. | BRC1: Oferta 2,0% m-c bez ubezp. D2D | BRF1: Oferta 2,2% m-c bez ubezp. | BRI1: Oferta 2,5% m-c bez ubezp. | BRL1: Oferta 2,8% m-c bez ubezp. | BRO1: EKO RATY IV Corab
B2: 2 | E2: =B2+3 -> 5 | H2: =E2+3 -> 8 | K2: =H2+3 -> 11 | N2: =K2+3 -> 14 | Q2: =N2+3 -> 17 | T2: =Q2+3 -> 20 | W2: =T2+3 -> 23 | Z2: =W2+3 -> 26 | AC2: =Z2+3 -> 29 | AF2: =AC2+3 -> 32 | AI2: =AF2+3 -> 35 | AL2: =AI2+3 -> 38 | AO2: =AL2+3 -> 41 | AR2: =AO2+3 -> 44 | AU2: =AR2+3 -> 47 | AX2: =AU2+3 -> 50 | BA2: =AX2+3 -> 53 | BD2: =BA2+3 -> 56 | BG2: =BD2+3 -> 59 | BJ2: =BG2+3 -> 62 | BM2: =BJ2+3 -> 65 | BP2: =BM2+3 -> 68 | BS2: =BP2+3 -> 71 | BV2: =BS2+3 -> 74 | BY2: =BV2+3 -> 77 | CB2: =BY2+3 -> 80 | CE2: =CB2+3 -> 83 | CH2: =CE2+3 -> 86 | CK2: =CH2+3 -> 89 | CN2: =CK2+3 -> 92 | CQ2: =CN2+3 -> 95 | CT2: =CQ2+3 -> 98 | CW2: =CT2+3 -> 101 | CZ2: =CW2+3 -> 104 | DC2: =CZ2+3 -> 107 | DF2: =DC2+3 -> 110 | DI2: =DF2+3 -> 113 | DL2: =DI2+3 -> 116 | DO2: =DL2+3 -> 119 | DR2: =DO2+3 -> 122 | DU2: =DR2+3 -> 125 | DX2: =DU2+3 -> 128 | EA2: =DX2+3 -> 131 | ED2: =EA2+3 -> 134 | EG2: =ED2+3 -> 137 | EJ2: =EG2+3 -> 140 | EM2: =EJ2+3 -> 143 | EP2: =EM2+3 -> 146 | ES2: =EP2+3 -> 149 | EV2: =ES2+3 -> 152 | EY2: =EV2+3 -> 155 | FB2: =EY2+3 -> 158 | FE2: =FB2+3 -> 161 | FH2: =FE2+3 -> 164 | FK2: =FH2+3 -> 167 | FN2: =FK2+3 -> 170 | FQ2: =FN2+3 -> 173 | FT2: =FQ2+3 -> 176 | FW2: =FT2+3 -> 179 | FZ2: =FW2+3 -> 182 | GC2: =FZ2+3 -> 185 | GF2: =GC2+3 -> 188 | GI2: =GF2+3 -> 191 | GL2: =GI2+3 -> 194 | GO2: =GL2+3 -> 197 | GR2: =GO2+3 -> 200 | GU2: =GR2+3 -> 203 | GX2: =GU2+3 -> 206 | HA2: =GX2+3 -> 209 | HD2: =HA2+3 -> 212 | HG2: =HD2+3 -> 215 | HJ2: =HG2+3 -> 218 | HM2: =HJ2+3 -> 221 | HP2: =HM2+3 -> 224 | HS2: =HP2+3 -> 227 | HV2: =HS2+3 -> 230 | HY2: =HV2+3 -> 233 | IB2: =HY2+3 -> 236 | IE2: =IB2+3 -> 239 | IH2: =IE2+3 -> 242 | IK2: =IH2+3 -> 245 | IN2: =IK2+3 -> 248 | IQ2: =IN2+3 -> 251 | IT2: =IQ2+3 -> 254 | IW2: =IT2+3 -> 257 | IZ2: =IW2+3 -> 260 | JC2: =IZ2+3 -> 263 | JF2: =JC2+3 -> 266 | JI2: =JF2+3 -> 269 | JL2: =JI2+3 -> 272 | JO2: =JL2+3 -> 275 | JR2: =JO2+3 -> 278 | JU2: =JR2+3 -> 281 | JX2: =JU2+3 -> 284 | KA2: =JX2+3 -> 287 | KD2: =KA2+3 -> 290 | KG2: =KD2+3 -> 293 | KJ2: =KG2+3 -> 296 | KM2: =KJ2+3 -> 299 | KP2: =KM2+3 -> 302 | KS2: =KP2+3 -> 305 | KV2: =KS2+3 -> 308 | KY2: =KV2+3 -> 311 | LB2: =KY2+3 -> 314 | LE2: =LB2+3 -> 317 | LH2: =LE2+3 -> 320 | LK2: =LH2+3 -> 323 | LN2: =LK2+3 -> 326 | LQ2: =LN2+3 -> 329 | LT2: =LQ2+3 -> 332 | LW2: =LT2+3 -> 335 | LZ2: =LW2+3 -> 338 | MC2: =LZ2+3 -> 341 | MF2: =MC2+3 -> 344 | MI2: =MF2+3 -> 347 | ML2: =MI2+3 -> 350 | MO2: =ML2+3 -> 353 | MR2: =MO2+3 -> 356 | MU2: =MR2+3 -> 359 | MX2: =MU2+3 -> 362 | NA2: =MX2+3 -> 365 | ND2: =NA2+3 -> 368 | NG2: =ND2+3 -> 371 | NJ2: =NG2+3 -> 374 | NM2: =NJ2+3 -> 377 | NP2: =NM2+3 -> 380 | NS2: =NP2+3 -> 383 | NV2: =NS2+3 -> 386 | NY2: =NV2+3 -> 389 | OB2: =NY2+3 -> 392 | OE2: =OB2+3 -> 395 | OH2: =OE2+3 -> 398 | OK2: =OH2+3 -> 401 | ON2: =OK2+3 -> 404 | OQ2: =ON2+3 -> 407 | OT2: =OQ2+3 -> 410 | OW2: =OT2+3 -> 413 | OZ2: =OW2+3 -> 416 | PC2: =OZ2+3 -> 419 | PF2: =PC2+3 -> 422 | PI2: =PF2+3 -> 425 | PL2: =PI2+3 -> 428 | PO2: =PL2+3 -> 431 | PR2: =PO2+3 -> 434 | PU2: =PR2+3 -> 437 | PX2: =PU2+3 -> 440 | QA2: =PX2+3 -> 443 | QD2: =QA2+3 -> 446 | QG2: =QD2+3 -> 449 | QJ2: =QG2+3 -> 452 | QM2: =QJ2+3 -> 455 | QP2: =QM2+3 -> 458 | QS2: =QP2+3 -> 461 | QV2: =QS2+3 -> 464 | QY2: =QV2+3 -> 467 | RB2: =QY2+3 -> 470 | RE2: =RB2+3 -> 473 | RH2: =RE2+3 -> 476 | RK2: =RH2+3 -> 479 | RN2: =RK2+3 -> 482 | RQ2: =RN2+3 -> 485 | RT2: =RQ2+3 -> 488 | RW2: =RT2+3 -> 491 | RZ2: =RW2+3 -> 494 | SC2: =RZ2+3 -> 497 | SF2: =SC2+3 -> 500 | SI2: =SF2+3 -> 503 | SL2: =SI2+3 -> 506 | SO2: =SL2+3 -> 509 | SR2: =SO2+3 -> 512 | SU2: =SR2+3 -> 515 | SX2: =SU2+3 -> 518 | TA2: =SX2+3 -> 521 | TD2: =TA2+3 -> 524 | TG2: =TD2+3 -> 527 | TJ2: =TG2+3 -> 530 | TM2: =TJ2+3 -> 533 | TP2: =TM2+3 -> 536 | TS2: =TP2+3 -> 539 | TV2: =TS2+3 -> 542 | TY2: =TV2+3 -> 545 | UB2: =TY2+3 -> 548 | UE2: =UB2+3 -> 551 | UH2: =UE2+3 -> 554 | UK2: =UH2+3 -> 557 | UN2: =UK2+3 -> 560 | UQ2: =UN2+3 -> 563 | UT2: =UQ2+3 -> 566 | UW2: =UT2+3 -> 569 | UZ2: =UW2+3 -> 572 | VC2: =UZ2+3 -> 575 | VF2: =VC2+3 -> 578 | VI2: =VF2+3 -> 581 | VL2: =VI2+3 -> 584 | VO2: =VL2+3 -> 587 | VR2: =VO2+3 -> 590 | VU2: =VR2+3 -> 593 | VX2: =VU2+3 -> 596 | WA2: =VX2+3 -> 599 | WD2: =WA2+3 -> 602 | WG2: =WD2+3 -> 605 | WJ2: =WG2+3 -> 608 | WM2: =WJ2+3 -> 611 | WP2: =WM2+3 -> 614 | WS2: =WP2+3 -> 617 | WV2: =WS2+3 -> 620 | WY2: =WV2+3 -> 623 | XB2: =WY2+3 -> 626 | XE2: =XB2+3 -> 629 | XH2: =XE2+3 -> 632 | XK2: =XH2+3 -> 635 | XN2: =XK2+3 -> 638 | XQ2: =XN2+3 -> 641 | XT2: =XQ2+3 -> 644 | XW2: =XT2+3 -> 647 | XZ2: =XW2+3 -> 650 | YC2: =XZ2+3 -> 653 | YF2: =YC2+3 -> 656 | YI2: =YF2+3 -> 659 | YL2: =YI2+3 -> 662 | YO2: =YL2+3 -> 665 | YR2: =YO2+3 -> 668 | YU2: =YR2+3 -> 671 | YX2: =YU2+3 -> 674 | ZA2: =YX2+3 -> 677 | ZD2: =ZA2+3 -> 680 | ZG2: =ZD2+3 -> 683 | ZJ2: =ZG2+3 -> 686 | ZM2: =ZJ2+3 -> 689 | ZP2: =ZM2+3 -> 692 | ZS2: =ZP2+3 -> 695 | ZV2: =ZS2+3 -> 698 | ZY2: =ZV2+3 -> 701 | AAB2: =ZY2+3 -> 704 | AAE2: =AAB2+3 -> 707 | AAH2: =AAE2+3 -> 710 | AAK2: =AAH2+3 -> 713 | AAN2: =AAK2+3 -> 716 | AAQ2: =AAN2+3 -> 719 | AAT2: =AAQ2+3 -> 722 | AAW2: =AAT2+3 -> 725 | AAZ2: =AAW2+3 -> 728 | ABC2: =AAZ2+3 -> 731 | ABF2: =ABC2+3 -> 734 | ABI2: =ABF2+3 -> 737 | ABL2: =ABI2+3 -> 740 | ABO2: =ABL2+3 -> 743 | ABR2: =ABO2+3 -> 746 | ABU2: =ABR2+3 -> 749 | ABX2: =ABU2+3 -> 752 | ACA2: =ABX2+3 -> 755 | ACD2: =ACA2+3 -> 758 | ACG2: =ACD2+3 -> 761 | ACJ2: =ACG2+3 -> 764 | ACM2: =ACJ2+3 -> 767 | ACP2: =ACM2+3 -> 770 | ACS2: =ACP2+3 -> 773 | ACV2: =ACS2+3 -> 776 | ACY2: =ACV2+3 -> 779 | ADB2: =ACY2+3 -> 782 | ADE2: =ADB2+3 -> 785 | ADH2: =ADE2+3 -> 788 | ADK2: =ADH2+3 -> 791 | ADN2: =ADK2+3 -> 794 | ADQ2: =ADN2+3 -> 797 | ADT2: =ADQ2+3 -> 800 | ADW2: =ADT2+3 -> 803 | ADZ2: =ADW2+3 -> 806 | AEC2: =ADZ2+3 -> 809 | AEF2: =AEC2+3 -> 812 | AEI2: =AEF2+3 -> 815 | AEL2: =AEI2+3 -> 818 | AEO2: =AEL2+3 -> 821 | AER2: =AEO2+3 -> 824 | AEU2: =AER2+3 -> 827 | AEX2: =AEU2+3 -> 830 | AFA2: =AEX2+3 -> 833 | AFD2: =AFA2+3 -> 836 | AFG2: =AFD2+3 -> 839 | AFJ2: =AFG2+3 -> 842 | AFM2: =AFJ2+3 -> 845 | AFP2: =AFM2+3 -> 848 | AFS2: =AFP2+3 -> 851 | AFV2: =AFS2+3 -> 854 | AFY2: =AFV2+3 -> 857 | AGB2: =AFY2+3 -> 860 | AGE2: =AGB2+3 -> 863 | AGH2: =AGE2+3 -> 866 | AGK2: =AGH2+3 -> 869 | AGN2: =AGK2+3 -> 872 | AGQ2: =AGN2+3 -> 875 | AGT2: =AGQ2+3 -> 878 | AGW2: =AGT2+3 -> 881 | AGZ2: =AGW2+3 -> 884 | AHC2: =AGZ2+3 -> 887 | AHF2: =AHC2+3 -> 890 | AHI2: =AHF2+3 -> 893 | AHL2: =AHI2+3 -> 896 | AHO2: =AHL2+3 -> 899 | AHR2: =AHO2+3 -> 902 | AHU2: =AHR2+3 -> 905 | AHX2: =AHU2+3 -> 908 | AIA2: =AHX2+3 -> 911 | AID2: =AIA2+3 -> 914 | AIG2: =AID2+3 -> 917 | AIJ2: =AIG2+3 -> 920 | AIM2: =AIJ2+3 -> 923 | AIP2: =AIM2+3 -> 926 | AIS2: =AIP2+3 -> 929 | AIV2: =AIS2+3 -> 932 | AIY2: =AIV2+3 -> 935 | AJB2: =AIY2+3 -> 938 | AJE2: =AJB2+3 -> 941 | AJH2: =AJE2+3 -> 944 | AJK2: =AJH2+3 -> 947 | AJN2: =AJK2+3 -> 950 | AJQ2: =AJN2+3 -> 953 | AJT2: =AJQ2+3 -> 956 | AJW2: =AJT2+3 -> 959 | AJZ2: =AJW2+3 -> 962 | AKC2: =AJZ2+3 -> 965 | AKF2: =AKC2+3 -> 968 | AKI2: =AKF2+3 -> 971 | AKL2: =AKI2+3 -> 974 | AKO2: =AKL2+3 -> 977 | AKR2: =AKO2+3 -> 980 | AKU2: =AKR2+3 -> 983 | AKX2: =AKU2+3 -> 986 | ALA2: =AKX2+3 -> 989 | ALD2: =ALA2+3 -> 992 | ALG2: =ALD2+3 -> 995 | ALJ2: =ALG2+3 -> 998 | ALM2: =ALJ2+3 -> 1001 | ALP2: =ALM2+3 -> 1004 | ALS2: =ALP2+3 -> 1007 | ALV2: =ALS2+3 -> 1010 | ALY2: =ALV2+3 -> 1013 | AMB2: =ALY2+3 -> 1016 | AME2: =AMB2+3 -> 1019 | AMH2: =AME2+3 -> 1022 | AMK2: =AMH2+3 -> 1025 | AMN2: =AMK2+3 -> 1028 | AMQ2: =AMN2+3 -> 1031 | AMT2: =AMQ2+3 -> 1034 | AMW2: =AMT2+3 -> 1037 | AMZ2: =AMW2+3 -> 1040 | ANC2: =AMZ2+3 -> 1043 | ANF2: =ANC2+3 -> 1046 | ANI2: =ANF2+3 -> 1049 | ANL2: =ANI2+3 -> 1052 | ANO2: =ANL2+3 -> 1055 | ANR2: =ANO2+3 -> 1058 | ANU2: =ANR2+3 -> 1061 | ANX2: =ANU2+3 -> 1064 | AOA2: =ANX2+3 -> 1067 | AOD2: =AOA2+3 -> 1070 | AOG2: =AOD2+3 -> 1073 | AOJ2: =AOG2+3 -> 1076 | AOM2: =AOJ2+3 -> 1079 | AOP2: =AOM2+3 -> 1082 | AOS2: =AOP2+3 -> 1085 | AOV2: =AOS2+3 -> 1088 | AOY2: =AOV2+3 -> 1091 | APB2: =AOY2+3 -> 1094 | APE2: =APB2+3 -> 1097 | APH2: =APE2+3 -> 1100 | APK2: =APH2+3 -> 1103 | APN2: =APK2+3 -> 1106 | APQ2: =APN2+3 -> 1109 | APT2: =APQ2+3 -> 1112 | APW2: =APT2+3 -> 1115 | APZ2: =APW2+3 -> 1118 | AQC2: =APZ2+3 -> 1121 | AQF2: =AQC2+3 -> 1124 | AQI2: =AQF2+3 -> 1127 | AQL2: =AQI2+3 -> 1130 | AQO2: =AQL2+3 -> 1133 | AQR2: =AQO2+3 -> 1136 | AQU2: =AQR2+3 -> 1139 | AQX2: =AQU2+3 -> 1142 | ARA2: =AQX2+3 -> 1145 | ARD2: =ARA2+3 -> 1148 | ARG2: =ARD2+3 -> 1151 | ARJ2: =ARG2+3 -> 1154 | ARM2: =ARJ2+3 -> 1157 | ARP2: =ARM2+3 -> 1160 | ARS2: =ARP2+3 -> 1163 | ARV2: =ARS2+3 -> 1166 | ARY2: =ARV2+3 -> 1169 | ASB2: =ARY2+3 -> 1172 | ASE2: =ASB2+3 -> 1175 | ASH2: =ASE2+3 -> 1178 | ASK2: =ASH2+3 -> 1181 | ASN2: =ASK2+3 -> 1184 | ASQ2: =ASN2+3 -> 1187 | AST2: =ASQ2+3 -> 1190 | ASW2: =AST2+3 -> 1193 | ASZ2: =ASW2+3 -> 1196 | ATC2: =ASZ2+3 -> 1199 | ATF2: =ATC2+3 -> 1202 | ATI2: =ATF2+3 -> 1205 | ATL2: =ATI2+3 -> 1208 | ATO2: =ATL2+3 -> 1211 | ATR2: =ATO2+3 -> 1214 | ATU2: =ATR2+3 -> 1217 | ATX2: =ATU2+3 -> 1220 | AUA2: =ATX2+3 -> 1223 | AUD2: =AUA2+3 -> 1226 | AUG2: =AUD2+3 -> 1229 | AUJ2: =AUG2+3 -> 1232 | AUM2: =AUJ2+3 -> 1235 | AUP2: =AUM2+3 -> 1238 | AUS2: =AUP2+3 -> 1241 | AUV2: =AUS2+3 -> 1244 | AUY2: =AUV2+3 -> 1247 | AVB2: =AUY2+3 -> 1250 | AVE2: =AVB2+3 -> 1253 | AVH2: =AVE2+3 -> 1256 | AVK2: =AVH2+3 -> 1259 | AVN2: =AVK2+3 -> 1262 | AVQ2: =AVN2+3 -> 1265 | AVT2: =AVQ2+3 -> 1268 | AVW2: =AVT2+3 -> 1271 | AVZ2: =AVW2+3 -> 1274 | AWC2: =AVZ2+3 -> 1277 | AWF2: =AWC2+3 -> 1280 | AWI2: =AWF2+3 -> 1283 | AWL2: =AWI2+3 -> 1286 | AWO2: =AWL2+3 -> 1289 | AWR2: =AWO2+3 -> 1292 | AWU2: =AWR2+3 -> 1295 | AWX2: =AWU2+3 -> 1298 | AXA2: =AWX2+3 -> 1301 | AXD2: =AXA2+3 -> 1304 | AXG2: =AXD2+3 -> 1307 | AXJ2: =AXG2+3 -> 1310 | AXM2: =AXJ2+3 -> 1313 | AXP2: =AXM2+3 -> 1316 | AXS2: =AXP2+3 -> 1319 | AXV2: =AXS2+3 -> 1322 | AXY2: =AXV2+3 -> 1325 | AYB2: =AXY2+3 -> 1328 | AYE2: =AYB2+3 -> 1331 | AYH2: =AYE2+3 -> 1334 | AYK2: =AYH2+3 -> 1337 | AYN2: =AYK2+3 -> 1340 | AYQ2: =AYN2+3 -> 1343 | AYT2: =AYQ2+3 -> 1346 | AYW2: =AYT2+3 -> 1349 | AYZ2: =AYW2+3 -> 1352 | AZC2: =AYZ2+3 -> 1355 | AZF2: =AZC2+3 -> 1358 | AZI2: =AZF2+3 -> 1361 | AZL2: =AZI2+3 -> 1364 | AZO2: =AZL2+3 -> 1367 | AZR2: =AZO2+3 -> 1370 | AZU2: =AZR2+3 -> 1373 | AZX2: =AZU2+3 -> 1376 | BAA2: =AZX2+3 -> 1379 | BAD2: =BAA2+3 -> 1382 | BAG2: =BAD2+3 -> 1385 | BAJ2: =BAG2+3 -> 1388 | BAM2: =BAJ2+3 -> 1391 | BAP2: =BAM2+3 -> 1394 | BAS2: =BAP2+3 -> 1397 | BAV2: =BAS2+3 -> 1400 | BAY2: =BAV2+3 -> 1403 | BBB2: =BAY2+3 -> 1406 | BBE2: =BBB2+3 -> 1409 | BBH2: =BBE2+3 -> 1412 | BBK2: =BBH2+3 -> 1415 | BBN2: =BBK2+3 -> 1418 | BBQ2: =BBN2+3 -> 1421 | BBT2: =BBQ2+3 -> 1424 | BBW2: =BBT2+3 -> 1427 | BBZ2: =BBW2+3 -> 1430 | BCC2: =BBZ2+3 -> 1433 | BCF2: =BCC2+3 -> 1436 | BCI2: =BCF2+3 -> 1439 | BCL2: =BCI2+3 -> 1442 | BCO2: =BCL2+3 -> 1445 | BCR2: =BCO2+3 -> 1448 | BCU2: =BCR2+3 -> 1451 | BCX2: =BCU2+3 -> 1454 | BDA2: =BCX2+3 -> 1457 | BDD2: =BDA2+3 -> 1460 | BDG2: =BDD2+3 -> 1463 | BDJ2: =BDG2+3 -> 1466 | BDM2: =BDJ2+3 -> 1469 | BDP2: =BDM2+3 -> 1472 | BDS2: =BDP2+3 -> 1475 | BDV2: =BDS2+3 -> 1478 | BDY2: =BDV2+3 -> 1481 | BEB2: =BDY2+3 -> 1484 | BEE2: =BEB2+3 -> 1487 | BEH2: =BEE2+3 -> 1490 | BEK2: =BEH2+3 -> 1493 | BEN2: =BEK2+3 -> 1496 | BEQ2: =BEN2+3 -> 1499 | BET2: =BEQ2+3 -> 1502 | BEW2: =BET2+3 -> 1505 | BEZ2: =BEW2+3 -> 1508 | BFC2: =BEZ2+3 -> 1511 | BFF2: =BFC2+3 -> 1514 | BFI2: =BFF2+3 -> 1517 | BFL2: =BFI2+3 -> 1520 | BFO2: =BFL2+3 -> 1523 | BFR2: =BFO2+3 -> 1526 | BFU2: =BFR2+3 -> 1529 | BFX2: =BFU2+3 -> 1532 | BGA2: =BFX2+3 -> 1535 | BGD2: =BGA2+3 -> 1538 | BGG2: =BGD2+3 -> 1541 | BGJ2: =BGG2+3 -> 1544 | BGM2: =BGJ2+3 -> 1547 | BGP2: =BGM2+3 -> 1550 | BGS2: =BGP2+3 -> 1553 | BGV2: =BGS2+3 -> 1556 | BGY2: =BGV2+3 -> 1559 | BHB2: =BGY2+3 -> 1562 | BHE2: =BHB2+3 -> 1565 | BHH2: =BHE2+3 -> 1568 | BHK2: =BHH2+3 -> 1571 | BHN2: =BHK2+3 -> 1574 | BHQ2: =BHN2+3 -> 1577 | BHT2: =BHQ2+3 -> 1580 | BHW2: =BHT2+3 -> 1583 | BHZ2: =BHW2+3 -> 1586 | BIC2: =BHZ2+3 -> 1589 | BIF2: =BIC2+3 -> 1592 | BII2: =BIF2+3 -> 1595 | BIL2: =BII2+3 -> 1598 | BIO2: =BIL2+3 -> 1601 | BIR2: =BIO2+3 -> 1604 | BIU2: =BIR2+3 -> 1607 | BIX2: =BIU2+3 -> 1610 | BJA2: =BIX2+3 -> 1613 | BJD2: =BJA2+3 -> 1616 | BJG2: =BJD2+3 -> 1619 | BJJ2: =BJG2+3 -> 1622 | BJM2: =BJJ2+3 -> 1625 | BJP2: =BJM2+3 -> 1628 | BJS2: =BJP2+3 -> 1631 | BJV2: =BJS2+3 -> 1634 | BJY2: =BJV2+3 -> 1637 | BKB2: =BJY2+3 -> 1640 | BKE2: =BKB2+3 -> 1643 | BKH2: =BKE2+3 -> 1646 | BKK2: =BKH2+3 -> 1649 | BKN2: =BKK2+3 -> 1652 | BKQ2: =BKN2+3 -> 1655 | BKT2: =BKQ2+3 -> 1658 | BKW2: =BKT2+3 -> 1661 | BKZ2: =BKW2+3 -> 1664 | BLC2: =BKZ2+3 -> 1667 | BLF2: =BLC2+3 -> 1670 | BLI2: =BLF2+3 -> 1673 | BLL2: =BLI2+3 -> 1676 | BLO2: =BLL2+3 -> 1679 | BLR2: =BLO2+3 -> 1682 | BLU2: =BLR2+3 -> 1685 | BLX2: =BLU2+3 -> 1688 | BMA2: =BLX2+3 -> 1691 | BMD2: =BMA2+3 -> 1694 | BMG2: =BMD2+3 -> 1697 | BMJ2: =BMG2+3 -> 1700 | BMM2: =BMJ2+3 -> 1703 | BMP2: =BMM2+3 -> 1706 | BMS2: =BMP2+3 -> 1709 | BMV2: =BMS2+3 -> 1712 | BMY2: =BMV2+3 -> 1715 | BNB2: =BMY2+3 -> 1718 | BNE2: =BNB2+3 -> 1721 | BNH2: =BNE2+3 -> 1724 | BNK2: =BNH2+3 -> 1727 | BNN2: =BNK2+3 -> 1730 | BNQ2: =BNN2+3 -> 1733 | BNT2: =BNQ2+3 -> 1736 | BNW2: =BNT2+3 -> 1739 | BNZ2: =BNW2+3 -> 1742 | BOC2: =BNZ2+3 -> 1745 | BOF2: =BOC2+3 -> 1748 | BOI2: =BOF2+3 -> 1751 | BOL2: =BOI2+3 -> 1754 | BOO2: =BOL2+3 -> 1757 | BOR2: =BOO2+3 -> 1760 | BOU2: =BOR2+3 -> 1763 | BOX2: =BOU2+3 -> 1766 | BPA2: =BOX2+3 -> 1769 | BPD2: =BPA2+3 -> 1772 | BPG2: =BPD2+3 -> 1775 | BPJ2: =BPG2+3 -> 1778 | BPM2: =BPJ2+3 -> 1781 | BPP2: =BPM2+3 -> 1784 | BPS2: =BPP2+3 -> 1787 | BPV2: =BPS2+3 -> 1790 | BPY2: =BPV2+3 -> 1793 | BQB2: =BPY2+3 -> 1796 | BQE2: =BQB2+3 -> 1799 | BQH2: =BQE2+3 -> 1802 | BQK2: =BQH2+3 -> 1805 | BQN2: =BQK2+3 -> 1808 | BQQ2: =BQN2+3 -> 1811 | BQT2: =BQQ2+3 -> 1814 | BQW2: =BQT2+3 -> 1817 | BQZ2: =BQW2+3 -> 1820 | BRC2: =BQZ2+3 -> 1823 | BRF2: =BRC2+3 -> 1826 | BRI2: =BRF2+3 -> 1829 | BRL2: =BRI2+3 -> 1832 | BRO2: =BRL2+3 -> 1835
A3: Etykiety wierszy | B3: Średnia z oprocentowanie | C3: Średnia z prowizja kred. od Klienta | E3: Średnia z oprocentowanie | F3: Średnia z prowizja kred. od Klienta | H3: Średnia z oprocentowanie | I3: Średnia z prowizja kred. od Klienta | K3: Średnia z oprocentowanie | L3: Średnia z prowizja kred. od Klienta | N3: Średnia z oprocentowanie | O3: Średnia z prowizja kred. od Klienta | Q3: Średnia z oprocentowanie | R3: Średnia z prowizja kred. od Klienta | T3: Średnia z oprocentowanie | U3: Średnia z prowizja kred. od Klienta | W3: Średnia z oprocentowanie | X3: Średnia z prowizja kred. od Klienta | Z3: Średnia z oprocentowanie | AA3: Średnia z prowizja kred. od Klienta | AC3: Średnia z oprocentowanie | AD3: Średnia z prowizja kred. od Klienta | AF3: Średnia z oprocentowanie | AG3: Średnia z prowizja kred. od Klienta | AI3: Średnia z oprocentowanie | AJ3: Średnia z prowizja kred. od Klienta | AL3: Średnia z oprocentowanie | AM3: Średnia z prowizja kred. od Klienta | AO3: Średnia z oprocentowanie | AP3: Średnia z prowizja kred. od Klienta | AR3: Średnia z oprocentowanie | AS3: Średnia z prowizja kred. od Klienta | AU3: Średnia z oprocentowanie | AV3: Średnia z prowizja kred. od Klienta | AX3: Średnia z oprocentowanie | AY3: Średnia z prowizja kred. od Klienta | BA3: Średnia z oprocentowanie | BB3: Średnia z prowizja kred. od Klienta | BD3: Średnia z oprocentowanie | BE3: Średnia z prowizja kred. od Klienta | BG3: Średnia z oprocentowanie | BH3: Średnia z prowizja kred. od Klienta | BJ3: Średnia z oprocentowanie | BK3: Średnia z prowizja kred. od Klienta | BM3: Średnia z oprocentowanie | BN3: Średnia z prowizja kred. od Klienta | BP3: Średnia z oprocentowanie | BQ3: Średnia z prowizja kred. od Klienta | BS3: Średnia z oprocentowanie | BT3: Średnia z prowizja kred. od Klienta | BV3: Średnia z oprocentowanie | BW3: Średnia z prowizja kred. od Klienta | BY3: Średnia z oprocentowanie | BZ3: Średnia z prowizja kred. od Klienta | CB3: Średnia z oprocentowanie | CC3: Średnia z prowizja kred. od Klienta | CE3: Średnia z oprocentowanie | CF3: Średnia z prowizja kred. od Klienta | CH3: Średnia z oprocentowanie | CI3: Średnia z prowizja kred. od Klienta | CK3: Średnia z oprocentowanie | CL3: Średnia z prowizja kred. od Klienta | CN3: Średnia z oprocentowanie | CO3: Średnia z prowizja kred. od Klienta | CQ3: Średnia z oprocentowanie | CR3: Średnia z prowizja kred. od Klienta | CT3: Średnia z oprocentowanie | CU3: Średnia z prowizja kred. od Klienta | CW3: Średnia z oprocentowanie | CX3: Średnia z prowizja kred. od Klienta | CZ3: Średnia z oprocentowanie | DA3: Średnia z prowizja kred. od Klienta | DC3: Średnia z oprocentowanie | DD3: Średnia z prowizja kred. od Klienta | DF3: Średnia z oprocentowanie | DG3: Średnia z prowizja kred. od Klienta | DI3: Średnia z oprocentowanie | DJ3: Średnia z prowizja kred. od Klienta | DL3: Średnia z oprocentowanie | DM3: Średnia z prowizja kred. od Klienta | DO3: Średnia z oprocentowanie | DP3: Średnia z prowizja kred. od Klienta | DR3: Średnia z oprocentowanie | DS3: Średnia z prowizja kred. od Klienta | DU3: Średnia z oprocentowanie | DV3: Średnia z prowizja kred. od Klienta | DX3: Średnia z oprocentowanie | DY3: Średnia z prowizja kred. od Klienta | EA3: Średnia z oprocentowanie | EB3: Średnia z prowizja kred. od Klienta | ED3: Średnia z oprocentowanie | EE3: Średnia z prowizja kred. od Klienta | EG3: Średnia z oprocentowanie | EH3: Średnia z prowizja kred. od Klienta | EJ3: Średnia z oprocentowanie | EK3: Średnia z prowizja kred. od Klienta | EM3: Średnia z oprocentowanie | EN3: Średnia z prowizja kred. od Klienta | EP3: Średnia z oprocentowanie | EQ3: Średnia z prowizja kred. od Klienta | ES3: Średnia z oprocentowanie | ET3: Średnia z prowizja kred. od Klienta | EV3: Średnia z oprocentowanie | EW3: Średnia z prowizja kred. od Klienta | EY3: Średnia z oprocentowanie | EZ3: Średnia z prowizja kred. od Klienta | FB3: Średnia z oprocentowanie | FC3: Średnia z prowizja kred. od Klienta | FE3: Średnia z oprocentowanie | FF3: Średnia z prowizja kred. od Klienta | FH3: Średnia z oprocentowanie | FI3: Średnia z prowizja kred. od Klienta | FK3: Średnia z oprocentowanie | FL3: Średnia z prowizja kred. od Klienta | FN3: Średnia z oprocentowanie | FO3: Średnia z prowizja kred. od Klienta | FQ3: Średnia z oprocentowanie | FR3: Średnia z prowizja kred. od Klienta | FT3: Średnia z oprocentowanie | FU3: Średnia z prowizja kred. od Klienta | FW3: Średnia z oprocentowanie | FX3: Średnia z prowizja kred. od Klienta | FZ3: Średnia z oprocentowanie | GA3: Średnia z prowizja kred. od Klienta | GC3: Średnia z oprocentowanie | GD3: Średnia z prowizja kred. od Klienta | GF3: Średnia z oprocentowanie | GG3: Średnia z prowizja kred. od Klienta | GI3: Średnia z oprocentowanie | GJ3: Średnia z prowizja kred. od Klienta | GL3: Średnia z oprocentowanie | GM3: Średnia z prowizja kred. od Klienta | GO3: Średnia z oprocentowanie | GP3: Średnia z prowizja kred. od Klienta | GR3: Średnia z oprocentowanie | GS3: Średnia z prowizja kred. od Klienta | GU3: Średnia z oprocentowanie | GV3: Średnia z prowizja kred. od Klienta | GX3: Średnia z oprocentowanie | GY3: Średnia z prowizja kred. od Klienta | HA3: Średnia z oprocentowanie | HB3: Średnia z prowizja kred. od Klienta | HD3: Średnia z oprocentowanie | HE3: Średnia z prowizja kred. od Klienta | HG3: Średnia z oprocentowanie | HH3: Średnia z prowizja kred. od Klienta | HJ3: Średnia z oprocentowanie | HK3: Średnia z prowizja kred. od Klienta | HM3: Średnia z oprocentowanie | HN3: Średnia z prowizja kred. od Klienta | HP3: Średnia z oprocentowanie | HQ3: Średnia z prowizja kred. od Klienta | HS3: Średnia z oprocentowanie | HT3: Średnia z prowizja kred. od Klienta | HV3: Średnia z oprocentowanie | HW3: Średnia z prowizja kred. od Klienta | HY3: Średnia z oprocentowanie | HZ3: Średnia z prowizja kred. od Klienta | IB3: Średnia z oprocentowanie | IC3: Średnia z prowizja kred. od Klienta | IE3: Średnia z oprocentowanie | IF3: Średnia z prowizja kred. od Klienta | IH3: Średnia z oprocentowanie | II3: Średnia z prowizja kred. od Klienta | IK3: Średnia z oprocentowanie | IL3: Średnia z prowizja kred. od Klienta | IN3: Średnia z oprocentowanie | IO3: Średnia z prowizja kred. od Klienta | IQ3: Średnia z oprocentowanie | IR3: Średnia z prowizja kred. od Klienta | IT3: Średnia z oprocentowanie | IU3: Średnia z prowizja kred. od Klienta | IW3: Średnia z oprocentowanie | IX3: Średnia z prowizja kred. od Klienta | IZ3: Średnia z oprocentowanie | JA3: Średnia z prowizja kred. od Klienta | JC3: Średnia z oprocentowanie | JD3: Średnia z prowizja kred. od Klienta | JF3: Średnia z oprocentowanie | JG3: Średnia z prowizja kred. od Klienta | JI3: Średnia z oprocentowanie | JJ3: Średnia z prowizja kred. od Klienta | JL3: Średnia z oprocentowanie | JM3: Średnia z prowizja kred. od Klienta | JO3: Średnia z oprocentowanie | JP3: Średnia z prowizja kred. od Klienta | JR3: Średnia z oprocentowanie | JS3: Średnia z prowizja kred. od Klienta | JU3: Średnia z oprocentowanie | JV3: Średnia z prowizja kred. od Klienta | JX3: Średnia z oprocentowanie | JY3: Średnia z prowizja kred. od Klienta | KA3: Średnia z oprocentowanie | KB3: Średnia z prowizja kred. od Klienta | KD3: Średnia z oprocentowanie | KE3: Średnia z prowizja kred. od Klienta | KG3: Średnia z oprocentowanie | KH3: Średnia z prowizja kred. od Klienta | KJ3: Średnia z oprocentowanie | KK3: Średnia z prowizja kred. od Klienta | KM3: Średnia z oprocentowanie | KN3: Średnia z prowizja kred. od Klienta | KP3: Średnia z oprocentowanie | KQ3: Średnia z prowizja kred. od Klienta | KS3: Średnia z oprocentowanie | KT3: Średnia z prowizja kred. od Klienta | KV3: Średnia z oprocentowanie | KW3: Średnia z prowizja kred. od Klienta | KY3: Średnia z oprocentowanie | KZ3: Średnia z prowizja kred. od Klienta | LB3: Średnia z oprocentowanie | LC3: Średnia z prowizja kred. od Klienta | LE3: Średnia z oprocentowanie | LF3: Średnia z prowizja kred. od Klienta | LH3: Średnia z oprocentowanie | LI3: Średnia z prowizja kred. od Klienta | LK3: Średnia z oprocentowanie | LL3: Średnia z prowizja kred. od Klienta | LN3: Średnia z oprocentowanie | LO3: Średnia z prowizja kred. od Klienta | LQ3: Średnia z oprocentowanie | LR3: Średnia z prowizja kred. od Klienta | LT3: Średnia z oprocentowanie | LU3: Średnia z prowizja kred. od Klienta | LW3: Średnia z oprocentowanie | LX3: Średnia z prowizja kred. od Klienta | LZ3: Średnia z oprocentowanie | MA3: Średnia z prowizja kred. od Klienta | MC3: Średnia z oprocentowanie | MD3: Średnia z prowizja kred. od Klienta | MF3: Średnia z oprocentowanie | MG3: Średnia z prowizja kred. od Klienta | MI3: Średnia z oprocentowanie | MJ3: Średnia z prowizja kred. od Klienta | ML3: Średnia z oprocentowanie | MM3: Średnia z prowizja kred. od Klienta | MO3: Średnia z oprocentowanie | MP3: Średnia z prowizja kred. od Klienta | MR3: Średnia z oprocentowanie | MS3: Średnia z prowizja kred. od Klienta | MU3: Średnia z oprocentowanie | MV3: Średnia z prowizja kred. od Klienta | MX3: Średnia z oprocentowanie | MY3: Średnia z prowizja kred. od Klienta | NA3: Średnia z oprocentowanie | NB3: Średnia z prowizja kred. od Klienta | ND3: Średnia z oprocentowanie | NE3: Średnia z prowizja kred. od Klienta | NG3: Średnia z oprocentowanie | NH3: Średnia z prowizja kred. od Klienta | NJ3: Średnia z oprocentowanie | NK3: Średnia z prowizja kred. od Klienta | NM3: Średnia z oprocentowanie | NN3: Średnia z prowizja kred. od Klienta | NP3: Średnia z oprocentowanie | NQ3: Średnia z prowizja kred. od Klienta | NS3: Średnia z oprocentowanie | NT3: Średnia z prowizja kred. od Klienta | NV3: Średnia z oprocentowanie | NW3: Średnia z prowizja kred. od Klienta | NY3: Średnia z oprocentowanie | NZ3: Średnia z prowizja kred. od Klienta | OB3: Średnia z oprocentowanie | OC3: Średnia z prowizja kred. od Klienta | OE3: Średnia z oprocentowanie | OF3: Średnia z prowizja kred. od Klienta | OH3: Średnia z oprocentowanie | OI3: Średnia z prowizja kred. od Klienta | OK3: Średnia z oprocentowanie | OL3: Średnia z prowizja kred. od Klienta | ON3: Średnia z oprocentowanie | OO3: Średnia z prowizja kred. od Klienta | OQ3: Średnia z oprocentowanie | OR3: Średnia z prowizja kred. od Klienta | OT3: Średnia z oprocentowanie | OU3: Średnia z prowizja kred. od Klienta | OW3: Średnia z oprocentowanie | OX3: Średnia z prowizja kred. od Klienta | OZ3: Średnia z oprocentowanie | PA3: Średnia z prowizja kred. od Klienta | PC3: Średnia z oprocentowanie | PD3: Średnia z prowizja kred. od Klienta | PF3: Średnia z oprocentowanie | PG3: Średnia z prowizja kred. od Klienta | PI3: Średnia z oprocentowanie | PJ3: Średnia z prowizja kred. od Klienta | PL3: Średnia z oprocentowanie | PM3: Średnia z prowizja kred. od Klienta | PO3: Średnia z oprocentowanie | PP3: Średnia z prowizja kred. od Klienta | PR3: Średnia z oprocentowanie | PS3: Średnia z prowizja kred. od Klienta | PU3: Średnia z oprocentowanie | PV3: Średnia z prowizja kred. od Klienta | PX3: Średnia z oprocentowanie | PY3: Średnia z prowizja kred. od Klienta | QA3: Średnia z oprocentowanie | QB3: Średnia z prowizja kred. od Klienta | QD3: Średnia z oprocentowanie | QE3: Średnia z prowizja kred. od Klienta | QG3: Średnia z oprocentowanie | QH3: Średnia z prowizja kred. od Klienta | QJ3: Średnia z oprocentowanie | QK3: Średnia z prowizja kred. od Klienta | QM3: Średnia z oprocentowanie | QN3: Średnia z prowizja kred. od Klienta | QP3: Średnia z oprocentowanie | QQ3: Średnia z prowizja kred. od Klienta | QS3: Średnia z oprocentowanie | QT3: Średnia z prowizja kred. od Klienta | QV3: Średnia z oprocentowanie | QW3: Średnia z prowizja kred. od Klienta | QY3: Średnia z oprocentowanie | QZ3: Średnia z prowizja kred. od Klienta | RB3: Średnia z oprocentowanie | RC3: Średnia z prowizja kred. od Klienta | RE3: Średnia z oprocentowanie | RF3: Średnia z prowizja kred. od Klienta | RH3: Średnia z oprocentowanie | RI3: Średnia z prowizja kred. od Klienta | RK3: Średnia z oprocentowanie | RL3: Średnia z prowizja kred. od Klienta | RN3: Średnia z oprocentowanie | RO3: Średnia z prowizja kred. od Klienta | RQ3: Średnia z oprocentowanie | RR3: Średnia z prowizja kred. od Klienta | RT3: Średnia z oprocentowanie | RU3: Średnia z prowizja kred. od Klienta | RW3: Średnia z oprocentowanie | RX3: Średnia z prowizja kred. od Klienta | RZ3: Średnia z oprocentowanie | SA3: Średnia z prowizja kred. od Klienta | SC3: Średnia z oprocentowanie | SD3: Średnia z prowizja kred. od Klienta | SF3: Średnia z oprocentowanie | SG3: Średnia z prowizja kred. od Klienta | SI3: Średnia z oprocentowanie | SJ3: Średnia z prowizja kred. od Klienta | SL3: Średnia z oprocentowanie | SM3: Średnia z prowizja kred. od Klienta | SO3: Średnia z oprocentowanie | SP3: Średnia z prowizja kred. od Klienta | SR3: Średnia z oprocentowanie | SS3: Średnia z prowizja kred. od Klienta | SU3: Średnia z oprocentowanie | SV3: Średnia z prowizja kred. od Klienta | SX3: Średnia z oprocentowanie | SY3: Średnia z prowizja kred. od Klienta | TA3: Średnia z oprocentowanie | TB3: Średnia z prowizja kred. od Klienta | TD3: Średnia z oprocentowanie | TE3: Średnia z prowizja kred. od Klienta | TG3: Średnia z oprocentowanie | TH3: Średnia z prowizja kred. od Klienta | TJ3: Średnia z oprocentowanie | TK3: Średnia z prowizja kred. od Klienta | TM3: Średnia z oprocentowanie | TN3: Średnia z prowizja kred. od Klienta | TP3: Średnia z oprocentowanie | TQ3: Średnia z prowizja kred. od Klienta | TS3: Średnia z oprocentowanie | TT3: Średnia z prowizja kred. od Klienta | TV3: Średnia z oprocentowanie | TW3: Średnia z prowizja kred. od Klienta | TY3: Średnia z oprocentowanie | TZ3: Średnia z prowizja kred. od Klienta | UB3: Średnia z oprocentowanie | UC3: Średnia z prowizja kred. od Klienta | UE3: Średnia z oprocentowanie | UF3: Średnia z prowizja kred. od Klienta | UH3: Średnia z oprocentowanie | UI3: Średnia z prowizja kred. od Klienta | UK3: Średnia z oprocentowanie | UL3: Średnia z prowizja kred. od Klienta | UN3: Średnia z oprocentowanie | UO3: Średnia z prowizja kred. od Klienta | UQ3: Średnia z oprocentowanie | UR3: Średnia z prowizja kred. od Klienta | UT3: Średnia z oprocentowanie | UU3: Średnia z prowizja kred. od Klienta | UW3: Średnia z oprocentowanie | UX3: Średnia z prowizja kred. od Klienta | UZ3: Średnia z oprocentowanie | VA3: Średnia z prowizja kred. od Klienta | VC3: Średnia z oprocentowanie | VD3: Średnia z prowizja kred. od Klienta | VF3: Średnia z oprocentowanie | VG3: Średnia z prowizja kred. od Klienta | VI3: Średnia z oprocentowanie | VJ3: Średnia z prowizja kred. od Klienta | VL3: Średnia z oprocentowanie | VM3: Średnia z prowizja kred. od Klienta | VO3: Średnia z oprocentowanie | VP3: Średnia z prowizja kred. od Klienta | VR3: Średnia z oprocentowanie | VS3: Średnia z prowizja kred. od Klienta | VU3: Średnia z oprocentowanie | VV3: Średnia z prowizja kred. od Klienta | VX3: Średnia z oprocentowanie | VY3: Średnia z prowizja kred. od Klienta | WA3: Średnia z oprocentowanie | WB3: Średnia z prowizja kred. od Klienta | WD3: Średnia z oprocentowanie | WE3: Średnia z prowizja kred. od Klienta | WG3: Średnia z oprocentowanie | WH3: Średnia z prowizja kred. od Klienta | WJ3: Średnia z oprocentowanie | WK3: Średnia z prowizja kred. od Klienta | WM3: Średnia z oprocentowanie | WN3: Średnia z prowizja kred. od Klienta | WP3: Średnia z oprocentowanie | WQ3: Średnia z prowizja kred. od Klienta | WS3: Średnia z oprocentowanie | WT3: Średnia z prowizja kred. od Klienta | WV3: Średnia z oprocentowanie | WW3: Średnia z prowizja kred. od Klienta | WY3: Średnia z oprocentowanie | WZ3: Średnia z prowizja kred. od Klienta | XB3: Średnia z oprocentowanie | XC3: Średnia z prowizja kred. od Klienta | XE3: Średnia z oprocentowanie | XF3: Średnia z prowizja kred. od Klienta | XH3: Średnia z oprocentowanie | XI3: Średnia z prowizja kred. od Klienta | XK3: Średnia z oprocentowanie | XL3: Średnia z prowizja kred. od Klienta | XN3: Średnia z oprocentowanie | XO3: Średnia z prowizja kred. od Klienta | XQ3: Średnia z oprocentowanie | XR3: Średnia z prowizja kred. od Klienta | XT3: Średnia z oprocentowanie | XU3: Średnia z prowizja kred. od Klienta | XW3: Średnia z oprocentowanie | XX3: Średnia z prowizja kred. od Klienta | XZ3: Średnia z oprocentowanie | YA3: Średnia z prowizja kred. od Klienta | YC3: Średnia z oprocentowanie | YD3: Średnia z prowizja kred. od Klienta | YF3: Średnia z oprocentowanie | YG3: Średnia z prowizja kred. od Klienta | YI3: Średnia z oprocentowanie | YJ3: Średnia z prowizja kred. od Klienta | YL3: Średnia z oprocentowanie | YM3: Średnia z prowizja kred. od Klienta | YO3: Średnia z oprocentowanie | YP3: Średnia z prowizja kred. od Klienta | YR3: Średnia z oprocentowanie | YS3: Średnia z prowizja kred. od Klienta | YU3: Średnia z oprocentowanie | YV3: Średnia z prowizja kred. od Klienta | YX3: Średnia z oprocentowanie | YY3: Średnia z prowizja kred. od Klienta | ZA3: Średnia z oprocentowanie | ZB3: Średnia z prowizja kred. od Klienta | ZD3: Średnia z oprocentowanie | ZE3: Średnia z prowizja kred. od Klienta | ZG3: Średnia z oprocentowanie | ZH3: Średnia z prowizja kred. od Klienta | ZJ3: Średnia z oprocentowanie | ZK3: Średnia z prowizja kred. od Klienta | ZM3: Średnia z oprocentowanie | ZN3: Średnia z prowizja kred. od Klienta | ZP3: Średnia z oprocentowanie | ZQ3: Średnia z prowizja kred. od Klienta | ZS3: Średnia z oprocentowanie | ZT3: Średnia z prowizja kred. od Klienta | ZV3: Średnia z oprocentowanie | ZW3: Średnia z prowizja kred. od Klienta | ZY3: Średnia z oprocentowanie | ZZ3: Średnia z prowizja kred. od Klienta | AAB3: Średnia z oprocentowanie | AAC3: Średnia z prowizja kred. od Klienta | AAE3: Średnia z oprocentowanie | AAF3: Średnia z prowizja kred. od Klienta | AAH3: Średnia z oprocentowanie | AAI3: Średnia z prowizja kred. od Klienta | AAK3: Średnia z oprocentowanie | AAL3: Średnia z prowizja kred. od Klienta | AAN3: Średnia z oprocentowanie | AAO3: Średnia z prowizja kred. od Klienta | AAQ3: Średnia z oprocentowanie | AAR3: Średnia z prowizja kred. od Klienta | AAT3: Średnia z oprocentowanie | AAU3: Średnia z prowizja kred. od Klienta | AAW3: Średnia z oprocentowanie | AAX3: Średnia z prowizja kred. od Klienta | AAZ3: Średnia z oprocentowanie | ABA3: Średnia z prowizja kred. od Klienta | ABC3: Średnia z oprocentowanie | ABD3: Średnia z prowizja kred. od Klienta | ABF3: Średnia z oprocentowanie | ABG3: Średnia z prowizja kred. od Klienta | ABI3: Średnia z oprocentowanie | ABJ3: Średnia z prowizja kred. od Klienta | ABL3: Średnia z oprocentowanie | ABM3: Średnia z prowizja kred. od Klienta | ABO3: Średnia z oprocentowanie | ABP3: Średnia z prowizja kred. od Klienta | ABR3: Średnia z oprocentowanie | ABS3: Średnia z prowizja kred. od Klienta | ABU3: Średnia z oprocentowanie | ABV3: Średnia z prowizja kred. od Klienta | ABX3: Średnia z oprocentowanie | ABY3: Średnia z prowizja kred. od Klienta | ACA3: Średnia z oprocentowanie | ACB3: Średnia z prowizja kred. od Klienta | ACD3: Średnia z oprocentowanie | ACE3: Średnia z prowizja kred. od Klienta | ACG3: Średnia z oprocentowanie | ACH3: Średnia z prowizja kred. od Klienta | ACJ3: Średnia z oprocentowanie | ACK3: Średnia z prowizja kred. od Klienta | ACM3: Średnia z oprocentowanie | ACN3: Średnia z prowizja kred. od Klienta | ACP3: Średnia z oprocentowanie | ACQ3: Średnia z prowizja kred. od Klienta | ACS3: Średnia z oprocentowanie | ACT3: Średnia z prowizja kred. od Klienta | ACV3: Średnia z oprocentowanie | ACW3: Średnia z prowizja kred. od Klienta | ACY3: Średnia z oprocentowanie | ACZ3: Średnia z prowizja kred. od Klienta | ADB3: Średnia z oprocentowanie | ADC3: Średnia z prowizja kred. od Klienta | ADE3: Średnia z oprocentowanie | ADF3: Średnia z prowizja kred. od Klienta | ADH3: Średnia z oprocentowanie | ADI3: Średnia z prowizja kred. od Klienta | ADK3: Średnia z oprocentowanie | ADL3: Średnia z prowizja kred. od Klienta | ADN3: Średnia z oprocentowanie | ADO3: Średnia z prowizja kred. od Klienta | ADQ3: Średnia z oprocentowanie | ADR3: Średnia z prowizja kred. od Klienta | ADT3: Średnia z oprocentowanie | ADU3: Średnia z prowizja kred. od Klienta | ADW3: Średnia z oprocentowanie | ADX3: Średnia z prowizja kred. od Klienta | ADZ3: Średnia z oprocentowanie | AEA3: Średnia z prowizja kred. od Klienta | AEC3: Średnia z oprocentowanie | AED3: Średnia z prowizja kred. od Klienta | AEF3: Średnia z oprocentowanie | AEG3: Średnia z prowizja kred. od Klienta | AEI3: Średnia z oprocentowanie | AEJ3: Średnia z prowizja kred. od Klienta | AEL3: Średnia z oprocentowanie | AEM3: Średnia z prowizja kred. od Klienta | AEO3: Średnia z oprocentowanie | AEP3: Średnia z prowizja kred. od Klienta | AER3: Średnia z oprocentowanie | AES3: Średnia z prowizja kred. od Klienta | AEU3: Średnia z oprocentowanie | AEV3: Średnia z prowizja kred. od Klienta | AEX3: Średnia z oprocentowanie | AEY3: Średnia z prowizja kred. od Klienta | AFA3: Średnia z oprocentowanie | AFB3: Średnia z prowizja kred. od Klienta | AFD3: Średnia z oprocentowanie | AFE3: Średnia z prowizja kred. od Klienta | AFG3: Średnia z oprocentowanie | AFH3: Średnia z prowizja kred. od Klienta | AFJ3: Średnia z oprocentowanie | AFK3: Średnia z prowizja kred. od Klienta | AFM3: Średnia z oprocentowanie | AFN3: Średnia z prowizja kred. od Klienta | AFP3: Średnia z oprocentowanie | AFQ3: Średnia z prowizja kred. od Klienta | AFS3: Średnia z oprocentowanie | AFT3: Średnia z prowizja kred. od Klienta | AFV3: Średnia z oprocentowanie | AFW3: Średnia z prowizja kred. od Klienta | AFY3: Średnia z oprocentowanie | AFZ3: Średnia z prowizja kred. od Klienta | AGB3: Średnia z oprocentowanie | AGC3: Średnia z prowizja kred. od Klienta | AGE3: Średnia z oprocentowanie | AGF3: Średnia z prowizja kred. od Klienta | AGH3: Średnia z oprocentowanie | AGI3: Średnia z prowizja kred. od Klienta | AGK3: Średnia z oprocentowanie | AGL3: Średnia z prowizja kred. od Klienta | AGN3: Średnia z oprocentowanie | AGO3: Średnia z prowizja kred. od Klienta | AGQ3: Średnia z oprocentowanie | AGR3: Średnia z prowizja kred. od Klienta | AGT3: Średnia z oprocentowanie | AGU3: Średnia z prowizja kred. od Klienta | AGW3: Średnia z oprocentowanie | AGX3: Średnia z prowizja kred. od Klienta | AGZ3: Średnia z oprocentowanie | AHA3: Średnia z prowizja kred. od Klienta | AHC3: Średnia z oprocentowanie | AHD3: Średnia z prowizja kred. od Klienta | AHF3: Średnia z oprocentowanie | AHG3: Średnia z prowizja kred. od Klienta | AHI3: Średnia z oprocentowanie | AHJ3: Średnia z prowizja kred. od Klienta | AHL3: Średnia z oprocentowanie | AHM3: Średnia z prowizja kred. od Klienta | AHO3: Średnia z oprocentowanie | AHP3: Średnia z prowizja kred. od Klienta | AHR3: Średnia z oprocentowanie | AHS3: Średnia z prowizja kred. od Klienta | AHU3: Średnia z oprocentowanie | AHV3: Średnia z prowizja kred. od Klienta | AHX3: Średnia z oprocentowanie | AHY3: Średnia z prowizja kred. od Klienta | AIA3: Średnia z oprocentowanie | AIB3: Średnia z prowizja kred. od Klienta | AID3: Średnia z oprocentowanie | AIE3: Średnia z prowizja kred. od Klienta | AIG3: Średnia z oprocentowanie | AIH3: Średnia z prowizja kred. od Klienta | AIJ3: Średnia z oprocentowanie | AIK3: Średnia z prowizja kred. od Klienta | AIM3: Średnia z oprocentowanie | AIN3: Średnia z prowizja kred. od Klienta | AIP3: Średnia z oprocentowanie | AIQ3: Średnia z prowizja kred. od Klienta | AIS3: Średnia z oprocentowanie | AIT3: Średnia z prowizja kred. od Klienta | AIV3: Średnia z oprocentowanie | AIW3: Średnia z prowizja kred. od Klienta | AIY3: Średnia z oprocentowanie | AIZ3: Średnia z prowizja kred. od Klienta | AJB3: Średnia z oprocentowanie | AJC3: Średnia z prowizja kred. od Klienta | AJE3: Średnia z oprocentowanie | AJF3: Średnia z prowizja kred. od Klienta | AJH3: Średnia z oprocentowanie | AJI3: Średnia z prowizja kred. od Klienta | AJK3: Średnia z oprocentowanie | AJL3: Średnia z prowizja kred. od Klienta | AJN3: Średnia z oprocentowanie | AJO3: Średnia z prowizja kred. od Klienta | AJQ3: Średnia z oprocentowanie | AJR3: Średnia z prowizja kred. od Klienta | AJT3: Średnia z oprocentowanie | AJU3: Średnia z prowizja kred. od Klienta | AJW3: Średnia z oprocentowanie | AJX3: Średnia z prowizja kred. od Klienta | AJZ3: Średnia z oprocentowanie | AKA3: Średnia z prowizja kred. od Klienta | AKC3: Średnia z oprocentowanie | AKD3: Średnia z prowizja kred. od Klienta | AKF3: Średnia z oprocentowanie | AKG3: Średnia z prowizja kred. od Klienta | AKI3: Średnia z oprocentowanie | AKJ3: Średnia z prowizja kred. od Klienta | AKL3: Średnia z oprocentowanie | AKM3: Średnia z prowizja kred. od Klienta | AKO3: Średnia z oprocentowanie | AKP3: Średnia z prowizja kred. od Klienta | AKR3: Średnia z oprocentowanie | AKS3: Średnia z prowizja kred. od Klienta | AKU3: Średnia z oprocentowanie | AKV3: Średnia z prowizja kred. od Klienta | AKX3: Średnia z oprocentowanie | AKY3: Średnia z prowizja kred. od Klienta | ALA3: Średnia z oprocentowanie | ALB3: Średnia z prowizja kred. od Klienta | ALD3: Średnia z oprocentowanie | ALE3: Średnia z prowizja kred. od Klienta | ALG3: Średnia z oprocentowanie | ALH3: Średnia z prowizja kred. od Klienta | ALJ3: Średnia z oprocentowanie | ALK3: Średnia z prowizja kred. od Klienta | ALM3: Średnia z oprocentowanie | ALN3: Średnia z prowizja kred. od Klienta | ALP3: Średnia z oprocentowanie | ALQ3: Średnia z prowizja kred. od Klienta | ALS3: Średnia z oprocentowanie | ALT3: Średnia z prowizja kred. od Klienta | ALV3: Średnia z oprocentowanie | ALW3: Średnia z prowizja kred. od Klienta | ALY3: Średnia z oprocentowanie | ALZ3: Średnia z prowizja kred. od Klienta | AMB3: Średnia z oprocentowanie | AMC3: Średnia z prowizja kred. od Klienta | AME3: Średnia z oprocentowanie | AMF3: Średnia z prowizja kred. od Klienta | AMH3: Średnia z oprocentowanie | AMI3: Średnia z prowizja kred. od Klienta | AMK3: Średnia z oprocentowanie | AML3: Średnia z prowizja kred. od Klienta | AMN3: Średnia z oprocentowanie | AMO3: Średnia z prowizja kred. od Klienta | AMQ3: Średnia z oprocentowanie | AMR3: Średnia z prowizja kred. od Klienta | AMT3: Średnia z oprocentowanie | AMU3: Średnia z prowizja kred. od Klienta | AMW3: Średnia z oprocentowanie | AMX3: Średnia z prowizja kred. od Klienta | AMZ3: Średnia z oprocentowanie | ANA3: Średnia z prowizja kred. od Klienta | ANC3: Średnia z oprocentowanie | AND3: Średnia z prowizja kred. od Klienta | ANF3: Średnia z oprocentowanie | ANG3: Średnia z prowizja kred. od Klienta | ANI3: Średnia z oprocentowanie | ANJ3: Średnia z prowizja kred. od Klienta | ANL3: Średnia z oprocentowanie | ANM3: Średnia z prowizja kred. od Klienta | ANO3: Średnia z oprocentowanie | ANP3: Średnia z prowizja kred. od Klienta | ANR3: Średnia z oprocentowanie | ANS3: Średnia z prowizja kred. od Klienta | ANU3: Średnia z oprocentowanie | ANV3: Średnia z prowizja kred. od Klienta | ANX3: Średnia z oprocentowanie | ANY3: Średnia z prowizja kred. od Klienta | AOA3: Średnia z oprocentowanie | AOB3: Średnia z prowizja kred. od Klienta | AOD3: Średnia z oprocentowanie | AOE3: Średnia z prowizja kred. od Klienta | AOG3: Średnia z oprocentowanie | AOH3: Średnia z prowizja kred. od Klienta | AOJ3: Średnia z oprocentowanie | AOK3: Średnia z prowizja kred. od Klienta | AOM3: Średnia z oprocentowanie | AON3: Średnia z prowizja kred. od Klienta | AOP3: Średnia z oprocentowanie | AOQ3: Średnia z prowizja kred. od Klienta | AOS3: Średnia z oprocentowanie | AOT3: Średnia z prowizja kred. od Klienta | AOV3: Średnia z oprocentowanie | AOW3: Średnia z prowizja kred. od Klienta | AOY3: Średnia z oprocentowanie | AOZ3: Średnia z prowizja kred. od Klienta | APB3: Średnia z oprocentowanie | APC3: Średnia z prowizja kred. od Klienta | APE3: Średnia z oprocentowanie | APF3: Średnia z prowizja kred. od Klienta | APH3: Średnia z oprocentowanie | API3: Średnia z prowizja kred. od Klienta | APK3: Średnia z oprocentowanie | APL3: Średnia z prowizja kred. od Klienta | APN3: Średnia z oprocentowanie | APO3: Średnia z prowizja kred. od Klienta | APQ3: Średnia z oprocentowanie | APR3: Średnia z prowizja kred. od Klienta | APT3: Średnia z oprocentowanie | APU3: Średnia z prowizja kred. od Klienta | APW3: Średnia z oprocentowanie | APX3: Średnia z prowizja kred. od Klienta | APZ3: Średnia z oprocentowanie | AQA3: Średnia z prowizja kred. od Klienta | AQC3: Średnia z oprocentowanie | AQD3: Średnia z prowizja kred. od Klienta | AQF3: Średnia z oprocentowanie | AQG3: Średnia z prowizja kred. od Klienta | AQI3: Średnia z oprocentowanie | AQJ3: Średnia z prowizja kred. od Klienta | AQL3: Średnia z oprocentowanie | AQM3: Średnia z prowizja kred. od Klienta | AQO3: Średnia z oprocentowanie | AQP3: Średnia z prowizja kred. od Klienta | AQR3: Średnia z oprocentowanie | AQS3: Średnia z prowizja kred. od Klienta | AQU3: Średnia z oprocentowanie | AQV3: Średnia z prowizja kred. od Klienta | AQX3: Średnia z oprocentowanie | AQY3: Średnia z prowizja kred. od Klienta | ARA3: Średnia z oprocentowanie | ARB3: Średnia z prowizja kred. od Klienta | ARD3: Średnia z oprocentowanie | ARE3: Średnia z prowizja kred. od Klienta | ARG3: Średnia z oprocentowanie | ARH3: Średnia z prowizja kred. od Klienta | ARJ3: Średnia z oprocentowanie | ARK3: Średnia z prowizja kred. od Klienta | ARM3: Średnia z oprocentowanie | ARN3: Średnia z prowizja kred. od Klienta | ARP3: Średnia z oprocentowanie | ARQ3: Średnia z prowizja kred. od Klienta | ARS3: Średnia z oprocentowanie | ART3: Średnia z prowizja kred. od Klienta | ARV3: Średnia z oprocentowanie | ARW3: Średnia z prowizja kred. od Klienta | ARY3: Średnia z oprocentowanie | ARZ3: Średnia z prowizja kred. od Klienta | ASB3: Średnia z oprocentowanie | ASC3: Średnia z prowizja kred. od Klienta | ASE3: Średnia z oprocentowanie | ASF3: Średnia z prowizja kred. od Klienta | ASH3: Średnia z oprocentowanie | ASI3: Średnia z prowizja kred. od Klienta | ASK3: Średnia z oprocentowanie | ASL3: Średnia z prowizja kred. od Klienta | ASN3: Średnia z oprocentowanie | ASO3: Średnia z prowizja kred. od Klienta | ASQ3: Średnia z oprocentowanie | ASR3: Średnia z prowizja kred. od Klienta | AST3: Średnia z oprocentowanie | ASU3: Średnia z prowizja kred. od Klienta | ASW3: Średnia z oprocentowanie | ASX3: Średnia z prowizja kred. od Klienta | ASZ3: Średnia z oprocentowanie | ATA3: Średnia z prowizja kred. od Klienta | ATC3: Średnia z oprocentowanie | ATD3: Średnia z prowizja kred. od Klienta | ATF3: Średnia z oprocentowanie | ATG3: Średnia z prowizja kred. od Klienta | ATI3: Średnia z oprocentowanie | ATJ3: Średnia z prowizja kred. od Klienta | ATL3: Średnia z oprocentowanie | ATM3: Średnia z prowizja kred. od Klienta | ATO3: Średnia z oprocentowanie | ATP3: Średnia z prowizja kred. od Klienta | ATR3: Średnia z oprocentowanie | ATS3: Średnia z prowizja kred. od Klienta | ATU3: Średnia z oprocentowanie | ATV3: Średnia z prowizja kred. od Klienta | ATX3: Średnia z oprocentowanie | ATY3: Średnia z prowizja kred. od Klienta | AUA3: Średnia z oprocentowanie | AUB3: Średnia z prowizja kred. od Klienta | AUD3: Średnia z oprocentowanie | AUE3: Średnia z prowizja kred. od Klienta | AUG3: Średnia z oprocentowanie | AUH3: Średnia z prowizja kred. od Klienta | AUJ3: Średnia z oprocentowanie | AUK3: Średnia z prowizja kred. od Klienta | AUM3: Średnia z oprocentowanie | AUN3: Średnia z prowizja kred. od Klienta | AUP3: Średnia z oprocentowanie | AUQ3: Średnia z prowizja kred. od Klienta | AUS3: Średnia z oprocentowanie | AUT3: Średnia z prowizja kred. od Klienta | AUV3: Średnia z oprocentowanie | AUW3: Średnia z prowizja kred. od Klienta | AUY3: Średnia z oprocentowanie | AUZ3: Średnia z prowizja kred. od Klienta | AVB3: Średnia z oprocentowanie | AVC3: Średnia z prowizja kred. od Klienta | AVE3: Średnia z oprocentowanie | AVF3: Średnia z prowizja kred. od Klienta | AVH3: Średnia z oprocentowanie | AVI3: Średnia z prowizja kred. od Klienta | AVK3: Średnia z oprocentowanie | AVL3: Średnia z prowizja kred. od Klienta | AVN3: Średnia z oprocentowanie | AVO3: Średnia z prowizja kred. od Klienta | AVQ3: Średnia z oprocentowanie | AVR3: Średnia z prowizja kred. od Klienta | AVT3: Średnia z oprocentowanie | AVU3: Średnia z prowizja kred. od Klienta | AVW3: Średnia z oprocentowanie | AVX3: Średnia z prowizja kred. od Klienta | AVZ3: Średnia z oprocentowanie | AWA3: Średnia z prowizja kred. od Klienta | AWC3: Średnia z oprocentowanie | AWD3: Średnia z prowizja kred. od Klienta | AWF3: Średnia z oprocentowanie | AWG3: Średnia z prowizja kred. od Klienta | AWI3: Średnia z oprocentowanie | AWJ3: Średnia z prowizja kred. od Klienta | AWL3: Średnia z oprocentowanie | AWM3: Średnia z prowizja kred. od Klienta | AWO3: Średnia z oprocentowanie | AWP3: Średnia z prowizja kred. od Klienta | AWR3: Średnia z oprocentowanie | AWS3: Średnia z prowizja kred. od Klienta | AWU3: Średnia z oprocentowanie | AWV3: Średnia z prowizja kred. od Klienta | AWX3: Średnia z oprocentowanie | AWY3: Średnia z prowizja kred. od Klienta | AXA3: Średnia z oprocentowanie | AXB3: Średnia z prowizja kred. od Klienta | AXD3: Średnia z oprocentowanie | AXE3: Średnia z prowizja kred. od Klienta | AXG3: Średnia z oprocentowanie | AXH3: Średnia z prowizja kred. od Klienta | AXJ3: Średnia z oprocentowanie | AXK3: Średnia z prowizja kred. od Klienta | AXM3: Średnia z oprocentowanie | AXN3: Średnia z prowizja kred. od Klienta | AXP3: Średnia z oprocentowanie | AXQ3: Średnia z prowizja kred. od Klienta | AXS3: Średnia z oprocentowanie | AXT3: Średnia z prowizja kred. od Klienta | AXV3: Średnia z oprocentowanie | AXW3: Średnia z prowizja kred. od Klienta | AXY3: Średnia z oprocentowanie | AXZ3: Średnia z prowizja kred. od Klienta | AYB3: Średnia z oprocentowanie | AYC3: Średnia z prowizja kred. od Klienta | AYE3: Średnia z oprocentowanie | AYF3: Średnia z prowizja kred. od Klienta | AYH3: Średnia z oprocentowanie | AYI3: Średnia z prowizja kred. od Klienta | AYK3: Średnia z oprocentowanie | AYL3: Średnia z prowizja kred. od Klienta | AYN3: Średnia z oprocentowanie | AYO3: Średnia z prowizja kred. od Klienta | AYQ3: Średnia z oprocentowanie | AYR3: Średnia z prowizja kred. od Klienta | AYT3: Średnia z oprocentowanie | AYU3: Średnia z prowizja kred. od Klienta | AYW3: Średnia z oprocentowanie | AYX3: Średnia z prowizja kred. od Klienta | AYZ3: Średnia z oprocentowanie | AZA3: Średnia z prowizja kred. od Klienta | AZC3: Średnia z oprocentowanie | AZD3: Średnia z prowizja kred. od Klienta | AZF3: Średnia z oprocentowanie | AZG3: Średnia z prowizja kred. od Klienta | AZI3: Średnia z oprocentowanie | AZJ3: Średnia z prowizja kred. od Klienta | AZL3: Średnia z oprocentowanie | AZM3: Średnia z prowizja kred. od Klienta | AZO3: Średnia z oprocentowanie | AZP3: Średnia z prowizja kred. od Klienta | AZR3: Średnia z oprocentowanie | AZS3: Średnia z prowizja kred. od Klienta | AZU3: Średnia z oprocentowanie | AZV3: Średnia z prowizja kred. od Klienta | AZX3: Średnia z oprocentowanie | AZY3: Średnia z prowizja kred. od Klienta | BAA3: Średnia z oprocentowanie | BAB3: Średnia z prowizja kred. od Klienta | BAD3: Średnia z oprocentowanie | BAE3: Średnia z prowizja kred. od Klienta | BAG3: Średnia z oprocentowanie | BAH3: Średnia z prowizja kred. od Klienta | BAJ3: Średnia z oprocentowanie | BAK3: Średnia z prowizja kred. od Klienta | BAM3: Średnia z oprocentowanie | BAN3: Średnia z prowizja kred. od Klienta | BAP3: Średnia z oprocentowanie | BAQ3: Średnia z prowizja kred. od Klienta | BAS3: Średnia z oprocentowanie | BAT3: Średnia z prowizja kred. od Klienta | BAV3: Średnia z oprocentowanie | BAW3: Średnia z prowizja kred. od Klienta | BAY3: Średnia z oprocentowanie | BAZ3: Średnia z prowizja kred. od Klienta | BBB3: Średnia z oprocentowanie | BBC3: Średnia z prowizja kred. od Klienta | BBE3: Suma z oprocentowanie | BBF3: Suma z prowizja kred. od Klienta | BBH3: Suma z oprocentowanie | BBI3: Suma z prowizja kred. od Klienta | BBK3: Suma z oprocentowanie | BBL3: Suma z prowizja kred. od Klienta | BBN3: Suma z oprocentowanie | BBO3: Suma z prowizja kred. od Klienta | BBQ3: Suma z oprocentowanie | BBR3: Suma z prowizja kred. od Klienta | BBT3: Suma z oprocentowanie | BBU3: Suma z prowizja kred. od Klienta | BBW3: Suma z oprocentowanie | BBX3: Suma z prowizja kred. od Klienta | BBZ3: Suma z oprocentowanie | BCA3: Suma z prowizja kred. od Klienta | BCC3: Suma z oprocentowanie | BCD3: Suma z prowizja kred. od Klienta | BCF3: Suma z oprocentowanie | BCG3: Suma z prowizja kred. od Klienta | BCI3: Suma z oprocentowanie | BCJ3: Suma z prowizja kred. od Klienta | BCL3: Suma z oprocentowanie | BCM3: Suma z prowizja kred. od Klienta | BCO3: Suma z oprocentowanie | BCP3: Suma z prowizja kred. od Klienta | BCR3: Suma z oprocentowanie | BCS3: Suma z prowizja kred. od Klienta | BCU3: Suma z oprocentowanie | BCV3: Suma z prowizja kred. od Klienta | BCX3: Suma z oprocentowanie | BCY3: Suma z prowizja kred. od Klienta | BDA3: Suma z oprocentowanie | BDB3: Suma z prowizja kred. od Klienta | BDD3: Suma z oprocentowanie | BDE3: Suma z prowizja kred. od Klienta | BDG3: Suma z oprocentowanie | BDH3: Suma z prowizja kred. od Klienta | BDJ3: Suma z oprocentowanie | BDK3: Suma z prowizja kred. od Klienta | BDM3: Suma z oprocentowanie | BDN3: Suma z prowizja kred. od Klienta | BDP3: Suma z oprocentowanie | BDQ3: Suma z prowizja kred. od Klienta | BDS3: Suma z oprocentowanie | BDT3: Suma z prowizja kred. od Klienta | BDV3: Suma z oprocentowanie | BDW3: Suma z prowizja kred. od Klienta | BDY3: Suma z oprocentowanie | BDZ3: Suma z prowizja kred. od Klienta | BEB3: Suma z oprocentowanie | BEC3: Suma z prowizja kred. od Klienta | BEE3: Suma z oprocentowanie | BEF3: Suma z prowizja kred. od Klienta | BEH3: Suma z oprocentowanie | BEI3: Suma z prowizja kred. od Klienta | BEK3: Suma z oprocentowanie | BEL3: Suma z prowizja kred. od Klienta | BEN3: Suma z oprocentowanie | BEO3: Suma z prowizja kred. od Klienta | BEQ3: Suma z oprocentowanie | BER3: Suma z prowizja kred. od Klienta | BET3: Suma z oprocentowanie | BEU3: Suma z prowizja kred. od Klienta | BEW3: Suma z oprocentowanie | BEX3: Suma z prowizja kred. od Klienta | BEZ3: Suma z oprocentowanie | BFA3: Suma z prowizja kred. od Klienta | BFC3: Suma z oprocentowanie | BFD3: Suma z prowizja kred. od Klienta | BFF3: Suma z oprocentowanie | BFG3: Suma z prowizja kred. od Klienta | BFI3: Suma z oprocentowanie | BFJ3: Suma z prowizja kred. od Klienta | BFL3: Suma z oprocentowanie | BFM3: Suma z prowizja kred. od Klienta | BFO3: Suma z oprocentowanie | BFP3: Suma z prowizja kred. od Klienta | BFR3: Suma z oprocentowanie | BFS3: Suma z prowizja kred. od Klienta | BFU3: Suma z oprocentowanie | BFV3: Suma z prowizja kred. od Klienta | BFX3: Suma z oprocentowanie | BFY3: Suma z prowizja kred. od Klienta | BGA3: Suma z oprocentowanie | BGB3: Suma z prowizja kred. od Klienta | BGD3: Suma z oprocentowanie | BGE3: Suma z prowizja kred. od Klienta | BGG3: Suma z oprocentowanie | BGH3: Suma z prowizja kred. od Klienta | BGJ3: Suma z oprocentowanie | BGK3: Suma z prowizja kred. od Klienta | BGM3: Suma z oprocentowanie | BGN3: Suma z prowizja kred. od Klienta | BGP3: Suma z oprocentowanie | BGQ3: Suma z prowizja kred. od Klienta | BGS3: Suma z oprocentowanie | BGT3: Suma z prowizja kred. od Klienta | BGV3: Suma z oprocentowanie | BGW3: Suma z prowizja kred. od Klienta | BGY3: Suma z oprocentowanie | BGZ3: Suma z prowizja kred. od Klienta | BHB3: Suma z oprocentowanie | BHC3: Suma z prowizja kred. od Klienta | BHE3: Suma z oprocentowanie | BHF3: Suma z prowizja kred. od Klienta | BHH3: Suma z oprocentowanie | BHI3: Suma z prowizja kred. od Klienta | BHK3: Suma z oprocentowanie | BHL3: Suma z prowizja kred. od Klienta | BHN3: Suma z oprocentowanie | BHO3: Suma z prowizja kred. od Klienta | BHQ3: Suma z oprocentowanie | BHR3: Suma z prowizja kred. od Klienta | BHT3: Suma z oprocentowanie | BHU3: Suma z prowizja kred. od Klienta | BHW3: Suma z oprocentowanie | BHX3: Suma z prowizja kred. od Klienta | BHZ3: Suma z oprocentowanie | BIA3: Suma z prowizja kred. od Klienta | BIC3: Suma z oprocentowanie | BID3: Suma z prowizja kred. od Klienta | BIF3: Suma z oprocentowanie | BIG3: Suma z prowizja kred. od Klienta | BII3: Suma z oprocentowanie | BIJ3: Suma z prowizja kred. od Klienta | BIL3: Suma z oprocentowanie | BIM3: Suma z prowizja kred. od Klienta | BIO3: Suma z oprocentowanie | BIP3: Suma z prowizja kred. od Klienta | BIR3: Suma z oprocentowanie | BIS3: Suma z prowizja kred. od Klienta | BIU3: Suma z oprocentowanie | BIV3: Suma z prowizja kred. od Klienta | BIX3: Suma z oprocentowanie | BIY3: Suma z prowizja kred. od Klienta | BJA3: Suma z oprocentowanie | BJB3: Suma z prowizja kred. od Klienta | BJD3: Suma z oprocentowanie | BJE3: Suma z prowizja kred. od Klienta | BJG3: Suma z oprocentowanie | BJH3: Suma z prowizja kred. od Klienta | BJJ3: Suma z oprocentowanie | BJK3: Suma z prowizja kred. od Klienta | BJM3: Suma z oprocentowanie | BJN3: Suma z prowizja kred. od Klienta | BJP3: Suma z oprocentowanie | BJQ3: Suma z prowizja kred. od Klienta | BJS3: Suma z oprocentowanie | BJT3: Suma z prowizja kred. od Klienta | BJV3: Suma z oprocentowanie | BJW3: Suma z prowizja kred. od Klienta | BJY3: Suma z oprocentowanie | BJZ3: Suma z prowizja kred. od Klienta | BKB3: Suma z oprocentowanie | BKC3: Suma z prowizja kred. od Klienta | BKE3: Suma z oprocentowanie | BKF3: Suma z prowizja kred. od Klienta | BKH3: Suma z oprocentowanie | BKI3: Suma z prowizja kred. od Klienta | BKK3: Suma z oprocentowanie | BKL3: Suma z prowizja kred. od Klienta | BKN3: Suma z oprocentowanie | BKO3: Suma z prowizja kred. od Klienta | BKQ3: Suma z oprocentowanie | BKR3: Suma z prowizja kred. od Klienta | BKT3: Suma z oprocentowanie | BKU3: Suma z prowizja kred. od Klienta | BKW3: Suma z oprocentowanie | BKX3: Suma z prowizja kred. od Klienta | BKZ3: Suma z oprocentowanie | BLA3: Suma z prowizja kred. od Klienta | BLC3: Suma z oprocentowanie | BLD3: Suma z prowizja kred. od Klienta | BLF3: Suma z oprocentowanie | BLG3: Suma z prowizja kred. od Klienta | BLI3: Suma z oprocentowanie | BLJ3: Suma z prowizja kred. od Klienta | BLL3: Suma z oprocentowanie | BLM3: Suma z prowizja kred. od Klienta | BLO3: Suma z oprocentowanie | BLP3: Suma z prowizja kred. od Klienta | BLR3: Suma z oprocentowanie | BLS3: Suma z prowizja kred. od Klienta | BLU3: Suma z oprocentowanie | BLV3: Suma z prowizja kred. od Klienta | BLX3: Suma z oprocentowanie | BLY3: Suma z prowizja kred. od Klienta | BMA3: Suma z oprocentowanie | BMB3: Suma z prowizja kred. od Klienta | BMD3: Suma z oprocentowanie | BME3: Suma z prowizja kred. od Klienta | BMG3: Suma z oprocentowanie | BMH3: Suma z prowizja kred. od Klienta | BMJ3: Suma z oprocentowanie | BMK3: Suma z prowizja kred. od Klienta | BMM3: Suma z oprocentowanie | BMN3: Suma z prowizja kred. od Klienta | BMP3: Suma z oprocentowanie | BMQ3: Suma z prowizja kred. od Klienta | BMS3: Suma z oprocentowanie | BMT3: Suma z prowizja kred. od Klienta | BMV3: Suma z oprocentowanie | BMW3: Suma z prowizja kred. od Klienta | BMY3: Suma z oprocentowanie | BMZ3: Suma z prowizja kred. od Klienta | BNB3: Suma z oprocentowanie | BNC3: Suma z prowizja kred. od Klienta | BNE3: Suma z oprocentowanie | BNF3: Suma z prowizja kred. od Klienta | BNH3: Suma z oprocentowanie | BNI3: Suma z prowizja kred. od Klienta | BNK3: Suma z oprocentowanie | BNL3: Suma z prowizja kred. od Klienta | BNN3: Suma z oprocentowanie | BNO3: Suma z prowizja kred. od Klienta | BNQ3: Suma z oprocentowanie | BNR3: Suma z prowizja kred. od Klienta | BNT3: Suma z oprocentowanie | BNU3: Suma z prowizja kred. od Klienta | BNW3: Suma z oprocentowanie | BNX3: Suma z prowizja kred. od Klienta | BNZ3: Suma z oprocentowanie | BOA3: Suma z prowizja kred. od Klienta | BOC3: Suma z oprocentowanie | BOD3: Suma z prowizja kred. od Klienta | BOF3: Suma z oprocentowanie | BOG3: Suma z prowizja kred. od Klienta | BOI3: Suma z oprocentowanie | BOJ3: Suma z prowizja kred. od Klienta | BOL3: Suma z oprocentowanie | BOM3: Suma z prowizja kred. od Klienta | BOO3: Suma z oprocentowanie | BOP3: Suma z prowizja kred. od Klienta | BOR3: Suma z oprocentowanie | BOS3: Suma z prowizja kred. od Klienta | BOU3: Suma z oprocentowanie | BOV3: Suma z prowizja kred. od Klienta | BOX3: Suma z oprocentowanie | BOY3: Suma z prowizja kred. od Klienta | BPA3: Suma z oprocentowanie | BPB3: Suma z prowizja kred. od Klienta | BPD3: Suma z oprocentowanie | BPE3: Suma z prowizja kred. od Klienta | BPG3: Suma z oprocentowanie | BPH3: Suma z prowizja kred. od Klienta | BPJ3: Suma z oprocentowanie | BPK3: Suma z prowizja kred. od Klienta | BPM3: Suma z oprocentowanie | BPN3: Suma z prowizja kred. od Klienta | BPP3: Suma z oprocentowanie | BPQ3: Suma z prowizja kred. od Klienta | BPS3: Suma z oprocentowanie | BPT3: Suma z prowizja kred. od Klienta | BPV3: Suma z oprocentowanie | BPW3: Suma z prowizja kred. od Klienta | BPY3: Suma z oprocentowanie | BPZ3: Suma z prowizja kred. od Klienta | BQB3: Suma z oprocentowanie | BQC3: Suma z prowizja kred. od Klienta | BQE3: Suma z oprocentowanie | BQF3: Suma z prowizja kred. od Klienta | BQH3: Suma z oprocentowanie | BQI3: Suma z prowizja kred. od Klienta | BQK3: Suma z oprocentowanie | BQL3: Suma z prowizja kred. od Klienta | BQN3: Suma z oprocentowanie | BQO3: Suma z prowizja kred. od Klienta | BQQ3: Suma z oprocentowanie | BQR3: Suma z prowizja kred. od Klienta | BQT3: Suma z oprocentowanie | BQU3: Suma z prowizja kred. od Klienta | BQW3: Suma z oprocentowanie | BQX3: Suma z prowizja kred. od Klienta | BQZ3: Suma z oprocentowanie | BRA3: Suma z prowizja kred. od Klienta | BRC3: Suma z oprocentowanie | BRD3: Suma z prowizja kred. od Klienta | BRF3: Suma z oprocentowanie | BRG3: Suma z prowizja kred. od Klienta | BRI3: Suma z oprocentowanie | BRJ3: Suma z prowizja kred. od Klienta | BRL3: Suma z oprocentowanie | BRM3: Suma z prowizja kred. od Klienta | BRO3: Suma z oprocentowanie | BRP3: Suma z prowizja kred. od Klienta
A4: 3 | B4: 0 | C4: 0 | E4: 0 | F4: 0 | H4: 0 | I4: 0 | K4: 0 | L4: 0 | N4: 0 | O4: 0 | Q4: 0 | R4: 0 | T4: 0 | U4: 0 | W4: 0 | X4: 0 | Z4: 0 | AA4: 0 | AC4: 0.018 | AD4: 0.0001 | AF4: 0.125 | AG4: 0.0001 | AI4: 0.036 | AJ4: 0.0001 | AL4: 0.1429 | AM4: 0.0001 | AO4: 0.045 | AP4: 0.0001 | AR4: 0.054 | AS4: 0.0001 | AU4: 0.1071 | AV4: 0.0001 | AX4: 0.16 | AY4: 0.0003 | BA4: 0.0623 | BB4: 0.0001 | BD4: 0.0713 | BE4: 0.0001 | BG4: 0.0803 | BH4: 0.0001 | BJ4: 0.0892 | BK4: 0.0001 | BM4: 0.1071 | BN4: 0.0001 | BP4: 0.125 | BQ4: 0.0001 | BS4: 0.0803 | BT4: 0.0001 | BV4: 0.0892 | BW4: 0.0001 | BY4: 0.0892 | BZ4: 0.0001 | CB4: 0.1071 | CC4: 0.0001 | CE4: 0.125 | CF4: 0.0001 | CH4: 0.1429 | CI4: 0.0001 | CK4: 0.0982 | CL4: 0.0001 | CN4: 0.1071 | CO4: 0.0001 | CQ4: 0.1161 | CR4: 0.0001 | CT4: 0.1429 | CU4: 0.0001 | CW4: 0.16 | CX4: 0.0003 | CZ4: 0.125 | DA4: 0.0001 | DC4: 0.1339 | DD4: 0.0001 | DF4: 0.1429 | DG4: 0.0001 | DI4: 0.16 | DJ4: 0.0003 | DL4: 0.1339 | DM4: 0.0001 | DO4: 0.1429 | DP4: 0.0001 | DR4: 0.1429 | DS4: 0.0001 | DU4: 0.1518 | DV4: 0.0001 | DX4: 0.16 | DY4: 0.0003 | EA4: 0.16 | EB4: 0.0032 | ED4: 0.16 | EE4: 0.0003 | EG4: 0.16 | EH4: 0.0003 | EJ4: 0.16 | EK4: 0.0017 | EM4: 0.16 | EN4: 0.0032 | EP4: 0.16 | EQ4: 0.0061 | ES4: 0.16 | ET4: 0.0017 | EV4: 0.16 | EW4: 0.0119 | EY4: 0.16 | EZ4: 0.0207 | FB4: 0.036 | FC4: 0.0001 | FE4: 0.0713 | FF4: 0.0001 | FH4: 0.1071 | FI4: 0.0001 | FK4: 0 | FL4: 0 | FN4: 0.048 | FO4: 0.0001 | FQ4: 0.0556 | FR4: 0.0001 | FT4: 0.0636 | FU4: 0.0001 | FW4: 0.0715 | FX4: 0.0001 | FZ4: 0.0795 | GA4: 0.0001 | GC4: 0.0875 | GD4: 0.0001 | GF4: 0.0955 | GG4: 0.0001 | GI4: 0.1114 | GJ4: 0.0001 | GL4: 0.1273 | GM4: 0.0001 | GO4: 0.1433 | GP4: 0.0001 | GR4: 0.1592 | GS4: 0.0001 | GU4: 0.16 | GV4: 0.0038 | GX4: 0.16 | GY4: 0.0076 | HA4: 0.16 | HB4: 0.0096 | HD4: 0.16 | HE4: 0.0115 | HG4: 0.16 | HH4: 0.0153 | HJ4: 0.16 | HK4: 0.0192 | HM4: 0.16 | HN4: 0.023 | HP4: 0.16 | HQ4: 0.0249 | HS4: 0.16 | HT4: 0.0269 | HV4: 0.16 | HW4: 0.0307 | HY4: 0.16 | HZ4: 0.0384 | IB4: 0 | IC4: 0 | IE4: 0.045 | IF4: 0.0001 | IH4: 0.0522 | II4: 0.0001 | IK4: 0.0597 | IL4: 0.0001 | IN4: 0.0672 | IO4: 0.0001 | IQ4: 0.0747 | IR4: 0.0001 | IT4: 0.0896 | IU4: 0.0001 | IW4: 0.1046 | IX4: 0.0001 | IZ4: 0.1195 | JA4: 0.0001 | JC4: 0.1345 | JD4: 0.0001 | JF4: 0.1494 | JG4: 0.0001 | JI4: 0.16 | JJ4: 0.0015 | JL4: 0.16 | JM4: 0.0063 | JO4: 0.16 | JP4: 0.0086 | JR4: 0.16 | JS4: 0.011 | JU4: 0.16 | JV4: 0.0158 | JX4: 0.16 | JY4: 0.0205 | KA4: 0.16 | KB4: 0.0253 | KD4: 0.16 | KE4: 0.0276 | KG4: 0.16 | KH4: 0.03 | KJ4: 0 | KK4: 0 | KM4: 0.0432 | KN4: 0.0001 | KP4: 0.0502 | KQ4: 0.0001 | KS4: 0.0574 | KT4: 0.0001 | KV4: 0.0646 | KW4: 0.0001 | KY4: 0.0717 | KZ4: 0.0001 | LB4: 0.0789 | LC4: 0.0001 | LE4: 0.0861 | LF4: 0.0001 | LH4: 0.1005 | LI4: 0.0001 | LK4: 0.1149 | LL4: 0.0001 | LN4: 0.1292 | LO4: 0.0001 | LQ4: 0.1436 | LR4: 0.0001 | LT4: 0.1579 | LU4: 0.0001 | LW4: 0.16 | LX4: 0.0049 | LZ4: 0.16 | MA4: 0.0078 | MC4: 0.16 | MD4: 0.0106 | MF4: 0.16 | MG4: 0.0162 | MI4: 0.16 | MJ4: 0.0218 | ML4: 0.16 | MM4: 0.0274 | MO4: 0.16 | MP4: 0.0302 | MR4: 0.16 | MS4: 0.0331 | MU4: 0.16 | MV4: 0.0387 | MX4: 0.16 | MY4: 0.0499 | NA4: 0.042 | NB4: 0.0001 | ND4: 0.0488 | NE4: 0.0001 | NG4: 0.0698 | NH4: 0.0001 | NJ4: 0 | NK4: 0 | NM4: 0.0539 | NN4: 0.0001 | NP4: 0.0674 | NQ4: 0.0001 | NS4: 0.0808 | NT4: 0.0001 | NV4: 0.0943 | NW4: 0.0001 | NY4: 0.1078 | NZ4: 0.0001 | OB4: 0.1213 | OC4: 0.0001 | OE4: 0.1348 | OF4: 0.0001 | OH4: 0.1482 | OI4: 0.0001 | OK4: 0.16 | OL4: 0.0011 | ON4: 0.16 | OO4: 0.0093 | OQ4: 0.16 | OR4: 0.0174 | OT4: 0.16 | OU4: 0.0255 | OW4: 0.16 | OX4: 0.0662 | OZ4: 0.0791 | PA4: 0.0001 | PC4: 0.0923 | PD4: 0.0001 | PF4: 0 | PG4: 0 | PI4: 0.0354 | PJ4: 0.0001 | PL4: 0.05 | PM4: 0 | PO4: 0.16 | PP4: 0.0032 | PR4: 0.0599 | PS4: 0 | PU4: 0.0625 | PV4: 0 | PX4: 0.065 | PY4: 0 | QA4: 0 | QB4: 0.009 | QD4: 0.072 | QE4: 0 | QG4: 0.0471 | QH4: 0.0001 | QJ4: 0.0892 | QK4: 0.0001 | QM4: 0 | QN4: 0 | QP4: 0.0903 | QQ4: 0.0001 | QS4: 0.0892 | QT4: 0.0001 | QV4: 0.0835 | QW4: 0.0001 | QY4: 0.095 | QZ4: 0 | RB4: 0.0947 | RC4: 0.0001 | RE4: 0.1071 | RF4: 0.0001 | RH4: 0.072 | RI4: 0.0055 | RK4: 0.0687 | RL4: 0.0001 | RN4: 0.1071 | RO4: 0.0001 | RQ4: 0.0804 | RR4: 0.0001 | RT4: 0.0768 | RU4: 0.0001 | RW4: 0.1062 | RX4: 0.0001 | RZ4: 0.072 | SA4: 0.0135 | SC4: 0.125 | SD4: 0.0001 | SF4: 0.16 | SG4: 0.066 | SI4: 0.1024 | SJ4: 0.0001 | SL4: 0.0997 | SM4: 0.0001 | SO4: 0.1429 | SP4: 0.0001 | SR4: 0.135 | SS4: 0.0001 | SU4: 0.16 | SV4: 0.0228 | SX4: 0.16 | SY4: 0.0032 | TA4: 0.1172 | TB4: 0.0001 | TD4: 0.16 | TE4: 0.0003 | TG4: 0.16 | TH4: 0.0061 | TJ4: 0.16 | TK4: 0.0295 | TM4: 0.16 | TN4: 0.1428 | TP4: 0.16 | TQ4: 0.0119 | TS4: 0 | TT4: 0 | TV4: 0.16 | TW4: 0.0178 | TY4: 0.16 | TZ4: 0.0207 | UB4: 0.16 | UC4: 0.0266 | UE4: 0.16 | UF4: 0.0295 | UH4: 0.16 | UI4: 0.0353 | UK4: 0.0454 | UL4: 0 | UN4: 0.057 | UO4: 0 | UQ4: 0.0615 | UR4: 0 | UT4: 0 | UU4: 0 | UW4: 0.0755 | UX4: 0.0001 | UZ4: 0.0539 | VA4: 0.0001 | VC4: 0.0699 | VD4: 0 | VF4: 0.16 | VG4: 0.0105 | VI4: 0.1429 | VJ4: 0.0001 | VL4: 0.1273 | VM4: 0.0001 | VO4: 0.16 | VP4: 0.0178 | VR4: 0.0997 | VS4: 0.0001 | VU4: 0.1192 | VV4: 0.0001 | VX4: 0.16 | VY4: 0.135 | WA4: 0.16 | WB4: 0.0003 | WD4: 0.16 | WE4: 0.0003 | WG4: 0.16 | WH4: 0.0061 | WJ4: 0.16 | WK4: 0.0061 | WM4: 0.16 | WN4: 0.0178 | WP4: 0.16 | WQ4: 0.0382 | WS4: 0.16 | WT4: 0.0295 | WV4: 0.16 | WW4: 0.0236 | WY4: 0 | WZ4: 0 | XB4: 0.16 | XC4: 0.009 | XE4: 0.0997 | XF4: 0.0001 | XH4: 0.1071 | XI4: 0.0001 | XK4: 0.125 | XL4: 0 | XN4: 0.1161 | XO4: 0.0001 | XQ4: 0.1192 | XR4: 0.0001 | XT4: 0.1192 | XU4: 0.0001 | XW4: 0 | XX4: 0 | XZ4: 0.16 | YA4: 0.009 | YC4: 0.16 | YD4: 0.0207 | YF4: 0.16 | YG4: 0.0324 | YI4: 0.0675 | YJ4: 0 | YL4: 0.1071 | YM4: 0.0001 | YO4: 0.1005 | YP4: 0.0001 | YR4: 0.1071 | YS4: 0.0001 | YU4: 0.0955 | YV4: 0.0001 | YX4: 0.16 | YY4: 0.0178 | ZA4: 0.16 | ZB4: 0.0207 | ZD4: 0.16 | ZE4: 0.0236 | ZG4: 0.16 | ZH4: 0.0033 | ZJ4: 0.16 | ZK4: 0.009 | ZM4: 0.16 | ZN4: 0.0236 | ZP4: 0.16 | ZQ4: 0.0119 | ZS4: 0.0687 | ZT4: 0.0001 | ZV4: 0.0997 | ZW4: 0.0001 | ZY4: 0.0755 | ZZ4: 0.0001 | AAB4: 0.1429 | AAC4: 0.0001 | AAE4: 0.16 | AAF4: 0.0003 | AAH4: 0.16 | AAI4: 0.0032 | AAK4: 0.16 | AAL4: 0.0266 | AAN4: 0.16 | AAO4: 0.0061 | AAQ4: 0.16 | AAR4: 0.0266 | AAT4: 0.16 | AAU4: 0.0207 | AAW4: 0 | AAX4: 0 | AAZ4: 0.0892 | ABA4: 0.0001 | ABC4: 0 | ABD4: 0 | ABF4: 0 | ABG4: 0 | ABI4: 0 | ABJ4: 0 | ABL4: 0 | ABM4: 0 | ABO4: 0 | ABP4: 0 | ABR4: 0.16 | ABS4: 0.0061 | ABU4: 0.16 | ABV4: 0.0123 | ABX4: 0.16 | ABY4: 0.0236 | ACA4: 0.16 | ACB4: 0.009 | ACD4: 0.1192 | ACE4: 0.0001 | ACG4: 0 | ACH4: 0 | ACJ4: 0.16 | ACK4: 0.0178 | ACM4: 0 | ACN4: 0 | ACP4: 0 | ACQ4: 0 | ACS4: 0.16 | ACT4: 0.0266 | ACV4: 0.16 | ACW4: 0.0236 | ACY4: 0.16 | ACZ4: 0.0119 | ADB4: 0 | ADC4: 0 | ADE4: 0.1294 | ADF4: 0.0001 | ADH4: 0 | ADI4: 0 | ADK4: 0.16 | ADL4: 0.009 | ADN4: 0.125 | ADO4: 0.0001 | ADQ4: 0 | ADR4: 0 | ADT4: 0.1172 | ADU4: 0.0001 | ADW4: 0.1267 | ADX4: 0.0001 | ADZ4: 0.16 | AEA4: 0.0061 | AEC4: 0.0892 | AED4: 0.0001 | AEF4: 0.16 | AEG4: 0.009 | AEI4: 0.0861 | AEJ4: 0.0001 | AEL4: 0.0539 | AEM4: 0.0001 | AEO4: 0.16 | AEP4: 0.0228 | AER4: 0.1442 | AES4: 0.0001 | AEU4: 0.0997 | AEV4: 0.0001 | AEX4: 0.1071 | AEY4: 0.0001 | AFA4: 0 | AFB4: 0 | AFD4: 0.16 | AFE4: 0.052 | AFG4: 0 | AFH4: 0 | AFJ4: 0 | AFK4: 0.03 | AFM4: 0.1322 | AFN4: 0.0001 | AFP4: 0.16 | AFQ4: 0.0616 | AFS4: 0.16 | AFT4: 0.0003 | AFV4: 0.1292 | AFW4: 0.0001 | AFY4: 0.1213 | AFZ4: 0.0001 | AGB4: 0.036 | AGC4: 0.0001 | AGE4: 0.16 | AGF4: 0.0032 | AGH4: 0.16 | AGI4: 0.0061 | AGK4: 0.16 | AGL4: 0.009 | AGN4: 0.16 | AGO4: 0.0032 | AGQ4: 0.16 | AGR4: 0.0119 | AGT4: 0.16 | AGU4: 0.0061 | AGW4: 0.16 | AGX4: 0.0149 | AGZ4: 0.16 | AHA4: 0.009 | AHC4: 0.16 | AHD4: 0.0178 | AHF4: 0.16 | AHG4: 0.0032 | AHI4: 0.16 | AHJ4: 0.0032 | AHL4: 0.16 | AHM4: 0.0061 | AHO4: 0.16 | AHP4: 0.009 | AHR4: 0.16 | AHS4: 0.0119 | AHU4: 0.16 | AHV4: 0.0207 | AHX4: 0.16 | AHY4: 0.0046 | AIA4: 0.16 | AIB4: 0.0061 | AID4: 0.16 | AIE4: 0.0061 | AIG4: 0.16 | AIH4: 0.0076 | AIJ4: 0.16 | AIK4: 0.009 | AIM4: 0.16 | AIN4: 0.0149 | AIP4: 0.16 | AIQ4: 0.0236 | AIS4: 0.16 | AIT4: 0.009 | AIV4: 0.16 | AIW4: 0.009 | AIY4: 0.16 | AIZ4: 0.0178 | AJB4: 0.16 | AJC4: 0.0266 | AJE4: 0.16 | AJF4: 0.0105 | AJH4: 0.16 | AJI4: 0.0119 | AJK4: 0.16 | AJL4: 0.0119 | AJN4: 0.16 | AJO4: 0.0207 | AJQ4: 0.16 | AJR4: 0.0295 | AJT4: 0.16 | AJU4: 0.0149 | AJW4: 0.16 | AJX4: 0.0149 | AJZ4: 0.16 | AKA4: 0.0236 | AKC4: 0.16 | AKD4: 0.0178 | AKF4: 0.16 | AKG4: 0.0178 | AKI4: 0.16 | AKJ4: 0.0266 | AKL4: 0.16 | AKM4: 0.0207 | AKO4: 0.16 | AKP4: 0.0207 | AKR4: 0.16 | AKS4: 0.0295 | AKU4: 0.16 | AKV4: 0.0222 | AKX4: 0.16 | AKY4: 0.0236 | ALA4: 0.16 | ALB4: 0.0236 | ALD4: 0.16 | ALE4: 0.0266 | ALG4: 0.16 | ALH4: 0.0266 | ALJ4: 0.16 | ALK4: 0.0295 | ALM4: 0.16 | ALN4: 0.0295 | ALP4: 0.16 | ALQ4: 0.0324 | ALS4: 0.16 | ALT4: 0.0324 | ALV4: 0.16 | ALW4: 0.0324 | ALY4: 0.16 | ALZ4: 0.0324 | AMB4: 0.16 | AMC4: 0.0327 | AME4: 0.16 | AMF4: 0.0327 | AMH4: 0.16 | AMI4: 0.0353 | AMK4: 0.16 | AML4: 0.0353 | AMN4: 0.16 | AMO4: 0.0382 | AMQ4: 0.16 | AMR4: 0.0382 | AMT4: 0.16 | AMU4: 0.0412 | AMW4: 0.16 | AMX4: 0.0412 | AMZ4: 0.16 | ANA4: 0.0441 | ANC4: 0.16 | AND4: 0.0441 | ANF4: 0.16 | ANG4: 0.047 | ANI4: 0.16 | ANJ4: 0.047 | ANL4: 0.16 | ANM4: 0.0499 | ANO4: 0.16 | ANP4: 0.0558 | ANR4: 0 | ANS4: 0 | ANU4: 0 | ANV4: 0 | ANX4: 0 | ANY4: 0 | AOA4: 0 | AOB4: 0 | AOD4: 0.0548 | AOE4: 0 | AOG4: 0.0487 | AOH4: 0 | AOJ4: 0.0457 | AOK4: 0 | AOM4: 0.0438 | AON4: 0 | AOP4: 0.0411 | AOQ4: 0 | AOS4: 0 | AOT4: 0 | AOV4: 0 | AOW4: 0 | AOY4: 0 | AOZ4: 0 | APB4: 0 | APC4: 0 | APE4: 0.057 | APF4: 0 | APH4: 0.057 | API4: 0 | APK4: 0.057 | APL4: 0 | APN4: 0.057 | APO4: 0 | APQ4: 0.057 | APR4: 0 | APT4: 0.0629 | APU4: 0 | APW4: 0.056 | APX4: 0 | APZ4: 0.0525 | AQA4: 0 | AQC4: 0.0504 | AQD4: 0 | AQF4: 0.0473 | AQG4: 0 | AQI4: 0.0629 | AQJ4: 0 | AQL4: 0.056 | AQM4: 0 | AQO4: 0.0525 | AQP4: 0 | AQR4: 0.0504 | AQS4: 0 | AQU4: 0.0473 | AQV4: 0 | AQX4: 0.0615 | AQY4: 0 | ARA4: 0.0615 | ARB4: 0 | ARD4: 0.0615 | ARE4: 0 | ARG4: 0.0615 | ARH4: 0 | ARJ4: 0.0615 | ARK4: 0 | ARM4: 0.0599 | ARN4: 0 | ARP4: 0.0599 | ARQ4: 0 | ARS4: 0.0599 | ART4: 0 | ARV4: 0.0599 | ARW4: 0 | ARY4: 0.0599 | ARZ4: 0 | ASB4: 0.0368 | ASC4: 0 | ASE4: 0.0659 | ASF4: 0 | ASH4: 0.0588 | ASI4: 0 | ASK4: 0.0552 | ASL4: 0 | ASN4: 0.0531 | ASO4: 0 | ASQ4: 0.072 | ASR4: 0 | AST4: 0.072 | ASU4: 0 | ASW4: 0.072 | ASX4: 0 | ASZ4: 0.072 | ATA4: 0 | ATC4: 0.072 | ATD4: 0 | ATF4: 0.072 | ATG4: 0 | ATI4: 0 | ATJ4: 0 | ATL4: 0 | ATM4: 0 | ATO4: 0 | ATP4: 0 | ATR4: 0 | ATS4: 0 | ATU4: 0 | ATV4: 0 | ATX4: 0 | ATY4: 0 | AUA4: 0 | AUB4: 0 | AUD4: 0 | AUE4: 0 | AUG4: 0 | AUH4: 0 | AUJ4: 0 | AUK4: 0 | AUM4: 0 | AUN4: 0 | AUP4: 0 | AUQ4: 0 | AUS4: 0 | AUT4: 0 | AUV4: 0 | AUW4: 0 | AUY4: 0 | AUZ4: 0 | AVB4: 0 | AVC4: 0 | AVE4: 0 | AVF4: 0 | AVH4: 0 | AVI4: 0 | AVK4: 0 | AVL4: 0 | AVN4: 0 | AVO4: 0 | AVQ4: 0 | AVR4: 0 | AVT4: 0 | AVU4: 0 | AVW4: 0 | AVX4: 0 | AVZ4: 0 | AWA4: 0 | AWC4: 0 | AWD4: 0 | AWF4: 0 | AWG4: 0 | AWI4: 0 | AWJ4: 0 | AWL4: 0 | AWM4: 0 | AWO4: 0 | AWP4: 0 | AWR4: 0 | AWS4: 0 | AWU4: 0 | AWV4: 0 | AWX4: 0 | AWY4: 0 | AXA4: 0 | AXB4: 0 | AXD4: 0 | AXE4: 0 | AXG4: 0 | AXH4: 0 | AXJ4: 0 | AXK4: 0 | AXM4: 0 | AXN4: 0 | AXP4: 0 | AXQ4: 0 | AXS4: 0 | AXT4: 0 | AXV4: 0 | AXW4: 0 | AXY4: 0 | AXZ4: 0 | AYB4: 0 | AYC4: 0 | AYE4: 0 | AYF4: 0 | AYH4: 0 | AYI4: 0 | AYK4: 0 | AYL4: 0 | AYN4: 0 | AYO4: 0 | AYQ4: 0 | AYR4: 0 | AYT4: 0.0174 | AYU4: 0.0001 | AYW4: 0 | AYX4: 0 | AYZ4: 0 | AZA4: 0 | AZC4: 0 | AZD4: 0 | AZF4: 0 | AZG4: 0 | AZI4: 0 | AZJ4: 0 | AZL4: 0 | AZM4: 0 | AZO4: 0 | AZP4: 0 | AZR4: 0 | AZS4: 0 | AZU4: 0 | AZV4: 0 | AZX4: 0 | AZY4: 0 | BAA4: 0 | BAB4: 0 | BAD4: 0 | BAE4: 0 | BAG4: 0 | BAH4: 0 | BAJ4: 0 | BAK4: 0 | BAM4: 0 | BAN4: 0 | BAP4: 0 | BAQ4: 0 | BAS4: 0 | BAT4: 0 | BAV4: 0 | BAW4: 0 | BAY4: 0 | BAZ4: 0 | BBB4: 0 | BBC4: 0 | BBE4: 0 | BBF4: 0 | BBH4: 0 | BBI4: 0 | BBK4: 0 | BBL4: 0 | BBN4: 0 | BBO4: 0 | BBQ4: 0 | BBR4: 0 | BBT4: 0 | BBU4: 0 | BBW4: 0 | BBX4: 0 | BBZ4: 0 | BCA4: 0 | BCC4: 0 | BCD4: 0 | BCF4: 0 | BCG4: 0 | BCI4: 0 | BCJ4: 0 | BCL4: 0 | BCM4: 0 | BCO4: 0 | BCP4: 0 | BCR4: 0 | BCS4: 0 | BCU4: 0 | BCV4: 0 | BCX4: 0 | BCY4: 0 | BDA4: 0 | BDB4: 0 | BDD4: 0 | BDE4: 0 | BDG4: 0 | BDH4: 0 | BDJ4: 0 | BDK4: 0 | BDM4: 0 | BDN4: 0 | BDP4: 0 | BDQ4: 0 | BDS4: 0 | BDT4: 0 | BDV4: 0 | BDW4: 0 | BDY4: 0 | BDZ4: 0 | BEB4: 0 | BEC4: 0 | BEE4: 0 | BEF4: 0 | BEH4: 0 | BEI4: 0 | BEK4: 0 | BEL4: 0 | BEN4: 0 | BEO4: 0 | BEQ4: 0 | BER4: 0 | BET4: 0 | BEU4: 0 | BEW4: 0 | BEX4: 0 | BEZ4: 0 | BFA4: 0 | BFC4: 0 | BFD4: 0 | BFF4: 0 | BFG4: 0 | BFI4: 0 | BFJ4: 0 | BFL4: 0 | BFM4: 0 | BFO4: 0 | BFP4: 0 | BFR4: 0 | BFS4: 0 | BFU4: 0 | BFV4: 0 | BFX4: 0 | BFY4: 0 | BGA4: 0.0795 | BGB4: 0.0001 | BGD4: 0.0534 | BGE4: 0.0001 | BGG4: 0.0588 | BGH4: 0.0001 | BGJ4: 0.0588 | BGK4: 0.0001 | BGM4: 0.0534 | BGN4: 0.0001 | BGP4: 0.0713 | BGQ4: 0.0001 | BGS4: 0.0713 | BGT4: 0.0001 | BGV4: 0.0892 | BGW4: 0.0001 | BGY4: 0.0795 | BGZ4: 0.0001 | BHB4: 0.0717 | BHC4: 0.0001 | BHE4: 0.0892 | BHF4: 0.0001 | BHH4: 0.1071 | BHI4: 0.0001 | BHK4: 0.125 | BHL4: 0.0001 | BHN4: 0.1114 | BHO4: 0.0001 | BHQ4: 0.1005 | BHR4: 0.0001 | BHT4: 0.0943 | BHU4: 0.0001 | BHW4: 0.1429 | BHX4: 0.0001 | BHZ4: 0.16 | BIA4: 0.0003 | BIC4: 0.1433 | BID4: 0.0001 | BIF4: 0.1292 | BIG4: 0.0001 | BII4: 0.1213 | BIJ4: 0.0001 | BIL4: 0.1161 | BIM4: 0.0001 | BIO4: 0 | BIP4: 0 | BIR4: 0 | BIS4: 0 | BIU4: 0 | BIV4: 0 | BIX4: 0 | BIY4: 0 | BJA4: 0 | BJB4: 0 | BJD4: 0 | BJE4: 0 | BJG4: 0 | BJH4: 0 | BJJ4: 0 | BJK4: 0 | BJM4: 0.0699 | BJN4: 0.16 | BJP4: 0 | BJQ4: 0 | BJS4: 0 | BJT4: 0 | BJV4: 0 | BJW4: 0 | BJY4: 0 | BJZ4: 0 | BKB4: 0 | BKC4: 0 | BKE4: 0 | BKF4: 0 | BKH4: 0 | BKI4: 0 | BKK4: 0 | BKL4: 0 | BKN4: 0 | BKO4: 0 | BKQ4: 0 | BKR4: 0 | BKT4: 0 | BKU4: 0 | BKW4: 0 | BKX4: 0 | BKZ4: 0 | BLA4: 0 | BLC4: 0 | BLD4: 0 | BLF4: 0 | BLG4: 0 | BLI4: 0 | BLJ4: 0 | BLL4: 0 | BLM4: 0 | BLO4: 0 | BLP4: 0 | BLR4: 0 | BLS4: 0 | BLU4: 0.0699 | BLV4: 0.0093 | BLX4: 0.0699 | BLY4: 0.0093 | BMA4: 0.0699 | BMB4: 0.0152 | BMD4: 0.0699 | BME4: 0.0152 | BMG4: 0 | BMH4: 0 | BMJ4: 0.0699 | BMK4: 0.0033 | BMM4: 0.0699 | BMN4: 0.0063 | BMP4: 0.0699 | BMQ4: 0.0063 | BMS4: 0.0699 | BMT4: 0.0093 | BMV4: 0.0699 | BMW4: 0.0093 | BMY4: 0.0699 | BMZ4: 0.0122 | BNB4: 0.0699 | BNC4: 0.0122 | BNE4: 0.0699 | BNF4: 0.0184 | BNH4: 0.0699 | BNI4: 0.0184 | BNK4: 0.0699 | BNL4: 0.0152 | BNN4: 0.0699 | BNO4: 0.0152 | BNQ4: 0.0699 | BNR4: 0.0222 | BNT4: 0.0699 | BNU4: 0.0222 | BNW4: 0.0699 | BNX4: 0.03 | BNZ4: 0.0699 | BOA4: 0.03 | BOC4: 0.0699 | BOD4: 0.0182 | BOF4: 0.0699 | BOG4: 0.0182 | BOI4: 0.0699 | BOJ4: 0.0211 | BOL4: 0.0699 | BOM4: 0.0211 | BOO4: 0.0699 | BOP4: 0.0241 | BOR4: 0.0699 | BOS4: 0.0241 | BOU4: 0.0699 | BOV4: 0.0417 | BOX4: 0.0699 | BOY4: 0.0271 | BPA4: 0.0699 | BPB4: 0.0271 | BPD4: 0.0699 | BPE4: 0.034 | BPG4: 0.0699 | BPH4: 0.0408 | BPJ4: 0.0699 | BPK4: 0.0475 | BPM4: 0.0699 | BPN4: 0.03 | BPP4: 0.0699 | BPQ4: 0.03 | BPS4: 0.0699 | BPT4: 0.0533 | BPV4: 0.0699 | BPW4: 0.033 | BPY4: 0.0699 | BPZ4: 0.033 | BQB4: 0.0699 | BQC4: 0.036 | BQE4: 0.0699 | BQF4: 0.036 | BQH4: 0.0699 | BQI4: 0.0389 | BQK4: 0.0699 | BQL4: 0.0389 | BQN4: 0.0699 | BQO4: 0.0419 | BQQ4: 0.0699 | BQR4: 0.0419 | BQT4: 0.0699 | BQU4: 0.0449 | BQW4: 0.0699 | BQX4: 0.0449 | BQZ4: 0.0699 | BRA4: 0.0478 | BRC4: 0.0699 | BRD4: 0.0478 | BRF4: 0.0699 | BRG4: 0.0538 | BRI4: 0.0699 | BRJ4: 0.0626 | BRL4: 0.0699 | BRM4: 0.0715 | BRO4: 0 | BRP4: 0
A5: 4 | B5: 0 | C5: 0 | E5: 0 | F5: 0 | H5: 0 | I5: 0 | K5: 0 | L5: 0 | N5: 0 | O5: 0 | Q5: 0 | R5: 0 | T5: 0 | U5: 0 | W5: 0 | X5: 0 | Z5: 0 | AA5: 0 | AC5: 0.0192 | AD5: 0.0001 | AF5: 0.1332 | AG5: 0.0001 | AI5: 0.0384 | AJ5: 0.0001 | AL5: 0.1522 | AM5: 0.0001 | AO5: 0.048 | AP5: 0.0001 | AR5: 0.0575 | AS5: 0.0001 | AU5: 0.1142 | AV5: 0.0001 | AX5: 0.16 | AY5: 0.0024 | BA5: 0.0666 | BB5: 0.0001 | BD5: 0.0761 | BE5: 0.0001 | BG5: 0.0857 | BH5: 0.0001 | BJ5: 0.0952 | BK5: 0.0001 | BM5: 0.1142 | BN5: 0.0001 | BP5: 0.1332 | BQ5: 0.0001 | BS5: 0.0857 | BT5: 0.0001 | BV5: 0.0952 | BW5: 0.0001 | BY5: 0.0952 | BZ5: 0.0001 | CB5: 0.1142 | CC5: 0.0001 | CE5: 0.1332 | CF5: 0.0001 | CH5: 0.1522 | CI5: 0.0001 | CK5: 0.1047 | CL5: 0.0001 | CN5: 0.1142 | CO5: 0.0001 | CQ5: 0.1237 | CR5: 0.0001 | CT5: 0.1522 | CU5: 0.0001 | CW5: 0.16 | CX5: 0.0024 | CZ5: 0.1332 | DA5: 0.0001 | DC5: 0.1427 | DD5: 0.0001 | DF5: 0.1522 | DG5: 0.0001 | DI5: 0.16 | DJ5: 0.0024 | DL5: 0.1427 | DM5: 0.0001 | DO5: 0.1522 | DP5: 0.0001 | DR5: 0.1522 | DS5: 0.0001 | DU5: 0.16 | DV5: 0.0005 | DX5: 0.16 | DY5: 0.0024 | EA5: 0.16 | EB5: 0.0063 | ED5: 0.16 | EE5: 0.0024 | EG5: 0.16 | EH5: 0.0024 | EJ5: 0.16 | EK5: 0.0044 | EM5: 0.16 | EN5: 0.0063 | EP5: 0.16 | EQ5: 0.0102 | ES5: 0.16 | ET5: 0.0044 | EV5: 0.16 | EW5: 0.0179 | EY5: 0.16 | EZ5: 0.0295 | FB5: 0.0384 | FC5: 0.0001 | FE5: 0.0761 | FF5: 0.0001 | FH5: 0.1142 | FI5: 0.0001 | FK5: 0 | FL5: 0 | FN5: 0.0514 | FO5: 0.0001 | FQ5: 0.0596 | FR5: 0.0001 | FT5: 0.0681 | FU5: 0.0001 | FW5: 0.0767 | FX5: 0.0001 | FZ5: 0.0852 | GA5: 0.0001 | GC5: 0.0937 | GD5: 0.0001 | GF5: 0.1022 | GG5: 0.0001 | GI5: 0.1193 | GJ5: 0.0001 | GL5: 0.1363 | GM5: 0.0001 | GO5: 0.1533 | GP5: 0.0001 | GR5: 0.16 | GS5: 0.003 | GU5: 0.16 | GV5: 0.0078 | GX5: 0.16 | GY5: 0.0126 | HA5: 0.16 | HB5: 0.015 | HD5: 0.16 | HE5: 0.0174 | HG5: 0.16 | HH5: 0.0221 | HJ5: 0.16 | HK5: 0.0269 | HM5: 0.16 | HN5: 0.0317 | HP5: 0.16 | HQ5: 0.0341 | HS5: 0.16 | HT5: 0.0365 | HV5: 0.16 | HW5: 0.0412 | HY5: 0.16 | HZ5: 0.0508 | IB5: 0 | IC5: 0 | IE5: 0.048 | IF5: 0.0001 | IH5: 0.0557 | II5: 0.0001 | IK5: 0.0637 | IL5: 0.0001 | IN5: 0.0717 | IO5: 0.0001 | IQ5: 0.0796 | IR5: 0.0001 | IT5: 0.0956 | IU5: 0.0001 | IW5: 0.1115 | IX5: 0.0001 | IZ5: 0.1274 | JA5: 0.0001 | JC5: 0.1433 | JD5: 0.0001 | JF5: 0.1592 | JG5: 0.0001 | JI5: 0.16 | JJ5: 0.0055 | JL5: 0.16 | JM5: 0.0112 | JO5: 0.16 | JP5: 0.014 | JR5: 0.16 | JS5: 0.0168 | JU5: 0.16 | JV5: 0.0225 | JX5: 0.16 | JY5: 0.0281 | KA5: 0.16 | KB5: 0.0338 | KD5: 0.16 | KE5: 0.0366 | KG5: 0.16 | KH5: 0.0395 | KJ5: 0 | KK5: 0 | KM5: 0.0458 | KN5: 0.0001 | KP5: 0.0532 | KQ5: 0.0001 | KS5: 0.0608 | KT5: 0.0001 | KV5: 0.0685 | KW5: 0.0001 | KY5: 0.0761 | KZ5: 0.0001 | LB5: 0.0837 | LC5: 0.0001 | LE5: 0.0913 | LF5: 0.0001 | LH5: 0.1065 | LI5: 0.0001 | LK5: 0.1217 | LL5: 0.0001 | LN5: 0.1369 | LO5: 0.0001 | LQ5: 0.1521 | LR5: 0.0001 | LT5: 0.16 | LU5: 0.0033 | LW5: 0.16 | LX5: 0.0098 | LZ5: 0.16 | MA5: 0.013 | MC5: 0.16 | MD5: 0.0163 | MF5: 0.16 | MG5: 0.0228 | MI5: 0.16 | MJ5: 0.0293 | ML5: 0.16 | MM5: 0.0359 | MO5: 0.16 | MP5: 0.0391 | MR5: 0.16 | MS5: 0.0424 | MU5: 0.16 | MV5: 0.0489 | MX5: 0.16 | MY5: 0.0619 | NA5: 0.0443 | NB5: 0.0001 | ND5: 0.0515 | NE5: 0.0001 | NG5: 0.0736 | NH5: 0.0001 | NJ5: 0 | NK5: 0 | NM5: 0.0563 | NN5: 0.0001 | NP5: 0.0704 | NQ5: 0.0001 | NS5: 0.0845 | NT5: 0.0001 | NV5: 0.0986 | NW5: 0.0001 | NY5: 0.1127 | NZ5: 0.0001 | OB5: 0.1268 | OC5: 0.0001 | OE5: 0.1408 | OF5: 0.0001 | OH5: 0.1549 | OI5: 0.0001 | OK5: 0.16 | OL5: 0.0058 | ON5: 0.16 | OO5: 0.0148 | OQ5: 0.16 | OR5: 0.0238 | OT5: 0.16 | OU5: 0.0328 | OW5: 0.16 | OX5: 0.0777 | OZ5: 0.0821 | PA5: 0.0001 | PC5: 0.0958 | PD5: 0.0001 | PF5: 0 | PG5: 0 | PI5: 0.0379 | PJ5: 0.0001 | PL5: 0.05 | PM5: 0 | PO5: 0.16 | PP5: 0.0063 | PR5: 0.0599 | PS5: 0 | PU5: 0.0625 | PV5: 0 | PX5: 0.065 | PY5: 0 | QA5: 0 | QB5: 0.012 | QD5: 0.072 | QE5: 0 | QG5: 0.0465 | QH5: 0.0001 | QJ5: 0.0952 | QK5: 0.0001 | QM5: 0 | QN5: 0 | QP5: 0.0845 | QQ5: 0.0001 | QS5: 0.0952 | QT5: 0.0001 | QV5: 0.0831 | QW5: 0.0001 | QY5: 0.095 | QZ5: 0 | RB5: 0.0943 | RC5: 0.0001 | RE5: 0.1142 | RF5: 0.0001 | RH5: 0.072 | RI5: 0.006 | RK5: 0.0704 | RL5: 0.0001 | RN5: 0.1142 | RO5: 0.0001 | RQ5: 0.0852 | RR5: 0.0001 | RT5: 0.0789 | RU5: 0.0001 | RW5: 0.105 | RX5: 0.0001 | RZ5: 0.072 | SA5: 0.015 | SC5: 0.1332 | SD5: 0.0001 | SF5: 0.16 | SG5: 0.0624 | SI5: 0.1042 | SJ5: 0.0001 | SL5: 0.1014 | SM5: 0.0001 | SO5: 0.1522 | SP5: 0.0001 | SR5: 0.1445 | SS5: 0.0001 | SU5: 0.16 | SV5: 0.016 | SX5: 0.16 | SY5: 0.0063 | TA5: 0.1296 | TB5: 0.0001 | TD5: 0.16 | TE5: 0.0024 | TG5: 0.16 | TH5: 0.0102 | TJ5: 0.16 | TK5: 0.0372 | TM5: 0.16 | TN5: 0.1437 | TP5: 0.16 | TQ5: 0.0179 | TS5: 0 | TT5: 0 | TV5: 0.16 | TW5: 0.0256 | TY5: 0.16 | TZ5: 0.0295 | UB5: 0.16 | UC5: 0.0372 | UE5: 0.16 | UF5: 0.0411 | UH5: 0.16 | UI5: 0.0489 | UK5: 0.0454 | UL5: 0 | UN5: 0.057 | UO5: 0 | UQ5: 0.0615 | UR5: 0 | UT5: 0 | UU5: 0 | UW5: 0.0747 | UX5: 0.0001 | UZ5: 0.0563 | VA5: 0.0001 | VC5: 0.0699 | VD5: 0 | VF5: 0.16 | VG5: 0.0121 | VI5: 0.1522 | VJ5: 0.0001 | VL5: 0.1363 | VM5: 0.0001 | VO5: 0.16 | VP5: 0.0218 | VR5: 0.1 | VS5: 0.0001 | VU5: 0.108 | VV5: 0.0001 | VX5: 0.16 | VY5: 0.1309 | WA5: 0.16 | WB5: 0.0024 | WD5: 0.16 | WE5: 0.0024 | WG5: 0.16 | WH5: 0.0102 | WJ5: 0.16 | WK5: 0.0102 | WM5: 0.16 | WN5: 0.0256 | WP5: 0.16 | WQ5: 0.0527 | WS5: 0.16 | WT5: 0.0411 | WV5: 0.16 | WW5: 0.0334 | WY5: 0 | WZ5: 0 | XB5: 0.16 | XC5: 0.014 | XE5: 0.1 | XF5: 0.0001 | XH5: 0.1142 | XI5: 0.0001 | XK5: 0.125 | XL5: 0 | XN5: 0.1237 | XO5: 0.0001 | XQ5: 0.108 | XR5: 0.0001 | XT5: 0.1263 | XU5: 0.0001 | XW5: 0 | XX5: 0 | XZ5: 0.16 | YA5: 0.014 | YC5: 0.16 | YD5: 0.0295 | YF5: 0.16 | YG5: 0.0411 | YI5: 0.0675 | YJ5: 0 | YL5: 0.1142 | YM5: 0.0001 | YO5: 0.1004 | YP5: 0.0001 | YR5: 0.1142 | YS5: 0.0001 | YU5: 0.1022 | YV5: 0.0001 | YX5: 0.16 | YY5: 0.0218 | ZA5: 0.16 | ZB5: 0.0256 | ZD5: 0.16 | ZE5: 0.0295 | ZG5: 0.1521 | ZH5: 0.0001 | ZJ5: 0.16 | ZK5: 0.014 | ZM5: 0.16 | ZN5: 0.0334 | ZP5: 0.16 | ZQ5: 0.0179 | ZS5: 0.0704 | ZT5: 0.0001 | ZV5: 0.1 | ZW5: 0.0001 | ZY5: 0.0718 | ZZ5: 0.0001 | AAB5: 0.1522 | AAC5: 0.0001 | AAE5: 0.16 | AAF5: 0.0024 | AAH5: 0.16 | AAI5: 0.0063 | AAK5: 0.16 | AAL5: 0.0334 | AAN5: 0.16 | AAO5: 0.0102 | AAQ5: 0.16 | AAR5: 0.0372 | AAT5: 0.16 | AAU5: 0.0295 | AAW5: 0 | AAX5: 0 | AAZ5: 0.0952 | ABA5: 0.0001 | ABC5: 0 | ABD5: 0 | ABF5: 0 | ABG5: 0 | ABI5: 0 | ABJ5: 0 | ABL5: 0 | ABM5: 0 | ABO5: 0 | ABP5: 0 | ABR5: 0.16 | ABS5: 0.0102 | ABU5: 0.16 | ABV5: 0.0059 | ABX5: 0.16 | ABY5: 0.0334 | ACA5: 0.16 | ACB5: 0.014 | ACD5: 0.108 | ACE5: 0.0001 | ACG5: 0 | ACH5: 0 | ACJ5: 0.16 | ACK5: 0.0256 | ACM5: 0 | ACN5: 0 | ACP5: 0 | ACQ5: 0 | ACS5: 0.16 | ACT5: 0.0334 | ACV5: 0.16 | ACW5: 0.0334 | ACY5: 0.16 | ACZ5: 0.014 | ADB5: 0 | ADC5: 0 | ADE5: 0.1338 | ADF5: 0.0001 | ADH5: 0 | ADI5: 0 | ADK5: 0.16 | ADL5: 0.014 | ADN5: 0.1332 | ADO5: 0.0001 | ADQ5: 0 | ADR5: 0 | ADT5: 0.1296 | ADU5: 0.0001 | ADW5: 0.1352 | ADX5: 0.0001 | ADZ5: 0.16 | AEA5: 0.0102 | AEC5: 0.0952 | AED5: 0.0001 | AEF5: 0.16 | AEG5: 0.014 | AEI5: 0.105 | AEJ5: 0.0001 | AEL5: 0.0676 | AEM5: 0.0001 | AEO5: 0.16 | AEP5: 0.016 | AER5: 0.1563 | AES5: 0.0001 | AEU5: 0.1 | AEV5: 0.0001 | AEX5: 0.1142 | AEY5: 0.0001 | AFA5: 0 | AFB5: 0 | AFD5: 0.16 | AFE5: 0.045 | AFG5: 0 | AFH5: 0 | AFJ5: 0 | AFK5: 0.04 | AFM5: 0.1351 | AFN5: 0.0001 | AFP5: 0.16 | AFQ5: 0.0837 | AFS5: 0.16 | AFT5: 0.0024 | AFV5: 0.1369 | AFW5: 0.0001 | AFY5: 0.1268 | AFZ5: 0.0001 | AGB5: 0.0384 | AGC5: 0.0001 | AGE5: 0.16 | AGF5: 0.0063 | AGH5: 0.16 | AGI5: 0.0102 | AGK5: 0.16 | AGL5: 0.014 | AGN5: 0.16 | AGO5: 0.0063 | AGQ5: 0.16 | AGR5: 0.0179 | AGT5: 0.16 | AGU5: 0.0102 | AGW5: 0.16 | AGX5: 0.0218 | AGZ5: 0.16 | AHA5: 0.014 | AHC5: 0.16 | AHD5: 0.0256 | AHF5: 0.16 | AHG5: 0.0063 | AHI5: 0.16 | AHJ5: 0.0063 | AHL5: 0.16 | AHM5: 0.0102 | AHO5: 0.16 | AHP5: 0.014 | AHR5: 0.16 | AHS5: 0.0179 | AHU5: 0.16 | AHV5: 0.0295 | AHX5: 0.16 | AHY5: 0.0082 | AIA5: 0.16 | AIB5: 0.0102 | AID5: 0.16 | AIE5: 0.0102 | AIG5: 0.16 | AIH5: 0.0121 | AIJ5: 0.16 | AIK5: 0.014 | AIM5: 0.16 | AIN5: 0.0218 | AIP5: 0.16 | AIQ5: 0.0334 | AIS5: 0.16 | AIT5: 0.014 | AIV5: 0.16 | AIW5: 0.014 | AIY5: 0.16 | AIZ5: 0.0256 | AJB5: 0.16 | AJC5: 0.0372 | AJE5: 0.16 | AJF5: 0.016 | AJH5: 0.16 | AJI5: 0.0179 | AJK5: 0.16 | AJL5: 0.0179 | AJN5: 0.16 | AJO5: 0.0295 | AJQ5: 0.16 | AJR5: 0.0411 | AJT5: 0.16 | AJU5: 0.0218 | AJW5: 0.16 | AJX5: 0.0218 | AJZ5: 0.16 | AKA5: 0.0334 | AKC5: 0.16 | AKD5: 0.0256 | AKF5: 0.16 | AKG5: 0.0256 | AKI5: 0.16 | AKJ5: 0.0372 | AKL5: 0.16 | AKM5: 0.0295 | AKO5: 0.16 | AKP5: 0.0295 | AKR5: 0.16 | AKS5: 0.0411 | AKU5: 0.16 | AKV5: 0.0314 | AKX5: 0.16 | AKY5: 0.0334 | ALA5: 0.16 | ALB5: 0.0334 | ALD5: 0.16 | ALE5: 0.0372 | ALG5: 0.16 | ALH5: 0.0372 | ALJ5: 0.16 | ALK5: 0.0411 | ALM5: 0.16 | ALN5: 0.0411 | ALP5: 0.16 | ALQ5: 0.045 | ALS5: 0.16 | ALT5: 0.045 | ALV5: 0.16 | ALW5: 0.045 | ALY5: 0.16 | ALZ5: 0.045 | AMB5: 0.16 | AMC5: 0.0454 | AME5: 0.16 | AMF5: 0.0454 | AMH5: 0.16 | AMI5: 0.0489 | AMK5: 0.16 | AML5: 0.0489 | AMN5: 0.16 | AMO5: 0.0527 | AMQ5: 0.16 | AMR5: 0.0527 | AMT5: 0.16 | AMU5: 0.0566 | AMW5: 0.16 | AMX5: 0.0566 | AMZ5: 0.16 | ANA5: 0.0605 | ANC5: 0.16 | AND5: 0.0605 | ANF5: 0.16 | ANG5: 0.0643 | ANI5: 0.16 | ANJ5: 0.0643 | ANL5: 0.16 | ANM5: 0.0682 | ANO5: 0.16 | ANP5: 0.0759 | ANR5: 0 | ANS5: 0 | ANU5: 0 | ANV5: 0 | ANX5: 0 | ANY5: 0 | AOA5: 0 | AOB5: 0 | AOD5: 0.0584 | AOE5: 0 | AOG5: 0.0522 | AOH5: 0 | AOJ5: 0.0487 | AOK5: 0 | AOM5: 0.0465 | AON5: 0 | AOP5: 0.043 | AOQ5: 0 | AOS5: 0 | AOT5: 0 | AOV5: 0 | AOW5: 0 | AOY5: 0 | AOZ5: 0 | APB5: 0 | APC5: 0 | APE5: 0.057 | APF5: 0 | APH5: 0.057 | API5: 0 | APK5: 0.057 | APL5: 0 | APN5: 0.057 | APO5: 0 | APQ5: 0.057 | APR5: 0 | APT5: 0.0671 | APU5: 0 | APW5: 0.0599 | APX5: 0 | APZ5: 0.056 | AQA5: 0 | AQC5: 0.0535 | AQD5: 0 | AQF5: 0.0494 | AQG5: 0 | AQI5: 0.0671 | AQJ5: 0 | AQL5: 0.0599 | AQM5: 0 | AQO5: 0.056 | AQP5: 0 | AQR5: 0.0535 | AQS5: 0 | AQU5: 0.0494 | AQV5: 0 | AQX5: 0.0615 | AQY5: 0 | ARA5: 0.0615 | ARB5: 0 | ARD5: 0.0615 | ARE5: 0 | ARG5: 0.0615 | ARH5: 0 | ARJ5: 0.0615 | ARK5: 0 | ARM5: 0.0599 | ARN5: 0 | ARP5: 0.0599 | ARQ5: 0 | ARS5: 0.0599 | ART5: 0 | ARV5: 0.0599 | ARW5: 0 | ARY5: 0.0599 | ARZ5: 0 | ASB5: 0.0392 | ASC5: 0 | ASE5: 0.0704 | ASF5: 0 | ASH5: 0.063 | ASI5: 0 | ASK5: 0.0589 | ASL5: 0 | ASN5: 0.0563 | ASO5: 0 | ASQ5: 0.072 | ASR5: 0 | AST5: 0.072 | ASU5: 0 | ASW5: 0.072 | ASX5: 0 | ASZ5: 0.072 | ATA5: 0 | ATC5: 0.072 | ATD5: 0 | ATF5: 0.072 | ATG5: 0 | ATI5: 0 | ATJ5: 0 | ATL5: 0 | ATM5: 0 | ATO5: 0 | ATP5: 0 | ATR5: 0 | ATS5: 0 | ATU5: 0 | ATV5: 0 | ATX5: 0 | ATY5: 0 | AUA5: 0 | AUB5: 0 | AUD5: 0 | AUE5: 0 | AUG5: 0 | AUH5: 0 | AUJ5: 0 | AUK5: 0 | AUM5: 0 | AUN5: 0 | AUP5: 0 | AUQ5: 0 | AUS5: 0 | AUT5: 0 | AUV5: 0 | AUW5: 0 | AUY5: 0 | AUZ5: 0 | AVB5: 0 | AVC5: 0 | AVE5: 0 | AVF5: 0 | AVH5: 0 | AVI5: 0 | AVK5: 0 | AVL5: 0 | AVN5: 0 | AVO5: 0 | AVQ5: 0 | AVR5: 0 | AVT5: 0 | AVU5: 0 | AVW5: 0 | AVX5: 0 | AVZ5: 0 | AWA5: 0 | AWC5: 0 | AWD5: 0 | AWF5: 0 | AWG5: 0 | AWI5: 0 | AWJ5: 0 | AWL5: 0 | AWM5: 0 | AWO5: 0 | AWP5: 0 | AWR5: 0 | AWS5: 0 | AWU5: 0 | AWV5: 0 | AWX5: 0 | AWY5: 0 | AXA5: 0 | AXB5: 0 | AXD5: 0 | AXE5: 0 | AXG5: 0 | AXH5: 0 | AXJ5: 0 | AXK5: 0 | AXM5: 0 | AXN5: 0 | AXP5: 0 | AXQ5: 0 | AXS5: 0 | AXT5: 0 | AXV5: 0 | AXW5: 0 | AXY5: 0 | AXZ5: 0 | AYB5: 0 | AYC5: 0 | AYE5: 0 | AYF5: 0 | AYH5: 0 | AYI5: 0 | AYK5: 0 | AYL5: 0 | AYN5: 0 | AYO5: 0 | AYQ5: 0 | AYR5: 0 | AYT5: 0.0188 | AYU5: 0.0001 | AYW5: 0 | AYX5: 0 | AYZ5: 0 | AZA5: 0 | AZC5: 0 | AZD5: 0 | AZF5: 0 | AZG5: 0 | AZI5: 0 | AZJ5: 0 | AZL5: 0 | AZM5: 0 | AZO5: 0 | AZP5: 0 | AZR5: 0 | AZS5: 0 | AZU5: 0 | AZV5: 0 | AZX5: 0 | AZY5: 0 | BAA5: 0 | BAB5: 0 | BAD5: 0 | BAE5: 0 | BAG5: 0 | BAH5: 0 | BAJ5: 0 | BAK5: 0 | BAM5: 0 | BAN5: 0 | BAP5: 0 | BAQ5: 0 | BAS5: 0 | BAT5: 0 | BAV5: 0 | BAW5: 0 | BAY5: 0 | BAZ5: 0 | BBB5: 0 | BBC5: 0 | BBE5: 0 | BBF5: 0 | BBH5: 0 | BBI5: 0 | BBK5: 0 | BBL5: 0 | BBN5: 0 | BBO5: 0 | BBQ5: 0 | BBR5: 0 | BBT5: 0 | BBU5: 0 | BBW5: 0 | BBX5: 0 | BBZ5: 0 | BCA5: 0 | BCC5: 0 | BCD5: 0 | BCF5: 0 | BCG5: 0 | BCI5: 0 | BCJ5: 0 | BCL5: 0 | BCM5: 0 | BCO5: 0 | BCP5: 0 | BCR5: 0 | BCS5: 0 | BCU5: 0 | BCV5: 0 | BCX5: 0 | BCY5: 0 | BDA5: 0 | BDB5: 0 | BDD5: 0 | BDE5: 0 | BDG5: 0 | BDH5: 0 | BDJ5: 0 | BDK5: 0 | BDM5: 0 | BDN5: 0 | BDP5: 0 | BDQ5: 0 | BDS5: 0 | BDT5: 0 | BDV5: 0 | BDW5: 0 | BDY5: 0 | BDZ5: 0 | BEB5: 0 | BEC5: 0 | BEE5: 0 | BEF5: 0 | BEH5: 0 | BEI5: 0 | BEK5: 0 | BEL5: 0 | BEN5: 0 | BEO5: 0 | BEQ5: 0 | BER5: 0 | BET5: 0 | BEU5: 0 | BEW5: 0 | BEX5: 0 | BEZ5: 0 | BFA5: 0 | BFC5: 0 | BFD5: 0 | BFF5: 0 | BFG5: 0 | BFI5: 0 | BFJ5: 0 | BFL5: 0 | BFM5: 0 | BFO5: 0 | BFP5: 0 | BFR5: 0 | BFS5: 0 | BFU5: 0 | BFV5: 0 | BFX5: 0 | BFY5: 0 | BGA5: 0.0852 | BGB5: 0.0001 | BGD5: 0.057 | BGE5: 0.0001 | BGG5: 0.0628 | BGH5: 0.0001 | BGJ5: 0.0628 | BGK5: 0.0001 | BGM5: 0.057 | BGN5: 0.0001 | BGP5: 0.0761 | BGQ5: 0.0001 | BGS5: 0.0761 | BGT5: 0.0001 | BGV5: 0.0952 | BGW5: 0.0001 | BGY5: 0.0852 | BGZ5: 0.0001 | BHB5: 0.0761 | BHC5: 0.0001 | BHE5: 0.0952 | BHF5: 0.0001 | BHH5: 0.1142 | BHI5: 0.0001 | BHK5: 0.1332 | BHL5: 0.0001 | BHN5: 0.1193 | BHO5: 0.0001 | BHQ5: 0.1065 | BHR5: 0.0001 | BHT5: 0.0986 | BHU5: 0.0001 | BHW5: 0.1522 | BHX5: 0.0001 | BHZ5: 0.16 | BIA5: 0.0024 | BIC5: 0.1533 | BID5: 0.0001 | BIF5: 0.1369 | BIG5: 0.0001 | BII5: 0.1268 | BIJ5: 0.0001 | BIL5: 0.1237 | BIM5: 0.0001 | BIO5: 0 | BIP5: 0 | BIR5: 0 | BIS5: 0 | BIU5: 0 | BIV5: 0 | BIX5: 0 | BIY5: 0 | BJA5: 0 | BJB5: 0 | BJD5: 0 | BJE5: 0 | BJG5: 0 | BJH5: 0 | BJJ5: 0 | BJK5: 0 | BJM5: 0.0699 | BJN5: 0.165 | BJP5: 0 | BJQ5: 0 | BJS5: 0 | BJT5: 0 | BJV5: 0 | BJW5: 0 | BJY5: 0 | BJZ5: 0 | BKB5: 0 | BKC5: 0 | BKE5: 0 | BKF5: 0 | BKH5: 0 | BKI5: 0 | BKK5: 0 | BKL5: 0 | BKN5: 0 | BKO5: 0 | BKQ5: 0 | BKR5: 0 | BKT5: 0 | BKU5: 0 | BKW5: 0 | BKX5: 0 | BKZ5: 0 | BLA5: 0 | BLC5: 0 | BLD5: 0 | BLF5: 0 | BLG5: 0 | BLI5: 0 | BLJ5: 0 | BLL5: 0 | BLM5: 0 | BLO5: 0 | BLP5: 0 | BLR5: 0 | BLS5: 0 | BLU5: 0.0699 | BLV5: 0.0133 | BLX5: 0.0699 | BLY5: 0.0133 | BMA5: 0.0699 | BMB5: 0.0211 | BMD5: 0.0699 | BME5: 0.0211 | BMG5: 0 | BMH5: 0 | BMJ5: 0.0699 | BMK5: 0.0054 | BMM5: 0.0699 | BMN5: 0.0093 | BMP5: 0.0699 | BMQ5: 0.0093 | BMS5: 0.0699 | BMT5: 0.0133 | BMV5: 0.0699 | BMW5: 0.0133 | BMY5: 0.0699 | BMZ5: 0.0172 | BNB5: 0.0699 | BNC5: 0.0172 | BNE5: 0.0699 | BNF5: 0.0232 | BNH5: 0.0699 | BNI5: 0.0232 | BNK5: 0.0699 | BNL5: 0.0211 | BNN5: 0.0699 | BNO5: 0.0211 | BNQ5: 0.0699 | BNR5: 0.029 | BNT5: 0.0699 | BNU5: 0.029 | BNW5: 0.0699 | BNX5: 0.0368 | BNZ5: 0.0699 | BOA5: 0.0368 | BOC5: 0.0699 | BOD5: 0.0251 | BOF5: 0.0699 | BOG5: 0.0251 | BOI5: 0.0699 | BOJ5: 0.029 | BOL5: 0.0699 | BOM5: 0.029 | BOO5: 0.0699 | BOP5: 0.033 | BOR5: 0.0699 | BOS5: 0.033 | BOU5: 0.0699 | BOV5: 0.0504 | BOX5: 0.0699 | BOY5: 0.0369 | BPA5: 0.0699 | BPB5: 0.0369 | BPD5: 0.0699 | BPE5: 0.0437 | BPG5: 0.0699 | BPH5: 0.0505 | BPJ5: 0.0699 | BPK5: 0.0571 | BPM5: 0.0699 | BPN5: 0.0408 | BPP5: 0.0699 | BPQ5: 0.0408 | BPS5: 0.0699 | BPT5: 0.0639 | BPV5: 0.0699 | BPW5: 0.0448 | BPY5: 0.0699 | BPZ5: 0.0448 | BQB5: 0.0699 | BQC5: 0.0487 | BQE5: 0.0699 | BQF5: 0.0487 | BQH5: 0.0699 | BQI5: 0.0527 | BQK5: 0.0699 | BQL5: 0.0527 | BQN5: 0.0699 | BQO5: 0.0566 | BQQ5: 0.0699 | BQR5: 0.0566 | BQT5: 0.0699 | BQU5: 0.0606 | BQW5: 0.0699 | BQX5: 0.0606 | BQZ5: 0.0699 | BRA5: 0.0645 | BRC5: 0.0699 | BRD5: 0.0645 | BRF5: 0.0699 | BRG5: 0.0724 | BRI5: 0.0699 | BRJ5: 0.0842 | BRL5: 0.0699 | BRM5: 0.096 | BRO5: 0 | BRP5: 0
A6: 5 | B6: 0 | C6: 0 | E6: 0 | F6: 0 | H6: 0 | I6: 0 | K6: 0 | L6: 0 | N6: 0 | O6: 0 | Q6: 0 | R6: 0 | T6: 0 | U6: 0 | W6: 0 | X6: 0 | Z6: 0 | AA6: 0 | AC6: 0.02 | AD6: 0.0001 | AF6: 0.1386 | AG6: 0.0001 | AI6: 0.04 | AJ6: 0.0001 | AL6: 0.1583 | AM6: 0.0001 | AO6: 0.0499 | AP6: 0.0001 | AR6: 0.0599 | AS6: 0.0001 | AU6: 0.1189 | AV6: 0.0001 | AX6: 0.16 | AY6: 0.0045 | BA6: 0.0694 | BB6: 0.0001 | BD6: 0.0793 | BE6: 0.0001 | BG6: 0.0892 | BH6: 0.0001 | BJ6: 0.0991 | BK6: 0.0001 | BM6: 0.1189 | BN6: 0.0001 | BP6: 0.1386 | BQ6: 0.0001 | BS6: 0.0892 | BT6: 0.0001 | BV6: 0.0991 | BW6: 0.0001 | BY6: 0.0991 | BZ6: 0.0001 | CB6: 0.1189 | CC6: 0.0001 | CE6: 0.1386 | CF6: 0.0001 | CH6: 0.1583 | CI6: 0.0001 | CK6: 0.109 | CL6: 0.0001 | CN6: 0.1189 | CO6: 0.0001 | CQ6: 0.1287 | CR6: 0.0001 | CT6: 0.1583 | CU6: 0.0001 | CW6: 0.16 | CX6: 0.0045 | CZ6: 0.1386 | DA6: 0.0001 | DC6: 0.1484 | DD6: 0.0001 | DF6: 0.1583 | DG6: 0.0001 | DI6: 0.16 | DJ6: 0.0045 | DL6: 0.1484 | DM6: 0.0001 | DO6: 0.1583 | DP6: 0.0001 | DR6: 0.1583 | DS6: 0.0001 | DU6: 0.16 | DV6: 0.0021 | DX6: 0.16 | DY6: 0.0045 | EA6: 0.16 | EB6: 0.0093 | ED6: 0.16 | EE6: 0.0045 | EG6: 0.16 | EH6: 0.0045 | EJ6: 0.16 | EK6: 0.0069 | EM6: 0.16 | EN6: 0.0093 | EP6: 0.16 | EQ6: 0.0141 | ES6: 0.16 | ET6: 0.0069 | EV6: 0.16 | EW6: 0.0237 | EY6: 0.16 | EZ6: 0.0382 | FB6: 0.04 | FC6: 0.0001 | FE6: 0.0793 | FF6: 0.0001 | FH6: 0.1189 | FI6: 0.0001 | FK6: 0 | FL6: 0 | FN6: 0.0539 | FO6: 0.0001 | FQ6: 0.0626 | FR6: 0.0001 | FT6: 0.0715 | FU6: 0.0001 | FW6: 0.0805 | FX6: 0.0001 | FZ6: 0.0894 | GA6: 0.0001 | GC6: 0.0983 | GD6: 0.0001 | GF6: 0.1073 | GG6: 0.0001 | GI6: 0.1251 | GJ6: 0.0001 | GL6: 0.1429 | GM6: 0.0001 | GO6: 0.16 | GP6: 0.0003 | GR6: 0.16 | GS6: 0.006 | GU6: 0.16 | GV6: 0.0117 | GX6: 0.16 | GY6: 0.0174 | HA6: 0.16 | HB6: 0.0203 | HD6: 0.16 | HE6: 0.0231 | HG6: 0.16 | HH6: 0.0288 | HJ6: 0.16 | HK6: 0.0345 | HM6: 0.16 | HN6: 0.0402 | HP6: 0.16 | HQ6: 0.0431 | HS6: 0.16 | HT6: 0.0459 | HV6: 0.16 | HW6: 0.0516 | HY6: 0.16 | HZ6: 0.063 | IB6: 0 | IC6: 0 | IE6: 0.0504 | IF6: 0.0001 | IH6: 0.0585 | II6: 0.0001 | IK6: 0.0669 | IL6: 0.0001 | IN6: 0.0752 | IO6: 0.0001 | IQ6: 0.0836 | IR6: 0.0001 | IT6: 0.1003 | IU6: 0.0001 | IW6: 0.1169 | IX6: 0.0001 | IZ6: 0.1336 | JA6: 0.0001 | JC6: 0.1502 | JD6: 0.0001 | JF6: 0.16 | JG6: 0.0028 | JI6: 0.16 | JJ6: 0.0094 | JL6: 0.16 | JM6: 0.016 | JO6: 0.16 | JP6: 0.0192 | JR6: 0.16 | JS6: 0.0225 | JU6: 0.16 | JV6: 0.0291 | JX6: 0.16 | JY6: 0.0356 | KA6: 0.16 | KB6: 0.0422 | KD6: 0.16 | KE6: 0.0455 | KG6: 0.16 | KH6: 0.0488 | KJ6: 0 | KK6: 0 | KM6: 0.048 | KN6: 0.0001 | KP6: 0.0558 | KQ6: 0.0001 | KS6: 0.0637 | KT6: 0.0001 | KV6: 0.0717 | KW6: 0.0001 | KY6: 0.0797 | KZ6: 0.0001 | LB6: 0.0876 | LC6: 0.0001 | LE6: 0.0956 | LF6: 0.0001 | LH6: 0.1115 | LI6: 0.0001 | LK6: 0.1274 | LL6: 0.0001 | LN6: 0.1433 | LO6: 0.0001 | LQ6: 0.1591 | LR6: 0.0001 | LT6: 0.16 | LU6: 0.0071 | LW6: 0.16 | LX6: 0.0145 | LZ6: 0.16 | MA6: 0.0182 | MC6: 0.16 | MD6: 0.0219 | MF6: 0.16 | MG6: 0.0293 | MI6: 0.16 | MJ6: 0.0367 | ML6: 0.16 | MM6: 0.0442 | MO6: 0.16 | MP6: 0.0479 | MR6: 0.16 | MS6: 0.0516 | MU6: 0.16 | MV6: 0.059 | MX6: 0.16 | MY6: 0.0738 | NA6: 0.0463 | NB6: 0.0001 | ND6: 0.0538 | NE6: 0.0001 | NG6: 0.0769 | NH6: 0.0001 | NJ6: 0 | NK6: 0 | NM6: 0.0585 | NN6: 0.0001 | NP6: 0.0731 | NQ6: 0.0001 | NS6: 0.0878 | NT6: 0.0001 | NV6: 0.1024 | NW6: 0.0001 | NY6: 0.117 | NZ6: 0.0001 | OB6: 0.1316 | OC6: 0.0001 | OE6: 0.1462 | OF6: 0.0001 | OH6: 0.16 | OI6: 0.0006 | OK6: 0.16 | OL6: 0.0104 | ON6: 0.16 | OO6: 0.0203 | OQ6: 0.16 | OR6: 0.0301 | OT6: 0.16 | OU6: 0.0399 | OW6: 0.16 | OX6: 0.089 | OZ6: 0.0849 | PA6: 0.0001 | PC6: 0.0991 | PD6: 0.0001 | PF6: 0 | PG6: 0 | PI6: 0.0396 | PJ6: 0.0001 | PL6: 0.05 | PM6: 0 | PO6: 0.16 | PP6: 0.0093 | PR6: 0.0599 | PS6: 0 | PU6: 0.0625 | PV6: 0 | PX6: 0.065 | PY6: 0 | QA6: 0 | QB6: 0.015 | QD6: 0.072 | QE6: 0 | QG6: 0.0527 | QH6: 0.0001 | QJ6: 0.0991 | QK6: 0.0001 | QM6: 0 | QN6: 0 | QP6: 0.0848 | QQ6: 0.0001 | QS6: 0.0991 | QT6: 0.0001 | QV6: 0.0834 | QW6: 0.0001 | QY6: 0.095 | QZ6: 0 | RB6: 0.0956 | RC6: 0.0001 | RE6: 0.1189 | RF6: 0.0001 | RH6: 0.072 | RI6: 0.0065 | RK6: 0.0717 | RL6: 0.0001 | RN6: 0.1189 | RO6: 0.0001 | RQ6: 0.0892 | RR6: 0.0001 | RT6: 0.0819 | RU6: 0.0001 | RW6: 0.1051 | RX6: 0.0001 | RZ6: 0.072 | SA6: 0.0165 | SC6: 0.1386 | SD6: 0.0001 | SF6: 0.16 | SG6: 0.0588 | SI6: 0.1024 | SJ6: 0.0001 | SL6: 0.1009 | SM6: 0.0001 | SO6: 0.1583 | SP6: 0.0001 | SR6: 0.1433 | SS6: 0.0001 | SU6: 0.16 | SV6: 0.0093 | SX6: 0.16 | SY6: 0.0093 | TA6: 0.1287 | TB6: 0.0001 | TD6: 0.16 | TE6: 0.0045 | TG6: 0.16 | TH6: 0.0141 | TJ6: 0.16 | TK6: 0.043 | TM6: 0.16 | TN6: 0.1444 | TP6: 0.16 | TQ6: 0.0237 | TS6: 0 | TT6: 0 | TV6: 0.16 | TW6: 0.0285 | TY6: 0.16 | TZ6: 0.0382 | UB6: 0.16 | UC6: 0.0478 | UE6: 0.16 | UF6: 0.0478 | UH6: 0.16 | UI6: 0.0574 | UK6: 0.0454 | UL6: 0 | UN6: 0.057 | UO6: 0 | UQ6: 0.0615 | UR6: 0 | UT6: 0 | UU6: 0 | UW6: 0.0805 | UX6: 0.0001 | UZ6: 0.0585 | VA6: 0.0001 | VC6: 0.0699 | VD6: 0 | VF6: 0.16 | VG6: 0.0117 | VI6: 0.1583 | VJ6: 0.0001 | VL6: 0.1429 | VM6: 0.0001 | VO6: 0.16 | VP6: 0.0237 | VR6: 0.0995 | VS6: 0.0001 | VU6: 0.1004 | VV6: 0.0001 | VX6: 0.16 | VY6: 0.1276 | WA6: 0.16 | WB6: 0.0045 | WD6: 0.16 | WE6: 0.0045 | WG6: 0.16 | WH6: 0.0141 | WJ6: 0.16 | WK6: 0.0141 | WM6: 0.16 | WN6: 0.0334 | WP6: 0.16 | WQ6: 0.0478 | WS6: 0.16 | WT6: 0.0526 | WV6: 0.16 | WW6: 0.0382 | WY6: 0 | WZ6: 0 | XB6: 0.16 | XC6: 0.0141 | XE6: 0.0995 | XF6: 0.0001 | XH6: 0.1189 | XI6: 0.0001 | XK6: 0.125 | XL6: 0 | XN6: 0.1287 | XO6: 0.0001 | XQ6: 0.1147 | XR6: 0.0001 | XT6: 0.1369 | XU6: 0.0001 | XW6: 0 | XX6: 0 | XZ6: 0.16 | YA6: 0.0189 | YC6: 0.16 | YD6: 0.0382 | YF6: 0.16 | YG6: 0.0478 | YI6: 0.0675 | YJ6: 0 | YL6: 0.1189 | YM6: 0.0001 | YO6: 0.1004 | YP6: 0.0001 | YR6: 0.1189 | YS6: 0.0001 | YU6: 0.1073 | YV6: 0.0001 | YX6: 0.16 | YY6: 0.0237 | ZA6: 0.16 | ZB6: 0.0285 | ZD6: 0.16 | ZE6: 0.0334 | ZG6: 0.1449 | ZH6: 0.0001 | ZJ6: 0.16 | ZK6: 0.0189 | ZM6: 0.16 | ZN6: 0.043 | ZP6: 0.16 | ZQ6: 0.0189 | ZS6: 0.0717 | ZT6: 0.0001 | ZV6: 0.0995 | ZW6: 0.0001 | ZY6: 0.0775 | ZZ6: 0.0001 | AAB6: 0.1583 | AAC6: 0.0001 | AAE6: 0.16 | AAF6: 0.0045 | AAH6: 0.16 | AAI6: 0.0093 | AAK6: 0.16 | AAL6: 0.0382 | AAN6: 0.16 | AAO6: 0.0141 | AAQ6: 0.16 | AAR6: 0.0478 | AAT6: 0.16 | AAU6: 0.0382 | AAW6: 0 | AAX6: 0 | AAZ6: 0.0991 | ABA6: 0.0001 | ABC6: 0 | ABD6: 0 | ABF6: 0 | ABG6: 0 | ABI6: 0 | ABJ6: 0 | ABL6: 0 | ABM6: 0 | ABO6: 0 | ABP6: 0 | ABR6: 0.16 | ABS6: 0.0141 | ABU6: 0.1591 | ABV6: 0.0001 | ABX6: 0.16 | ABY6: 0.043 | ACA6: 0.16 | ACB6: 0.0189 | ACD6: 0.1004 | ACE6: 0.0001 | ACG6: 0 | ACH6: 0 | ACJ6: 0.16 | ACK6: 0.0334 | ACM6: 0 | ACN6: 0 | ACP6: 0 | ACQ6: 0 | ACS6: 0.16 | ACT6: 0.0382 | ACV6: 0.16 | ACW6: 0.043 | ACY6: 0.16 | ACZ6: 0.0141 | ADB6: 0 | ADC6: 0 | ADE6: 0.136 | ADF6: 0.0001 | ADH6: 0 | ADI6: 0 | ADK6: 0.16 | ADL6: 0.0189 | ADN6: 0.1386 | ADO6: 0.0001 | ADQ6: 0 | ADR6: 0 | ADT6: 0.1287 | ADU6: 0.0001 | ADW6: 0.1418 | ADX6: 0.0001 | ADZ6: 0.16 | AEA6: 0.0093 | AEC6: 0.0991 | AED6: 0.0001 | AEF6: 0.16 | AEG6: 0.0189 | AEI6: 0.1194 | AEJ6: 0.0001 | AEL6: 0.0805 | AEM6: 0.0001 | AEO6: 0.16 | AEP6: 0.0093 | AER6: 0.16 | AES6: 0.0036 | AEU6: 0.0995 | AEV6: 0.0001 | AEX6: 0.1189 | AEY6: 0.0001 | AFA6: 0 | AFB6: 0 | AFD6: 0.16 | AFE6: 0.0382 | AFG6: 0 | AFH6: 0 | AFJ6: 0 | AFK6: 0.05 | AFM6: 0.1346 | AFN6: 0.0001 | AFP6: 0.16 | AFQ6: 0.1054 | AFS6: 0.16 | AFT6: 0.0045 | AFV6: 0.1433 | AFW6: 0.0001 | AFY6: 0.1316 | AFZ6: 0.0001 | AGB6: 0.04 | AGC6: 0.0001 | AGE6: 0.16 | AGF6: 0.0093 | AGH6: 0.16 | AGI6: 0.0141 | AGK6: 0.16 | AGL6: 0.0189 | AGN6: 0.16 | AGO6: 0.0093 | AGQ6: 0.16 | AGR6: 0.0237 | AGT6: 0.16 | AGU6: 0.0141 | AGW6: 0.16 | AGX6: 0.0285 | AGZ6: 0.16 | AHA6: 0.0189 | AHC6: 0.16 | AHD6: 0.0334 | AHF6: 0.16 | AHG6: 0.0093 | AHI6: 0.16 | AHJ6: 0.0093 | AHL6: 0.16 | AHM6: 0.0141 | AHO6: 0.16 | AHP6: 0.0189 | AHR6: 0.16 | AHS6: 0.0237 | AHU6: 0.16 | AHV6: 0.0382 | AHX6: 0.16 | AHY6: 0.0117 | AIA6: 0.16 | AIB6: 0.0141 | AID6: 0.16 | AIE6: 0.0141 | AIG6: 0.16 | AIH6: 0.0165 | AIJ6: 0.16 | AIK6: 0.0189 | AIM6: 0.16 | AIN6: 0.0285 | AIP6: 0.16 | AIQ6: 0.043 | AIS6: 0.16 | AIT6: 0.0189 | AIV6: 0.16 | AIW6: 0.0189 | AIY6: 0.16 | AIZ6: 0.0334 | AJB6: 0.16 | AJC6: 0.0478 | AJE6: 0.16 | AJF6: 0.0213 | AJH6: 0.16 | AJI6: 0.0237 | AJK6: 0.16 | AJL6: 0.0237 | AJN6: 0.16 | AJO6: 0.0382 | AJQ6: 0.16 | AJR6: 0.0526 | AJT6: 0.16 | AJU6: 0.0285 | AJW6: 0.16 | AJX6: 0.0285 | AJZ6: 0.16 | AKA6: 0.043 | AKC6: 0.16 | AKD6: 0.0334 | AKF6: 0.16 | AKG6: 0.0334 | AKI6: 0.16 | AKJ6: 0.0478 | AKL6: 0.16 | AKM6: 0.0382 | AKO6: 0.16 | AKP6: 0.0382 | AKR6: 0.16 | AKS6: 0.0526 | AKU6: 0.16 | AKV6: 0.0406 | AKX6: 0.16 | AKY6: 0.043 | ALA6: 0.16 | ALB6: 0.043 | ALD6: 0.16 | ALE6: 0.0478 | ALG6: 0.16 | ALH6: 0.0478 | ALJ6: 0.16 | ALK6: 0.0526 | ALM6: 0.16 | ALN6: 0.0526 | ALP6: 0.16 | ALQ6: 0.0574 | ALS6: 0.16 | ALT6: 0.0574 | ALV6: 0.16 | ALW6: 0.0574 | ALY6: 0.16 | ALZ6: 0.0574 | AMB6: 0.16 | AMC6: 0.0579 | AME6: 0.16 | AMF6: 0.0579 | AMH6: 0.16 | AMI6: 0.0622 | AMK6: 0.16 | AML6: 0.0622 | AMN6: 0.16 | AMO6: 0.067 | AMQ6: 0.16 | AMR6: 0.067 | AMT6: 0.16 | AMU6: 0.0718 | AMW6: 0.16 | AMX6: 0.0718 | AMZ6: 0.16 | ANA6: 0.0766 | ANC6: 0.16 | AND6: 0.0766 | ANF6: 0.16 | ANG6: 0.0814 | ANI6: 0.16 | ANJ6: 0.0814 | ANL6: 0.16 | ANM6: 0.0862 | ANO6: 0.16 | ANP6: 0.0958 | ANR6: 0 | ANS6: 0 | ANU6: 0 | ANV6: 0 | ANX6: 0 | ANY6: 0 | AOA6: 0 | AOB6: 0 | AOD6: 0.0607 | AOE6: 0 | AOG6: 0.0547 | AOH6: 0 | AOJ6: 0.0511 | AOK6: 0 | AOM6: 0.0487 | AON6: 0 | AOP6: 0.0446 | AOQ6: 0 | AOS6: 0 | AOT6: 0 | AOV6: 0 | AOW6: 0 | AOY6: 0 | AOZ6: 0 | APB6: 0 | APC6: 0 | APE6: 0.057 | APF6: 0 | APH6: 0.057 | API6: 0 | APK6: 0.057 | APL6: 0 | APN6: 0.057 | APO6: 0 | APQ6: 0.057 | APR6: 0 | APT6: 0.0698 | APU6: 0 | APW6: 0.0629 | APX6: 0 | APZ6: 0.0587 | AQA6: 0 | AQC6: 0.056 | AQD6: 0 | AQF6: 0.0513 | AQG6: 0 | AQI6: 0.0698 | AQJ6: 0 | AQL6: 0.0629 | AQM6: 0 | AQO6: 0.0587 | AQP6: 0 | AQR6: 0.056 | AQS6: 0 | AQU6: 0.0513 | AQV6: 0 | AQX6: 0.0615 | AQY6: 0 | ARA6: 0.0615 | ARB6: 0 | ARD6: 0.0615 | ARE6: 0 | ARG6: 0.0615 | ARH6: 0 | ARJ6: 0.0615 | ARK6: 0 | ARM6: 0.0599 | ARN6: 0 | ARP6: 0.0599 | ARQ6: 0 | ARS6: 0.0599 | ART6: 0 | ARV6: 0.0599 | ARW6: 0 | ARY6: 0.0599 | ARZ6: 0 | ASB6: 0.0409 | ASC6: 0 | ASE6: 0.0733 | ASF6: 0 | ASH6: 0.0662 | ASI6: 0 | ASK6: 0.0618 | ASL6: 0 | ASN6: 0.0589 | ASO6: 0 | ASQ6: 0.072 | ASR6: 0 | AST6: 0.072 | ASU6: 0 | ASW6: 0.072 | ASX6: 0 | ASZ6: 0.072 | ATA6: 0 | ATC6: 0.072 | ATD6: 0 | ATF6: 0.072 | ATG6: 0 | ATI6: 0 | ATJ6: 0 | ATL6: 0 | ATM6: 0 | ATO6: 0 | ATP6: 0 | ATR6: 0 | ATS6: 0 | ATU6: 0 | ATV6: 0 | ATX6: 0 | ATY6: 0 | AUA6: 0 | AUB6: 0 | AUD6: 0 | AUE6: 0 | AUG6: 0 | AUH6: 0 | AUJ6: 0 | AUK6: 0 | AUM6: 0 | AUN6: 0 | AUP6: 0 | AUQ6: 0 | AUS6: 0 | AUT6: 0 | AUV6: 0 | AUW6: 0 | AUY6: 0 | AUZ6: 0 | AVB6: 0 | AVC6: 0 | AVE6: 0 | AVF6: 0 | AVH6: 0 | AVI6: 0 | AVK6: 0 | AVL6: 0 | AVN6: 0 | AVO6: 0 | AVQ6: 0 | AVR6: 0 | AVT6: 0 | AVU6: 0 | AVW6: 0 | AVX6: 0 | AVZ6: 0 | AWA6: 0 | AWC6: 0 | AWD6: 0 | AWF6: 0 | AWG6: 0 | AWI6: 0 | AWJ6: 0 | AWL6: 0 | AWM6: 0 | AWO6: 0 | AWP6: 0 | AWR6: 0 | AWS6: 0 | AWU6: 0 | AWV6: 0 | AWX6: 0 | AWY6: 0 | AXA6: 0 | AXB6: 0 | AXD6: 0 | AXE6: 0 | AXG6: 0 | AXH6: 0 | AXJ6: 0 | AXK6: 0 | AXM6: 0 | AXN6: 0 | AXP6: 0 | AXQ6: 0 | AXS6: 0 | AXT6: 0 | AXV6: 0 | AXW6: 0 | AXY6: 0 | AXZ6: 0 | AYB6: 0 | AYC6: 0 | AYE6: 0 | AYF6: 0 | AYH6: 0 | AYI6: 0 | AYK6: 0 | AYL6: 0 | AYN6: 0 | AYO6: 0 | AYQ6: 0 | AYR6: 0 | AYT6: 0.0196 | AYU6: 0.0001 | AYW6: 0 | AYX6: 0 | AYZ6: 0 | AZA6: 0 | AZC6: 0 | AZD6: 0 | AZF6: 0 | AZG6: 0 | AZI6: 0 | AZJ6: 0 | AZL6: 0 | AZM6: 0 | AZO6: 0 | AZP6: 0 | AZR6: 0 | AZS6: 0 | AZU6: 0 | AZV6: 0 | AZX6: 0 | AZY6: 0 | BAA6: 0 | BAB6: 0 | BAD6: 0 | BAE6: 0 | BAG6: 0 | BAH6: 0 | BAJ6: 0 | BAK6: 0 | BAM6: 0 | BAN6: 0 | BAP6: 0 | BAQ6: 0 | BAS6: 0 | BAT6: 0 | BAV6: 0 | BAW6: 0 | BAY6: 0 | BAZ6: 0 | BBB6: 0 | BBC6: 0 | BBE6: 0 | BBF6: 0 | BBH6: 0 | BBI6: 0 | BBK6: 0 | BBL6: 0 | BBN6: 0 | BBO6: 0 | BBQ6: 0 | BBR6: 0 | BBT6: 0 | BBU6: 0 | BBW6: 0 | BBX6: 0 | BBZ6: 0 | BCA6: 0 | BCC6: 0 | BCD6: 0 | BCF6: 0 | BCG6: 0 | BCI6: 0 | BCJ6: 0 | BCL6: 0 | BCM6: 0 | BCO6: 0 | BCP6: 0 | BCR6: 0 | BCS6: 0 | BCU6: 0 | BCV6: 0 | BCX6: 0 | BCY6: 0 | BDA6: 0 | BDB6: 0 | BDD6: 0 | BDE6: 0 | BDG6: 0 | BDH6: 0 | BDJ6: 0 | BDK6: 0 | BDM6: 0 | BDN6: 0 | BDP6: 0 | BDQ6: 0 | BDS6: 0 | BDT6: 0 | BDV6: 0 | BDW6: 0 | BDY6: 0 | BDZ6: 0 | BEB6: 0 | BEC6: 0 | BEE6: 0 | BEF6: 0 | BEH6: 0 | BEI6: 0 | BEK6: 0 | BEL6: 0 | BEN6: 0 | BEO6: 0 | BEQ6: 0 | BER6: 0 | BET6: 0 | BEU6: 0 | BEW6: 0 | BEX6: 0 | BEZ6: 0 | BFA6: 0 | BFC6: 0 | BFD6: 0 | BFF6: 0 | BFG6: 0 | BFI6: 0 | BFJ6: 0 | BFL6: 0 | BFM6: 0 | BFO6: 0 | BFP6: 0 | BFR6: 0 | BFS6: 0 | BFU6: 0 | BFV6: 0 | BFX6: 0 | BFY6: 0 | BGA6: 0.0894 | BGB6: 0.0001 | BGD6: 0.0595 | BGE6: 0.0001 | BGG6: 0.0654 | BGH6: 0.0001 | BGJ6: 0.0654 | BGK6: 0.0001 | BGM6: 0.0595 | BGN6: 0.0001 | BGP6: 0.0793 | BGQ6: 0.0001 | BGS6: 0.0793 | BGT6: 0.0001 | BGV6: 0.0991 | BGW6: 0.0001 | BGY6: 0.0894 | BGZ6: 0.0001 | BHB6: 0.0797 | BHC6: 0.0001 | BHE6: 0.0991 | BHF6: 0.0001 | BHH6: 0.1189 | BHI6: 0.0001 | BHK6: 0.1386 | BHL6: 0.0001 | BHN6: 0.1251 | BHO6: 0.0001 | BHQ6: 0.1115 | BHR6: 0.0001 | BHT6: 0.1024 | BHU6: 0.0001 | BHW6: 0.1583 | BHX6: 0.0001 | BHZ6: 0.16 | BIA6: 0.0045 | BIC6: 0.16 | BID6: 0.0003 | BIF6: 0.1433 | BIG6: 0.0001 | BII6: 0.1316 | BIJ6: 0.0001 | BIL6: 0.1287 | BIM6: 0.0001 | BIO6: 0 | BIP6: 0 | BIR6: 0 | BIS6: 0 | BIU6: 0 | BIV6: 0 | BIX6: 0 | BIY6: 0 | BJA6: 0 | BJB6: 0 | BJD6: 0 | BJE6: 0 | BJG6: 0 | BJH6: 0 | BJJ6: 0 | BJK6: 0 | BJM6: 0.0699 | BJN6: 0.17 | BJP6: 0 | BJQ6: 0 | BJS6: 0 | BJT6: 0 | BJV6: 0 | BJW6: 0 | BJY6: 0 | BJZ6: 0 | BKB6: 0 | BKC6: 0 | BKE6: 0 | BKF6: 0 | BKH6: 0 | BKI6: 0 | BKK6: 0 | BKL6: 0 | BKN6: 0 | BKO6: 0 | BKQ6: 0 | BKR6: 0 | BKT6: 0 | BKU6: 0 | BKW6: 0 | BKX6: 0 | BKZ6: 0 | BLA6: 0 | BLC6: 0 | BLD6: 0 | BLF6: 0 | BLG6: 0 | BLI6: 0 | BLJ6: 0 | BLL6: 0 | BLM6: 0 | BLO6: 0 | BLP6: 0 | BLR6: 0 | BLS6: 0 | BLU6: 0.0699 | BLV6: 0.0172 | BLX6: 0.0699 | BLY6: 0.0172 | BMA6: 0.0699 | BMB6: 0.027 | BMD6: 0.0699 | BME6: 0.027 | BMG6: 0 | BMH6: 0 | BMJ6: 0.0699 | BMK6: 0.0074 | BMM6: 0.0699 | BMN6: 0.0123 | BMP6: 0.0699 | BMQ6: 0.0123 | BMS6: 0.0699 | BMT6: 0.0172 | BMV6: 0.0699 | BMW6: 0.0172 | BMY6: 0.0699 | BMZ6: 0.0221 | BNB6: 0.0699 | BNC6: 0.0221 | BNE6: 0.0699 | BNF6: 0.0281 | BNH6: 0.0699 | BNI6: 0.0281 | BNK6: 0.0699 | BNL6: 0.027 | BNN6: 0.0699 | BNO6: 0.027 | BNQ6: 0.0699 | BNR6: 0.0358 | BNT6: 0.0699 | BNU6: 0.0358 | BNW6: 0.0699 | BNX6: 0.0435 | BNZ6: 0.0699 | BOA6: 0.0435 | BOC6: 0.0699 | BOD6: 0.0319 | BOF6: 0.0699 | BOG6: 0.0319 | BOI6: 0.0699 | BOJ6: 0.0369 | BOL6: 0.0699 | BOM6: 0.0369 | BOO6: 0.0699 | BOP6: 0.0418 | BOR6: 0.0699 | BOS6: 0.0418 | BOU6: 0.0699 | BOV6: 0.059 | BOX6: 0.0699 | BOY6: 0.0467 | BPA6: 0.0699 | BPB6: 0.0467 | BPD6: 0.0699 | BPE6: 0.0534 | BPG6: 0.0699 | BPH6: 0.0601 | BPJ6: 0.0699 | BPK6: 0.0667 | BPM6: 0.0699 | BPN6: 0.0516 | BPP6: 0.0699 | BPQ6: 0.0516 | BPS6: 0.0699 | BPT6: 0.0744 | BPV6: 0.0699 | BPW6: 0.0565 | BPY6: 0.0699 | BPZ6: 0.0565 | BQB6: 0.0699 | BQC6: 0.0614 | BQE6: 0.0699 | BQF6: 0.0614 | BQH6: 0.0699 | BQI6: 0.0663 | BQK6: 0.0699 | BQL6: 0.0663 | BQN6: 0.0699 | BQO6: 0.0713 | BQQ6: 0.0699 | BQR6: 0.0713 | BQT6: 0.0699 | BQU6: 0.0762 | BQW6: 0.0699 | BQX6: 0.0762 | BQZ6: 0.0699 | BRA6: 0.0811 | BRC6: 0.0699 | BRD6: 0.0811 | BRF6: 0.0699 | BRG6: 0.0909 | BRI6: 0.0699 | BRJ6: 0.1057 | BRL6: 0.0699 | BRM6: 0.1204 | BRO6: 0 | BRP6: 0
A7: 6 | B7: 0 | C7: 0 | E7: 0 | F7: 0 | H7: 0 | I7: 0 | K7: 0 | L7: 0 | N7: 0 | O7: 0 | Q7: 0 | R7: 0 | T7: 0 | U7: 0 | W7: 0 | X7: 0 | Z7: 0 | AA7: 0 | AC7: 0.0206 | AD7: 0.0001 | AF7: 0.1423 | AG7: 0.0001 | AI7: 0.0411 | AJ7: 0.0001 | AL7: 0.16 | AM7: 0.0008 | AO7: 0.0513 | AP7: 0.0001 | AR7: 0.0615 | AS7: 0.0001 | AU7: 0.1221 | AV7: 0.0001 | AX7: 0.16 | AY7: 0.0066 | BA7: 0.0714 | BB7: 0.0001 | BD7: 0.0815 | BE7: 0.0001 | BG7: 0.0917 | BH7: 0.0001 | BJ7: 0.1018 | BK7: 0.0001 | BM7: 0.1221 | BN7: 0.0001 | BP7: 0.1423 | BQ7: 0.0001 | BS7: 0.0917 | BT7: 0.0001 | BV7: 0.1018 | BW7: 0.0001 | BY7: 0.1018 | BZ7: 0.0001 | CB7: 0.1221 | CC7: 0.0001 | CE7: 0.1423 | CF7: 0.0001 | CH7: 0.16 | CI7: 0.0008 | CK7: 0.112 | CL7: 0.0001 | CN7: 0.1221 | CO7: 0.0001 | CQ7: 0.1322 | CR7: 0.0001 | CT7: 0.16 | CU7: 0.0008 | CW7: 0.16 | CX7: 0.0066 | CZ7: 0.1423 | DA7: 0.0001 | DC7: 0.1524 | DD7: 0.0001 | DF7: 0.16 | DG7: 0.0008 | DI7: 0.16 | DJ7: 0.0066 | DL7: 0.1524 | DM7: 0.0001 | DO7: 0.16 | DP7: 0.0008 | DR7: 0.16 | DS7: 0.0008 | DU7: 0.16 | DV7: 0.0037 | DX7: 0.16 | DY7: 0.0066 | EA7: 0.16 | EB7: 0.0123 | ED7: 0.16 | EE7: 0.0066 | EG7: 0.16 | EH7: 0.0066 | EJ7: 0.16 | EK7: 0.0094 | EM7: 0.16 | EN7: 0.0123 | EP7: 0.16 | EQ7: 0.018 | ES7: 0.16 | ET7: 0.0094 | EV7: 0.16 | EW7: 0.0295 | EY7: 0.16 | EZ7: 0.0467 | FB7: 0.0411 | FC7: 0.0001 | FE7: 0.0815 | FF7: 0.0001 | FH7: 0.1221 | FI7: 0.0001 | FK7: 0 | FL7: 0 | FN7: 0.0559 | FO7: 0.0001 | FQ7: 0.0649 | FR7: 0.0001 | FT7: 0.0741 | FU7: 0.0001 | FW7: 0.0834 | FX7: 0.0001 | FZ7: 0.0926 | GA7: 0.0001 | GC7: 0.1019 | GD7: 0.0001 | GF7: 0.1111 | GG7: 0.0001 | GI7: 0.1295 | GJ7: 0.0001 | GL7: 0.1479 | GM7: 0.0001 | GO7: 0.16 | GP7: 0.0024 | GR7: 0.16 | GS7: 0.009 | GU7: 0.16 | GV7: 0.0156 | GX7: 0.16 | GY7: 0.0222 | HA7: 0.16 | HB7: 0.0255 | HD7: 0.16 | HE7: 0.0288 | HG7: 0.16 | HH7: 0.0354 | HJ7: 0.16 | HK7: 0.042 | HM7: 0.16 | HN7: 0.0486 | HP7: 0.16 | HQ7: 0.0519 | HS7: 0.16 | HT7: 0.0552 | HV7: 0.16 | HW7: 0.0618 | HY7: 0.16 | HZ7: 0.075 | IB7: 0 | IC7: 0 | IE7: 0.0523 | IF7: 0.0001 | IH7: 0.0608 | II7: 0.0001 | IK7: 0.0694 | IL7: 0.0001 | IN7: 0.0781 | IO7: 0.0001 | IQ7: 0.0868 | IR7: 0.0001 | IT7: 0.1041 | IU7: 0.0001 | IW7: 0.1214 | IX7: 0.0001 | IZ7: 0.1386 | JA7: 0.0001 | JC7: 0.1558 | JD7: 0.0001 | JF7: 0.16 | JG7: 0.0058 | JI7: 0.16 | JJ7: 0.0132 | JL7: 0.16 | JM7: 0.0207 | JO7: 0.16 | JP7: 0.0244 | JR7: 0.16 | JS7: 0.0281 | JU7: 0.16 | JV7: 0.0356 | JX7: 0.16 | JY7: 0.043 | KA7: 0.16 | KB7: 0.0505 | KD7: 0.16 | KE7: 0.0542 | KG7: 0.16 | KH7: 0.0579 | KJ7: 0 | KK7: 0 | KM7: 0.0498 | KN7: 0.0001 | KP7: 0.0579 | KQ7: 0.0001 | KS7: 0.0662 | KT7: 0.0001 | KV7: 0.0744 | KW7: 0.0001 | KY7: 0.0827 | KZ7: 0.0001 | LB7: 0.0909 | LC7: 0.0001 | LE7: 0.0992 | LF7: 0.0001 | LH7: 0.1157 | LI7: 0.0001 | LK7: 0.1321 | LL7: 0.0001 | LN7: 0.1486 | LO7: 0.0001 | LQ7: 0.16 | LR7: 0.0026 | LT7: 0.16 | LU7: 0.0109 | LW7: 0.16 | LX7: 0.0192 | LZ7: 0.16 | MA7: 0.0233 | MC7: 0.16 | MD7: 0.0275 | MF7: 0.16 | MG7: 0.0358 | MI7: 0.16 | MJ7: 0.044 | ML7: 0.16 | MM7: 0.0523 | MO7: 0.16 | MP7: 0.0565 | MR7: 0.16 | MS7: 0.0606 | MU7: 0.16 | MV7: 0.0689 | MX7: 0.16 | MY7: 0.0854 | NA7: 0.048 | NB7: 0.0001 | ND7: 0.0558 | NE7: 0.0001 | NG7: 0.0797 | NH7: 0.0001 | NJ7: 0 | NK7: 0 | NM7: 0.0605 | NN7: 0.0001 | NP7: 0.0756 | NQ7: 0.0001 | NS7: 0.0907 | NT7: 0.0001 | NV7: 0.1057 | NW7: 0.0001 | NY7: 0.1208 | NZ7: 0.0001 | OB7: 0.1359 | OC7: 0.0001 | OE7: 0.1509 | OF7: 0.0001 | OH7: 0.16 | OI7: 0.0043 | OK7: 0.16 | OL7: 0.015 | ON7: 0.16 | OO7: 0.0256 | OQ7: 0.16 | OR7: 0.0363 | OT7: 0.16 | OU7: 0.0469 | OW7: 0.16 | OX7: 0.1001 | OZ7: 0.0874 | PA7: 0.0001 | PC7: 0.102 | PD7: 0.0001 | PF7: 0 | PG7: 0 | PI7: 0.051 | PJ7: 0.0001 | PL7: 0.05 | PM7: 0 | PO7: 0.051 | PP7: 0.0001 | PR7: 0.0599 | PS7: 0 | PU7: 0.0625 | PV7: 0 | PX7: 0.065 | PY7: 0 | QA7: 0 | QB7: 0.018 | QD7: 0.072 | QE7: 0 | QG7: 0.0574 | QH7: 0.0001 | QJ7: 0.1018 | QK7: 0.0001 | QM7: 0 | QN7: 0 | QP7: 0.0907 | QQ7: 0.0001 | QS7: 0.1018 | QT7: 0.0001 | QV7: 0.0831 | QW7: 0.0001 | QY7: 0.095 | QZ7: 0 | RB7: 0.0942 | RC7: 0.0001 | RE7: 0.1221 | RF7: 0.0001 | RH7: 0.072 | RI7: 0.007 | RK7: 0.0741 | RL7: 0.0001 | RN7: 0.1221 | RO7: 0.0001 | RQ7: 0.0926 | RR7: 0.0001 | RT7: 0.0861 | RU7: 0.0001 | RW7: 0.1041 | RX7: 0.0001 | RZ7: 0.072 | SA7: 0.018 | SC7: 0.1423 | SD7: 0.0001 | SF7: 0.16 | SG7: 0.0558 | SI7: 0.1057 | SJ7: 0.0001 | SL7: 0.1027 | SM7: 0.0001 | SO7: 0.16 | SP7: 0.0008 | SR7: 0.142 | SS7: 0.0001 | SU7: 0.16 | SV7: 0.0077 | SX7: 0.16 | SY7: 0.0123 | TA7: 0.1344 | TB7: 0.0001 | TD7: 0.16 | TE7: 0.0066 | TG7: 0.16 | TH7: 0.018 | TJ7: 0.16 | TK7: 0.0467 | TM7: 0.16 | TN7: 0.1452 | TP7: 0.16 | TQ7: 0.0295 | TS7: 0.16 | TT7: 0.0352 | TV7: 0.16 | TW7: 0.0409 | TY7: 0.16 | TZ7: 0.0467 | UB7: 0.16 | UC7: 0.0581 | UE7: 0.16 | UF7: 0.0639 | UH7: 0.16 | UI7: 0.0753 | UK7: 0.0454 | UL7: 0 | UN7: 0.057 | UO7: 0 | UQ7: 0.0615 | UR7: 0 | UT7: 0 | UU7: 0.03 | UW7: 0.0846 | UX7: 0.0001 | UZ7: 0.0605 | VA7: 0.0001 | VC7: 0.0699 | VD7: 0 | VF7: 0.16 | VG7: 0.0094 | VI7: 0.16 | VJ7: 0.0008 | VL7: 0.1479 | VM7: 0.0001 | VO7: 0.16 | VP7: 0.0238 | VR7: 0.0997 | VS7: 0.0001 | VU7: 0.1008 | VV7: 0.0001 | VX7: 0.16 | VY7: 0.1234 | WA7: 0.16 | WB7: 0.0066 | WD7: 0.16 | WE7: 0.0066 | WG7: 0.16 | WH7: 0.018 | WJ7: 0.16 | WK7: 0.018 | WM7: 0.16 | WN7: 0.0409 | WP7: 0.16 | WQ7: 0.0581 | WS7: 0.16 | WT7: 0.0639 | WV7: 0.16 | WW7: 0.0524 | WY7: 0 | WZ7: 0 | XB7: 0.16 | XC7: 0.0123 | XE7: 0.0997 | XF7: 0.0001 | XH7: 0.1221 | XI7: 0.0001 | XK7: 0.125 | XL7: 0 | XN7: 0.1322 | XO7: 0.0001 | XQ7: 0.1223 | XR7: 0.0001 | XT7: 0.1436 | XU7: 0.0001 | XW7: 0 | XX7: 0 | XZ7: 0.16 | YA7: 0.0238 | YC7: 0.16 | YD7: 0.0467 | YF7: 0.16 | YG7: 0.0524 | YI7: 0.0675 | YJ7: 0 | YL7: 0.1221 | YM7: 0.0001 | YO7: 0.1008 | YP7: 0.0001 | YR7: 0.1221 | YS7: 0.0001 | YU7: 0.1111 | YV7: 0.0001 | YX7: 0.16 | YY7: 0.0238 | ZA7: 0.16 | ZB7: 0.0295 | ZD7: 0.16 | ZE7: 0.0352 | ZG7: 0.1551 | ZH7: 0.0001 | ZJ7: 0.16 | ZK7: 0.0238 | ZM7: 0.16 | ZN7: 0.0524 | ZP7: 0.16 | ZQ7: 0.0295 | ZS7: 0.0741 | ZT7: 0.0001 | ZV7: 0.0997 | ZW7: 0.0001 | ZY7: 0.0831 | ZZ7: 0.0001 | AAB7: 0.16 | AAC7: 0.0008 | AAE7: 0.16 | AAF7: 0.0066 | AAH7: 0.16 | AAI7: 0.0123 | AAK7: 0.16 | AAL7: 0.0409 | AAN7: 0.16 | AAO7: 0.018 | AAQ7: 0.16 | AAR7: 0.0581 | AAT7: 0.16 | AAU7: 0.0467 | AAW7: 0.0897 | AAX7: 0.0001 | AAZ7: 0.1018 | ABA7: 0.0001 | ABC7: 0.16 | ABD7: 0.0409 | ABF7: 0 | ABG7: 0 | ABI7: 0 | ABJ7: 0 | ABL7: 0 | ABM7: 0 | ABO7: 0 | ABP7: 0 | ABR7: 0.16 | ABS7: 0.018 | ABU7: 0.16 | ABV7: 0.0051 | ABX7: 0.16 | ABY7: 0.0524 | ACA7: 0.16 | ACB7: 0.0238 | ACD7: 0.0926 | ACE7: 0.0001 | ACG7: 0.16 | ACH7: 0.044 | ACJ7: 0.16 | ACK7: 0.0409 | ACM7: 0 | ACN7: 0 | ACP7: 0 | ACQ7: 0 | ACS7: 0.16 | ACT7: 0.0409 | ACV7: 0.16 | ACW7: 0.0524 | ACY7: 0.16 | ACZ7: 0.0123 | ADB7: 0.16 | ADC7: 0.0854 | ADE7: 0.1238 | ADF7: 0.0001 | ADH7: 0 | ADI7: 0 | ADK7: 0.16 | ADL7: 0.0238 | ADN7: 0.1423 | ADO7: 0.0001 | ADQ7: 0.16 | ADR7: 0.0123 | ADT7: 0.1344 | ADU7: 0.0001 | ADW7: 0.1464 | ADX7: 0.0001 | ADZ7: 0.16 | AEA7: 0.018 | AEC7: 0.1018 | AED7: 0.0001 | AEF7: 0.16 | AEG7: 0.0123 | AEI7: 0.1107 | AEJ7: 0.0001 | AEL7: 0.0756 | AEM7: 0.0001 | AEO7: 0.16 | AEP7: 0.0026 | AER7: 0.16 | AES7: 0.0096 | AEU7: 0.0997 | AEV7: 0.0001 | AEX7: 0.1221 | AEY7: 0.0001 | AFA7: 0.16 | AFB7: 0.0621 | AFD7: 0.16 | AFE7: 0.0312 | AFG7: 0 | AFH7: 0 | AFJ7: 0 | AFK7: 0.06 | AFM7: 0.1342 | AFN7: 0.0001 | AFP7: 0.16 | AFQ7: 0.0868 | AFS7: 0.16 | AFT7: 0.0066 | AFV7: 0.1486 | AFW7: 0.0001 | AFY7: 0.1359 | AFZ7: 0.0001 | AGB7: 0.0411 | AGC7: 0.0001 | AGE7: 0.16 | AGF7: 0.0123 | AGH7: 0.16 | AGI7: 0.018 | AGK7: 0.16 | AGL7: 0.0238 | AGN7: 0.16 | AGO7: 0.0123 | AGQ7: 0.16 | AGR7: 0.0295 | AGT7: 0.16 | AGU7: 0.018 | AGW7: 0.16 | AGX7: 0.0352 | AGZ7: 0.16 | AHA7: 0.0238 | AHC7: 0.16 | AHD7: 0.0409 | AHF7: 0.16 | AHG7: 0.0123 | AHI7: 0.16 | AHJ7: 0.0123 | AHL7: 0.16 | AHM7: 0.018 | AHO7: 0.16 | AHP7: 0.0238 | AHR7: 0.16 | AHS7: 0.0295 | AHU7: 0.16 | AHV7: 0.0467 | AHX7: 0.16 | AHY7: 0.0152 | AIA7: 0.16 | AIB7: 0.018 | AID7: 0.16 | AIE7: 0.018 | AIG7: 0.16 | AIH7: 0.0209 | AIJ7: 0.16 | AIK7: 0.0238 | AIM7: 0.16 | AIN7: 0.0352 | AIP7: 0.16 | AIQ7: 0.0524 | AIS7: 0.16 | AIT7: 0.0238 | AIV7: 0.16 | AIW7: 0.0238 | AIY7: 0.16 | AIZ7: 0.0409 | AJB7: 0.16 | AJC7: 0.0581 | AJE7: 0.16 | AJF7: 0.0266 | AJH7: 0.16 | AJI7: 0.0295 | AJK7: 0.16 | AJL7: 0.0295 | AJN7: 0.16 | AJO7: 0.0467 | AJQ7: 0.16 | AJR7: 0.0639 | AJT7: 0.16 | AJU7: 0.0352 | AJW7: 0.16 | AJX7: 0.0352 | AJZ7: 0.16 | AKA7: 0.0524 | AKC7: 0.16 | AKD7: 0.0409 | AKF7: 0.16 | AKG7: 0.0409 | AKI7: 0.16 | AKJ7: 0.0581 | AKL7: 0.16 | AKM7: 0.0467 | AKO7: 0.16 | AKP7: 0.0467 | AKR7: 0.16 | AKS7: 0.0639 | AKU7: 0.16 | AKV7: 0.0495 | AKX7: 0.16 | AKY7: 0.0524 | ALA7: 0.16 | ALB7: 0.0524 | ALD7: 0.16 | ALE7: 0.0581 | ALG7: 0.16 | ALH7: 0.0581 | ALJ7: 0.16 | ALK7: 0.0639 | ALM7: 0.16 | ALN7: 0.0639 | ALP7: 0.16 | ALQ7: 0.0696 | ALS7: 0.16 | ALT7: 0.0696 | ALV7: 0.16 | ALW7: 0.0696 | ALY7: 0.16 | ALZ7: 0.0696 | AMB7: 0.16 | AMC7: 0.0702 | AME7: 0.16 | AMF7: 0.0702 | AMH7: 0.16 | AMI7: 0.0753 | AMK7: 0.16 | AML7: 0.0753 | AMN7: 0.16 | AMO7: 0.081 | AMQ7: 0.16 | AMR7: 0.081 | AMT7: 0.16 | AMU7: 0.0868 | AMW7: 0.16 | AMX7: 0.0868 | AMZ7: 0.16 | ANA7: 0.0925 | ANC7: 0.16 | AND7: 0.0925 | ANF7: 0.16 | ANG7: 0.0982 | ANI7: 0.16 | ANJ7: 0.0982 | ANL7: 0.16 | ANM7: 0.104 | ANO7: 0.16 | ANP7: 0.1154 | ANR7: 0 | ANS7: 0 | ANU7: 0 | ANV7: 0 | ANX7: 0 | ANY7: 0 | AOA7: 0 | AOB7: 0 | AOD7: 0.0624 | AOE7: 0 | AOG7: 0.0567 | AOH7: 0 | AOJ7: 0.0531 | AOK7: 0 | AOM7: 0.0505 | AON7: 0 | AOP7: 0.0461 | AOQ7: 0 | AOS7: 0 | AOT7: 0 | AOV7: 0 | AOW7: 0 | AOY7: 0 | AOZ7: 0 | APB7: 0 | APC7: 0 | APE7: 0.057 | APF7: 0 | APH7: 0.057 | API7: 0 | APK7: 0.057 | APL7: 0 | APN7: 0.057 | APO7: 0 | APQ7: 0.057 | APR7: 0 | APT7: 0.0717 | APU7: 0 | APW7: 0.0652 | APX7: 0 | APZ7: 0.061 | AQA7: 0 | AQC7: 0.0581 | AQD7: 0 | AQF7: 0.053 | AQG7: 0 | AQI7: 0.0717 | AQJ7: 0 | AQL7: 0.0652 | AQM7: 0 | AQO7: 0.061 | AQP7: 0 | AQR7: 0.0581 | AQS7: 0 | AQU7: 0.053 | AQV7: 0 | AQX7: 0.0615 | AQY7: 0 | ARA7: 0.0615 | ARB7: 0 | ARD7: 0.0615 | ARE7: 0 | ARG7: 0.0615 | ARH7: 0 | ARJ7: 0.0615 | ARK7: 0 | ARM7: 0.0599 | ARN7: 0 | ARP7: 0.0599 | ARQ7: 0 | ARS7: 0.0599 | ART7: 0 | ARV7: 0.0599 | ARW7: 0 | ARY7: 0.0599 | ARZ7: 0 | ASB7: 0.042 | ASC7: 0 | ASE7: 0.0754 | ASF7: 0 | ASH7: 0.0686 | ASI7: 0 | ASK7: 0.0642 | ASL7: 0 | ASN7: 0.0612 | ASO7: 0 | ASQ7: 0.072 | ASR7: 0 | AST7: 0.072 | ASU7: 0 | ASW7: 0.072 | ASX7: 0 | ASZ7: 0.072 | ATA7: 0 | ATC7: 0.072 | ATD7: 0 | ATF7: 0.072 | ATG7: 0 | ATI7: 0 | ATJ7: 0 | ATL7: 0 | ATM7: 0 | ATO7: 0 | ATP7: 0 | ATR7: 0 | ATS7: 0 | ATU7: 0 | ATV7: 0 | ATX7: 0 | ATY7: 0 | AUA7: 0 | AUB7: 0 | AUD7: 0 | AUE7: 0 | AUG7: 0 | AUH7: 0 | AUJ7: 0 | AUK7: 0 | AUM7: 0 | AUN7: 0 | AUP7: 0 | AUQ7: 0 | AUS7: 0 | AUT7: 0 | AUV7: 0 | AUW7: 0 | AUY7: 0 | AUZ7: 0 | AVB7: 0 | AVC7: 0 | AVE7: 0 | AVF7: 0 | AVH7: 0 | AVI7: 0 | AVK7: 0 | AVL7: 0 | AVN7: 0 | AVO7: 0 | AVQ7: 0 | AVR7: 0 | AVT7: 0 | AVU7: 0 | AVW7: 0 | AVX7: 0 | AVZ7: 0 | AWA7: 0 | AWC7: 0 | AWD7: 0 | AWF7: 0 | AWG7: 0 | AWI7: 0 | AWJ7: 0 | AWL7: 0 | AWM7: 0 | AWO7: 0 | AWP7: 0 | AWR7: 0 | AWS7: 0 | AWU7: 0 | AWV7: 0 | AWX7: 0 | AWY7: 0 | AXA7: 0 | AXB7: 0 | AXD7: 0 | AXE7: 0 | AXG7: 0 | AXH7: 0 | AXJ7: 0 | AXK7: 0 | AXM7: 0 | AXN7: 0 | AXP7: 0 | AXQ7: 0 | AXS7: 0 | AXT7: 0 | AXV7: 0 | AXW7: 0 | AXY7: 0 | AXZ7: 0 | AYB7: 0 | AYC7: 0 | AYE7: 0 | AYF7: 0 | AYH7: 0 | AYI7: 0 | AYK7: 0 | AYL7: 0 | AYN7: 0 | AYO7: 0 | AYQ7: 0 | AYR7: 0 | AYT7: 0.0202 | AYU7: 0.0001 | AYW7: 0 | AYX7: 0 | AYZ7: 0 | AZA7: 0 | AZC7: 0 | AZD7: 0 | AZF7: 0 | AZG7: 0 | AZI7: 0 | AZJ7: 0 | AZL7: 0 | AZM7: 0 | AZO7: 0 | AZP7: 0 | AZR7: 0 | AZS7: 0 | AZU7: 0 | AZV7: 0 | AZX7: 0 | AZY7: 0 | BAA7: 0 | BAB7: 0 | BAD7: 0 | BAE7: 0 | BAG7: 0 | BAH7: 0 | BAJ7: 0 | BAK7: 0 | BAM7: 0 | BAN7: 0 | BAP7: 0 | BAQ7: 0 | BAS7: 0 | BAT7: 0 | BAV7: 0 | BAW7: 0 | BAY7: 0 | BAZ7: 0 | BBB7: 0 | BBC7: 0 | BBE7: 0 | BBF7: 0 | BBH7: 0 | BBI7: 0 | BBK7: 0 | BBL7: 0 | BBN7: 0 | BBO7: 0 | BBQ7: 0 | BBR7: 0 | BBT7: 0 | BBU7: 0 | BBW7: 0 | BBX7: 0 | BBZ7: 0 | BCA7: 0 | BCC7: 0 | BCD7: 0 | BCF7: 0 | BCG7: 0 | BCI7: 0 | BCJ7: 0 | BCL7: 0 | BCM7: 0 | BCO7: 0 | BCP7: 0 | BCR7: 0 | BCS7: 0 | BCU7: 0 | BCV7: 0 | BCX7: 0 | BCY7: 0 | BDA7: 0 | BDB7: 0 | BDD7: 0 | BDE7: 0 | BDG7: 0 | BDH7: 0 | BDJ7: 0 | BDK7: 0 | BDM7: 0 | BDN7: 0 | BDP7: 0 | BDQ7: 0 | BDS7: 0 | BDT7: 0 | BDV7: 0 | BDW7: 0 | BDY7: 0 | BDZ7: 0 | BEB7: 0 | BEC7: 0 | BEE7: 0 | BEF7: 0 | BEH7: 0 | BEI7: 0 | BEK7: 0 | BEL7: 0 | BEN7: 0 | BEO7: 0 | BEQ7: 0 | BER7: 0 | BET7: 0 | BEU7: 0 | BEW7: 0 | BEX7: 0 | BEZ7: 0 | BFA7: 0 | BFC7: 0 | BFD7: 0 | BFF7: 0 | BFG7: 0 | BFI7: 0 | BFJ7: 0 | BFL7: 0 | BFM7: 0 | BFO7: 0 | BFP7: 0 | BFR7: 0 | BFS7: 0 | BFU7: 0 | BFV7: 0 | BFX7: 0 | BFY7: 0 | BGA7: 0.0926 | BGB7: 0.0001 | BGD7: 0.0612 | BGE7: 0.0001 | BGG7: 0.0673 | BGH7: 0.0001 | BGJ7: 0.0673 | BGK7: 0.0001 | BGM7: 0.0612 | BGN7: 0.0001 | BGP7: 0.0815 | BGQ7: 0.0001 | BGS7: 0.0815 | BGT7: 0.0001 | BGV7: 0.1018 | BGW7: 0.0001 | BGY7: 0.0926 | BGZ7: 0.0001 | BHB7: 0.0827 | BHC7: 0.0001 | BHE7: 0.1018 | BHF7: 0.0001 | BHH7: 0.1221 | BHI7: 0.0001 | BHK7: 0.1423 | BHL7: 0.0001 | BHN7: 0.1295 | BHO7: 0.0001 | BHQ7: 0.1157 | BHR7: 0.0001 | BHT7: 0.1057 | BHU7: 0.0001 | BHW7: 0.16 | BHX7: 0.0008 | BHZ7: 0.16 | BIA7: 0.0066 | BIC7: 0.16 | BID7: 0.0024 | BIF7: 0.1486 | BIG7: 0.0001 | BII7: 0.1359 | BIJ7: 0.0001 | BIL7: 0.1322 | BIM7: 0.0001 | BIO7: 0 | BIP7: 0 | BIR7: 0 | BIS7: 0 | BIU7: 0 | BIV7: 0 | BIX7: 0 | BIY7: 0 | BJA7: 0 | BJB7: 0 | BJD7: 0 | BJE7: 0 | BJG7: 0 | BJH7: 0 | BJJ7: 0 | BJK7: 0 | BJM7: 0.0699 | BJN7: 0.175 | BJP7: 0 | BJQ7: 0 | BJS7: 0 | BJT7: 0 | BJV7: 0 | BJW7: 0 | BJY7: 0 | BJZ7: 0 | BKB7: 0 | BKC7: 0 | BKE7: 0 | BKF7: 0 | BKH7: 0 | BKI7: 0 | BKK7: 0 | BKL7: 0 | BKN7: 0 | BKO7: 0 | BKQ7: 0 | BKR7: 0 | BKT7: 0 | BKU7: 0 | BKW7: 0 | BKX7: 0 | BKZ7: 0 | BLA7: 0 | BLC7: 0 | BLD7: 0 | BLF7: 0 | BLG7: 0 | BLI7: 0 | BLJ7: 0 | BLL7: 0 | BLM7: 0 | BLO7: 0 | BLP7: 0 | BLR7: 0 | BLS7: 0 | BLU7: 0.0699 | BLV7: 0.0211 | BLX7: 0.0699 | BLY7: 0.0211 | BMA7: 0.0699 | BMB7: 0.0329 | BMD7: 0.0699 | BME7: 0.0329 | BMG7: 0 | BMH7: 0 | BMJ7: 0.0699 | BMK7: 0.0094 | BMM7: 0.0699 | BMN7: 0.0153 | BMP7: 0.0699 | BMQ7: 0.0153 | BMS7: 0.0699 | BMT7: 0.0211 | BMV7: 0.0699 | BMW7: 0.0211 | BMY7: 0.0699 | BMZ7: 0.027 | BNB7: 0.0699 | BNC7: 0.027 | BNE7: 0.0699 | BNF7: 0.0328 | BNH7: 0.0699 | BNI7: 0.0328 | BNK7: 0.0699 | BNL7: 0.0329 | BNN7: 0.0699 | BNO7: 0.0329 | BNQ7: 0.0699 | BNR7: 0.0426 | BNT7: 0.0699 | BNU7: 0.0426 | BNW7: 0.0699 | BNX7: 0.0502 | BNZ7: 0.0699 | BOA7: 0.0502 | BOC7: 0.0699 | BOD7: 0.0388 | BOF7: 0.0699 | BOG7: 0.0388 | BOI7: 0.0699 | BOJ7: 0.0447 | BOL7: 0.0699 | BOM7: 0.0447 | BOO7: 0.0699 | BOP7: 0.0505 | BOR7: 0.0699 | BOS7: 0.0505 | BOU7: 0.0699 | BOV7: 0.0675 | BOX7: 0.0699 | BOY7: 0.0564 | BPA7: 0.0699 | BPB7: 0.0564 | BPD7: 0.0699 | BPE7: 0.0631 | BPG7: 0.0699 | BPH7: 0.0697 | BPJ7: 0.0699 | BPK7: 0.0762 | BPM7: 0.0699 | BPN7: 0.0623 | BPP7: 0.0699 | BPQ7: 0.0623 | BPS7: 0.0699 | BPT7: 0.0849 | BPV7: 0.0699 | BPW7: 0.0682 | BPY7: 0.0699 | BPZ7: 0.0682 | BQB7: 0.0699 | BQC7: 0.074 | BQE7: 0.0699 | BQF7: 0.074 | BQH7: 0.0699 | BQI7: 0.0799 | BQK7: 0.0699 | BQL7: 0.0799 | BQN7: 0.0699 | BQO7: 0.0858 | BQQ7: 0.0699 | BQR7: 0.0858 | BQT7: 0.0699 | BQU7: 0.0917 | BQW7: 0.0699 | BQX7: 0.0917 | BQZ7: 0.0699 | BRA7: 0.0976 | BRC7: 0.0699 | BRD7: 0.0976 | BRF7: 0.0699 | BRG7: 0.1093 | BRI7: 0.0699 | BRJ7: 0.127 | BRL7: 0.0699 | BRM7: 0.1446 | BRO7: 0 | BRP7: 0
A8: 7 | B8: 0 | C8: 0 | E8: 0 | F8: 0 | H8: 0 | I8: 0 | K8: 0 | L8: 0 | N8: 0 | O8: 0 | Q8: 0 | R8: 0 | T8: 0 | U8: 0 | W8: 0 | X8: 0 | Z8: 0 | AA8: 0 | AC8: 0.021 | AD8: 0.0001 | AF8: 0.145 | AG8: 0.0001 | AI8: 0.0419 | AJ8: 0.0001 | AL8: 0.16 | AM8: 0.0019 | AO8: 0.0523 | AP8: 0.0001 | AR8: 0.0627 | AS8: 0.0001 | AU8: 0.1245 | AV8: 0.0001 | AX8: 0.16 | AY8: 0.0086 | BA8: 0.0728 | BB8: 0.0001 | BD8: 0.0832 | BE8: 0.0001 | BG8: 0.0935 | BH8: 0.0001 | BJ8: 0.1038 | BK8: 0.0001 | BM8: 0.1245 | BN8: 0.0001 | BP8: 0.145 | BQ8: 0.0001 | BS8: 0.0935 | BT8: 0.0001 | BV8: 0.1038 | BW8: 0.0001 | BY8: 0.1038 | BZ8: 0.0001 | CB8: 0.1245 | CC8: 0.0001 | CE8: 0.145 | CF8: 0.0001 | CH8: 0.16 | CI8: 0.0019 | CK8: 0.1142 | CL8: 0.0001 | CN8: 0.1245 | CO8: 0.0001 | CQ8: 0.1347 | CR8: 0.0001 | CT8: 0.16 | CU8: 0.0019 | CW8: 0.16 | CX8: 0.0086 | CZ8: 0.145 | DA8: 0.0001 | DC8: 0.1552 | DD8: 0.0001 | DF8: 0.16 | DG8: 0.0019 | DI8: 0.16 | DJ8: 0.0086 | DL8: 0.1552 | DM8: 0.0001 | DO8: 0.16 | DP8: 0.0019 | DR8: 0.16 | DS8: 0.0019 | DU8: 0.16 | DV8: 0.0052 | DX8: 0.16 | DY8: 0.0086 | EA8: 0.16 | EB8: 0.0152 | ED8: 0.16 | EE8: 0.0086 | EG8: 0.16 | EH8: 0.0086 | EJ8: 0.16 | EK8: 0.0119 | EM8: 0.16 | EN8: 0.0152 | EP8: 0.16 | EQ8: 0.0218 | ES8: 0.16 | ET8: 0.0119 | EV8: 0.16 | EW8: 0.0351 | EY8: 0.16 | EZ8: 0.055 | FB8: 0.0419 | FC8: 0.0001 | FE8: 0.0832 | FF8: 0.0001 | FH8: 0.1245 | FI8: 0.0001 | FK8: 0 | FL8: 0 | FN8: 0.0574 | FO8: 0.0001 | FQ8: 0.0667 | FR8: 0.0001 | FT8: 0.0762 | FU8: 0.0001 | FW8: 0.0857 | FX8: 0.0001 | FZ8: 0.0952 | GA8: 0.0001 | GC8: 0.1047 | GD8: 0.0001 | GF8: 0.1141 | GG8: 0.0001 | GI8: 0.133 | GJ8: 0.0001 | GL8: 0.1519 | GM8: 0.0001 | GO8: 0.16 | GP8: 0.0044 | GR8: 0.16 | GS8: 0.0119 | GU8: 0.16 | GV8: 0.0194 | GX8: 0.16 | GY8: 0.0269 | HA8: 0.16 | HB8: 0.0306 | HD8: 0.16 | HE8: 0.0344 | HG8: 0.16 | HH8: 0.0419 | HJ8: 0.16 | HK8: 0.0494 | HM8: 0.16 | HN8: 0.0569 | HP8: 0.16 | HQ8: 0.0606 | HS8: 0.16 | HT8: 0.0643 | HV8: 0.16 | HW8: 0.0718 | HY8: 0.16 | HZ8: 0.0868 | IB8: 0 | IC8: 0 | IE8: 0.0539 | IF8: 0.0001 | IH8: 0.0626 | II8: 0.0001 | IK8: 0.0716 | IL8: 0.0001 | IN8: 0.0805 | IO8: 0.0001 | IQ8: 0.0894 | IR8: 0.0001 | IT8: 0.1072 | IU8: 0.0001 | IW8: 0.125 | IX8: 0.0001 | IZ8: 0.1427 | JA8: 0.0001 | JC8: 0.16 | JD8: 0.0003 | JF8: 0.16 | JG8: 0.0086 | JI8: 0.16 | JJ8: 0.017 | JL8: 0.16 | JM8: 0.0253 | JO8: 0.16 | JP8: 0.0295 | JR8: 0.16 | JS8: 0.0336 | JU8: 0.16 | JV8: 0.042 | JX8: 0.16 | JY8: 0.0503 | KA8: 0.16 | KB8: 0.0586 | KD8: 0.16 | KE8: 0.0628 | KG8: 0.16 | KH8: 0.0669 | KJ8: 0 | KK8: 0 | KM8: 0.0514 | KN8: 0.0001 | KP8: 0.0597 | KQ8: 0.0001 | KS8: 0.0682 | KT8: 0.0001 | KV8: 0.0767 | KW8: 0.0001 | KY8: 0.0852 | KZ8: 0.0001 | LB8: 0.0937 | LC8: 0.0001 | LE8: 0.1022 | LF8: 0.0001 | LH8: 0.1192 | LI8: 0.0001 | LK8: 0.1361 | LL8: 0.0001 | LN8: 0.153 | LO8: 0.0001 | LQ8: 0.16 | LR8: 0.0055 | LT8: 0.16 | LU8: 0.0146 | LW8: 0.16 | LX8: 0.0238 | LZ8: 0.16 | MA8: 0.0283 | MC8: 0.16 | MD8: 0.0329 | MF8: 0.16 | MG8: 0.0421 | MI8: 0.16 | MJ8: 0.0512 | ML8: 0.16 | MM8: 0.0603 | MO8: 0.16 | MP8: 0.0649 | MR8: 0.16 | MS8: 0.0695 | MU8: 0.16 | MV8: 0.0786 | MX8: 0.16 | MY8: 0.0969 | NA8: 0.0495 | NB8: 0.0001 | ND8: 0.0575 | NE8: 0.0001 | NG8: 0.0821 | NH8: 0.0001 | NJ8: 0 | NK8: 0 | NM8: 0.0622 | NN8: 0.0001 | NP8: 0.0777 | NQ8: 0.0001 | NS8: 0.0932 | NT8: 0.0001 | NV8: 0.1087 | NW8: 0.0001 | NY8: 0.1242 | NZ8: 0.0001 | OB8: 0.1397 | OC8: 0.0001 | OE8: 0.1551 | OF8: 0.0001 | OH8: 0.16 | OI8: 0.008 | OK8: 0.16 | OL8: 0.0194 | ON8: 0.16 | OO8: 0.0309 | OQ8: 0.16 | OR8: 0.0423 | OT8: 0.16 | OU8: 0.0538 | OW8: 0.16 | OX8: 0.1111 | OZ8: 0.0897 | PA8: 0.0001 | PC8: 0.1046 | PD8: 0.0001 | PF8: 0 | PG8: 0 | PI8: 0.052 | PJ8: 0.0001 | PL8: 0.05 | PM8: 0 | PO8: 0.052 | PP8: 0.0001 | PR8: 0.0599 | PS8: 0 | PU8: 0.0625 | PV8: 0 | PX8: 0.065 | PY8: 0 | QA8: 0 | QB8: 0.021 | QD8: 0.072 | QE8: 0 | QG8: 0.0606 | QH8: 0.0001 | QJ8: 0.1038 | QK8: 0.0001 | QM8: 0 | QN8: 0 | QP8: 0.0855 | QQ8: 0.0001 | QS8: 0.1038 | QT8: 0.0001 | QV8: 0.0824 | QW8: 0.0001 | QY8: 0.095 | QZ8: 0 | RB8: 0.0954 | RC8: 0.0001 | RE8: 0.1245 | RF8: 0.0001 | RH8: 0.072 | RI8: 0.0075 | RK8: 0.0762 | RL8: 0.0001 | RN8: 0.1245 | RO8: 0.0001 | RQ8: 0.0954 | RR8: 0.0001 | RT8: 0.0886 | RU8: 0.0001 | RW8: 0.1039 | RX8: 0.0001 | RZ8: 0.072 | SA8: 0.0195 | SC8: 0.145 | SD8: 0.0001 | SF8: 0.16 | SG8: 0.0524 | SI8: 0.1072 | SJ8: 0.0001 | SL8: 0.1041 | SM8: 0.0001 | SO8: 0.16 | SP8: 0.0019 | SR8: 0.1412 | SS8: 0.0001 | SU8: 0.16 | SV8: 0.0059 | SX8: 0.16 | SY8: 0.0152 | TA8: 0.1366 | TB8: 0.0001 | TD8: 0.16 | TE8: 0.0086 | TG8: 0.16 | TH8: 0.0218 | TJ8: 0.16 | TK8: 0.0484 | TM8: 0.16 | TN8: 0.146 | TP8: 0.16 | TQ8: 0.0351 | TS8: 0.16 | TT8: 0.0418 | TV8: 0.16 | TW8: 0.0484 | TY8: 0.16 | TZ8: 0.055 | UB8: 0.16 | UC8: 0.0683 | UE8: 0.16 | UF8: 0.075 | UH8: 0.16 | UI8: 0.0882 | UK8: 0.0454 | UL8: 0 | UN8: 0.057 | UO8: 0 | UQ8: 0.0615 | UR8: 0 | UT8: 0 | UU8: 0.03 | UW8: 0.0855 | UX8: 0.0001 | UZ8: 0.0777 | VA8: 0.0001 | VC8: 0.0699 | VD8: 0 | VF8: 0.16 | VG8: 0.0052 | VI8: 0.16 | VJ8: 0.0019 | VL8: 0.1519 | VM8: 0.0001 | VO8: 0.16 | VP8: 0.0218 | VR8: 0.0994 | VS8: 0.0001 | VU8: 0.1073 | VV8: 0.0001 | VX8: 0.16 | VY8: 0.1201 | WA8: 0.16 | WB8: 0.0086 | WD8: 0.16 | WE8: 0.0086 | WG8: 0.16 | WH8: 0.0218 | WJ8: 0.16 | WK8: 0.0218 | WM8: 0.16 | WN8: 0.0484 | WP8: 0.16 | WQ8: 0.055 | WS8: 0.16 | WT8: 0.075 | WV8: 0.16 | WW8: 0.0617 | WY8: 0 | WZ8: 0 | XB8: 0.16 | XC8: 0.0019 | XE8: 0.0994 | XF8: 0.0001 | XH8: 0.1245 | XI8: 0.0001 | XK8: 0.125 | XL8: 0 | XN8: 0.1347 | XO8: 0.0001 | XQ8: 0.1277 | XR8: 0.0001 | XT8: 0.1497 | XU8: 0.0001 | XW8: 0 | XX8: 0 | XZ8: 0.16 | YA8: 0.0285 | YC8: 0.16 | YD8: 0.055 | YF8: 0.16 | YG8: 0.055 | YI8: 0.0675 | YJ8: 0 | YL8: 0.1245 | YM8: 0.0001 | YO8: 0.1005 | YP8: 0.0001 | YR8: 0.1245 | YS8: 0.0001 | YU8: 0.1141 | YV8: 0.0001 | YX8: 0.16 | YY8: 0.0218 | ZA8: 0.16 | ZB8: 0.0285 | ZD8: 0.16 | ZE8: 0.0351 | ZG8: 0.16 | ZH8: 0.0009 | ZJ8: 0.16 | ZK8: 0.0285 | ZM8: 0.16 | ZN8: 0.0617 | ZP8: 0.16 | ZQ8: 0.0351 | ZS8: 0.0762 | ZT8: 0.0001 | ZV8: 0.0994 | ZW8: 0.0001 | ZY8: 0.0855 | ZZ8: 0.0001 | AAB8: 0.16 | AAC8: 0.0019 | AAE8: 0.16 | AAF8: 0.0086 | AAH8: 0.16 | AAI8: 0.0152 | AAK8: 0.16 | AAL8: 0.0418 | AAN8: 0.16 | AAO8: 0.0218 | AAQ8: 0.16 | AAR8: 0.0683 | AAT8: 0.16 | AAU8: 0.0418 | AAW8: 0.0894 | AAX8: 0.0001 | AAZ8: 0.1038 | ABA8: 0.0001 | ABC8: 0.16 | ABD8: 0.0484 | ABF8: 0 | ABG8: 0 | ABI8: 0 | ABJ8: 0 | ABL8: 0 | ABM8: 0 | ABO8: 0 | ABP8: 0 | ABR8: 0.16 | ABS8: 0.0218 | ABU8: 0.16 | ABV8: 0.0101 | ABX8: 0.16 | ABY8: 0.0617 | ACA8: 0.16 | ACB8: 0.0285 | ACD8: 0.0852 | ACE8: 0.0001 | ACG8: 0.16 | ACH8: 0.0512 | ACJ8: 0.16 | ACK8: 0.0285 | ACM8: 0 | ACN8: 0 | ACP8: 0 | ACQ8: 0 | ACS8: 0.16 | ACT8: 0.0418 | ACV8: 0.16 | ACW8: 0.0617 | ACY8: 0.16 | ACZ8: 0.0086 | ADB8: 0.16 | ADC8: 0.0923 | ADE8: 0.1258 | ADF8: 0.0001 | ADH8: 0 | ADI8: 0 | ADK8: 0.16 | ADL8: 0.0285 | ADN8: 0.145 | ADO8: 0.0001 | ADQ8: 0.16 | ADR8: 0.0152 | ADT8: 0.1366 | ADU8: 0.0001 | ADW8: 0.1459 | ADX8: 0.0001 | ADZ8: 0.16 | AEA8: 0.0218 | AEC8: 0.1038 | AED8: 0.0001 | AEF8: 0.16 | AEG8: 0.0152 | AEI8: 0.1192 | AEJ8: 0.0001 | AEL8: 0.0839 | AEM8: 0.0001 | AEO8: 0.16 | AEP8: 0.0019 | AER8: 0.16 | AES8: 0.0148 | AEU8: 0.0994 | AEV8: 0.0001 | AEX8: 0.1245 | AEY8: 0.0001 | AFA8: 0.16 | AFB8: 0.0584 | AFD8: 0.16 | AFE8: 0.0245 | AFG8: 0 | AFH8: 0 | AFJ8: 0 | AFK8: 0.07 | AFM8: 0.1327 | AFN8: 0.0001 | AFP8: 0.16 | AFQ8: 0.1015 | AFS8: 0.16 | AFT8: 0.0086 | AFV8: 0.153 | AFW8: 0.0001 | AFY8: 0.1397 | AFZ8: 0.0001 | AGB8: 0.0419 | AGC8: 0.0001 | AGE8: 0.16 | AGF8: 0.0152 | AGH8: 0.16 | AGI8: 0.0218 | AGK8: 0.16 | AGL8: 0.0285 | AGN8: 0.16 | AGO8: 0.0152 | AGQ8: 0.16 | AGR8: 0.0351 | AGT8: 0.16 | AGU8: 0.0218 | AGW8: 0.16 | AGX8: 0.0418 | AGZ8: 0.16 | AHA8: 0.0285 | AHC8: 0.16 | AHD8: 0.0484 | AHF8: 0.16 | AHG8: 0.0152 | AHI8: 0.16 | AHJ8: 0.0152 | AHL8: 0.16 | AHM8: 0.0218 | AHO8: 0.16 | AHP8: 0.0285 | AHR8: 0.16 | AHS8: 0.0351 | AHU8: 0.16 | AHV8: 0.055 | AHX8: 0.16 | AHY8: 0.0185 | AIA8: 0.16 | AIB8: 0.0218 | AID8: 0.16 | AIE8: 0.0218 | AIG8: 0.16 | AIH8: 0.0252 | AIJ8: 0.16 | AIK8: 0.0285 | AIM8: 0.16 | AIN8: 0.0418 | AIP8: 0.16 | AIQ8: 0.0617 | AIS8: 0.16 | AIT8: 0.0285 | AIV8: 0.16 | AIW8: 0.0285 | AIY8: 0.16 | AIZ8: 0.0484 | AJB8: 0.16 | AJC8: 0.0683 | AJE8: 0.16 | AJF8: 0.0318 | AJH8: 0.16 | AJI8: 0.0351 | AJK8: 0.16 | AJL8: 0.0351 | AJN8: 0.16 | AJO8: 0.055 | AJQ8: 0.16 | AJR8: 0.075 | AJT8: 0.16 | AJU8: 0.0418 | AJW8: 0.16 | AJX8: 0.0418 | AJZ8: 0.16 | AKA8: 0.0617 | AKC8: 0.16 | AKD8: 0.0484 | AKF8: 0.16 | AKG8: 0.0484 | AKI8: 0.16 | AKJ8: 0.0683 | AKL8: 0.16 | AKM8: 0.055 | AKO8: 0.16 | AKP8: 0.055 | AKR8: 0.16 | AKS8: 0.075 | AKU8: 0.16 | AKV8: 0.0584 | AKX8: 0.16 | AKY8: 0.0617 | ALA8: 0.16 | ALB8: 0.0617 | ALD8: 0.16 | ALE8: 0.0683 | ALG8: 0.16 | ALH8: 0.0683 | ALJ8: 0.16 | ALK8: 0.075 | ALM8: 0.16 | ALN8: 0.075 | ALP8: 0.16 | ALQ8: 0.0816 | ALS8: 0.16 | ALT8: 0.0816 | ALV8: 0.16 | ALW8: 0.0816 | ALY8: 0.16 | ALZ8: 0.0816 | AMB8: 0.16 | AMC8: 0.0823 | AME8: 0.16 | AMF8: 0.0823 | AMH8: 0.16 | AMI8: 0.0882 | AMK8: 0.16 | AML8: 0.0882 | AMN8: 0.16 | AMO8: 0.0949 | AMQ8: 0.16 | AMR8: 0.0949 | AMT8: 0.16 | AMU8: 0.1015 | AMW8: 0.16 | AMX8: 0.1015 | AMZ8: 0.16 | ANA8: 0.1082 | ANC8: 0.16 | AND8: 0.1082 | ANF8: 0.16 | ANG8: 0.1148 | ANI8: 0.16 | ANJ8: 0.1148 | ANL8: 0.16 | ANM8: 0.1214 | ANO8: 0.16 | ANP8: 0.1347 | ANR8: 0 | ANS8: 0 | ANU8: 0 | ANV8: 0 | ANX8: 0 | ANY8: 0 | AOA8: 0 | AOB8: 0 | AOD8: 0.0637 | AOE8: 0 | AOG8: 0.0583 | AOH8: 0 | AOJ8: 0.0547 | AOK8: 0 | AOM8: 0.0521 | AON8: 0 | AOP8: 0.0475 | AOQ8: 0 | AOS8: 0 | AOT8: 0 | AOV8: 0 | AOW8: 0 | AOY8: 0 | AOZ8: 0 | APB8: 0 | APC8: 0 | APE8: 0.057 | APF8: 0 | APH8: 0.057 | API8: 0 | APK8: 0.057 | APL8: 0 | APN8: 0.057 | APO8: 0 | APQ8: 0.057 | APR8: 0 | APT8: 0.0731 | APU8: 0 | APW8: 0.067 | APX8: 0 | APZ8: 0.0628 | AQA8: 0 | AQC8: 0.0599 | AQD8: 0 | AQF8: 0.0546 | AQG8: 0 | AQI8: 0.0731 | AQJ8: 0 | AQL8: 0.067 | AQM8: 0 | AQO8: 0.0628 | AQP8: 0 | AQR8: 0.0599 | AQS8: 0 | AQU8: 0.0546 | AQV8: 0 | AQX8: 0.0615 | AQY8: 0 | ARA8: 0.0615 | ARB8: 0 | ARD8: 0.0615 | ARE8: 0 | ARG8: 0.0615 | ARH8: 0 | ARJ8: 0.0615 | ARK8: 0 | ARM8: 0.0599 | ARN8: 0 | ARP8: 0.0599 | ARQ8: 0 | ARS8: 0.0599 | ART8: 0 | ARV8: 0.0599 | ARW8: 0 | ARY8: 0.0599 | ARZ8: 0 | ASB8: 0.0428 | ASC8: 0 | ASE8: 0.077 | ASF8: 0 | ASH8: 0.0705 | ASI8: 0 | ASK8: 0.0662 | ASL8: 0 | ASN8: 0.0631 | ASO8: 0 | ASQ8: 0.072 | ASR8: 0 | AST8: 0.072 | ASU8: 0 | ASW8: 0.072 | ASX8: 0 | ASZ8: 0.072 | ATA8: 0 | ATC8: 0.072 | ATD8: 0 | ATF8: 0.072 | ATG8: 0 | ATI8: 0 | ATJ8: 0 | ATL8: 0 | ATM8: 0 | ATO8: 0 | ATP8: 0 | ATR8: 0 | ATS8: 0 | ATU8: 0 | ATV8: 0 | ATX8: 0 | ATY8: 0 | AUA8: 0 | AUB8: 0 | AUD8: 0 | AUE8: 0 | AUG8: 0 | AUH8: 0 | AUJ8: 0 | AUK8: 0 | AUM8: 0 | AUN8: 0 | AUP8: 0 | AUQ8: 0 | AUS8: 0 | AUT8: 0 | AUV8: 0 | AUW8: 0 | AUY8: 0 | AUZ8: 0 | AVB8: 0 | AVC8: 0 | AVE8: 0 | AVF8: 0 | AVH8: 0 | AVI8: 0 | AVK8: 0 | AVL8: 0 | AVN8: 0 | AVO8: 0 | AVQ8: 0 | AVR8: 0 | AVT8: 0 | AVU8: 0 | AVW8: 0 | AVX8: 0 | AVZ8: 0 | AWA8: 0 | AWC8: 0 | AWD8: 0 | AWF8: 0 | AWG8: 0 | AWI8: 0 | AWJ8: 0 | AWL8: 0 | AWM8: 0 | AWO8: 0 | AWP8: 0 | AWR8: 0 | AWS8: 0 | AWU8: 0 | AWV8: 0 | AWX8: 0 | AWY8: 0 | AXA8: 0 | AXB8: 0 | AXD8: 0 | AXE8: 0 | AXG8: 0 | AXH8: 0 | AXJ8: 0 | AXK8: 0 | AXM8: 0 | AXN8: 0 | AXP8: 0 | AXQ8: 0 | AXS8: 0 | AXT8: 0 | AXV8: 0 | AXW8: 0 | AXY8: 0 | AXZ8: 0 | AYB8: 0 | AYC8: 0 | AYE8: 0 | AYF8: 0 | AYH8: 0 | AYI8: 0 | AYK8: 0 | AYL8: 0 | AYN8: 0 | AYO8: 0 | AYQ8: 0 | AYR8: 0 | AYT8: 0.0207 | AYU8: 0.0001 | AYW8: 0 | AYX8: 0 | AYZ8: 0 | AZA8: 0 | AZC8: 0 | AZD8: 0 | AZF8: 0 | AZG8: 0 | AZI8: 0 | AZJ8: 0 | AZL8: 0 | AZM8: 0 | AZO8: 0 | AZP8: 0 | AZR8: 0 | AZS8: 0 | AZU8: 0 | AZV8: 0 | AZX8: 0 | AZY8: 0 | BAA8: 0 | BAB8: 0 | BAD8: 0 | BAE8: 0 | BAG8: 0 | BAH8: 0 | BAJ8: 0 | BAK8: 0 | BAM8: 0 | BAN8: 0 | BAP8: 0 | BAQ8: 0 | BAS8: 0 | BAT8: 0 | BAV8: 0 | BAW8: 0 | BAY8: 0 | BAZ8: 0 | BBB8: 0 | BBC8: 0 | BBE8: 0 | BBF8: 0 | BBH8: 0 | BBI8: 0 | BBK8: 0 | BBL8: 0 | BBN8: 0 | BBO8: 0 | BBQ8: 0 | BBR8: 0 | BBT8: 0 | BBU8: 0 | BBW8: 0 | BBX8: 0 | BBZ8: 0 | BCA8: 0 | BCC8: 0 | BCD8: 0 | BCF8: 0 | BCG8: 0 | BCI8: 0 | BCJ8: 0 | BCL8: 0 | BCM8: 0 | BCO8: 0 | BCP8: 0 | BCR8: 0 | BCS8: 0 | BCU8: 0 | BCV8: 0 | BCX8: 0 | BCY8: 0 | BDA8: 0 | BDB8: 0 | BDD8: 0 | BDE8: 0 | BDG8: 0 | BDH8: 0 | BDJ8: 0 | BDK8: 0 | BDM8: 0 | BDN8: 0 | BDP8: 0 | BDQ8: 0 | BDS8: 0 | BDT8: 0 | BDV8: 0 | BDW8: 0 | BDY8: 0 | BDZ8: 0 | BEB8: 0 | BEC8: 0 | BEE8: 0 | BEF8: 0 | BEH8: 0 | BEI8: 0 | BEK8: 0 | BEL8: 0 | BEN8: 0 | BEO8: 0 | BEQ8: 0 | BER8: 0 | BET8: 0 | BEU8: 0 | BEW8: 0 | BEX8: 0 | BEZ8: 0 | BFA8: 0 | BFC8: 0 | BFD8: 0 | BFF8: 0 | BFG8: 0 | BFI8: 0 | BFJ8: 0 | BFL8: 0 | BFM8: 0 | BFO8: 0 | BFP8: 0 | BFR8: 0 | BFS8: 0 | BFU8: 0 | BFV8: 0 | BFX8: 0 | BFY8: 0 | BGA8: 0.0952 | BGB8: 0.0001 | BGD8: 0.0624 | BGE8: 0.0001 | BGG8: 0.0687 | BGH8: 0.0001 | BGJ8: 0.0687 | BGK8: 0.0001 | BGM8: 0.0624 | BGN8: 0.0001 | BGP8: 0.0832 | BGQ8: 0.0001 | BGS8: 0.0832 | BGT8: 0.0001 | BGV8: 0.1038 | BGW8: 0.0001 | BGY8: 0.0952 | BGZ8: 0.0001 | BHB8: 0.0852 | BHC8: 0.0001 | BHE8: 0.1038 | BHF8: 0.0001 | BHH8: 0.1245 | BHI8: 0.0001 | BHK8: 0.145 | BHL8: 0.0001 | BHN8: 0.133 | BHO8: 0.0001 | BHQ8: 0.1192 | BHR8: 0.0001 | BHT8: 0.1087 | BHU8: 0.0001 | BHW8: 0.16 | BHX8: 0.0019 | BHZ8: 0.16 | BIA8: 0.0086 | BIC8: 0.16 | BID8: 0.0044 | BIF8: 0.153 | BIG8: 0.0001 | BII8: 0.1397 | BIJ8: 0.0001 | BIL8: 0.1347 | BIM8: 0.0001 | BIO8: 0 | BIP8: 0 | BIR8: 0 | BIS8: 0 | BIU8: 0 | BIV8: 0 | BIX8: 0 | BIY8: 0 | BJA8: 0 | BJB8: 0 | BJD8: 0 | BJE8: 0 | BJG8: 0 | BJH8: 0 | BJJ8: 0 | BJK8: 0 | BJM8: 0.0699 | BJN8: 0.18 | BJP8: 0 | BJQ8: 0 | BJS8: 0 | BJT8: 0 | BJV8: 0 | BJW8: 0 | BJY8: 0 | BJZ8: 0 | BKB8: 0 | BKC8: 0 | BKE8: 0 | BKF8: 0 | BKH8: 0 | BKI8: 0 | BKK8: 0 | BKL8: 0 | BKN8: 0 | BKO8: 0 | BKQ8: 0 | BKR8: 0 | BKT8: 0 | BKU8: 0 | BKW8: 0 | BKX8: 0 | BKZ8: 0 | BLA8: 0 | BLC8: 0 | BLD8: 0 | BLF8: 0 | BLG8: 0 | BLI8: 0 | BLJ8: 0 | BLL8: 0 | BLM8: 0 | BLO8: 0 | BLP8: 0 | BLR8: 0 | BLS8: 0 | BLU8: 0.0699 | BLV8: 0.025 | BLX8: 0.0699 | BLY8: 0.025 | BMA8: 0.0699 | BMB8: 0.0387 | BMD8: 0.0699 | BME8: 0.0387 | BMG8: 0 | BMH8: 0 | BMJ8: 0.0699 | BMK8: 0.0113 | BMM8: 0.0699 | BMN8: 0.0182 | BMP8: 0.0699 | BMQ8: 0.0182 | BMS8: 0.0699 | BMT8: 0.025 | BMV8: 0.0699 | BMW8: 0.025 | BMY8: 0.0699 | BMZ8: 0.0319 | BNB8: 0.0699 | BNC8: 0.0319 | BNE8: 0.0699 | BNF8: 0.0376 | BNH8: 0.0699 | BNI8: 0.0376 | BNK8: 0.0699 | BNL8: 0.0387 | BNN8: 0.0699 | BNO8: 0.0387 | BNQ8: 0.0699 | BNR8: 0.0493 | BNT8: 0.0699 | BNU8: 0.0493 | BNW8: 0.0699 | BNX8: 0.0568 | BNZ8: 0.0699 | BOA8: 0.0568 | BOC8: 0.0699 | BOD8: 0.0455 | BOF8: 0.0699 | BOG8: 0.0455 | BOI8: 0.0699 | BOJ8: 0.0524 | BOL8: 0.0699 | BOM8: 0.0524 | BOO8: 0.0699 | BOP8: 0.0592 | BOR8: 0.0699 | BOS8: 0.0592 | BOU8: 0.0699 | BOV8: 0.076 | BOX8: 0.0699 | BOY8: 0.0661 | BPA8: 0.0699 | BPB8: 0.0661 | BPD8: 0.0699 | BPE8: 0.0727 | BPG8: 0.0699 | BPH8: 0.0792 | BPJ8: 0.0699 | BPK8: 0.0856 | BPM8: 0.0699 | BPN8: 0.0729 | BPP8: 0.0699 | BPQ8: 0.0729 | BPS8: 0.0699 | BPT8: 0.0952 | BPV8: 0.0699 | BPW8: 0.0797 | BPY8: 0.0699 | BPZ8: 0.0797 | BQB8: 0.0699 | BQC8: 0.0866 | BQE8: 0.0699 | BQF8: 0.0866 | BQH8: 0.0699 | BQI8: 0.0934 | BQK8: 0.0699 | BQL8: 0.0934 | BQN8: 0.0699 | BQO8: 0.1003 | BQQ8: 0.0699 | BQR8: 0.1003 | BQT8: 0.0699 | BQU8: 0.1071 | BQW8: 0.0699 | BQX8: 0.1071 | BQZ8: 0.0699 | BRA8: 0.1139 | BRC8: 0.0699 | BRD8: 0.1139 | BRF8: 0.0699 | BRG8: 0.1276 | BRI8: 0.0699 | BRJ8: 0.1481 | BRL8: 0.0699 | BRM8: 0.1687 | BRO8: 0 | BRP8: 0
A9: 8 | B9: 0 | C9: 0 | E9: 0 | F9: 0 | H9: 0 | I9: 0 | K9: 0 | L9: 0 | N9: 0 | O9: 0 | Q9: 0 | R9: 0 | T9: 0 | U9: 0 | W9: 0 | X9: 0 | Z9: 0 | AA9: 0 | AC9: 0.0213 | AD9: 0.0001 | AF9: 0.147 | AG9: 0.0001 | AI9: 0.0425 | AJ9: 0.0001 | AL9: 0.16 | AM9: 0.0029 | AO9: 0.0531 | AP9: 0.0001 | AR9: 0.0637 | AS9: 0.0001 | AU9: 0.1262 | AV9: 0.0001 | AX9: 0.16 | AY9: 0.0105 | BA9: 0.0739 | BB9: 0.0001 | BD9: 0.0844 | BE9: 0.0001 | BG9: 0.0949 | BH9: 0.0001 | BJ9: 0.1054 | BK9: 0.0001 | BM9: 0.1262 | BN9: 0.0001 | BP9: 0.147 | BQ9: 0.0001 | BS9: 0.0949 | BT9: 0.0001 | BV9: 0.1054 | BW9: 0.0001 | BY9: 0.1054 | BZ9: 0.0001 | CB9: 0.1262 | CC9: 0.0001 | CE9: 0.147 | CF9: 0.0001 | CH9: 0.16 | CI9: 0.0029 | CK9: 0.1158 | CL9: 0.0001 | CN9: 0.1262 | CO9: 0.0001 | CQ9: 0.1366 | CR9: 0.0001 | CT9: 0.16 | CU9: 0.0029 | CW9: 0.16 | CX9: 0.0105 | CZ9: 0.147 | DA9: 0.0001 | DC9: 0.1574 | DD9: 0.0001 | DF9: 0.16 | DG9: 0.0029 | DI9: 0.16 | DJ9: 0.0105 | DL9: 0.1574 | DM9: 0.0001 | DO9: 0.16 | DP9: 0.0029 | DR9: 0.16 | DS9: 0.0029 | DU9: 0.16 | DV9: 0.0067 | DX9: 0.16 | DY9: 0.0105 | EA9: 0.16 | EB9: 0.018 | ED9: 0.16 | EE9: 0.0105 | EG9: 0.16 | EH9: 0.0105 | EJ9: 0.16 | EK9: 0.0143 | EM9: 0.16 | EN9: 0.018 | EP9: 0.16 | EQ9: 0.0256 | ES9: 0.16 | ET9: 0.0143 | EV9: 0.16 | EW9: 0.0406 | EY9: 0.16 | EZ9: 0.0633 | FB9: 0.0425 | FC9: 0.0001 | FE9: 0.0844 | FF9: 0.0001 | FH9: 0.1262 | FI9: 0.0001 | FK9: 0 | FL9: 0 | FN9: 0.0587 | FO9: 0.0001 | FQ9: 0.0682 | FR9: 0.0001 | FT9: 0.0779 | FU9: 0.0001 | FW9: 0.0876 | FX9: 0.0001 | FZ9: 0.0973 | GA9: 0.0001 | GC9: 0.1069 | GD9: 0.0001 | GF9: 0.1166 | GG9: 0.0001 | GI9: 0.1358 | GJ9: 0.0001 | GL9: 0.155 | GM9: 0.0001 | GO9: 0.16 | GP9: 0.0063 | GR9: 0.16 | GS9: 0.0147 | GU9: 0.16 | GV9: 0.0231 | GX9: 0.16 | GY9: 0.0315 | HA9: 0.16 | HB9: 0.0356 | HD9: 0.16 | HE9: 0.0398 | HG9: 0.16 | HH9: 0.0482 | HJ9: 0.16 | HK9: 0.0566 | HM9: 0.16 | HN9: 0.065 | HP9: 0.16 | HQ9: 0.0692 | HS9: 0.16 | HT9: 0.0733 | HV9: 0.16 | HW9: 0.0817 | HY9: 0.16 | HZ9: 0.0985 | IB9: 0 | IC9: 0 | IE9: 0.0552 | IF9: 0.0001 | IH9: 0.0642 | II9: 0.0001 | IK9: 0.0733 | IL9: 0.0001 | IN9: 0.0825 | IO9: 0.0001 | IQ9: 0.0916 | IR9: 0.0001 | IT9: 0.1098 | IU9: 0.0001 | IW9: 0.128 | IX9: 0.0001 | IZ9: 0.1461 | JA9: 0.0001 | JC9: 0.16 | JD9: 0.0023 | JF9: 0.16 | JG9: 0.0115 | JI9: 0.16 | JJ9: 0.0207 | JL9: 0.16 | JM9: 0.0298 | JO9: 0.16 | JP9: 0.0344 | JR9: 0.16 | JS9: 0.039 | JU9: 0.16 | JV9: 0.0482 | JX9: 0.16 | JY9: 0.0574 | KA9: 0.16 | KB9: 0.0666 | KD9: 0.16 | KE9: 0.0712 | KG9: 0.16 | KH9: 0.0758 | KJ9: 0 | KK9: 0 | KM9: 0.0527 | KN9: 0.0001 | KP9: 0.0613 | KQ9: 0.0001 | KS9: 0.07 | KT9: 0.0001 | KV9: 0.0787 | KW9: 0.0001 | KY9: 0.0874 | KZ9: 0.0001 | LB9: 0.0961 | LC9: 0.0001 | LE9: 0.1048 | LF9: 0.0001 | LH9: 0.1222 | LI9: 0.0001 | LK9: 0.1395 | LL9: 0.0001 | LN9: 0.1568 | LO9: 0.0001 | LQ9: 0.16 | LR9: 0.0083 | LT9: 0.16 | LU9: 0.0183 | LW9: 0.16 | LX9: 0.0283 | LZ9: 0.16 | MA9: 0.0333 | MC9: 0.16 | MD9: 0.0383 | MF9: 0.16 | MG9: 0.0483 | MI9: 0.16 | MJ9: 0.0582 | ML9: 0.16 | MM9: 0.0682 | MO9: 0.16 | MP9: 0.0732 | MR9: 0.16 | MS9: 0.0782 | MU9: 0.16 | MV9: 0.0882 | MX9: 0.16 | MY9: 0.1082 | NA9: 0.0508 | NB9: 0.0001 | ND9: 0.059 | NE9: 0.0001 | NG9: 0.0842 | NH9: 0.0001 | NJ9: 0 | NK9: 0 | NM9: 0.0638 | NN9: 0.0001 | NP9: 0.0797 | NQ9: 0.0001 | NS9: 0.0955 | NT9: 0.0001 | NV9: 0.1114 | NW9: 0.0001 | NY9: 0.1273 | NZ9: 0.0001 | OB9: 0.1431 | OC9: 0.0001 | OE9: 0.1589 | OF9: 0.0001 | OH9: 0.16 | OI9: 0.0115 | OK9: 0.16 | OL9: 0.0238 | ON9: 0.16 | OO9: 0.036 | OQ9: 0.16 | OR9: 0.0483 | OT9: 0.16 | OU9: 0.0606 | OW9: 0.16 | OX9: 0.1219 | OZ9: 0.0918 | PA9: 0.0001 | PC9: 0.1071 | PD9: 0.0001 | PF9: 0 | PG9: 0 | PI9: 0.0528 | PJ9: 0.0001 | PL9: 0.05 | PM9: 0 | PO9: 0.0528 | PP9: 0.0001 | PR9: 0.0599 | PS9: 0 | PU9: 0.0625 | PV9: 0 | PX9: 0.065 | PY9: 0 | QA9: 0 | QB9: 0.024 | QD9: 0.072 | QE9: 0 | QG9: 0.0654 | QH9: 0.0001 | QJ9: 0.1054 | QK9: 0.0001 | QM9: 0 | QN9: 0 | QP9: 0.0844 | QQ9: 0.0001 | QS9: 0.1054 | QT9: 0.0001 | QV9: 0.0828 | QW9: 0.0001 | QY9: 0.095 | QZ9: 0 | RB9: 0.0944 | RC9: 0.0001 | RE9: 0.1262 | RF9: 0.0001 | RH9: 0.072 | RI9: 0.008 | RK9: 0.0781 | RL9: 0.0001 | RN9: 0.1262 | RO9: 0.0001 | RQ9: 0.0979 | RR9: 0.0001 | RT9: 0.0924 | RU9: 0.0001 | RW9: 0.1031 | RX9: 0.0001 | RZ9: 0.072 | SA9: 0.021 | SC9: 0.147 | SD9: 0.0001 | SF9: 0.16 | SG9: 0.0489 | SI9: 0.1082 | SJ9: 0.0001 | SL9: 0.1051 | SM9: 0.0001 | SO9: 0.16 | SP9: 0.0029 | SR9: 0.1395 | SS9: 0.0001 | SU9: 0.16 | SV9: 0.0037 | SX9: 0.16 | SY9: 0.018 | TA9: 0.1383 | TB9: 0.0001 | TD9: 0.16 | TE9: 0.0105 | TG9: 0.16 | TH9: 0.0256 | TJ9: 0.16 | TK9: 0.0482 | TM9: 0.16 | TN9: 0.1462 | TP9: 0.16 | TQ9: 0.0406 | TS9: 0.16 | TT9: 0.0482 | TV9: 0.16 | TW9: 0.0557 | TY9: 0.16 | TZ9: 0.0633 | UB9: 0.16 | UC9: 0.0784 | UE9: 0.16 | UF9: 0.0859 | UH9: 0.16 | UI9: 0.101 | UK9: 0.0454 | UL9: 0 | UN9: 0.057 | UO9: 0 | UQ9: 0.0615 | UR9: 0 | UT9: 0 | UU9: 0.03 | UW9: 0.0908 | UX9: 0.0001 | UZ9: 0.0797 | VA9: 0.0001 | VC9: 0.0699 | VD9: 0 | VF9: 0.1574 | VG9: 0.0001 | VI9: 0.16 | VJ9: 0.0029 | VL9: 0.155 | VM9: 0.0001 | VO9: 0.16 | VP9: 0.0105 | VR9: 0.1003 | VS9: 0.0001 | VU9: 0.1118 | VV9: 0.0001 | VX9: 0.16 | VY9: 0.1161 | WA9: 0.16 | WB9: 0.0105 | WD9: 0.16 | WE9: 0.0105 | WG9: 0.16 | WH9: 0.0256 | WJ9: 0.16 | WK9: 0.0256 | WM9: 0.16 | WN9: 0.0557 | WP9: 0.16 | WQ9: 0.0633 | WS9: 0.16 | WT9: 0.0859 | WV9: 0.16 | WW9: 0.0708 | WY9: 0 | WZ9: 0 | XB9: 0.147 | XC9: 0.0001 | XE9: 0.1003 | XF9: 0.0001 | XH9: 0.1262 | XI9: 0.0001 | XK9: 0.125 | XL9: 0 | XN9: 0.1366 | XO9: 0.0001 | XQ9: 0.1326 | XR9: 0.0001 | XT9: 0.1534 | XU9: 0.0001 | XW9: 0 | XX9: 0 | XZ9: 0.16 | YA9: 0.0331 | YC9: 0.16 | YD9: 0.0633 | YF9: 0.16 | YG9: 0.0557 | YI9: 0.0675 | YJ9: 0 | YL9: 0.1262 | YM9: 0.0001 | YO9: 0.0996 | YP9: 0.0001 | YR9: 0.1262 | YS9: 0.0001 | YU9: 0.1166 | YV9: 0.0001 | YX9: 0.16 | YY9: 0.0105 | ZA9: 0.16 | ZB9: 0.0256 | ZD9: 0.16 | ZE9: 0.0331 | ZG9: 0.16 | ZH9: 0.0043 | ZJ9: 0.16 | ZK9: 0.0331 | ZM9: 0.16 | ZN9: 0.0708 | ZP9: 0.16 | ZQ9: 0.0406 | ZS9: 0.0781 | ZT9: 0.0001 | ZV9: 0.1003 | ZW9: 0.0001 | ZY9: 0.0908 | ZZ9: 0.0001 | AAB9: 0.16 | AAC9: 0.0029 | AAE9: 0.16 | AAF9: 0.0105 | AAH9: 0.16 | AAI9: 0.018 | AAK9: 0.16 | AAL9: 0.0406 | AAN9: 0.16 | AAO9: 0.0256 | AAQ9: 0.16 | AAR9: 0.0784 | AAT9: 0.16 | AAU9: 0.0482 | AAW9: 0.0907 | AAX9: 0.0001 | AAZ9: 0.1054 | ABA9: 0.0001 | ABC9: 0.16 | ABD9: 0.0557 | ABF9: 0 | ABG9: 0 | ABI9: 0 | ABJ9: 0 | ABL9: 0 | ABM9: 0 | ABO9: 0 | ABP9: 0 | ABR9: 0.16 | ABS9: 0.0256 | ABU9: 0.16 | ABV9: 0.0153 | ABX9: 0.16 | ABY9: 0.0708 | ACA9: 0.16 | ACB9: 0.0331 | ACD9: 0.0892 | ACE9: 0.0001 | ACG9: 0.16 | ACH9: 0.0582 | ACJ9: 0.16 | ACK9: 0.0331 | ACM9: 0 | ACN9: 0 | ACP9: 0 | ACQ9: 0 | ACS9: 0.16 | ACT9: 0.0407 | ACV9: 0.16 | ACW9: 0.0708 | ACY9: 0.16 | ACZ9: 0.0029 | ADB9: 0.16 | ADC9: 0.0991 | ADE9: 0.1288 | ADF9: 0.0001 | ADH9: 0 | ADI9: 0 | ADK9: 0.16 | ADL9: 0.0331 | ADN9: 0.147 | ADO9: 0.0001 | ADQ9: 0.16 | ADR9: 0.018 | ADT9: 0.1383 | ADU9: 0.0001 | ADW9: 0.1494 | ADX9: 0.0001 | ADZ9: 0.16 | AEA9: 0.0256 | AEC9: 0.1054 | AED9: 0.0001 | AEF9: 0.16 | AEG9: 0.018 | AEI9: 0.1274 | AEJ9: 0.0001 | AEL9: 0.0908 | AEM9: 0.0001 | AEO9: 0.16 | AEP9: 0.0029 | AER9: 0.16 | AES9: 0.0189 | AEU9: 0.1003 | AEV9: 0.0001 | AEX9: 0.1262 | AEY9: 0.0001 | AFA9: 0.16 | AFB9: 0.0542 | AFD9: 0.16 | AFE9: 0.018 | AFG9: 0 | AFH9: 0 | AFJ9: 0 | AFK9: 0.08 | AFM9: 0.1325 | AFN9: 0.0001 | AFP9: 0.16 | AFQ9: 0.1161 | AFS9: 0.16 | AFT9: 0.0105 | AFV9: 0.1568 | AFW9: 0.0001 | AFY9: 0.1431 | AFZ9: 0.0001 | AGB9: 0.0425 | AGC9: 0.0001 | AGE9: 0.16 | AGF9: 0.018 | AGH9: 0.16 | AGI9: 0.0256 | AGK9: 0.16 | AGL9: 0.0331 | AGN9: 0.16 | AGO9: 0.018 | AGQ9: 0.16 | AGR9: 0.0406 | AGT9: 0.16 | AGU9: 0.0256 | AGW9: 0.16 | AGX9: 0.0482 | AGZ9: 0.16 | AHA9: 0.0331 | AHC9: 0.16 | AHD9: 0.0557 | AHF9: 0.16 | AHG9: 0.018 | AHI9: 0.16 | AHJ9: 0.018 | AHL9: 0.16 | AHM9: 0.0256 | AHO9: 0.16 | AHP9: 0.0331 | AHR9: 0.16 | AHS9: 0.0406 | AHU9: 0.16 | AHV9: 0.0633 | AHX9: 0.16 | AHY9: 0.0218 | AIA9: 0.16 | AIB9: 0.0256 | AID9: 0.16 | AIE9: 0.0256 | AIG9: 0.16 | AIH9: 0.0293 | AIJ9: 0.16 | AIK9: 0.0331 | AIM9: 0.16 | AIN9: 0.0482 | AIP9: 0.16 | AIQ9: 0.0708 | AIS9: 0.16 | AIT9: 0.0331 | AIV9: 0.16 | AIW9: 0.0331 | AIY9: 0.16 | AIZ9: 0.0557 | AJB9: 0.16 | AJC9: 0.0784 | AJE9: 0.16 | AJF9: 0.0369 | AJH9: 0.16 | AJI9: 0.0406 | AJK9: 0.16 | AJL9: 0.0406 | AJN9: 0.16 | AJO9: 0.0633 | AJQ9: 0.16 | AJR9: 0.0859 | AJT9: 0.16 | AJU9: 0.0482 | AJW9: 0.16 | AJX9: 0.0482 | AJZ9: 0.16 | AKA9: 0.0708 | AKC9: 0.16 | AKD9: 0.0557 | AKF9: 0.16 | AKG9: 0.0557 | AKI9: 0.16 | AKJ9: 0.0784 | AKL9: 0.16 | AKM9: 0.0633 | AKO9: 0.16 | AKP9: 0.0633 | AKR9: 0.16 | AKS9: 0.0859 | AKU9: 0.16 | AKV9: 0.067 | AKX9: 0.16 | AKY9: 0.0708 | ALA9: 0.16 | ALB9: 0.0708 | ALD9: 0.16 | ALE9: 0.0784 | ALG9: 0.16 | ALH9: 0.0784 | ALJ9: 0.16 | ALK9: 0.0859 | ALM9: 0.16 | ALN9: 0.0859 | ALP9: 0.16 | ALQ9: 0.0934 | ALS9: 0.16 | ALT9: 0.0934 | ALV9: 0.16 | ALW9: 0.0934 | ALY9: 0.16 | ALZ9: 0.0934 | AMB9: 0.16 | AMC9: 0.0942 | AME9: 0.16 | AMF9: 0.0942 | AMH9: 0.16 | AMI9: 0.101 | AMK9: 0.16 | AML9: 0.101 | AMN9: 0.16 | AMO9: 0.1085 | AMQ9: 0.16 | AMR9: 0.1085 | AMT9: 0.16 | AMU9: 0.1161 | AMW9: 0.16 | AMX9: 0.1161 | AMZ9: 0.16 | ANA9: 0.1236 | ANC9: 0.16 | AND9: 0.1236 | ANF9: 0.16 | ANG9: 0.1311 | ANI9: 0.16 | ANJ9: 0.1311 | ANL9: 0.16 | ANM9: 0.1387 | ANO9: 0.16 | ANP9: 0.1538 | ANR9: 0 | ANS9: 0 | ANU9: 0 | ANV9: 0 | ANX9: 0 | ANY9: 0 | AOA9: 0 | AOB9: 0 | AOD9: 0.0645 | AOE9: 0 | AOG9: 0.0596 | AOH9: 0 | AOJ9: 0.056 | AOK9: 0 | AOM9: 0.0535 | AON9: 0 | AOP9: 0.0487 | AOQ9: 0 | AOS9: 0 | AOT9: 0 | AOV9: 0 | AOW9: 0 | AOY9: 0 | AOZ9: 0 | APB9: 0 | APC9: 0 | APE9: 0.057 | APF9: 0 | APH9: 0.057 | API9: 0 | APK9: 0.057 | APL9: 0 | APN9: 0.057 | APO9: 0 | APQ9: 0.057 | APR9: 0 | APT9: 0.0742 | APU9: 0 | APW9: 0.0684 | APX9: 0 | APZ9: 0.0644 | AQA9: 0 | AQC9: 0.0614 | AQD9: 0 | AQF9: 0.0559 | AQG9: 0 | AQI9: 0.0742 | AQJ9: 0 | AQL9: 0.0684 | AQM9: 0 | AQO9: 0.0644 | AQP9: 0 | AQR9: 0.0614 | AQS9: 0 | AQU9: 0.0559 | AQV9: 0 | AQX9: 0.0615 | AQY9: 0 | ARA9: 0.0615 | ARB9: 0 | ARD9: 0.0615 | ARE9: 0 | ARG9: 0.0615 | ARH9: 0 | ARJ9: 0.0615 | ARK9: 0 | ARM9: 0.0599 | ARN9: 0 | ARP9: 0.0599 | ARQ9: 0 | ARS9: 0.0599 | ART9: 0 | ARV9: 0.0599 | ARW9: 0 | ARY9: 0.0599 | ARZ9: 0 | ASB9: 0.0435 | ASC9: 0 | ASE9: 0.0781 | ASF9: 0 | ASH9: 0.0721 | ASI9: 0 | ASK9: 0.0679 | ASL9: 0 | ASN9: 0.0648 | ASO9: 0 | ASQ9: 0.072 | ASR9: 0 | AST9: 0.072 | ASU9: 0 | ASW9: 0.072 | ASX9: 0 | ASZ9: 0.072 | ATA9: 0 | ATC9: 0.072 | ATD9: 0 | ATF9: 0.072 | ATG9: 0 | ATI9: 0 | ATJ9: 0 | ATL9: 0 | ATM9: 0 | ATO9: 0 | ATP9: 0 | ATR9: 0 | ATS9: 0 | ATU9: 0 | ATV9: 0 | ATX9: 0 | ATY9: 0 | AUA9: 0 | AUB9: 0 | AUD9: 0 | AUE9: 0 | AUG9: 0 | AUH9: 0 | AUJ9: 0 | AUK9: 0 | AUM9: 0 | AUN9: 0 | AUP9: 0 | AUQ9: 0 | AUS9: 0 | AUT9: 0 | AUV9: 0 | AUW9: 0 | AUY9: 0 | AUZ9: 0 | AVB9: 0 | AVC9: 0 | AVE9: 0 | AVF9: 0 | AVH9: 0 | AVI9: 0 | AVK9: 0 | AVL9: 0 | AVN9: 0 | AVO9: 0 | AVQ9: 0 | AVR9: 0 | AVT9: 0 | AVU9: 0 | AVW9: 0 | AVX9: 0 | AVZ9: 0 | AWA9: 0 | AWC9: 0 | AWD9: 0 | AWF9: 0 | AWG9: 0 | AWI9: 0 | AWJ9: 0 | AWL9: 0 | AWM9: 0 | AWO9: 0 | AWP9: 0 | AWR9: 0 | AWS9: 0 | AWU9: 0 | AWV9: 0 | AWX9: 0 | AWY9: 0 | AXA9: 0 | AXB9: 0 | AXD9: 0 | AXE9: 0 | AXG9: 0 | AXH9: 0 | AXJ9: 0 | AXK9: 0 | AXM9: 0 | AXN9: 0 | AXP9: 0 | AXQ9: 0 | AXS9: 0 | AXT9: 0 | AXV9: 0 | AXW9: 0 | AXY9: 0 | AXZ9: 0 | AYB9: 0 | AYC9: 0 | AYE9: 0 | AYF9: 0 | AYH9: 0 | AYI9: 0 | AYK9: 0 | AYL9: 0 | AYN9: 0 | AYO9: 0 | AYQ9: 0 | AYR9: 0 | AYT9: 0.0211 | AYU9: 0.0001 | AYW9: 0 | AYX9: 0 | AYZ9: 0 | AZA9: 0 | AZC9: 0 | AZD9: 0 | AZF9: 0 | AZG9: 0 | AZI9: 0 | AZJ9: 0 | AZL9: 0 | AZM9: 0 | AZO9: 0 | AZP9: 0 | AZR9: 0 | AZS9: 0 | AZU9: 0 | AZV9: 0 | AZX9: 0 | AZY9: 0 | BAA9: 0 | BAB9: 0 | BAD9: 0 | BAE9: 0 | BAG9: 0 | BAH9: 0 | BAJ9: 0 | BAK9: 0 | BAM9: 0 | BAN9: 0 | BAP9: 0 | BAQ9: 0 | BAS9: 0 | BAT9: 0 | BAV9: 0 | BAW9: 0 | BAY9: 0 | BAZ9: 0 | BBB9: 0 | BBC9: 0 | BBE9: 0 | BBF9: 0 | BBH9: 0 | BBI9: 0 | BBK9: 0 | BBL9: 0 | BBN9: 0 | BBO9: 0 | BBQ9: 0 | BBR9: 0 | BBT9: 0 | BBU9: 0 | BBW9: 0 | BBX9: 0 | BBZ9: 0 | BCA9: 0 | BCC9: 0 | BCD9: 0 | BCF9: 0 | BCG9: 0 | BCI9: 0 | BCJ9: 0 | BCL9: 0 | BCM9: 0 | BCO9: 0 | BCP9: 0 | BCR9: 0 | BCS9: 0 | BCU9: 0 | BCV9: 0 | BCX9: 0 | BCY9: 0 | BDA9: 0 | BDB9: 0 | BDD9: 0 | BDE9: 0 | BDG9: 0 | BDH9: 0 | BDJ9: 0 | BDK9: 0 | BDM9: 0 | BDN9: 0 | BDP9: 0 | BDQ9: 0 | BDS9: 0 | BDT9: 0 | BDV9: 0 | BDW9: 0 | BDY9: 0 | BDZ9: 0 | BEB9: 0 | BEC9: 0 | BEE9: 0 | BEF9: 0 | BEH9: 0 | BEI9: 0 | BEK9: 0 | BEL9: 0 | BEN9: 0 | BEO9: 0 | BEQ9: 0 | BER9: 0 | BET9: 0 | BEU9: 0 | BEW9: 0 | BEX9: 0 | BEZ9: 0 | BFA9: 0 | BFC9: 0 | BFD9: 0 | BFF9: 0 | BFG9: 0 | BFI9: 0 | BFJ9: 0 | BFL9: 0 | BFM9: 0 | BFO9: 0 | BFP9: 0 | BFR9: 0 | BFS9: 0 | BFU9: 0 | BFV9: 0 | BFX9: 0 | BFY9: 0 | BGA9: 0.0973 | BGB9: 0.0001 | BGD9: 0.0634 | BGE9: 0.0001 | BGG9: 0.0697 | BGH9: 0.0001 | BGJ9: 0.0697 | BGK9: 0.0001 | BGM9: 0.0634 | BGN9: 0.0001 | BGP9: 0.0844 | BGQ9: 0.0001 | BGS9: 0.0844 | BGT9: 0.0001 | BGV9: 0.1054 | BGW9: 0.0001 | BGY9: 0.0973 | BGZ9: 0.0001 | BHB9: 0.0874 | BHC9: 0.0001 | BHE9: 0.1054 | BHF9: 0.0001 | BHH9: 0.1262 | BHI9: 0.0001 | BHK9: 0.147 | BHL9: 0.0001 | BHN9: 0.1358 | BHO9: 0.0001 | BHQ9: 0.1222 | BHR9: 0.0001 | BHT9: 0.1114 | BHU9: 0.0001 | BHW9: 0.16 | BHX9: 0.0029 | BHZ9: 0.16 | BIA9: 0.0105 | BIC9: 0.16 | BID9: 0.0063 | BIF9: 0.1568 | BIG9: 0.0001 | BII9: 0.1431 | BIJ9: 0.0001 | BIL9: 0.1366 | BIM9: 0.0001 | BIO9: 0 | BIP9: 0 | BIR9: 0 | BIS9: 0 | BIU9: 0 | BIV9: 0 | BIX9: 0 | BIY9: 0 | BJA9: 0 | BJB9: 0 | BJD9: 0 | BJE9: 0 | BJG9: 0 | BJH9: 0 | BJJ9: 0 | BJK9: 0 | BJM9: 0.0699 | BJN9: 0.185 | BJP9: 0 | BJQ9: 0 | BJS9: 0 | BJT9: 0 | BJV9: 0 | BJW9: 0 | BJY9: 0 | BJZ9: 0 | BKB9: 0 | BKC9: 0 | BKE9: 0 | BKF9: 0 | BKH9: 0 | BKI9: 0 | BKK9: 0 | BKL9: 0 | BKN9: 0 | BKO9: 0 | BKQ9: 0 | BKR9: 0 | BKT9: 0 | BKU9: 0 | BKW9: 0 | BKX9: 0 | BKZ9: 0 | BLA9: 0 | BLC9: 0 | BLD9: 0 | BLF9: 0 | BLG9: 0 | BLI9: 0 | BLJ9: 0 | BLL9: 0 | BLM9: 0 | BLO9: 0 | BLP9: 0 | BLR9: 0 | BLS9: 0 | BLU9: 0.0699 | BLV9: 0.0289 | BLX9: 0.0699 | BLY9: 0.0289 | BMA9: 0.0699 | BMB9: 0.0445 | BMD9: 0.0699 | BME9: 0.0445 | BMG9: 0 | BMH9: 0 | BMJ9: 0.0699 | BMK9: 0.0133 | BMM9: 0.0699 | BMN9: 0.0211 | BMP9: 0.0699 | BMQ9: 0.0211 | BMS9: 0.0699 | BMT9: 0.0289 | BMV9: 0.0699 | BMW9: 0.0289 | BMY9: 0.0699 | BMZ9: 0.0367 | BNB9: 0.0699 | BNC9: 0.0367 | BNE9: 0.0699 | BNF9: 0.0423 | BNH9: 0.0699 | BNI9: 0.0423 | BNK9: 0.0699 | BNL9: 0.0445 | BNN9: 0.0699 | BNO9: 0.0445 | BNQ9: 0.0699 | BNR9: 0.056 | BNT9: 0.0699 | BNU9: 0.056 | BNW9: 0.0699 | BNX9: 0.0634 | BNZ9: 0.0699 | BOA9: 0.0634 | BOC9: 0.0699 | BOD9: 0.0523 | BOF9: 0.0699 | BOG9: 0.0523 | BOI9: 0.0699 | BOJ9: 0.0601 | BOL9: 0.0699 | BOM9: 0.0601 | BOO9: 0.0699 | BOP9: 0.0679 | BOR9: 0.0699 | BOS9: 0.0679 | BOU9: 0.0699 | BOV9: 0.0845 | BOX9: 0.0699 | BOY9: 0.0757 | BPA9: 0.0699 | BPB9: 0.0757 | BPD9: 0.0699 | BPE9: 0.0822 | BPG9: 0.0699 | BPH9: 0.0886 | BPJ9: 0.0699 | BPK9: 0.095 | BPM9: 0.0699 | BPN9: 0.0835 | BPP9: 0.0699 | BPQ9: 0.0835 | BPS9: 0.0699 | BPT9: 0.1056 | BPV9: 0.0699 | BPW9: 0.0913 | BPY9: 0.0699 | BPZ9: 0.0913 | BQB9: 0.0699 | BQC9: 0.099 | BQE9: 0.0699 | BQF9: 0.099 | BQH9: 0.0699 | BQI9: 0.1068 | BQK9: 0.0699 | BQL9: 0.1068 | BQN9: 0.0699 | BQO9: 0.1146 | BQQ9: 0.0699 | BQR9: 0.1146 | BQT9: 0.0699 | BQU9: 0.1224 | BQW9: 0.0699 | BQX9: 0.1224 | BQZ9: 0.0699 | BRA9: 0.1302 | BRC9: 0.0699 | BRD9: 0.1302 | BRF9: 0.0699 | BRG9: 0.1458 | BRI9: 0.0699 | BRJ9: 0.1692 | BRL9: 0 | BRM9: 0 | BRO9: 0 | BRP9: 0
A10: 9 | B10: 0 | C10: 0 | E10: 0 | F10: 0 | H10: 0 | I10: 0 | K10: 0 | L10: 0 | N10: 0 | O10: 0 | Q10: 0 | R10: 0 | T10: 0 | U10: 0 | W10: 0 | X10: 0 | Z10: 0 | AA10: 0 | AC10: 0.0216 | AD10: 0.0001 | AF10: 0.1486 | AG10: 0.0001 | AI10: 0.043 | AJ10: 0.0001 | AL10: 0.16 | AM10: 0.0039 | AO10: 0.0537 | AP10: 0.0001 | AR10: 0.0644 | AS10: 0.0001 | AU10: 0.1276 | AV10: 0.0001 | AX10: 0.16 | AY10: 0.0124 | BA10: 0.0748 | BB10: 0.0001 | BD10: 0.0854 | BE10: 0.0001 | BG10: 0.096 | BH10: 0.0001 | BJ10: 0.1065 | BK10: 0.0001 | BM10: 0.1276 | BN10: 0.0001 | BP10: 0.1486 | BQ10: 0.0001 | BS10: 0.096 | BT10: 0.0001 | BV10: 0.1065 | BW10: 0.0001 | BY10: 0.1065 | BZ10: 0.0001 | CB10: 0.1276 | CC10: 0.0001 | CE10: 0.1486 | CF10: 0.0001 | CH10: 0.16 | CI10: 0.0039 | CK10: 0.1171 | CL10: 0.0001 | CN10: 0.1276 | CO10: 0.0001 | CQ10: 0.1381 | CR10: 0.0001 | CT10: 0.16 | CU10: 0.0039 | CW10: 0.16 | CX10: 0.0124 | CZ10: 0.1486 | DA10: 0.0001 | DC10: 0.159 | DD10: 0.0001 | DF10: 0.16 | DG10: 0.0039 | DI10: 0.16 | DJ10: 0.0124 | DL10: 0.159 | DM10: 0.0001 | DO10: 0.16 | DP10: 0.0039 | DR10: 0.16 | DS10: 0.0039 | DU10: 0.16 | DV10: 0.0082 | DX10: 0.16 | DY10: 0.0124 | EA10: 0.16 | EB10: 0.0208 | ED10: 0.16 | EE10: 0.0124 | EG10: 0.16 | EH10: 0.0124 | EJ10: 0.16 | EK10: 0.0166 | EM10: 0.16 | EN10: 0.0208 | EP10: 0.16 | EQ10: 0.0292 | ES10: 0.16 | ET10: 0.0166 | EV10: 0.16 | EW10: 0.0461 | EY10: 0.16 | EZ10: 0.0714 | FB10: 0.043 | FC10: 0.0001 | FE10: 0.0854 | FF10: 0.0001 | FH10: 0.1276 | FI10: 0.0001 | FK10: 0 | FL10: 0 | FN10: 0.0597 | FO10: 0.0001 | FQ10: 0.0694 | FR10: 0.0001 | FT10: 0.0793 | FU10: 0.0001 | FW10: 0.0891 | FX10: 0.0001 | FZ10: 0.0989 | GA10: 0.0001 | GC10: 0.1088 | GD10: 0.0001 | GF10: 0.1185 | GG10: 0.0001 | GI10: 0.1381 | GJ10: 0.0001 | GL10: 0.1576 | GM10: 0.0001 | GO10: 0.16 | GP10: 0.0082 | GR10: 0.16 | GS10: 0.0175 | GU10: 0.16 | GV10: 0.0267 | GX10: 0.16 | GY10: 0.036 | HA10: 0.16 | HB10: 0.0406 | HD10: 0.16 | HE10: 0.0452 | HG10: 0.16 | HH10: 0.0545 | HJ10: 0.16 | HK10: 0.0637 | HM10: 0.16 | HN10: 0.073 | HP10: 0.16 | HQ10: 0.0776 | HS10: 0.16 | HT10: 0.0822 | HV10: 0.16 | HW10: 0.0915 | HY10: 0.16 | HZ10: 0.11 | IB10: 0 | IC10: 0 | IE10: 0.0564 | IF10: 0.0001 | IH10: 0.0655 | II10: 0.0001 | IK10: 0.0749 | IL10: 0.0001 | IN10: 0.0842 | IO10: 0.0001 | IQ10: 0.0935 | IR10: 0.0001 | IT10: 0.112 | IU10: 0.0001 | IW10: 0.1305 | IX10: 0.0001 | IZ10: 0.149 | JA10: 0.0001 | JC10: 0.16 | JD10: 0.0042 | JF10: 0.16 | JG10: 0.0142 | JI10: 0.16 | JJ10: 0.0243 | JL10: 0.16 | JM10: 0.0343 | JO10: 0.16 | JP10: 0.0393 | JR10: 0.16 | JS10: 0.0444 | JU10: 0.16 | JV10: 0.0544 | JX10: 0.16 | JY10: 0.0645 | KA10: 0.16 | KB10: 0.0745 | KD10: 0.16 | KE10: 0.0795 | KG10: 0.16 | KH10: 0.0846 | KJ10: 0 | KK10: 0 | KM10: 0.0538 | KN10: 0.0001 | KP10: 0.0626 | KQ10: 0.0001 | KS10: 0.0715 | KT10: 0.0001 | KV10: 0.0804 | KW10: 0.0001 | KY10: 0.0893 | KZ10: 0.0001 | LB10: 0.0982 | LC10: 0.0001 | LE10: 0.1071 | LF10: 0.0001 | LH10: 0.1248 | LI10: 0.0001 | LK10: 0.1425 | LL10: 0.0001 | LN10: 0.16 | LO10: 0.0002 | LQ10: 0.16 | LR10: 0.011 | LT10: 0.16 | LU10: 0.0219 | LW10: 0.16 | LX10: 0.0327 | LZ10: 0.16 | MA10: 0.0381 | MC10: 0.16 | MD10: 0.0435 | MF10: 0.16 | MG10: 0.0544 | MI10: 0.16 | MJ10: 0.0652 | ML10: 0.16 | MM10: 0.076 | MO10: 0.16 | MP10: 0.0814 | MR10: 0.16 | MS10: 0.0868 | MU10: 0.16 | MV10: 0.0977 | MX10: 0.16 | MY10: 0.1193 | NA10: 0.0519 | NB10: 0.0001 | ND10: 0.0604 | NE10: 0.0001 | NG10: 0.0861 | NH10: 0.0001 | NJ10: 0 | NK10: 0 | NM10: 0.0652 | NN10: 0.0001 | NP10: 0.0814 | NQ10: 0.0001 | NS10: 0.0976 | NT10: 0.0001 | NV10: 0.1138 | NW10: 0.0001 | NY10: 0.13 | NZ10: 0.0001 | OB10: 0.1461 | OC10: 0.0001 | OE10: 0.16 | OF10: 0.0019 | OH10: 0.16 | OI10: 0.015 | OK10: 0.16 | OL10: 0.0281 | ON10: 0.16 | OO10: 0.0411 | OQ10: 0.16 | OR10: 0.0542 | OT10: 0.16 | OU10: 0.0673 | OW10: 0.16 | OX10: 0.1326 | OZ10: 0.0937 | PA10: 0.0001 | PC10: 0.1093 | PD10: 0.0001 | PF10: 0 | PG10: 0 | PI10: 0.0642 | PJ10: 0.0001 | PL10: 0.05 | PM10: 0 | PO10: 0.0535 | PP10: 0.0001 | PR10: 0.0599 | PS10: 0 | PU10: 0.0625 | PV10: 0 | PX10: 0.065 | PY10: 0 | QA10: 0 | QB10: 0.027 | QD10: 0.072 | QE10: 0 | QG10: 0.0684 | QH10: 0.0001 | QJ10: 0.1065 | QK10: 0.0001 | QM10: 0 | QN10: 0 | QP10: 0.0847 | QQ10: 0.0001 | QS10: 0.1065 | QT10: 0.0001 | QV10: 0.083 | QW10: 0.0001 | QY10: 0.095 | QZ10: 0 | RB10: 0.0947 | RC10: 0.0001 | RE10: 0.1276 | RF10: 0.0001 | RH10: 0.072 | RI10: 0.0085 | RK10: 0.0798 | RL10: 0.0001 | RN10: 0.1276 | RO10: 0.0001 | RQ10: 0.1 | RR10: 0.0001 | RT10: 0.0944 | RU10: 0.0001 | RW10: 0.1035 | RX10: 0.0001 | RZ10: 0.072 | SA10: 0.0225 | SC10: 0.1486 | SD10: 0.0001 | SF10: 0.16 | SG10: 0.0452 | SI10: 0.109 | SJ10: 0.0001 | SL10: 0.1235 | SM10: 0.0001 | SO10: 0.16 | SP10: 0.0039 | SR10: 0.139 | SS10: 0.0001 | SU10: 0.16 | SV10: 0.0023 | SX10: 0.16 | SY10: 0.0208 | TA10: 0.1413 | TB10: 0.0001 | TD10: 0.16 | TE10: 0.0124 | TG10: 0.16 | TH10: 0.0292 | TJ10: 0.16 | TK10: 0.0461 | TM10: 0.16 | TN10: 0.1472 | TP10: 0.16 | TQ10: 0.0461 | TS10: 0.16 | TT10: 0.0545 | TV10: 0.16 | TW10: 0.0629 | TY10: 0.16 | TZ10: 0.0714 | UB10: 0.16 | UC10: 0.0882 | UE10: 0.16 | UF10: 0.0967 | UH10: 0.16 | UI10: 0.1135 | UK10: 0.0454 | UL10: 0 | UN10: 0.057 | UO10: 0 | UQ10: 0.0615 | UR10: 0 | UT10: 0 | UU10: 0.03 | UW10: 0.0944 | UX10: 0.0001 | UZ10: 0.0814 | VA10: 0.0001 | VC10: 0.0699 | VD10: 0 | VF10: 0.1381 | VG10: 0.0001 | VI10: 0.16 | VJ10: 0.0039 | VL10: 0.0989 | VM10: 0.0001 | VO10: 0.16 | VP10: 0.0039 | VR10: 0.0993 | VS10: 0.0001 | VU10: 0.1142 | VV10: 0.0001 | VX10: 0.16 | VY10: 0.1127 | WA10: 0.16 | WB10: 0.0124 | WD10: 0.16 | WE10: 0.0124 | WG10: 0.16 | WH10: 0.0292 | WJ10: 0.16 | WK10: 0.0292 | WM10: 0.16 | WN10: 0.0629 | WP10: 0.16 | WQ10: 0.0545 | WS10: 0.16 | WT10: 0.0967 | WV10: 0.16 | WW10: 0.0798 | WY10: 0 | WZ10: 0 | XB10: 0.1276 | XC10: 0.0001 | XE10: 0.0993 | XF10: 0.0001 | XH10: 0.1276 | XI10: 0.0001 | XK10: 0.125 | XL10: 0 | XN10: 0.1381 | XO10: 0.0001 | XQ10: 0.1354 | XR10: 0.0001 | XT10: 0.1584 | XU10: 0.0001 | XW10: 0 | XX10: 0 | XZ10: 0.16 | YA10: 0.0377 | YC10: 0.16 | YD10: 0.0714 | YF10: 0.16 | YG10: 0.0545 | YI10: 0.0675 | YJ10: 0 | YL10: 0.1276 | YM10: 0.0001 | YO10: 0.1 | YP10: 0.0001 | YR10: 0.1276 | YS10: 0.0001 | YU10: 0.1185 | YV10: 0.0001 | YX10: 0.16 | YY10: 0.0039 | ZA10: 0.16 | ZB10: 0.0208 | ZD10: 0.16 | ZE10: 0.0292 | ZG10: 0.16 | ZH10: 0.0078 | ZJ10: 0.16 | ZK10: 0.0377 | ZM10: 0.16 | ZN10: 0.0798 | ZP10: 0.16 | ZQ10: 0.0461 | ZS10: 0.0798 | ZT10: 0.0001 | ZV10: 0.0993 | ZW10: 0.0001 | ZY10: 0.0928 | ZZ10: 0.0001 | AAB10: 0.16 | AAC10: 0.0039 | AAE10: 0.16 | AAF10: 0.0124 | AAH10: 0.16 | AAI10: 0.0208 | AAK10: 0.16 | AAL10: 0.0377 | AAN10: 0.16 | AAO10: 0.0292 | AAQ10: 0.16 | AAR10: 0.0882 | AAT10: 0.16 | AAU10: 0.0545 | AAW10: 0.0896 | AAX10: 0.0001 | AAZ10: 0.1065 | ABA10: 0.0001 | ABC10: 0.16 | ABD10: 0.0629 | ABF10: 0 | ABG10: 0 | ABI10: 0 | ABJ10: 0 | ABL10: 0 | ABM10: 0 | ABO10: 0 | ABP10: 0 | ABR10: 0.16 | ABS10: 0.0292 | ABU10: 0.16 | ABV10: 0.0186 | ABX10: 0.16 | ABY10: 0.0798 | ACA10: 0.16 | ACB10: 0.0377 | ACD10: 0.0929 | ACE10: 0.0001 | ACG10: 0.16 | ACH10: 0.0652 | ACJ10: 0.16 | ACK10: 0.0377 | ACM10: 0 | ACN10: 0 | ACP10: 0 | ACQ10: 0 | ACS10: 0.16 | ACT10: 0.0377 | ACV10: 0.16 | ACW10: 0.0798 | ACY10: 0.1486 | ACZ10: 0.0001 | ADB10: 0.16 | ADC10: 0.1058 | ADE10: 0.13 | ADF10: 0.0001 | ADH10: 0 | ADI10: 0 | ADK10: 0.16 | ADL10: 0.0377 | ADN10: 0.1486 | ADO10: 0.0001 | ADQ10: 0.16 | ADR10: 0.0208 | ADT10: 0.1364 | ADU10: 0.0001 | ADW10: 0.1526 | ADX10: 0.0001 | ADZ10: 0.16 | AEA10: 0.0292 | AEC10: 0.1065 | AED10: 0.0001 | AEF10: 0.16 | AEG10: 0.0208 | AEI10: 0.1337 | AEJ10: 0.0001 | AEL10: 0.0976 | AEM10: 0.0001 | AEO10: 0.16 | AEP10: 0.0039 | AER10: 0.16 | AES10: 0.0241 | AEU10: 0.0993 | AEV10: 0.0001 | AEX10: 0.1276 | AEY10: 0.0001 | AFA10: 0.16 | AFB10: 0.0511 | AFD10: 0.16 | AFE10: 0.0208 | AFG10: 0 | AFH10: 0 | AFJ10: 0 | AFK10: 0.09 | AFM10: 0.1297 | AFN10: 0.0001 | AFP10: 0.16 | AFQ10: 0.1304 | AFS10: 0.16 | AFT10: 0.0124 | AFV10: 0.16 | AFW10: 0.0002 | AFY10: 0.1461 | AFZ10: 0.0001 | AGB10: 0.043 | AGC10: 0.0001 | AGE10: 0.16 | AGF10: 0.0208 | AGH10: 0.16 | AGI10: 0.0292 | AGK10: 0.16 | AGL10: 0.0377 | AGN10: 0.16 | AGO10: 0.0208 | AGQ10: 0.16 | AGR10: 0.0461 | AGT10: 0.16 | AGU10: 0.0292 | AGW10: 0.16 | AGX10: 0.0545 | AGZ10: 0.16 | AHA10: 0.0377 | AHC10: 0.16 | AHD10: 0.0629 | AHF10: 0.16 | AHG10: 0.0208 | AHI10: 0.16 | AHJ10: 0.0208 | AHL10: 0.16 | AHM10: 0.0292 | AHO10: 0.16 | AHP10: 0.0377 | AHR10: 0.16 | AHS10: 0.0461 | AHU10: 0.16 | AHV10: 0.0714 | AHX10: 0.16 | AHY10: 0.025 | AIA10: 0.16 | AIB10: 0.0292 | AID10: 0.16 | AIE10: 0.0292 | AIG10: 0.16 | AIH10: 0.0334 | AIJ10: 0.16 | AIK10: 0.0377 | AIM10: 0.16 | AIN10: 0.0545 | AIP10: 0.16 | AIQ10: 0.0798 | AIS10: 0.16 | AIT10: 0.0377 | AIV10: 0.16 | AIW10: 0.0377 | AIY10: 0.16 | AIZ10: 0.0629 | AJB10: 0.16 | AJC10: 0.0882 | AJE10: 0.16 | AJF10: 0.0419 | AJH10: 0.16 | AJI10: 0.0461 | AJK10: 0.16 | AJL10: 0.0461 | AJN10: 0.16 | AJO10: 0.0714 | AJQ10: 0.16 | AJR10: 0.0967 | AJT10: 0.16 | AJU10: 0.0545 | AJW10: 0.16 | AJX10: 0.0545 | AJZ10: 0.16 | AKA10: 0.0798 | AKC10: 0.16 | AKD10: 0.0629 | AKF10: 0.16 | AKG10: 0.0629 | AKI10: 0.16 | AKJ10: 0.0882 | AKL10: 0.16 | AKM10: 0.0714 | AKO10: 0.16 | AKP10: 0.0714 | AKR10: 0.16 | AKS10: 0.0967 | AKU10: 0.16 | AKV10: 0.0756 | AKX10: 0.16 | AKY10: 0.0798 | ALA10: 0.16 | ALB10: 0.0798 | ALD10: 0.16 | ALE10: 0.0882 | ALG10: 0.16 | ALH10: 0.0882 | ALJ10: 0.16 | ALK10: 0.0967 | ALM10: 0.16 | ALN10: 0.0967 | ALP10: 0.16 | ALQ10: 0.1051 | ALS10: 0.16 | ALT10: 0.1051 | ALV10: 0.16 | ALW10: 0.1051 | ALY10: 0.16 | ALZ10: 0.1051 | AMB10: 0.16 | AMC10: 0.1059 | AME10: 0.16 | AMF10: 0.1059 | AMH10: 0.16 | AMI10: 0.1135 | AMK10: 0.16 | AML10: 0.1135 | AMN10: 0.16 | AMO10: 0.1219 | AMQ10: 0.16 | AMR10: 0.1219 | AMT10: 0.16 | AMU10: 0.1304 | AMW10: 0.16 | AMX10: 0.1304 | AMZ10: 0.16 | ANA10: 0.1388 | ANC10: 0.16 | AND10: 0.1388 | ANF10: 0.16 | ANG10: 0.1472 | ANI10: 0.16 | ANJ10: 0.1472 | ANL10: 0.16 | ANM10: 0.1556 | ANO10: 0.16 | ANP10: 0.1725 | ANR10: 0 | ANS10: 0 | ANU10: 0 | ANV10: 0 | ANX10: 0 | ANY10: 0 | AOA10: 0 | AOB10: 0 | AOD10: 0.0648 | AOE10: 0 | AOG10: 0.0605 | AOH10: 0 | AOJ10: 0.0569 | AOK10: 0 | AOM10: 0.0545 | AON10: 0 | AOP10: 0.0496 | AOQ10: 0 | AOS10: 0 | AOT10: 0 | AOV10: 0 | AOW10: 0 | AOY10: 0 | AOZ10: 0 | APB10: 0 | APC10: 0 | APE10: 0.057 | APF10: 0 | APH10: 0.057 | API10: 0 | APK10: 0.057 | APL10: 0 | APN10: 0.057 | APO10: 0 | APQ10: 0.057 | APR10: 0 | APT10: 0.075 | APU10: 0 | APW10: 0.0696 | APX10: 0 | APZ10: 0.0657 | AQA10: 0 | AQC10: 0.0628 | AQD10: 0 | AQF10: 0.0572 | AQG10: 0 | AQI10: 0.075 | AQJ10: 0 | AQL10: 0.0696 | AQM10: 0 | AQO10: 0.0657 | AQP10: 0 | AQR10: 0.0628 | AQS10: 0 | AQU10: 0.0572 | AQV10: 0 | AQX10: 0.0615 | AQY10: 0 | ARA10: 0.0615 | ARB10: 0 | ARD10: 0.0615 | ARE10: 0 | ARG10: 0.0615 | ARH10: 0 | ARJ10: 0.0615 | ARK10: 0 | ARM10: 0.0599 | ARN10: 0 | ARP10: 0.0599 | ARQ10: 0 | ARS10: 0.0599 | ART10: 0 | ARV10: 0.0599 | ARW10: 0 | ARY10: 0.0599 | ARZ10: 0 | ASB10: 0.0436 | ASC10: 0 | ASE10: 0.079 | ASF10: 0 | ASH10: 0.0733 | ASI10: 0 | ASK10: 0.0693 | ASL10: 0 | ASN10: 0.0662 | ASO10: 0 | ASQ10: 0.072 | ASR10: 0 | AST10: 0.072 | ASU10: 0 | ASW10: 0.072 | ASX10: 0 | ASZ10: 0.072 | ATA10: 0 | ATC10: 0.072 | ATD10: 0 | ATF10: 0.072 | ATG10: 0 | ATI10: 0 | ATJ10: 0 | ATL10: 0 | ATM10: 0 | ATO10: 0 | ATP10: 0 | ATR10: 0 | ATS10: 0 | ATU10: 0 | ATV10: 0 | ATX10: 0 | ATY10: 0 | AUA10: 0 | AUB10: 0 | AUD10: 0 | AUE10: 0 | AUG10: 0 | AUH10: 0 | AUJ10: 0 | AUK10: 0 | AUM10: 0 | AUN10: 0 | AUP10: 0 | AUQ10: 0 | AUS10: 0 | AUT10: 0 | AUV10: 0 | AUW10: 0 | AUY10: 0 | AUZ10: 0 | AVB10: 0 | AVC10: 0 | AVE10: 0 | AVF10: 0 | AVH10: 0 | AVI10: 0 | AVK10: 0 | AVL10: 0 | AVN10: 0 | AVO10: 0 | AVQ10: 0 | AVR10: 0 | AVT10: 0 | AVU10: 0 | AVW10: 0 | AVX10: 0 | AVZ10: 0 | AWA10: 0 | AWC10: 0 | AWD10: 0 | AWF10: 0 | AWG10: 0 | AWI10: 0 | AWJ10: 0 | AWL10: 0 | AWM10: 0 | AWO10: 0 | AWP10: 0 | AWR10: 0 | AWS10: 0 | AWU10: 0 | AWV10: 0 | AWX10: 0 | AWY10: 0 | AXA10: 0 | AXB10: 0 | AXD10: 0 | AXE10: 0 | AXG10: 0 | AXH10: 0 | AXJ10: 0 | AXK10: 0 | AXM10: 0 | AXN10: 0 | AXP10: 0 | AXQ10: 0 | AXS10: 0 | AXT10: 0 | AXV10: 0 | AXW10: 0 | AXY10: 0 | AXZ10: 0 | AYB10: 0 | AYC10: 0 | AYE10: 0 | AYF10: 0 | AYH10: 0 | AYI10: 0 | AYK10: 0 | AYL10: 0 | AYN10: 0 | AYO10: 0 | AYQ10: 0 | AYR10: 0 | AYT10: 0.0214 | AYU10: 0.0001 | AYW10: 0 | AYX10: 0 | AYZ10: 0 | AZA10: 0 | AZC10: 0 | AZD10: 0 | AZF10: 0 | AZG10: 0 | AZI10: 0 | AZJ10: 0 | AZL10: 0 | AZM10: 0 | AZO10: 0 | AZP10: 0 | AZR10: 0 | AZS10: 0 | AZU10: 0 | AZV10: 0 | AZX10: 0 | AZY10: 0 | BAA10: 0 | BAB10: 0 | BAD10: 0 | BAE10: 0 | BAG10: 0 | BAH10: 0 | BAJ10: 0 | BAK10: 0 | BAM10: 0 | BAN10: 0 | BAP10: 0 | BAQ10: 0 | BAS10: 0 | BAT10: 0 | BAV10: 0 | BAW10: 0 | BAY10: 0 | BAZ10: 0 | BBB10: 0 | BBC10: 0 | BBE10: 0 | BBF10: 0 | BBH10: 0 | BBI10: 0 | BBK10: 0 | BBL10: 0 | BBN10: 0 | BBO10: 0 | BBQ10: 0 | BBR10: 0 | BBT10: 0 | BBU10: 0 | BBW10: 0 | BBX10: 0 | BBZ10: 0 | BCA10: 0 | BCC10: 0 | BCD10: 0 | BCF10: 0 | BCG10: 0 | BCI10: 0 | BCJ10: 0 | BCL10: 0 | BCM10: 0 | BCO10: 0 | BCP10: 0 | BCR10: 0 | BCS10: 0 | BCU10: 0 | BCV10: 0 | BCX10: 0 | BCY10: 0 | BDA10: 0 | BDB10: 0 | BDD10: 0 | BDE10: 0 | BDG10: 0 | BDH10: 0 | BDJ10: 0 | BDK10: 0 | BDM10: 0 | BDN10: 0 | BDP10: 0 | BDQ10: 0 | BDS10: 0 | BDT10: 0 | BDV10: 0 | BDW10: 0 | BDY10: 0 | BDZ10: 0 | BEB10: 0 | BEC10: 0 | BEE10: 0 | BEF10: 0 | BEH10: 0 | BEI10: 0 | BEK10: 0 | BEL10: 0 | BEN10: 0 | BEO10: 0 | BEQ10: 0 | BER10: 0 | BET10: 0 | BEU10: 0 | BEW10: 0 | BEX10: 0 | BEZ10: 0 | BFA10: 0 | BFC10: 0 | BFD10: 0 | BFF10: 0 | BFG10: 0 | BFI10: 0 | BFJ10: 0 | BFL10: 0 | BFM10: 0 | BFO10: 0 | BFP10: 0 | BFR10: 0 | BFS10: 0 | BFU10: 0 | BFV10: 0 | BFX10: 0 | BFY10: 0 | BGA10: 0.0989 | BGB10: 0.0001 | BGD10: 0.0642 | BGE10: 0.0001 | BGG10: 0.0705 | BGH10: 0.0001 | BGJ10: 0.0705 | BGK10: 0.0001 | BGM10: 0.0642 | BGN10: 0.0001 | BGP10: 0.0854 | BGQ10: 0.0001 | BGS10: 0.0854 | BGT10: 0.0001 | BGV10: 0.1065 | BGW10: 0.0001 | BGY10: 0.0989 | BGZ10: 0.0001 | BHB10: 0.0893 | BHC10: 0.0001 | BHE10: 0.1065 | BHF10: 0.0001 | BHH10: 0.1276 | BHI10: 0.0001 | BHK10: 0.1486 | BHL10: 0.0001 | BHN10: 0.1381 | BHO10: 0.0001 | BHQ10: 0.1248 | BHR10: 0.0001 | BHT10: 0.1138 | BHU10: 0.0001 | BHW10: 0.16 | BHX10: 0.0039 | BHZ10: 0.16 | BIA10: 0.0124 | BIC10: 0.16 | BID10: 0.0082 | BIF10: 0.16 | BIG10: 0.0002 | BII10: 0.1461 | BIJ10: 0.0001 | BIL10: 0.1381 | BIM10: 0.0001 | BIO10: 0 | BIP10: 0 | BIR10: 0 | BIS10: 0 | BIU10: 0 | BIV10: 0 | BIX10: 0 | BIY10: 0 | BJA10: 0 | BJB10: 0 | BJD10: 0 | BJE10: 0 | BJG10: 0 | BJH10: 0 | BJJ10: 0 | BJK10: 0 | BJM10: 0.0699 | BJN10: 0.19 | BJP10: 0 | BJQ10: 0 | BJS10: 0 | BJT10: 0 | BJV10: 0 | BJW10: 0 | BJY10: 0 | BJZ10: 0 | BKB10: 0 | BKC10: 0 | BKE10: 0 | BKF10: 0 | BKH10: 0 | BKI10: 0 | BKK10: 0 | BKL10: 0 | BKN10: 0 | BKO10: 0 | BKQ10: 0 | BKR10: 0 | BKT10: 0 | BKU10: 0 | BKW10: 0 | BKX10: 0 | BKZ10: 0 | BLA10: 0 | BLC10: 0 | BLD10: 0 | BLF10: 0 | BLG10: 0 | BLI10: 0 | BLJ10: 0 | BLL10: 0 | BLM10: 0 | BLO10: 0 | BLP10: 0 | BLR10: 0 | BLS10: 0 | BLU10: 0.0699 | BLV10: 0.0327 | BLX10: 0.0699 | BLY10: 0.0327 | BMA10: 0.0699 | BMB10: 0.0502 | BMD10: 0.0699 | BME10: 0.0502 | BMG10: 0 | BMH10: 0 | BMJ10: 0.0699 | BMK10: 0.0153 | BMM10: 0.0699 | BMN10: 0.024 | BMP10: 0.0699 | BMQ10: 0.024 | BMS10: 0.0699 | BMT10: 0.0327 | BMV10: 0.0699 | BMW10: 0.0327 | BMY10: 0.0699 | BMZ10: 0.0415 | BNB10: 0.0699 | BNC10: 0.0415 | BNE10: 0.0699 | BNF10: 0.047 | BNH10: 0.0699 | BNI10: 0.047 | BNK10: 0.0699 | BNL10: 0.0502 | BNN10: 0.0699 | BNO10: 0.0502 | BNQ10: 0.0699 | BNR10: 0.0627 | BNT10: 0.0699 | BNU10: 0.0627 | BNW10: 0.0699 | BNX10: 0.07 | BNZ10: 0.0699 | BOA10: 0.07 | BOC10: 0.0699 | BOD10: 0.059 | BOF10: 0.0699 | BOG10: 0.059 | BOI10: 0.0699 | BOJ10: 0.0677 | BOL10: 0.0699 | BOM10: 0.0677 | BOO10: 0.0699 | BOP10: 0.0765 | BOR10: 0.0699 | BOS10: 0.0765 | BOU10: 0.0699 | BOV10: 0.0929 | BOX10: 0.0699 | BOY10: 0.0852 | BPA10: 0.0699 | BPB10: 0.0852 | BPD10: 0.0699 | BPE10: 0.0917 | BPG10: 0.0699 | BPH10: 0.098 | BPJ10: 0.0699 | BPK10: 0.1043 | BPM10: 0.0699 | BPN10: 0.0939 | BPP10: 0.0699 | BPQ10: 0.0939 | BPS10: 0.0699 | BPT10: 0.1158 | BPV10: 0.0699 | BPW10: 0.1027 | BPY10: 0.0699 | BPZ10: 0.1027 | BQB10: 0.0699 | BQC10: 0.1114 | BQE10: 0.0699 | BQF10: 0.1114 | BQH10: 0.0699 | BQI10: 0.1202 | BQK10: 0.0699 | BQL10: 0.1202 | BQN10: 0.0699 | BQO10: 0.1289 | BQQ10: 0.0699 | BQR10: 0.1289 | BQT10: 0.0699 | BQU10: 0.1377 | BQW10: 0.0699 | BQX10: 0.1377 | BQZ10: 0.0699 | BRA10: 0.1464 | BRC10: 0.0699 | BRD10: 0.1464 | BRF10: 0.0699 | BRG10: 0.1639 | BRI10: 0.0701 | BRJ10: 0.19 | BRL10: 0 | BRM10: 0 | BRO10: 0 | BRP10: 0
A11: 10 | B11: 0 | C11: 0 | E11: 0 | F11: 0 | H11: 0 | I11: 0 | K11: 0 | L11: 0 | N11: 0 | O11: 0 | Q11: 0 | R11: 0 | T11: 0 | U11: 0 | W11: 0 | X11: 0 | Z11: 0 | AA11: 0 | AC11: 0.0218 | AD11: 0.0001 | AF11: 0.1498 | AG11: 0.0001 | AI11: 0.0435 | AJ11: 0.0001 | AL11: 0.16 | AM11: 0.0049 | AO11: 0.0542 | AP11: 0.0001 | AR11: 0.065 | AS11: 0.0001 | AU11: 0.1287 | AV11: 0.0001 | AX11: 0.16 | AY11: 0.0142 | BA11: 0.0755 | BB11: 0.0001 | BD11: 0.0862 | BE11: 0.0001 | BG11: 0.0968 | BH11: 0.0001 | BJ11: 0.1075 | BK11: 0.0001 | BM11: 0.1287 | BN11: 0.0001 | BP11: 0.1498 | BQ11: 0.0001 | BS11: 0.0968 | BT11: 0.0001 | BV11: 0.1075 | BW11: 0.0001 | BY11: 0.1075 | BZ11: 0.0001 | CB11: 0.1287 | CC11: 0.0001 | CE11: 0.1498 | CF11: 0.0001 | CH11: 0.16 | CI11: 0.0049 | CK11: 0.1181 | CL11: 0.0001 | CN11: 0.1287 | CO11: 0.0001 | CQ11: 0.1392 | CR11: 0.0001 | CT11: 0.16 | CU11: 0.0049 | CW11: 0.16 | CX11: 0.0142 | CZ11: 0.1498 | DA11: 0.0001 | DC11: 0.16 | DD11: 0.0002 | DF11: 0.16 | DG11: 0.0049 | DI11: 0.16 | DJ11: 0.0142 | DL11: 0.16 | DM11: 0.0002 | DO11: 0.16 | DP11: 0.0049 | DR11: 0.16 | DS11: 0.0049 | DU11: 0.16 | DV11: 0.0095 | DX11: 0.16 | DY11: 0.0142 | EA11: 0.16 | EB11: 0.0235 | ED11: 0.16 | EE11: 0.0142 | EG11: 0.16 | EH11: 0.0142 | EJ11: 0.16 | EK11: 0.0189 | EM11: 0.16 | EN11: 0.0235 | EP11: 0.16 | EQ11: 0.0328 | ES11: 0.16 | ET11: 0.0189 | EV11: 0.16 | EW11: 0.0514 | EY11: 0.16 | EZ11: 0.0793 | FB11: 0.0435 | FC11: 0.0001 | FE11: 0.0862 | FF11: 0.0001 | FH11: 0.1287 | FI11: 0.0001 | FK11: 0 | FL11: 0 | FN11: 0.0606 | FO11: 0.0001 | FQ11: 0.0704 | FR11: 0.0001 | FT11: 0.0804 | FU11: 0.0001 | FW11: 0.0904 | FX11: 0.0001 | FZ11: 0.1003 | GA11: 0.0001 | GC11: 0.1103 | GD11: 0.0001 | GF11: 0.1202 | GG11: 0.0001 | GI11: 0.1399 | GJ11: 0.0001 | GL11: 0.1596 | GM11: 0.0001 | GO11: 0.16 | GP11: 0.01 | GR11: 0.16 | GS11: 0.0202 | GU11: 0.16 | GV11: 0.0303 | GX11: 0.16 | GY11: 0.0404 | HA11: 0.16 | HB11: 0.0454 | HD11: 0.16 | HE11: 0.0505 | HG11: 0.16 | HH11: 0.0606 | HJ11: 0.16 | HK11: 0.0707 | HM11: 0.16 | HN11: 0.0808 | HP11: 0.16 | HQ11: 0.0859 | HS11: 0.16 | HT11: 0.0909 | HV11: 0.16 | HW11: 0.101 | HY11: 0.16 | HZ11: 0.1212 | IB11: 0 | IC11: 0 | IE11: 0.0573 | IF11: 0.0001 | IH11: 0.0667 | II11: 0.0001 | IK11: 0.0762 | IL11: 0.0001 | IN11: 0.0856 | IO11: 0.0001 | IQ11: 0.0951 | IR11: 0.0001 | IT11: 0.1139 | IU11: 0.0001 | IW11: 0.1327 | IX11: 0.0001 | IZ11: 0.1514 | JA11: 0.0001 | JC11: 0.16 | JD11: 0.006 | JF11: 0.16 | JG11: 0.0169 | JI11: 0.16 | JJ11: 0.0278 | JL11: 0.16 | JM11: 0.0387 | JO11: 0.16 | JP11: 0.0441 | JR11: 0.16 | JS11: 0.0496 | JU11: 0.16 | JV11: 0.0605 | JX11: 0.16 | JY11: 0.0714 | KA11: 0.16 | KB11: 0.0823 | KD11: 0.16 | KE11: 0.0877 | KG11: 0.16 | KH11: 0.0931 | KJ11: 0 | KK11: 0 | KM11: 0.0549 | KN11: 0.0001 | KP11: 0.0638 | KQ11: 0.0001 | KS11: 0.0729 | KT11: 0.0001 | KV11: 0.0819 | KW11: 0.0001 | KY11: 0.091 | KZ11: 0.0001 | LB11: 0.1 | LC11: 0.0001 | LE11: 0.1091 | LF11: 0.0001 | LH11: 0.1271 | LI11: 0.0001 | LK11: 0.145 | LL11: 0.0001 | LN11: 0.16 | LO11: 0.002 | LQ11: 0.16 | LR11: 0.0137 | LT11: 0.16 | LU11: 0.0254 | LW11: 0.16 | LX11: 0.037 | LZ11: 0.16 | MA11: 0.0428 | MC11: 0.16 | MD11: 0.0487 | MF11: 0.16 | MG11: 0.0603 | MI11: 0.16 | MJ11: 0.072 | ML11: 0.16 | MM11: 0.0837 | MO11: 0.16 | MP11: 0.0895 | MR11: 0.16 | MS11: 0.0953 | MU11: 0.16 | MV11: 0.107 | MX11: 0.16 | MY11: 0.1303 | NA11: 0.0529 | NB11: 0.0001 | ND11: 0.0616 | NE11: 0.0001 | NG11: 0.0878 | NH11: 0.0001 | NJ11: 0 | NK11: 0 | NM11: 0.0665 | NN11: 0.0001 | NP11: 0.083 | NQ11: 0.0001 | NS11: 0.0995 | NT11: 0.0001 | NV11: 0.116 | NW11: 0.0001 | NY11: 0.1325 | NZ11: 0.0001 | OB11: 0.1489 | OC11: 0.0001 | OE11: 0.16 | OF11: 0.0046 | OH11: 0.16 | OI11: 0.0184 | OK11: 0.16 | OL11: 0.0323 | ON11: 0.16 | OO11: 0.0461 | OQ11: 0.16 | OR11: 0.06 | OT11: 0.16 | OU11: 0.0738 | OW11: 0.16 | OX11: 0.1431 | OZ11: 0.0955 | PA11: 0.0001 | PC11: 0.1113 | PD11: 0.0001 | PF11: 0 | PG11: 0 | PI11: 0.0648 | PJ11: 0.0001 | PL11: 0.05 | PM11: 0 | PO11: 0.054 | PP11: 0.0001 | PR11: 0.0599 | PS11: 0 | PU11: 0.0625 | PV11: 0 | PX11: 0.065 | PY11: 0 | QA11: 0 | QB11: 0.03 | QD11: 0.072 | QE11: 0 | QG11: 0.0714 | QH11: 0.0001 | QJ11: 0.0755 | QK11: 0.0001 | QM11: 0 | QN11: 0 | QP11: 0.0847 | QQ11: 0.0001 | QS11: 0.0862 | QT11: 0.0001 | QV11: 0.083 | QW11: 0.0001 | QY11: 0.095 | QZ11: 0 | RB11: 0.0946 | RC11: 0.0001 | RE11: 0.0968 | RF11: 0.0001 | RH11: 0.072 | RI11: 0.009 | RK11: 0.0814 | RL11: 0.0001 | RN11: 0.1075 | RO11: 0.0001 | RQ11: 0.1199 | RR11: 0.0001 | RT11: 0.0979 | RU11: 0.0001 | RW11: 0.1073 | RX11: 0.0001 | RZ11: 0.072 | SA11: 0.024 | SC11: 0.1287 | SD11: 0.0001 | SF11: 0.16 | SG11: 0.0421 | SI11: 0.1127 | SJ11: 0.0001 | SL11: 0.139 | SM11: 0.0001 | SO11: 0.1498 | SP11: 0.0001 | SR11: 0.1361 | SS11: 0.0001 | SU11: 0.16 | SV11: 0.0012 | SX11: 0.16 | SY11: 0.0235 | TA11: 0.144 | TB11: 0.0001 | TD11: 0.16 | TE11: 0.0142 | TG11: 0.16 | TH11: 0.0328 | TJ11: 0.16 | TK11: 0.0328 | TM11: 0.16 | TN11: 0.1482 | TP11: 0.16 | TQ11: 0.0421 | TS11: 0.16 | TT11: 0.0514 | TV11: 0.16 | TW11: 0.0607 | TY11: 0.16 | TZ11: 0.07 | UB11: 0.16 | UC11: 0.0793 | UE11: 0.16 | UF11: 0.0979 | UH11: 0.16 | UI11: 0.1165 | UK11: 0.0454 | UL11: 0 | UN11: 0.057 | UO11: 0 | UQ11: 0.0615 | UR11: 0 | UT11: 0 | UU11: 0.03 | UW11: 0.0946 | UX11: 0.0001 | UZ11: 0 | VA11: 0 | VC11: 0.0699 | VD11: 0 | VF11: 0.0968 | VG11: 0.0001 | VI11: 0.1075 | VJ11: 0.0001 | VL11: 0.1003 | VM11: 0.0001 | VO11: 0.1181 | VP11: 0.0001 | VR11: 0.0995 | VS11: 0.0001 | VU11: 0.1181 | VV11: 0.0001 | VX11: 0.16 | VY11: 0.1091 | WA11: 0.1498 | WB11: 0.0001 | WD11: 0.16 | WE11: 0.0049 | WG11: 0.16 | WH11: 0.0142 | WJ11: 0.16 | WK11: 0.0235 | WM11: 0.16 | WN11: 0.07 | WP11: 0.16 | WQ11: 0.0514 | WS11: 0.16 | WT11: 0.1072 | WV11: 0.16 | WW11: 0.0793 | WY11: 0 | WZ11: 0.04 | XB11: 0.0862 | XC11: 0.0001 | XE11: 0.0995 | XF11: 0.0001 | XH11: 0.1287 | XI11: 0.0001 | XK11: 0.125 | XL11: 0 | XN11: 0.1287 | XO11: 0.0001 | XQ11: 0.1396 | XR11: 0.0001 | XT11: 0.16 | XU11: 0.0009 | XW11: 0.16 | XX11: 0.0607 | XZ11: 0.16 | YA11: 0.0235 | YC11: 0.16 | YD11: 0.0793 | YF11: 0.16 | YG11: 0.0421 | YI11: 0.0675 | YJ11: 0 | YL11: 0.0862 | YM11: 0.0001 | YO11: 0.1 | YP11: 0.0001 | YR11: 0.1287 | YS11: 0.0001 | YU11: 0.1202 | YV11: 0.0001 | YX11: 0.1287 | YY11: 0.0001 | ZA11: 0.1498 | ZB11: 0.0001 | ZD11: 0.16 | ZE11: 0.0049 | ZG11: 0.16 | ZH11: 0.0102 | ZJ11: 0.16 | ZK11: 0.0235 | ZM11: 0.16 | ZN11: 0.0886 | ZP11: 0.16 | ZQ11: 0.0421 | ZS11: 0.0747 | ZT11: 0.0001 | ZV11: 0.0995 | ZW11: 0.0001 | ZY11: 0.0946 | ZZ11: 0.0001 | AAB11: 0.1287 | AAC11: 0.0001 | AAE11: 0.1498 | AAF11: 0.0001 | AAH11: 0.16 | AAI11: 0.0049 | AAK11: 0.16 | AAL11: 0.0142 | AAN11: 0.16 | AAO11: 0.0235 | AAQ11: 0.16 | AAR11: 0.0979 | AAT11: 0.16 | AAU11: 0.0607 | AAW11: 0.0904 | AAX11: 0.0001 | AAZ11: 0.1075 | ABA11: 0.0001 | ABC11: 0.16 | ABD11: 0.07 | ABF11: 0.1498 | ABG11: 0.0001 | ABI11: 0 | ABJ11: 0 | ABL11: 0 | ABM11: 0 | ABO11: 0 | ABP11: 0 | ABR11: 0.16 | ABS11: 0.0142 | ABU11: 0.16 | ABV11: 0.023 | ABX11: 0.16 | ABY11: 0.07 | ACA11: 0.16 | ACB11: 0.0607 | ACD11: 0.0946 | ACE11: 0.0001 | ACG11: 0.16 | ACH11: 0.072 | ACJ11: 0.16 | ACK11: 0.0421 | ACM11: 0 | ACN11: 0 | ACP11: 0.16 | ACQ11: 0.07 | ACS11: 0.16 | ACT11: 0.0235 | ACV11: 0.16 | ACW11: 0.0886 | ACY11: 0.1075 | ACZ11: 0.0001 | ADB11: 0.16 | ADC11: 0.1124 | ADE11: 0.1341 | ADF11: 0.0001 | ADH11: 0 | ADI11: 0 | ADK11: 0.16 | ADL11: 0.0235 | ADN11: 0.1075 | ADO11: 0.0001 | ADQ11: 0.16 | ADR11: 0.0235 | ADT11: 0.139 | ADU11: 0.0001 | ADW11: 0.1554 | ADX11: 0.0001 | ADZ11: 0.16 | AEA11: 0.0235 | AEC11: 0.1075 | AED11: 0.0001 | AEF11: 0.16 | AEG11: 0.0235 | AEI11: 0.1396 | AEJ11: 0.0001 | AEL11: 0.1045 | AEM11: 0.0001 | AEO11: 0.16 | AEP11: 0.0049 | AER11: 0.16 | AES11: 0.0226 | AEU11: 0.0995 | AEV11: 0.0001 | AEX11: 0.1287 | AEY11: 0.0001 | AFA11: 0.16 | AFB11: 0.0449 | AFD11: 0.16 | AFE11: 0.0235 | AFG11: 0 | AFH11: 0 | AFJ11: 0 | AFK11: 0.1 | AFM11: 0.1287 | AFN11: 0.0001 | AFP11: 0.16 | AFQ11: 0.0886 | AFS11: 0.1498 | AFT11: 0.0001 | AFV11: 0.1271 | AFW11: 0.0001 | AFY11: 0.116 | AFZ11: 0.0001 | AGB11: 0.0435 | AGC11: 0.0001 | AGE11: 0.16 | AGF11: 0.0235 | AGH11: 0.16 | AGI11: 0.0328 | AGK11: 0.16 | AGL11: 0.0421 | AGN11: 0.16 | AGO11: 0.0235 | AGQ11: 0.16 | AGR11: 0.0514 | AGT11: 0.16 | AGU11: 0.0328 | AGW11: 0.16 | AGX11: 0.0607 | AGZ11: 0.16 | AHA11: 0.0421 | AHC11: 0.16 | AHD11: 0.07 | AHF11: 0.16 | AHG11: 0.0235 | AHI11: 0.16 | AHJ11: 0.0235 | AHL11: 0.16 | AHM11: 0.0328 | AHO11: 0.16 | AHP11: 0.0421 | AHR11: 0.16 | AHS11: 0.0514 | AHU11: 0.16 | AHV11: 0.0793 | AHX11: 0.16 | AHY11: 0.0282 | AIA11: 0.16 | AIB11: 0.0328 | AID11: 0.16 | AIE11: 0.0328 | AIG11: 0.16 | AIH11: 0.0375 | AIJ11: 0.16 | AIK11: 0.0421 | AIM11: 0.16 | AIN11: 0.0607 | AIP11: 0.16 | AIQ11: 0.0886 | AIS11: 0.16 | AIT11: 0.0421 | AIV11: 0.16 | AIW11: 0.0421 | AIY11: 0.16 | AIZ11: 0.07 | AJB11: 0.16 | AJC11: 0.0979 | AJE11: 0.16 | AJF11: 0.0468 | AJH11: 0.16 | AJI11: 0.0514 | AJK11: 0.16 | AJL11: 0.0514 | AJN11: 0.16 | AJO11: 0.0793 | AJQ11: 0.16 | AJR11: 0.1072 | AJT11: 0.16 | AJU11: 0.0607 | AJW11: 0.16 | AJX11: 0.0607 | AJZ11: 0.16 | AKA11: 0.0886 | AKC11: 0.16 | AKD11: 0.07 | AKF11: 0.16 | AKG11: 0.07 | AKI11: 0.16 | AKJ11: 0.0979 | AKL11: 0.16 | AKM11: 0.0793 | AKO11: 0.16 | AKP11: 0.0793 | AKR11: 0.16 | AKS11: 0.1072 | AKU11: 0.16 | AKV11: 0.084 | AKX11: 0.16 | AKY11: 0.0886 | ALA11: 0.16 | ALB11: 0.0886 | ALD11: 0.16 | ALE11: 0.0979 | ALG11: 0.16 | ALH11: 0.0979 | ALJ11: 0.16 | ALK11: 0.1072 | ALM11: 0.16 | ALN11: 0.1072 | ALP11: 0.16 | ALQ11: 0.1165 | ALS11: 0.16 | ALT11: 0.1165 | ALV11: 0.16 | ALW11: 0.1165 | ALY11: 0.16 | ALZ11: 0.1165 | AMB11: 0.16 | AMC11: 0.1175 | AME11: 0.16 | AMF11: 0.1175 | AMH11: 0.16 | AMI11: 0.1259 | AMK11: 0.16 | AML11: 0.1259 | AMN11: 0.16 | AMO11: 0.1352 | AMQ11: 0.16 | AMR11: 0.1352 | AMT11: 0.16 | AMU11: 0.1445 | AMW11: 0.16 | AMX11: 0.1445 | AMZ11: 0.16 | ANA11: 0.1538 | ANC11: 0.16 | AND11: 0.1538 | ANF11: 0.16 | ANG11: 0.1631 | ANI11: 0.16 | ANJ11: 0.1631 | ANL11: 0.16 | ANM11: 0.1724 | ANO11: 0.16 | ANP11: 0.191 | ANR11: 0 | ANS11: 0 | ANU11: 0 | ANV11: 0 | ANX11: 0 | ANY11: 0 | AOA11: 0 | AOB11: 0 | AOD11: 0.0651 | AOE11: 0 | AOG11: 0.061 | AOH11: 0 | AOJ11: 0.0576 | AOK11: 0 | AOM11: 0.0552 | AON11: 0 | AOP11: 0.0503 | AOQ11: 0 | AOS11: 0 | AOT11: 0 | AOV11: 0 | AOW11: 0 | AOY11: 0 | AOZ11: 0 | APB11: 0 | APC11: 0 | APE11: 0.057 | APF11: 0 | APH11: 0.057 | API11: 0 | APK11: 0.057 | APL11: 0 | APN11: 0.057 | APO11: 0 | APQ11: 0.057 | APR11: 0 | APT11: 0.0757 | APU11: 0 | APW11: 0.0706 | APX11: 0 | APZ11: 0.0668 | AQA11: 0 | AQC11: 0.064 | AQD11: 0 | AQF11: 0.0583 | AQG11: 0 | AQI11: 0.0757 | AQJ11: 0 | AQL11: 0.0706 | AQM11: 0 | AQO11: 0.0668 | AQP11: 0 | AQR11: 0.064 | AQS11: 0 | AQU11: 0.0583 | AQV11: 0 | AQX11: 0.0615 | AQY11: 0 | ARA11: 0.0615 | ARB11: 0 | ARD11: 0.0615 | ARE11: 0 | ARG11: 0.0615 | ARH11: 0 | ARJ11: 0.0615 | ARK11: 0 | ARM11: 0.0599 | ARN11: 0 | ARP11: 0.0599 | ARQ11: 0 | ARS11: 0.0599 | ART11: 0 | ARV11: 0.0599 | ARW11: 0 | ARY11: 0.0599 | ARZ11: 0 | ASB11: 0.0437 | ASC11: 0 | ASE11: 0.0798 | ASF11: 0 | ASH11: 0.0744 | ASI11: 0 | ASK11: 0.0705 | ASL11: 0 | ASN11: 0.0674 | ASO11: 0 | ASQ11: 0.072 | ASR11: 0 | AST11: 0.072 | ASU11: 0 | ASW11: 0.072 | ASX11: 0 | ASZ11: 0.072 | ATA11: 0 | ATC11: 0.072 | ATD11: 0 | ATF11: 0.072 | ATG11: 0 | ATI11: 0 | ATJ11: 0 | ATL11: 0 | ATM11: 0 | ATO11: 0 | ATP11: 0 | ATR11: 0 | ATS11: 0 | ATU11: 0 | ATV11: 0 | ATX11: 0 | ATY11: 0 | AUA11: 0 | AUB11: 0 | AUD11: 0 | AUE11: 0 | AUG11: 0 | AUH11: 0 | AUJ11: 0 | AUK11: 0 | AUM11: 0 | AUN11: 0 | AUP11: 0 | AUQ11: 0 | AUS11: 0 | AUT11: 0 | AUV11: 0 | AUW11: 0 | AUY11: 0 | AUZ11: 0 | AVB11: 0 | AVC11: 0 | AVE11: 0 | AVF11: 0 | AVH11: 0 | AVI11: 0 | AVK11: 0 | AVL11: 0 | AVN11: 0 | AVO11: 0 | AVQ11: 0 | AVR11: 0 | AVT11: 0 | AVU11: 0 | AVW11: 0 | AVX11: 0 | AVZ11: 0 | AWA11: 0 | AWC11: 0 | AWD11: 0 | AWF11: 0 | AWG11: 0 | AWI11: 0 | AWJ11: 0 | AWL11: 0 | AWM11: 0 | AWO11: 0 | AWP11: 0 | AWR11: 0 | AWS11: 0 | AWU11: 0 | AWV11: 0 | AWX11: 0 | AWY11: 0 | AXA11: 0 | AXB11: 0 | AXD11: 0 | AXE11: 0 | AXG11: 0 | AXH11: 0 | AXJ11: 0 | AXK11: 0 | AXM11: 0 | AXN11: 0 | AXP11: 0 | AXQ11: 0 | AXS11: 0 | AXT11: 0 | AXV11: 0 | AXW11: 0 | AXY11: 0 | AXZ11: 0 | AYB11: 0 | AYC11: 0 | AYE11: 0 | AYF11: 0 | AYH11: 0 | AYI11: 0 | AYK11: 0 | AYL11: 0 | AYN11: 0 | AYO11: 0 | AYQ11: 0 | AYR11: 0 | AYT11: 0.0216 | AYU11: 0.0001 | AYW11: 0 | AYX11: 0 | AYZ11: 0 | AZA11: 0 | AZC11: 0 | AZD11: 0 | AZF11: 0 | AZG11: 0 | AZI11: 0 | AZJ11: 0 | AZL11: 0 | AZM11: 0 | AZO11: 0 | AZP11: 0 | AZR11: 0 | AZS11: 0 | AZU11: 0 | AZV11: 0 | AZX11: 0 | AZY11: 0 | BAA11: 0 | BAB11: 0 | BAD11: 0 | BAE11: 0 | BAG11: 0 | BAH11: 0 | BAJ11: 0 | BAK11: 0 | BAM11: 0 | BAN11: 0 | BAP11: 0 | BAQ11: 0 | BAS11: 0 | BAT11: 0 | BAV11: 0 | BAW11: 0 | BAY11: 0 | BAZ11: 0 | BBB11: 0 | BBC11: 0 | BBE11: 0 | BBF11: 0 | BBH11: 0 | BBI11: 0 | BBK11: 0 | BBL11: 0 | BBN11: 0 | BBO11: 0 | BBQ11: 0 | BBR11: 0 | BBT11: 0 | BBU11: 0 | BBW11: 0 | BBX11: 0 | BBZ11: 0 | BCA11: 0 | BCC11: 0 | BCD11: 0 | BCF11: 0 | BCG11: 0 | BCI11: 0 | BCJ11: 0 | BCL11: 0 | BCM11: 0 | BCO11: 0 | BCP11: 0 | BCR11: 0 | BCS11: 0 | BCU11: 0 | BCV11: 0 | BCX11: 0 | BCY11: 0 | BDA11: 0 | BDB11: 0 | BDD11: 0 | BDE11: 0 | BDG11: 0 | BDH11: 0 | BDJ11: 0 | BDK11: 0 | BDM11: 0 | BDN11: 0 | BDP11: 0 | BDQ11: 0 | BDS11: 0 | BDT11: 0 | BDV11: 0 | BDW11: 0 | BDY11: 0 | BDZ11: 0 | BEB11: 0 | BEC11: 0 | BEE11: 0 | BEF11: 0 | BEH11: 0 | BEI11: 0 | BEK11: 0 | BEL11: 0 | BEN11: 0 | BEO11: 0 | BEQ11: 0 | BER11: 0 | BET11: 0 | BEU11: 0 | BEW11: 0 | BEX11: 0 | BEZ11: 0 | BFA11: 0 | BFC11: 0 | BFD11: 0 | BFF11: 0 | BFG11: 0 | BFI11: 0 | BFJ11: 0 | BFL11: 0 | BFM11: 0 | BFO11: 0 | BFP11: 0 | BFR11: 0 | BFS11: 0 | BFU11: 0 | BFV11: 0 | BFX11: 0 | BFY11: 0 | BGA11: 0.1003 | BGB11: 0.0001 | BGD11: 0.0648 | BGE11: 0.0001 | BGG11: 0.0712 | BGH11: 0.0001 | BGJ11: 0.0712 | BGK11: 0.0001 | BGM11: 0.0648 | BGN11: 0.0001 | BGP11: 0.0862 | BGQ11: 0.0001 | BGS11: 0.0862 | BGT11: 0.0001 | BGV11: 0.1075 | BGW11: 0.0001 | BGY11: 0.1003 | BGZ11: 0.0001 | BHB11: 0.091 | BHC11: 0.0001 | BHE11: 0.1075 | BHF11: 0.0001 | BHH11: 0.1287 | BHI11: 0.0001 | BHK11: 0.1498 | BHL11: 0.0001 | BHN11: 0.1399 | BHO11: 0.0001 | BHQ11: 0.1271 | BHR11: 0.0001 | BHT11: 0.116 | BHU11: 0.0001 | BHW11: 0.16 | BHX11: 0.0049 | BHZ11: 0.16 | BIA11: 0.0142 | BIC11: 0.16 | BID11: 0.01 | BIF11: 0.16 | BIG11: 0.002 | BII11: 0.1489 | BIJ11: 0.0001 | BIL11: 0.1392 | BIM11: 0.0001 | BIO11: 0 | BIP11: 0 | BIR11: 0 | BIS11: 0 | BIU11: 0 | BIV11: 0 | BIX11: 0 | BIY11: 0 | BJA11: 0 | BJB11: 0 | BJD11: 0 | BJE11: 0 | BJG11: 0 | BJH11: 0 | BJJ11: 0 | BJK11: 0 | BJM11: 0.0699 | BJN11: 0.195 | BJP11: 0 | BJQ11: 0 | BJS11: 0 | BJT11: 0 | BJV11: 0 | BJW11: 0 | BJY11: 0 | BJZ11: 0 | BKB11: 0 | BKC11: 0 | BKE11: 0 | BKF11: 0 | BKH11: 0 | BKI11: 0 | BKK11: 0 | BKL11: 0 | BKN11: 0 | BKO11: 0 | BKQ11: 0 | BKR11: 0 | BKT11: 0 | BKU11: 0 | BKW11: 0 | BKX11: 0 | BKZ11: 0 | BLA11: 0 | BLC11: 0 | BLD11: 0 | BLF11: 0 | BLG11: 0 | BLI11: 0 | BLJ11: 0 | BLL11: 0 | BLM11: 0 | BLO11: 0 | BLP11: 0 | BLR11: 0 | BLS11: 0 | BLU11: 0.0699 | BLV11: 0.0366 | BLX11: 0.0699 | BLY11: 0.0366 | BMA11: 0.0699 | BMB11: 0.0559 | BMD11: 0.0699 | BME11: 0.0559 | BMG11: 0 | BMH11: 0 | BMJ11: 0.0699 | BMK11: 0.0172 | BMM11: 0.0699 | BMN11: 0.0269 | BMP11: 0.0699 | BMQ11: 0.0269 | BMS11: 0.0699 | BMT11: 0.0366 | BMV11: 0.0699 | BMW11: 0.0366 | BMY11: 0.0699 | BMZ11: 0.0462 | BNB11: 0.0699 | BNC11: 0.0462 | BNE11: 0.0699 | BNF11: 0.0517 | BNH11: 0.0699 | BNI11: 0.0517 | BNK11: 0.0699 | BNL11: 0.0559 | BNN11: 0.0699 | BNO11: 0.0559 | BNQ11: 0.0699 | BNR11: 0.0693 | BNT11: 0.0699 | BNU11: 0.0693 | BNW11: 0.0699 | BNX11: 0.0765 | BNZ11: 0.0699 | BOA11: 0.0765 | BOC11: 0.0699 | BOD11: 0.0656 | BOF11: 0.0699 | BOG11: 0.0656 | BOI11: 0.0699 | BOJ11: 0.0753 | BOL11: 0.0699 | BOM11: 0.0753 | BOO11: 0.0699 | BOP11: 0.085 | BOR11: 0.0699 | BOS11: 0.085 | BOU11: 0.0699 | BOV11: 0.1012 | BOX11: 0.0699 | BOY11: 0.0947 | BPA11: 0.0699 | BPB11: 0.0947 | BPD11: 0.0699 | BPE11: 0.1011 | BPG11: 0.0699 | BPH11: 0.1074 | BPJ11: 0.0699 | BPK11: 0.1136 | BPM11: 0.0699 | BPN11: 0.1044 | BPP11: 0.0699 | BPQ11: 0.1044 | BPS11: 0.0699 | BPT11: 0.126 | BPV11: 0.0699 | BPW11: 0.114 | BPY11: 0.0699 | BPZ11: 0.114 | BQB11: 0.0699 | BQC11: 0.1237 | BQE11: 0.0699 | BQF11: 0.1237 | BQH11: 0.0699 | BQI11: 0.1334 | BQK11: 0.0699 | BQL11: 0.1334 | BQN11: 0.0699 | BQO11: 0.1431 | BQQ11: 0.0699 | BQR11: 0.1431 | BQT11: 0.0699 | BQU11: 0.1528 | BQW11: 0.0699 | BQX11: 0.1528 | BQZ11: 0.0699 | BRA11: 0.1625 | BRC11: 0.0699 | BRD11: 0.1625 | BRF11: 0.0699 | BRG11: 0.1819 | BRI11: 0 | BRJ11: 0 | BRL11: 0 | BRM11: 0 | BRO11: 0 | BRP11: 0
A12: 11 | B12: 0 | C12: 0 | E12: 0 | F12: 0 | H12: 0 | I12: 0 | K12: 0 | L12: 0 | N12: 0 | O12: 0 | Q12: 0 | R12: 0 | T12: 0 | U12: 0 | W12: 0 | X12: 0 | Z12: 0 | AA12: 0 | AC12: 0.022 | AD12: 0.0001 | AF12: 0.1507 | AG12: 0.0001 | AI12: 0.0438 | AJ12: 0.0001 | AL12: 0.16 | AM12: 0.0058 | AO12: 0.0546 | AP12: 0.0001 | AR12: 0.0655 | AS12: 0.0001 | AU12: 0.1295 | AV12: 0.0001 | AX12: 0.16 | AY12: 0.016 | BA12: 0.076 | BB12: 0.0001 | BD12: 0.0868 | BE12: 0.0001 | BG12: 0.0975 | BH12: 0.0001 | BJ12: 0.1082 | BK12: 0.0001 | BM12: 0.1295 | BN12: 0.0001 | BP12: 0.1507 | BQ12: 0.0001 | BS12: 0.0975 | BT12: 0.0001 | BV12: 0.1082 | BW12: 0.0001 | BY12: 0.1082 | BZ12: 0.0001 | CB12: 0.1295 | CC12: 0.0001 | CE12: 0.1507 | CF12: 0.0001 | CH12: 0.16 | CI12: 0.0058 | CK12: 0.1189 | CL12: 0.0001 | CN12: 0.1295 | CO12: 0.0001 | CQ12: 0.1401 | CR12: 0.0001 | CT12: 0.16 | CU12: 0.0058 | CW12: 0.16 | CX12: 0.016 | CZ12: 0.1507 | DA12: 0.0001 | DC12: 0.16 | DD12: 0.0007 | DF12: 0.16 | DG12: 0.0058 | DI12: 0.16 | DJ12: 0.016 | DL12: 0.16 | DM12: 0.0007 | DO12: 0.16 | DP12: 0.0058 | DR12: 0.16 | DS12: 0.0058 | DU12: 0.16 | DV12: 0.0109 | DX12: 0.16 | DY12: 0.016 | EA12: 0.16 | EB12: 0.0262 | ED12: 0.16 | EE12: 0.016 | EG12: 0.16 | EH12: 0.016 | EJ12: 0.16 | EK12: 0.0211 | EM12: 0.16 | EN12: 0.0262 | EP12: 0.16 | EQ12: 0.0363 | ES12: 0.16 | ET12: 0.0211 | EV12: 0.16 | EW12: 0.0567 | EY12: 0.16 | EZ12: 0.0872 | FB12: 0.0438 | FC12: 0.0001 | FE12: 0.0868 | FF12: 0.0001 | FH12: 0.1295 | FI12: 0.0001 | FK12: 0 | FL12: 0 | FN12: 0.0613 | FO12: 0.0001 | FQ12: 0.0713 | FR12: 0.0001 | FT12: 0.0814 | FU12: 0.0001 | FW12: 0.0915 | FX12: 0.0001 | FZ12: 0.1015 | GA12: 0.0001 | GC12: 0.1115 | GD12: 0.0001 | GF12: 0.1215 | GG12: 0.0001 | GI12: 0.1415 | GJ12: 0.0001 | GL12: 0.16 | GM12: 0.0009 | GO12: 0.16 | GP12: 0.0118 | GR12: 0.16 | GS12: 0.0228 | GU12: 0.16 | GV12: 0.0337 | GX12: 0.16 | GY12: 0.0447 | HA12: 0.16 | HB12: 0.0502 | HD12: 0.16 | HE12: 0.0557 | HG12: 0.16 | HH12: 0.0666 | HJ12: 0.16 | HK12: 0.0776 | HM12: 0.16 | HN12: 0.0885 | HP12: 0.16 | HQ12: 0.094 | HS12: 0.16 | HT12: 0.0995 | HV12: 0.16 | HW12: 0.1105 | HY12: 0.16 | HZ12: 0.1324 | IB12: 0 | IC12: 0 | IE12: 0.0582 | IF12: 0.0001 | IH12: 0.0677 | II12: 0.0001 | IK12: 0.0773 | IL12: 0.0001 | IN12: 0.0869 | IO12: 0.0001 | IQ12: 0.0964 | IR12: 0.0001 | IT12: 0.1155 | IU12: 0.0001 | IW12: 0.1345 | IX12: 0.0001 | IZ12: 0.1534 | JA12: 0.0001 | JC12: 0.16 | JD12: 0.0078 | JF12: 0.16 | JG12: 0.0195 | JI12: 0.16 | JJ12: 0.0312 | JL12: 0.16 | JM12: 0.043 | JO12: 0.16 | JP12: 0.0488 | JR12: 0.16 | JS12: 0.0547 | JU12: 0.16 | JV12: 0.0664 | JX12: 0.16 | JY12: 0.0781 | KA12: 0.16 | KB12: 0.0899 | KD12: 0.16 | KE12: 0.0957 | KG12: 0.16 | KH12: 0.1016 | KJ12: 0 | KK12: 0 | KM12: 0.0558 | KN12: 0.0001 | KP12: 0.0649 | KQ12: 0.0001 | KS12: 0.0741 | KT12: 0.0001 | KV12: 0.0833 | KW12: 0.0001 | KY12: 0.0925 | KZ12: 0.0001 | LB12: 0.1016 | LC12: 0.0001 | LE12: 0.1108 | LF12: 0.0001 | LH12: 0.129 | LI12: 0.0001 | LK12: 0.1472 | LL12: 0.0001 | LN12: 0.16 | LO12: 0.0038 | LQ12: 0.16 | LR12: 0.0163 | LT12: 0.16 | LU12: 0.0288 | LW12: 0.16 | LX12: 0.0413 | LZ12: 0.16 | MA12: 0.0475 | MC12: 0.16 | MD12: 0.0537 | MF12: 0.16 | MG12: 0.0662 | MI12: 0.16 | MJ12: 0.0787 | ML12: 0.16 | MM12: 0.0912 | MO12: 0.16 | MP12: 0.0974 | MR12: 0.16 | MS12: 0.1037 | MU12: 0.16 | MV12: 0.1161 | MX12: 0.16 | MY12: 0.1411 | NA12: 0.0538 | NB12: 0.0001 | ND12: 0.0626 | NE12: 0.0001 | NG12: 0.0893 | NH12: 0.0001 | NJ12: 0 | NK12: 0 | NM12: 0.0676 | NN12: 0.0001 | NP12: 0.0844 | NQ12: 0.0001 | NS12: 0.1012 | NT12: 0.0001 | NV12: 0.118 | NW12: 0.0001 | NY12: 0.1347 | NZ12: 0.0001 | OB12: 0.1514 | OC12: 0.0001 | OE12: 0.16 | OF12: 0.0071 | OH12: 0.16 | OI12: 0.0218 | OK12: 0.16 | OL12: 0.0364 | ON12: 0.16 | OO12: 0.051 | OQ12: 0.16 | OR12: 0.0657 | OT12: 0.16 | OU12: 0.0803 | OW12: 0.16 | OX12: 0.1535 | OZ12: 0.0971 | PA12: 0.0001 | PC12: 0.1132 | PD12: 0.0001 | PF12: 0.1082 | PG12: 0.0001 | PI12: 0.076 | PJ12: 0.0001 | PL12: 0.05 | PM12: 0 | PO12: 0.0544 | PP12: 0.0001 | PR12: 0.0599 | PS12: 0 | PU12: 0.0625 | PV12: 0 | PX12: 0.065 | PY12: 0 | QA12: 0 | QB12: 0 | QD12: 0.072 | QE12: 0 | QG12: 0.0744 | QH12: 0.0001 | QJ12: 0.076 | QK12: 0.0001 | QM12: 0 | QN12: 0 | QP12: 0.0844 | QQ12: 0.0001 | QS12: 0.0868 | QT12: 0.0001 | QV12: 0.0828 | QW12: 0.0001 | QY12: 0.095 | QZ12: 0 | RB12: 0.0943 | RC12: 0.0001 | RE12: 0.1082 | RF12: 0.0001 | RH12: 0.072 | RI12: 0.0095 | RK12: 0.0844 | RL12: 0.0001 | RN12: 0.1082 | RO12: 0.0001 | RQ12: 0.1217 | RR12: 0.0001 | RT12: 0.1012 | RU12: 0.0001 | RW12: 0.1071 | RX12: 0.0001 | RZ12: 0.072 | SA12: 0.0255 | SC12: 0.1507 | SD12: 0.0001 | SF12: 0.16 | SG12: 0.0384 | SI12: 0.1113 | SJ12: 0.0001 | SL12: 0.138 | SM12: 0.0001 | SO12: 0.1507 | SP12: 0.0001 | SR12: 0.1363 | SS12: 0.0001 | SU12: 0.16 | SV12: 0.0078 | SX12: 0.16 | SY12: 0.0262 | TA12: 0.1464 | TB12: 0.0001 | TD12: 0.16 | TE12: 0.016 | TG12: 0.16 | TH12: 0.0363 | TJ12: 0.16 | TK12: 0.0567 | TM12: 0.16 | TN12: 0.1482 | TP12: 0.16 | TQ12: 0.0465 | TS12: 0.16 | TT12: 0.0567 | TV12: 0.16 | TW12: 0.077 | TY12: 0.16 | TZ12: 0.077 | UB12: 0.16 | UC12: 0.0872 | UE12: 0.16 | UF12: 0.1177 | UH12: 0.16 | UI12: 0.138 | UK12: 0.0454 | UL12: 0 | UN12: 0.057 | UO12: 0 | UQ12: 0.0615 | UR12: 0 | UT12: 0 | UU12: 0.04 | UW12: 0.0945 | UX12: 0.0001 | UZ12: 0 | VA12: 0 | VC12: 0.0699 | VD12: 0 | VF12: 0.1401 | VG12: 0.0001 | VI12: 0.1082 | VJ12: 0.0001 | VL12: 0.1015 | VM12: 0.0001 | VO12: 0.16 | VP12: 0.0007 | VR12: 0.0996 | VS12: 0.0001 | VU12: 0.1199 | VV12: 0.0001 | VX12: 0.16 | VY12: 0.1055 | WA12: 0.1507 | WB12: 0.0001 | WD12: 0.16 | WE12: 0.0058 | WG12: 0.16 | WH12: 0.016 | WJ12: 0.16 | WK12: 0.0262 | WM12: 0.16 | WN12: 0.077 | WP12: 0.16 | WQ12: 0.0567 | WS12: 0.16 | WT12: 0.1177 | WV12: 0.16 | WW12: 0.0973 | WY12: 0 | WZ12: 0.042 | XB12: 0.1295 | XC12: 0.0001 | XE12: 0.0996 | XF12: 0.0001 | XH12: 0.1082 | XI12: 0.0001 | XK12: 0.125 | XL12: 0 | XN12: 0.1401 | XO12: 0.0001 | XQ12: 0.1418 | XR12: 0.0001 | XT12: 0.16 | XU12: 0.0013 | XW12: 0.16 | XX12: 0.0668 | XZ12: 0.16 | YA12: 0.0262 | YC12: 0.16 | YD12: 0.0872 | YF12: 0.16 | YG12: 0.0668 | YI12: 0.0675 | YJ12: 0 | YL12: 0.0868 | YM12: 0.0001 | YO12: 0.0998 | YP12: 0.0001 | YR12: 0.1295 | YS12: 0.0001 | YU12: 0.1215 | YV12: 0.0001 | YX12: 0.16 | YY12: 0.0058 | ZA12: 0.16 | ZB12: 0.016 | ZD12: 0.16 | ZE12: 0.0262 | ZG12: 0.16 | ZH12: 0.0138 | ZJ12: 0.16 | ZK12: 0.0262 | ZM12: 0.16 | ZN12: 0.0973 | ZP12: 0.16 | ZQ12: 0.0567 | ZS12: 0.0744 | ZT12: 0.0001 | ZV12: 0.0996 | ZW12: 0.0001 | ZY12: 0.0979 | ZZ12: 0.0001 | AAB12: 0.1295 | AAC12: 0.0001 | AAE12: 0.1507 | AAF12: 0.0001 | AAH12: 0.16 | AAI12: 0.0058 | AAK12: 0.16 | AAL12: 0.0363 | AAN12: 0.16 | AAO12: 0.0262 | AAQ12: 0.16 | AAR12: 0.1075 | AAT12: 0.16 | AAU12: 0.0668 | AAW12: 0.0889 | AAX12: 0.0001 | AAZ12: 0.1082 | ABA12: 0.0001 | ABC12: 0.16 | ABD12: 0.077 | ABF12: 0.1507 | ABG12: 0.0001 | ABI12: 0 | ABJ12: 0 | ABL12: 0 | ABM12: 0 | ABO12: 0 | ABP12: 0 | ABR12: 0.16 | ABS12: 0.016 | ABU12: 0.16 | ABV12: 0.0263 | ABX12: 0.16 | ABY12: 0.077 | ACA12: 0.16 | ACB12: 0.0668 | ACD12: 0.098 | ACE12: 0.0001 | ACG12: 0.16 | ACH12: 0.0787 | ACJ12: 0.16 | ACK12: 0.0262 | ACM12: 0 | ACN12: 0 | ACP12: 0.16 | ACQ12: 0.077 | ACS12: 0.16 | ACT12: 0.0465 | ACV12: 0.16 | ACW12: 0.0973 | ACY12: 0.1507 | ACZ12: 0.0001 | ADB12: 0.16 | ADC12: 0.1188 | ADE12: 0.1347 | ADF12: 0.0001 | ADH12: 0 | ADI12: 0 | ADK12: 0.16 | ADL12: 0.0262 | ADN12: 0.1082 | ADO12: 0.0001 | ADQ12: 0.16 | ADR12: 0.0262 | ADT12: 0.138 | ADU12: 0.0001 | ADW12: 0.158 | ADX12: 0.0001 | ADZ12: 0.16 | AEA12: 0.0363 | AEC12: 0.1082 | AED12: 0.0001 | AEF12: 0.16 | AEG12: 0.0262 | AEI12: 0.1454 | AEJ12: 0.0001 | AEL12: 0.1096 | AEM12: 0.0001 | AEO12: 0.16 | AEP12: 0.0058 | AER12: 0.16 | AES12: 0.0262 | AEU12: 0.0996 | AEV12: 0.0001 | AEX12: 0.1295 | AEY12: 0.0001 | AFA12: 0.16 | AFB12: 0.0526 | AFD12: 0.16 | AFE12: 0.0262 | AFG12: 0 | AFH12: 0 | AFJ12: 0 | AFK12: 0.11 | AFM12: 0.1274 | AFN12: 0.0001 | AFP12: 0.16 | AFQ12: 0.0973 | AFS12: 0.1507 | AFT12: 0.0001 | AFV12: 0.129 | AFW12: 0.0001 | AFY12: 0.118 | AFZ12: 0.0001 | AGB12: 0.0546 | AGC12: 0.0001 | AGE12: 0.16 | AGF12: 0.0262 | AGH12: 0.16 | AGI12: 0.0363 | AGK12: 0.16 | AGL12: 0.0465 | AGN12: 0.16 | AGO12: 0.0262 | AGQ12: 0.16 | AGR12: 0.0567 | AGT12: 0.16 | AGU12: 0.0363 | AGW12: 0.16 | AGX12: 0.0668 | AGZ12: 0.16 | AHA12: 0.0465 | AHC12: 0.16 | AHD12: 0.077 | AHF12: 0.16 | AHG12: 0.0262 | AHI12: 0.16 | AHJ12: 0.0262 | AHL12: 0.16 | AHM12: 0.0363 | AHO12: 0.16 | AHP12: 0.0465 | AHR12: 0.16 | AHS12: 0.0567 | AHU12: 0.16 | AHV12: 0.0872 | AHX12: 0.16 | AHY12: 0.0312 | AIA12: 0.16 | AIB12: 0.0363 | AID12: 0.16 | AIE12: 0.0363 | AIG12: 0.16 | AIH12: 0.0414 | AIJ12: 0.16 | AIK12: 0.0465 | AIM12: 0.16 | AIN12: 0.0668 | AIP12: 0.16 | AIQ12: 0.0973 | AIS12: 0.16 | AIT12: 0.0465 | AIV12: 0.16 | AIW12: 0.0465 | AIY12: 0.16 | AIZ12: 0.077 | AJB12: 0.16 | AJC12: 0.1075 | AJE12: 0.16 | AJF12: 0.0516 | AJH12: 0.16 | AJI12: 0.0567 | AJK12: 0.16 | AJL12: 0.0567 | AJN12: 0.16 | AJO12: 0.0872 | AJQ12: 0.16 | AJR12: 0.1177 | AJT12: 0.16 | AJU12: 0.0668 | AJW12: 0.16 | AJX12: 0.0668 | AJZ12: 0.16 | AKA12: 0.0973 | AKC12: 0.16 | AKD12: 0.077 | AKF12: 0.16 | AKG12: 0.077 | AKI12: 0.16 | AKJ12: 0.1075 | AKL12: 0.16 | AKM12: 0.0872 | AKO12: 0.16 | AKP12: 0.0872 | AKR12: 0.16 | AKS12: 0.1177 | AKU12: 0.16 | AKV12: 0.0922 | AKX12: 0.16 | AKY12: 0.0973 | ALA12: 0.16 | ALB12: 0.0973 | ALD12: 0.16 | ALE12: 0.1075 | ALG12: 0.16 | ALH12: 0.1075 | ALJ12: 0.16 | ALK12: 0.1177 | ALM12: 0.16 | ALN12: 0.1177 | ALP12: 0.16 | ALQ12: 0.1278 | ALS12: 0.16 | ALT12: 0.1278 | ALV12: 0.16 | ALW12: 0.1278 | ALY12: 0.16 | ALZ12: 0.1278 | AMB12: 0.16 | AMC12: 0.1289 | AME12: 0.16 | AMF12: 0.1289 | AMH12: 0.16 | AMI12: 0.138 | AMK12: 0.16 | AML12: 0.138 | AMN12: 0.16 | AMO12: 0.1482 | AMQ12: 0.16 | AMR12: 0.1482 | AMT12: 0.16 | AMU12: 0.1583 | AMW12: 0.16 | AMX12: 0.1583 | AMZ12: 0.16 | ANA12: 0.1685 | ANC12: 0.16 | AND12: 0.1685 | ANF12: 0.16 | ANG12: 0.1787 | ANI12: 0.16 | ANJ12: 0.1787 | ANL12: 0.16 | ANM12: 0.1888 | ANO12: 0.16 | ANP12: 0.2092 | ANR12: 0 | ANS12: 0 | ANU12: 0 | ANV12: 0 | ANX12: 0 | ANY12: 0 | AOA12: 0 | AOB12: 0 | AOD12: 0.0654 | AOE12: 0 | AOG12: 0.0615 | AOH12: 0 | AOJ12: 0.0583 | AOK12: 0 | AOM12: 0.0559 | AON12: 0 | AOP12: 0.051 | AOQ12: 0 | AOS12: 0 | AOT12: 0 | AOV12: 0 | AOW12: 0 | AOY12: 0 | AOZ12: 0 | APB12: 0 | APC12: 0 | APE12: 0.057 | APF12: 0 | APH12: 0.057 | API12: 0 | APK12: 0.057 | APL12: 0 | APN12: 0.057 | APO12: 0 | APQ12: 0.057 | APR12: 0 | APT12: 0.0762 | APU12: 0 | APW12: 0.0714 | APX12: 0 | APZ12: 0.0678 | AQA12: 0 | AQC12: 0.065 | AQD12: 0 | AQF12: 0.0593 | AQG12: 0 | AQI12: 0.0762 | AQJ12: 0 | AQL12: 0.0714 | AQM12: 0 | AQO12: 0.0678 | AQP12: 0 | AQR12: 0.065 | AQS12: 0 | AQU12: 0.0593 | AQV12: 0 | AQX12: 0.0615 | AQY12: 0 | ARA12: 0.0615 | ARB12: 0 | ARD12: 0.0615 | ARE12: 0 | ARG12: 0.0615 | ARH12: 0 | ARJ12: 0.0615 | ARK12: 0 | ARM12: 0.0599 | ARN12: 0 | ARP12: 0.0599 | ARQ12: 0 | ARS12: 0.0599 | ART12: 0 | ARV12: 0.0599 | ARW12: 0 | ARY12: 0.0599 | ARZ12: 0 | ASB12: 0.0438 | ASC12: 0 | ASE12: 0.0803 | ASF12: 0 | ASH12: 0.0753 | ASI12: 0 | ASK12: 0.0715 | ASL12: 0 | ASN12: 0.0685 | ASO12: 0 | ASQ12: 0.072 | ASR12: 0 | AST12: 0.072 | ASU12: 0 | ASW12: 0.072 | ASX12: 0 | ASZ12: 0.072 | ATA12: 0 | ATC12: 0.072 | ATD12: 0 | ATF12: 0.072 | ATG12: 0 | ATI12: 0 | ATJ12: 0 | ATL12: 0 | ATM12: 0 | ATO12: 0 | ATP12: 0 | ATR12: 0 | ATS12: 0 | ATU12: 0 | ATV12: 0 | ATX12: 0 | ATY12: 0 | AUA12: 0 | AUB12: 0 | AUD12: 0 | AUE12: 0 | AUG12: 0 | AUH12: 0 | AUJ12: 0 | AUK12: 0 | AUM12: 0 | AUN12: 0 | AUP12: 0 | AUQ12: 0 | AUS12: 0 | AUT12: 0 | AUV12: 0 | AUW12: 0 | AUY12: 0 | AUZ12: 0 | AVB12: 0 | AVC12: 0 | AVE12: 0 | AVF12: 0 | AVH12: 0 | AVI12: 0 | AVK12: 0 | AVL12: 0 | AVN12: 0 | AVO12: 0 | AVQ12: 0 | AVR12: 0 | AVT12: 0 | AVU12: 0 | AVW12: 0 | AVX12: 0 | AVZ12: 0 | AWA12: 0 | AWC12: 0 | AWD12: 0 | AWF12: 0 | AWG12: 0 | AWI12: 0 | AWJ12: 0 | AWL12: 0 | AWM12: 0 | AWO12: 0 | AWP12: 0 | AWR12: 0 | AWS12: 0 | AWU12: 0 | AWV12: 0 | AWX12: 0 | AWY12: 0 | AXA12: 0 | AXB12: 0 | AXD12: 0 | AXE12: 0 | AXG12: 0 | AXH12: 0 | AXJ12: 0 | AXK12: 0 | AXM12: 0 | AXN12: 0 | AXP12: 0 | AXQ12: 0 | AXS12: 0 | AXT12: 0 | AXV12: 0 | AXW12: 0 | AXY12: 0 | AXZ12: 0 | AYB12: 0 | AYC12: 0 | AYE12: 0 | AYF12: 0 | AYH12: 0 | AYI12: 0 | AYK12: 0 | AYL12: 0 | AYN12: 0 | AYO12: 0 | AYQ12: 0 | AYR12: 0 | AYT12: 0.0218 | AYU12: 0.0001 | AYW12: 0 | AYX12: 0 | AYZ12: 0 | AZA12: 0 | AZC12: 0 | AZD12: 0 | AZF12: 0 | AZG12: 0 | AZI12: 0 | AZJ12: 0 | AZL12: 0 | AZM12: 0 | AZO12: 0 | AZP12: 0 | AZR12: 0 | AZS12: 0 | AZU12: 0 | AZV12: 0 | AZX12: 0 | AZY12: 0 | BAA12: 0 | BAB12: 0 | BAD12: 0 | BAE12: 0 | BAG12: 0 | BAH12: 0 | BAJ12: 0 | BAK12: 0 | BAM12: 0 | BAN12: 0 | BAP12: 0 | BAQ12: 0 | BAS12: 0 | BAT12: 0 | BAV12: 0 | BAW12: 0 | BAY12: 0 | BAZ12: 0 | BBB12: 0 | BBC12: 0 | BBE12: 0 | BBF12: 0 | BBH12: 0 | BBI12: 0 | BBK12: 0 | BBL12: 0 | BBN12: 0 | BBO12: 0 | BBQ12: 0 | BBR12: 0 | BBT12: 0 | BBU12: 0 | BBW12: 0 | BBX12: 0 | BBZ12: 0 | BCA12: 0 | BCC12: 0 | BCD12: 0 | BCF12: 0 | BCG12: 0 | BCI12: 0 | BCJ12: 0 | BCL12: 0 | BCM12: 0 | BCO12: 0 | BCP12: 0 | BCR12: 0 | BCS12: 0 | BCU12: 0 | BCV12: 0 | BCX12: 0 | BCY12: 0 | BDA12: 0 | BDB12: 0 | BDD12: 0 | BDE12: 0 | BDG12: 0 | BDH12: 0 | BDJ12: 0 | BDK12: 0 | BDM12: 0 | BDN12: 0 | BDP12: 0 | BDQ12: 0 | BDS12: 0 | BDT12: 0 | BDV12: 0 | BDW12: 0 | BDY12: 0 | BDZ12: 0 | BEB12: 0 | BEC12: 0 | BEE12: 0 | BEF12: 0 | BEH12: 0 | BEI12: 0 | BEK12: 0 | BEL12: 0 | BEN12: 0 | BEO12: 0 | BEQ12: 0 | BER12: 0 | BET12: 0 | BEU12: 0 | BEW12: 0 | BEX12: 0 | BEZ12: 0 | BFA12: 0 | BFC12: 0 | BFD12: 0 | BFF12: 0 | BFG12: 0 | BFI12: 0 | BFJ12: 0 | BFL12: 0 | BFM12: 0 | BFO12: 0 | BFP12: 0 | BFR12: 0 | BFS12: 0 | BFU12: 0 | BFV12: 0 | BFX12: 0 | BFY12: 0 | BGA12: 0.1015 | BGB12: 0.0001 | BGD12: 0.0653 | BGE12: 0.0001 | BGG12: 0.0717 | BGH12: 0.0001 | BGJ12: 0.0717 | BGK12: 0.0001 | BGM12: 0.0653 | BGN12: 0.0001 | BGP12: 0.0868 | BGQ12: 0.0001 | BGS12: 0.0868 | BGT12: 0.0001 | BGV12: 0.1082 | BGW12: 0.0001 | BGY12: 0.1015 | BGZ12: 0.0001 | BHB12: 0.0925 | BHC12: 0.0001 | BHE12: 0.1082 | BHF12: 0.0001 | BHH12: 0.1295 | BHI12: 0.0001 | BHK12: 0.1507 | BHL12: 0.0001 | BHN12: 0.1415 | BHO12: 0.0001 | BHQ12: 0.129 | BHR12: 0.0001 | BHT12: 0.118 | BHU12: 0.0001 | BHW12: 0.16 | BHX12: 0.0058 | BHZ12: 0.16 | BIA12: 0.016 | BIC12: 0.16 | BID12: 0.0118 | BIF12: 0.16 | BIG12: 0.0038 | BII12: 0.1514 | BIJ12: 0.0001 | BIL12: 0.1401 | BIM12: 0.0001 | BIO12: 0 | BIP12: 0 | BIR12: 0 | BIS12: 0 | BIU12: 0 | BIV12: 0 | BIX12: 0 | BIY12: 0 | BJA12: 0 | BJB12: 0 | BJD12: 0 | BJE12: 0 | BJG12: 0 | BJH12: 0 | BJJ12: 0 | BJK12: 0 | BJM12: 0.0699 | BJN12: 0.2 | BJP12: 0 | BJQ12: 0 | BJS12: 0 | BJT12: 0 | BJV12: 0 | BJW12: 0 | BJY12: 0 | BJZ12: 0 | BKB12: 0 | BKC12: 0 | BKE12: 0 | BKF12: 0 | BKH12: 0 | BKI12: 0 | BKK12: 0 | BKL12: 0 | BKN12: 0 | BKO12: 0 | BKQ12: 0 | BKR12: 0 | BKT12: 0 | BKU12: 0 | BKW12: 0 | BKX12: 0 | BKZ12: 0 | BLA12: 0 | BLC12: 0 | BLD12: 0 | BLF12: 0 | BLG12: 0 | BLI12: 0 | BLJ12: 0 | BLL12: 0 | BLM12: 0 | BLO12: 0 | BLP12: 0 | BLR12: 0 | BLS12: 0 | BLU12: 0.0699 | BLV12: 0.0403 | BLX12: 0.0699 | BLY12: 0.0403 | BMA12: 0.0699 | BMB12: 0.0616 | BMD12: 0.0699 | BME12: 0.0616 | BMG12: 0 | BMH12: 0 | BMJ12: 0.0699 | BMK12: 0.0191 | BMM12: 0.0699 | BMN12: 0.0297 | BMP12: 0.0699 | BMQ12: 0.0297 | BMS12: 0.0699 | BMT12: 0.0403 | BMV12: 0.0699 | BMW12: 0.0403 | BMY12: 0.0699 | BMZ12: 0.051 | BNB12: 0.0699 | BNC12: 0.051 | BNE12: 0.0699 | BNF12: 0.0563 | BNH12: 0.0699 | BNI12: 0.0563 | BNK12: 0.0699 | BNL12: 0.0616 | BNN12: 0.0699 | BNO12: 0.0616 | BNQ12: 0.0699 | BNR12: 0.0758 | BNT12: 0.0699 | BNU12: 0.0758 | BNW12: 0.0699 | BNX12: 0.0829 | BNZ12: 0.0699 | BOA12: 0.0829 | BOC12: 0.0699 | BOD12: 0.0722 | BOF12: 0.0699 | BOG12: 0.0722 | BOI12: 0.0699 | BOJ12: 0.0828 | BOL12: 0.0699 | BOM12: 0.0828 | BOO12: 0.0699 | BOP12: 0.0935 | BOR12: 0.0699 | BOS12: 0.0935 | BOU12: 0.0699 | BOV12: 0.1095 | BOX12: 0.0699 | BOY12: 0.1041 | BPA12: 0.0699 | BPB12: 0.1041 | BPD12: 0.0699 | BPE12: 0.1104 | BPG12: 0.0699 | BPH12: 0.1166 | BPJ12: 0.0699 | BPK12: 0.1228 | BPM12: 0.0699 | BPN12: 0.1147 | BPP12: 0.0699 | BPQ12: 0.1147 | BPS12: 0.0699 | BPT12: 0.1361 | BPV12: 0.0699 | BPW12: 0.1253 | BPY12: 0.0699 | BPZ12: 0.1253 | BQB12: 0.0699 | BQC12: 0.136 | BQE12: 0.0699 | BQF12: 0.136 | BQH12: 0.0699 | BQI12: 0.1466 | BQK12: 0.0699 | BQL12: 0.1466 | BQN12: 0.0699 | BQO12: 0.1572 | BQQ12: 0.0699 | BQR12: 0.1572 | BQT12: 0.0699 | BQU12: 0.1678 | BQW12: 0.0699 | BQX12: 0.1678 | BQZ12: 0.0699 | BRA12: 0.1785 | BRC12: 0.0699 | BRD12: 0.1785 | BRF12: 0.0699 | BRG12: 0.1997 | BRI12: 0 | BRJ12: 0 | BRL12: 0 | BRM12: 0 | BRO12: 0 | BRP12: 0
A13: 12 | B13: 0 | C13: 0 | E13: 0 | F13: 0 | H13: 0 | I13: 0 | K13: 0 | L13: 0 | N13: 0 | O13: 0 | Q13: 0 | R13: 0 | T13: 0 | U13: 0 | W13: 0 | X13: 0 | Z13: 0 | AA13: 0 | AC13: 0.0221 | AD13: 0.0001 | AF13: 0.1514 | AG13: 0.0001 | AI13: 0.0441 | AJ13: 0.0001 | AL13: 0.16 | AM13: 0.0067 | AO13: 0.055 | AP13: 0.0001 | AR13: 0.0659 | AS13: 0.0001 | AU13: 0.1302 | AV13: 0.0001 | AX13: 0.16 | AY13: 0.0177 | BA13: 0.0765 | BB13: 0.0001 | BD13: 0.0873 | BE13: 0.0001 | BG13: 0.0981 | BH13: 0.0001 | BJ13: 0.1088 | BK13: 0.0001 | BM13: 0.1302 | BN13: 0.0001 | BP13: 0.1514 | BQ13: 0.0001 | BS13: 0.0981 | BT13: 0.0001 | BV13: 0.1088 | BW13: 0.0001 | BY13: 0.1088 | BZ13: 0.0001 | CB13: 0.1302 | CC13: 0.0001 | CE13: 0.1514 | CF13: 0.0001 | CH13: 0.16 | CI13: 0.0067 | CK13: 0.1195 | CL13: 0.0001 | CN13: 0.1302 | CO13: 0.0001 | CQ13: 0.1408 | CR13: 0.0001 | CT13: 0.16 | CU13: 0.0067 | CW13: 0.16 | CX13: 0.0177 | CZ13: 0.1514 | DA13: 0.0001 | DC13: 0.16 | DD13: 0.0012 | DF13: 0.16 | DG13: 0.0067 | DI13: 0.16 | DJ13: 0.0177 | DL13: 0.16 | DM13: 0.0012 | DO13: 0.16 | DP13: 0.0067 | DR13: 0.16 | DS13: 0.0067 | DU13: 0.16 | DV13: 0.0122 | DX13: 0.16 | DY13: 0.0177 | EA13: 0.16 | EB13: 0.0287 | ED13: 0.16 | EE13: 0.0177 | EG13: 0.16 | EH13: 0.0177 | EJ13: 0.16 | EK13: 0.0232 | EM13: 0.16 | EN13: 0.0287 | EP13: 0.16 | EQ13: 0.0398 | ES13: 0.16 | ET13: 0.0232 | EV13: 0.16 | EW13: 0.0618 | EY13: 0.16 | EZ13: 0.0949 | FB13: 0.0441 | FC13: 0.0001 | FE13: 0.0873 | FF13: 0.0001 | FH13: 0.1302 | FI13: 0.0001 | FK13: 0 | FL13: 0 | FN13: 0.0619 | FO13: 0.0001 | FQ13: 0.072 | FR13: 0.0001 | FT13: 0.0822 | FU13: 0.0001 | FW13: 0.0924 | FX13: 0.0001 | FZ13: 0.1025 | GA13: 0.0001 | GC13: 0.1126 | GD13: 0.0001 | GF13: 0.1227 | GG13: 0.0001 | GI13: 0.1428 | GJ13: 0.0001 | GL13: 0.16 | GM13: 0.0018 | GO13: 0.16 | GP13: 0.0136 | GR13: 0.16 | GS13: 0.0254 | GU13: 0.16 | GV13: 0.0372 | GX13: 0.16 | GY13: 0.049 | HA13: 0.16 | HB13: 0.0549 | HD13: 0.16 | HE13: 0.0607 | HG13: 0.16 | HH13: 0.0725 | HJ13: 0.16 | HK13: 0.0843 | HM13: 0.16 | HN13: 0.0961 | HP13: 0.16 | HQ13: 0.102 | HS13: 0.16 | HT13: 0.1079 | HV13: 0.16 | HW13: 0.1197 | HY13: 0.16 | HZ13: 0.1433 | IB13: 0 | IC13: 0 | IE13: 0.0589 | IF13: 0.0001 | IH13: 0.0685 | II13: 0.0001 | IK13: 0.0782 | IL13: 0.0001 | IN13: 0.0879 | IO13: 0.0001 | IQ13: 0.0976 | IR13: 0.0001 | IT13: 0.1169 | IU13: 0.0001 | IW13: 0.1361 | IX13: 0.0001 | IZ13: 0.1552 | JA13: 0.0001 | JC13: 0.16 | JD13: 0.0095 | JF13: 0.16 | JG13: 0.0221 | JI13: 0.16 | JJ13: 0.0346 | JL13: 0.16 | JM13: 0.0472 | JO13: 0.16 | JP13: 0.0534 | JR13: 0.16 | JS13: 0.0597 | JU13: 0.16 | JV13: 0.0723 | JX13: 0.16 | JY13: 0.0848 | KA13: 0.16 | KB13: 0.0974 | KD13: 0.16 | KE13: 0.1037 | KG13: 0.16 | KH13: 0.1099 | KJ13: 0 | KK13: 0 | KM13: 0.0566 | KN13: 0.0001 | KP13: 0.0658 | KQ13: 0.0001 | KS13: 0.0751 | KT13: 0.0001 | KV13: 0.0844 | KW13: 0.0001 | KY13: 0.0937 | KZ13: 0.0001 | LB13: 0.103 | LC13: 0.0001 | LE13: 0.1123 | LF13: 0.0001 | LH13: 0.1308 | LI13: 0.0001 | LK13: 0.1492 | LL13: 0.0001 | LN13: 0.16 | LO13: 0.0056 | LQ13: 0.16 | LR13: 0.0189 | LT13: 0.16 | LU13: 0.0321 | LW13: 0.16 | LX13: 0.0454 | LZ13: 0.16 | MA13: 0.0521 | MC13: 0.16 | MD13: 0.0587 | MF13: 0.16 | MG13: 0.072 | MI13: 0.16 | MJ13: 0.0853 | ML13: 0.16 | MM13: 0.0986 | MO13: 0.16 | MP13: 0.1052 | MR13: 0.16 | MS13: 0.1119 | MU13: 0.16 | MV13: 0.1252 | MX13: 0.16 | MY13: 0.1517 | NA13: 0.0546 | NB13: 0.0001 | ND13: 0.0636 | NE13: 0.0001 | NG13: 0.0906 | NH13: 0.0001 | NJ13: 0 | NK13: 0 | NM13: 0.0687 | NN13: 0.0001 | NP13: 0.0858 | NQ13: 0.0001 | NS13: 0.1028 | NT13: 0.0001 | NV13: 0.1198 | NW13: 0.0001 | NY13: 0.1367 | NZ13: 0.0001 | OB13: 0.1536 | OC13: 0.0001 | OE13: 0.16 | OF13: 0.0097 | OH13: 0.16 | OI13: 0.0251 | OK13: 0.16 | OL13: 0.0405 | ON13: 0.16 | OO13: 0.0559 | OQ13: 0.16 | OR13: 0.0713 | OT13: 0.16 | OU13: 0.0867 | OW13: 0.16 | OX13: 0.1637 | OZ13: 0.0986 | PA13: 0.0001 | PC13: 0.1149 | PD13: 0.0001 | PF13: 0.1088 | PG13: 0.0001 | PI13: 0.0765 | PJ13: 0.0001 | PL13: 0.05 | PM13: 0 | PO13: 0.0548 | PP13: 0.0001 | PR13: 0.0599 | PS13: 0 | PU13: 0.0625 | PV13: 0 | PX13: 0.065 | PY13: 0 | QA13: 0 | QB13: 0 | QD13: 0.072 | QE13: 0 | QG13: 0.0772 | QH13: 0.0001 | QJ13: 0.0765 | QK13: 0.0001 | QM13: 0 | QN13: 0 | QP13: 0.0858 | QQ13: 0.0001 | QS13: 0.0873 | QT13: 0.0001 | QV13: 0.0824 | QW13: 0.0001 | QY13: 0.095 | QZ13: 0 | RB13: 0.0956 | RC13: 0.0001 | RE13: 0.1088 | RF13: 0.0001 | RH13: 0.072 | RI13: 0.01 | RK13: 0.0858 | RL13: 0.0001 | RN13: 0.1088 | RO13: 0.0001 | RQ13: 0.1234 | RR13: 0.0001 | RT13: 0.1028 | RU13: 0.0001 | RW13: 0.1086 | RX13: 0.0001 | RZ13: 0.072 | SA13: 0.027 | SC13: 0.1514 | SD13: 0.0001 | SF13: 0.16 | SG13: 0.0353 | SI13: 0.1113 | SJ13: 0.0001 | SL13: 0.1468 | SM13: 0.0001 | SO13: 0.1514 | SP13: 0.0001 | SR13: 0.1345 | SS13: 0.0001 | SU13: 0.16 | SV13: 0.0023 | SX13: 0.16 | SY13: 0.0067 | TA13: 0.1485 | TB13: 0.0001 | TD13: 0.16 | TE13: 0.0177 | TG13: 0.16 | TH13: 0.0398 | TJ13: 0.16 | TK13: 0.0398 | TM13: 0.16 | TN13: 0.1489 | TP13: 0.16 | TQ13: 0.0508 | TS13: 0.16 | TT13: 0.0618 | TV13: 0.16 | TW13: 0.0728 | TY13: 0.16 | TZ13: 0.0838 | UB13: 0.16 | UC13: 0.0949 | UE13: 0.16 | UF13: 0.1169 | UH13: 0.16 | UI13: 0.1389 | UK13: 0.0454 | UL13: 0 | UN13: 0.057 | UO13: 0 | UQ13: 0.0615 | UR13: 0 | UT13: 0 | UU13: 0.04 | UW13: 0.0943 | UX13: 0.0001 | UZ13: 0 | VA13: 0 | VC13: 0.0699 | VD13: 0 | VF13: 0.0981 | VG13: 0.0001 | VI13: 0.1088 | VJ13: 0.0001 | VL13: 0.1025 | VM13: 0.0001 | VO13: 0.1195 | VP13: 0.0001 | VR13: 0.0994 | VS13: 0.0001 | VU13: 0.1215 | VV13: 0.0001 | VX13: 0.16 | VY13: 0.1026 | WA13: 0.1514 | WB13: 0.0001 | WD13: 0.16 | WE13: 0.0067 | WG13: 0.16 | WH13: 0.0177 | WJ13: 0.16 | WK13: 0.0398 | WM13: 0.16 | WN13: 0.0838 | WP13: 0.16 | WQ13: 0.0618 | WS13: 0.16 | WT13: 0.1169 | WV13: 0.16 | WW13: 0.0949 | WY13: 0 | WZ13: 0.044 | XB13: 0.0873 | XC13: 0.0001 | XE13: 0.0994 | XF13: 0.0001 | XH13: 0.1088 | XI13: 0.0001 | XK13: 0.125 | XL13: 0 | XN13: 0.1408 | XO13: 0.0001 | XQ13: 0.1437 | XR13: 0.0001 | XT13: 0.16 | XU13: 0.0029 | XW13: 0.16 | XX13: 0.0728 | XZ13: 0.16 | YA13: 0.0287 | YC13: 0.16 | YD13: 0.0949 | YF13: 0.16 | YG13: 0.0508 | YI13: 0.0675 | YJ13: 0 | YL13: 0.0873 | YM13: 0.0001 | YO13: 0.0993 | YP13: 0.0001 | YR13: 0.1302 | YS13: 0.0001 | YU13: 0.1025 | YV13: 0.0001 | YX13: 0.1302 | YY13: 0.0001 | ZA13: 0.1514 | ZB13: 0.0001 | ZD13: 0.16 | ZE13: 0.0067 | ZG13: 0.16 | ZH13: 0.0162 | ZJ13: 0.16 | ZK13: 0.0287 | ZM13: 0.16 | ZN13: 0.1059 | ZP13: 0.16 | ZQ13: 0.0508 | ZS13: 0.0755 | ZT13: 0.0001 | ZV13: 0.0994 | ZW13: 0.0001 | ZY13: 0.0994 | ZZ13: 0.0001 | AAB13: 0.1302 | AAC13: 0.0001 | AAE13: 0.1514 | AAF13: 0.0001 | AAH13: 0.16 | AAI13: 0.0067 | AAK13: 0.16 | AAL13: 0.0177 | AAN13: 0.16 | AAO13: 0.0287 | AAQ13: 0.16 | AAR13: 0.1169 | AAT13: 0.16 | AAU13: 0.0728 | AAW13: 0.0895 | AAX13: 0.0001 | AAZ13: 0.1302 | ABA13: 0.0001 | ABC13: 0.16 | ABD13: 0.0508 | ABF13: 0.1514 | ABG13: 0.0001 | ABI13: 0.16 | ABJ13: 0.0287 | ABL13: 0.16 | ABM13: 0.0189 | ABO13: 0.16 | ABP13: 0.0097 | ABR13: 0.16 | ABS13: 0.0177 | ABU13: 0.16 | ABV13: 0.0295 | ABX13: 0.16 | ABY13: 0.0838 | ACA13: 0.16 | ACB13: 0.0728 | ACD13: 0.0993 | ACE13: 0.0001 | ACG13: 0.16 | ACH13: 0.0454 | ACJ13: 0.16 | ACK13: 0.0287 | ACM13: 0.16 | ACN13: 0.0189 | ACP13: 0.16 | ACQ13: 0.0838 | ACS13: 0.16 | ACT13: 0.0287 | ACV13: 0.16 | ACW13: 0.1059 | ACY13: 0.1088 | ACZ13: 0.0001 | ADB13: 0.16 | ADC13: 0.0773 | ADE13: 0.1367 | ADF13: 0.0001 | ADH13: 0.16 | ADI13: 0.0097 | ADK13: 0.16 | ADL13: 0.0287 | ADN13: 0.1088 | ADO13: 0.0001 | ADQ13: 0.16 | ADR13: 0.0177 | ADT13: 0.1468 | ADU13: 0.0001 | ADW13: 0.16 | ADX13: 0.0004 | ADZ13: 0.16 | AEA13: 0.0287 | AEC13: 0.1088 | AED13: 0.0001 | AEF13: 0.16 | AEG13: 0.0177 | AEI13: 0.1345 | AEJ13: 0.0001 | AEL13: 0.1028 | AEM13: 0.0001 | AEO13: 0.16 | AEP13: 0.0067 | AER13: 0.16 | AES13: 0.0297 | AEU13: 0.0994 | AEV13: 0.0001 | AEX13: 0.1302 | AEY13: 0.0001 | AFA13: 0.16 | AFB13: 0.0067 | AFD13: 0.16 | AFE13: 0.0287 | AFG13: 0.1088 | AFH13: 0.0001 | AFJ13: 0 | AFK13: 0.12 | AFM13: 0.1259 | AFN13: 0.0001 | AFP13: 0.16 | AFQ13: 0.0949 | AFS13: 0.1514 | AFT13: 0.0001 | AFV13: 0.1308 | AFW13: 0.0001 | AFY13: 0.1198 | AFZ13: 0.0001 | AGB13: 0.055 | AGC13: 0.0001 | AGE13: 0.16 | AGF13: 0.0287 | AGH13: 0.16 | AGI13: 0.0398 | AGK13: 0.16 | AGL13: 0.0508 | AGN13: 0.16 | AGO13: 0.0287 | AGQ13: 0.16 | AGR13: 0.0618 | AGT13: 0.16 | AGU13: 0.0398 | AGW13: 0.16 | AGX13: 0.0728 | AGZ13: 0.16 | AHA13: 0.0508 | AHC13: 0.16 | AHD13: 0.0838 | AHF13: 0.16 | AHG13: 0.0287 | AHI13: 0.16 | AHJ13: 0.0287 | AHL13: 0.16 | AHM13: 0.0398 | AHO13: 0.16 | AHP13: 0.0508 | AHR13: 0.16 | AHS13: 0.0618 | AHU13: 0.16 | AHV13: 0.0949 | AHX13: 0.16 | AHY13: 0.0342 | AIA13: 0.16 | AIB13: 0.0398 | AID13: 0.16 | AIE13: 0.0398 | AIG13: 0.16 | AIH13: 0.0453 | AIJ13: 0.16 | AIK13: 0.0508 | AIM13: 0.16 | AIN13: 0.0728 | AIP13: 0.16 | AIQ13: 0.1059 | AIS13: 0.16 | AIT13: 0.0508 | AIV13: 0.16 | AIW13: 0.0508 | AIY13: 0.16 | AIZ13: 0.0838 | AJB13: 0.16 | AJC13: 0.1169 | AJE13: 0.16 | AJF13: 0.0563 | AJH13: 0.16 | AJI13: 0.0618 | AJK13: 0.16 | AJL13: 0.0618 | AJN13: 0.16 | AJO13: 0.0949 | AJQ13: 0.16 | AJR13: 0.1279 | AJT13: 0.16 | AJU13: 0.0728 | AJW13: 0.16 | AJX13: 0.0728 | AJZ13: 0.16 | AKA13: 0.1059 | AKC13: 0.16 | AKD13: 0.0838 | AKF13: 0.16 | AKG13: 0.0838 | AKI13: 0.16 | AKJ13: 0.1169 | AKL13: 0.16 | AKM13: 0.0949 | AKO13: 0.16 | AKP13: 0.0949 | AKR13: 0.16 | AKS13: 0.1279 | AKU13: 0.16 | AKV13: 0.1004 | AKX13: 0.16 | AKY13: 0.1059 | ALA13: 0.16 | ALB13: 0.1059 | ALD13: 0.16 | ALE13: 0.1169 | ALG13: 0.16 | ALH13: 0.1169 | ALJ13: 0.16 | ALK13: 0.1279 | ALM13: 0.16 | ALN13: 0.1279 | ALP13: 0.16 | ALQ13: 0.1389 | ALS13: 0.16 | ALT13: 0.1389 | ALV13: 0.16 | ALW13: 0.1389 | ALY13: 0.16 | ALZ13: 0.1389 | AMB13: 0.16 | AMC13: 0.1401 | AME13: 0.16 | AMF13: 0.1401 | AMH13: 0.16 | AMI13: 0.15 | AMK13: 0.16 | AML13: 0.15 | AMN13: 0.16 | AMO13: 0.161 | AMQ13: 0.16 | AMR13: 0.161 | AMT13: 0.16 | AMU13: 0.172 | AMW13: 0.16 | AMX13: 0.172 | AMZ13: 0.16 | ANA13: 0.183 | ANC13: 0.16 | AND13: 0.183 | ANF13: 0.16 | ANG13: 0.1941 | ANI13: 0.16 | ANJ13: 0.1941 | ANL13: 0.16 | ANM13: 0.2051 | ANO13: 0.16 | ANP13: 0.2271 | ANR13: 0.0873 | ANS13: 0 | ANU13: 0.0822 | ANV13: 0 | ANX13: 0.0782 | ANY13: 0 | AOA13: 0.0751 | AOB13: 0 | AOD13: 0.0657 | AOE13: 0 | AOG13: 0.062 | AOH13: 0 | AOJ13: 0.059 | AOK13: 0 | AOM13: 0.0566 | AON13: 0 | AOP13: 0.0517 | AOQ13: 0 | AOS13: 0.0657 | AOT13: 0 | AOV13: 0.062 | AOW13: 0 | AOY13: 0.059 | AOZ13: 0 | APB13: 0.0566 | APC13: 0 | APE13: 0.057 | APF13: 0 | APH13: 0.057 | API13: 0 | APK13: 0.057 | APL13: 0 | APN13: 0.057 | APO13: 0 | APQ13: 0.057 | APR13: 0 | APT13: 0.0767 | APU13: 0 | APW13: 0.0722 | APX13: 0 | APZ13: 0.0687 | AQA13: 0 | AQC13: 0.0659 | AQD13: 0 | AQF13: 0.0602 | AQG13: 0 | AQI13: 0.0767 | AQJ13: 0 | AQL13: 0.0722 | AQM13: 0 | AQO13: 0.0687 | AQP13: 0 | AQR13: 0.0659 | AQS13: 0 | AQU13: 0.0602 | AQV13: 0 | AQX13: 0.0615 | AQY13: 0 | ARA13: 0.0615 | ARB13: 0 | ARD13: 0.0615 | ARE13: 0 | ARG13: 0.0615 | ARH13: 0 | ARJ13: 0.0615 | ARK13: 0 | ARM13: 0.0599 | ARN13: 0 | ARP13: 0.0599 | ARQ13: 0 | ARS13: 0.0599 | ART13: 0 | ARV13: 0.0599 | ARW13: 0 | ARY13: 0.0599 | ARZ13: 0 | ASB13: 0.0439 | ASC13: 0 | ASE13: 0.0808 | ASF13: 0 | ASH13: 0.0761 | ASI13: 0 | ASK13: 0.0724 | ASL13: 0 | ASN13: 0.0695 | ASO13: 0 | ASQ13: 0.072 | ASR13: 0 | AST13: 0.072 | ASU13: 0 | ASW13: 0.072 | ASX13: 0 | ASZ13: 0.072 | ATA13: 0 | ATC13: 0.072 | ATD13: 0 | ATF13: 0.072 | ATG13: 0 | ATI13: 0.0873 | ATJ13: 0.0001 | ATL13: 0.0822 | ATM13: 0.0001 | ATO13: 0.0782 | ATP13: 0.0001 | ATR13: 0.0751 | ATS13: 0.0001 | ATU13: 0.0687 | ATV13: 0.0001 | ATX13: 0.1302 | ATY13: 0.0001 | AUA13: 0.1227 | AUB13: 0.0001 | AUD13: 0.1169 | AUE13: 0.0001 | AUG13: 0.1123 | AUH13: 0.0001 | AUJ13: 0.1088 | AUK13: 0.0001 | AUM13: 0.1025 | AUN13: 0.0001 | AUP13: 0.0976 | AUQ13: 0.0001 | AUS13: 0.0937 | AUT13: 0.0001 | AUV13: 0.1088 | AUW13: 0.0001 | AUY13: 0.1025 | AUZ13: 0.0001 | AVB13: 0.0976 | AVC13: 0.0001 | AVE13: 0.0937 | AVF13: 0.0001 | AVH13: 0.0858 | AVI13: 0.0001 | AVK13: 0.0873 | AVL13: 0.0001 | AVN13: 0.0822 | AVO13: 0.0001 | AVQ13: 0.0782 | AVR13: 0.0001 | AVT13: 0.0751 | AVU13: 0.0001 | AVW13: 0.0687 | AVX13: 0.0001 | AVZ13: 0.0657 | AWA13: 0.0001 | AWC13: 0.062 | AWD13: 0.0001 | AWF13: 0.059 | AWG13: 0.0001 | AWI13: 0.0566 | AWJ13: 0.0001 | AWL13: 0.0546 | AWM13: 0.0001 | AWO13: 0.0517 | AWP13: 0.0001 | AWR13: 0.0657 | AWS13: 0.0001 | AWU13: 0.062 | AWV13: 0.0001 | AWX13: 0.059 | AWY13: 0.0001 | AXA13: 0.0566 | AXB13: 0.0001 | AXD13: 0.0517 | AXE13: 0.0001 | AXG13: 0.057 | AXH13: 0 | AXJ13: 0.057 | AXK13: 0 | AXM13: 0.057 | AXN13: 0 | AXP13: 0.057 | AXQ13: 0 | AXS13: 0.057 | AXT13: 0 | AXV13: 0.057 | AXW13: 0 | AXY13: 0.0679 | AXZ13: 0.0001 | AYB13: 0.0765 | AYC13: 0.0001 | AYE13: 0.072 | AYF13: 0.0001 | AYH13: 0.0685 | AYI13: 0.0001 | AYK13: 0.0658 | AYL13: 0.0001 | AYN13: 0.0601 | AYO13: 0.0001 | AYQ13: 0.0647 | AYR13: 0.0001 | AYT13: 0.0219 | AYU13: 0.0001 | AYW13: 0.0765 | AYX13: 0.0001 | AYZ13: 0.0615 | AZA13: 0 | AZC13: 0.0615 | AZD13: 0 | AZF13: 0.0615 | AZG13: 0 | AZI13: 0.0615 | AZJ13: 0 | AZL13: 0.0615 | AZM13: 0 | AZO13: 0.0599 | AZP13: 0 | AZR13: 0.0599 | AZS13: 0 | AZU13: 0.0599 | AZV13: 0 | AZX13: 0.0599 | AZY13: 0 | BAA13: 0.0599 | BAB13: 0 | BAD13: 0.05 | BAE13: 0 | BAG13: 0.05 | BAH13: 0 | BAJ13: 0.05 | BAK13: 0 | BAM13: 0.05 | BAN13: 0 | BAP13: 0.0439 | BAQ13: 0.0001 | BAS13: 0.0439 | BAT13: 0.0001 | BAV13: 0.0808 | BAW13: 0.0001 | BAY13: 0.0761 | BAZ13: 0.0001 | BBB13: 0.0724 | BBC13: 0.0001 | BBE13: 0.0695 | BBF13: 0.0001 | BBH13: 0.0636 | BBI13: 0.0001 | BBK13: 0.0808 | BBL13: 0.0001 | BBN13: 0.0761 | BBO13: 0.0001 | BBQ13: 0.0724 | BBR13: 0.0001 | BBT13: 0.0695 | BBU13: 0.0001 | BBW13: 0.0636 | BBX13: 0.0001 | BBZ13: 0.0454 | BCA13: 0 | BCC13: 0.05 | BCD13: 0.0027 | BCF13: 0.072 | BCG13: 0 | BCI13: 0.072 | BCJ13: 0 | BCL13: 0.072 | BCM13: 0 | BCO13: 0.072 | BCP13: 0 | BCR13: 0.095 | BCS13: 0 | BCU13: 0.095 | BCV13: 0 | BCX13: 0.0625 | BCY13: 0 | BDA13: 0.065 | BDB13: 0 | BDD13: 0.0675 | BDE13: 0 | BDG13: 0.075 | BDH13: 0 | BDJ13: 0.075 | BDK13: 0 | BDM13: 0.085 | BDN13: 0 | BDP13: 0.085 | BDQ13: 0 | BDS13: 0.095 | BDT13: 0 | BDV13: 0.095 | BDW13: 0 | BDY13: 0.095 | BDZ13: 0 | BEB13: 0.095 | BEC13: 0 | BEE13: 0.095 | BEF13: 0 | BEH13: 0.0775 | BEI13: 0 | BEK13: 0.08 | BEL13: 0 | BEN13: 0.0938 | BEO13: 0.0001 | BEQ13: 0.0883 | BER13: 0.0001 | BET13: 0.0841 | BEU13: 0.0001 | BEW13: 0.0807 | BEX13: 0.0001 | BEZ13: 0.0738 | BFA13: 0.0001 | BFC13: 0.09 | BFD13: 0 | BFF13: 0.09 | BFG13: 0 | BFI13: 0.0938 | BFJ13: 0.0001 | BFL13: 0.0883 | BFM13: 0.0001 | BFO13: 0.08 | BFP13: 0 | BFR13: 0.0775 | BFS13: 0 | BFU13: 0.14 | BFV13: 0.0001 | BFX13: 0.09 | BFY13: 0 | BGA13: 0.1025 | BGB13: 0.0001 | BGD13: 0.0657 | BGE13: 0.0001 | BGG13: 0.0722 | BGH13: 0.0001 | BGJ13: 0.0722 | BGK13: 0.0001 | BGM13: 0.0657 | BGN13: 0.0001 | BGP13: 0.0873 | BGQ13: 0.0001 | BGS13: 0.0873 | BGT13: 0.0001 | BGV13: 0.1088 | BGW13: 0.0001 | BGY13: 0.1025 | BGZ13: 0.0001 | BHB13: 0.0937 | BHC13: 0.0001 | BHE13: 0.1088 | BHF13: 0.0001 | BHH13: 0.1302 | BHI13: 0.0001 | BHK13: 0.1514 | BHL13: 0.0001 | BHN13: 0.1428 | BHO13: 0.0001 | BHQ13: 0.1308 | BHR13: 0.0001 | BHT13: 0.1198 | BHU13: 0.0001 | BHW13: 0.16 | BHX13: 0.0067 | BHZ13: 0.16 | BIA13: 0.0177 | BIC13: 0.16 | BID13: 0.0136 | BIF13: 0.16 | BIG13: 0.0056 | BII13: 0.1536 | BIJ13: 0.0001 | BIL13: 0.1408 | BIM13: 0.0001 | BIO13: 0.0726 | BIP13: 0.0001 | BIR13: 0.0767 | BIS13: 0 | BIU13: 0.0981 | BIV13: 0.0001 | BIX13: 0.0924 | BIY13: 0.0001 | BJA13: 0.0772 | BJB13: 0.0001 | BJD13: 0.0741 | BJE13: 0.0001 | BJG13: 0.0981 | BJH13: 0.0001 | BJJ13: 0.0924 | BJK13: 0.0001 | BJM13: 0.0699 | BJN13: 0.205 | BJP13: 0.0699 | BJQ13: 0.0094 | BJS13: 0.0699 | BJT13: 0.0094 | BJV13: 0.0699 | BJW13: 0.0076 | BJY13: 0.0699 | BJZ13: 0.0076 | BKB13: 0.0699 | BKC13: 0.0325 | BKE13: 0.0699 | BKF13: 0.0325 | BKH13: 0.0699 | BKI13: 0.0325 | BKK13: 0.0699 | BKL13: 0.0325 | BKN13: 0.0699 | BKO13: 0.021 | BKQ13: 0.0699 | BKR13: 0.021 | BKT13: 0.0699 | BKU13: 0.0201 | BKW13: 0.0699 | BKX13: 0.0201 | BKZ13: 0 | BLA13: 0 | BLC13: 0 | BLD13: 0 | BLF13: 0.0657 | BLG13: 0.0001 | BLI13: 0.057 | BLJ13: 0 | BLL13: 0.0615 | BLM13: 0 | BLO13: 0 | BLP13: 0 | BLR13: 0 | BLS13: 0 | BLU13: 0.0699 | BLV13: 0.0441 | BLX13: 0.0699 | BLY13: 0.0441 | BMA13: 0.0699 | BMB13: 0.0672 | BMD13: 0.0699 | BME13: 0.0672 | BMG13: 0 | BMH13: 0 | BMJ13: 0.0699 | BMK13: 0.021 | BMM13: 0.0699 | BMN13: 0.0325 | BMP13: 0.0699 | BMQ13: 0.0325 | BMS13: 0.0699 | BMT13: 0.0441 | BMV13: 0.0699 | BMW13: 0.0441 | BMY13: 0.0699 | BMZ13: 0.0557 | BNB13: 0.0699 | BNC13: 0.0557 | BNE13: 0.0699 | BNF13: 0.0609 | BNH13: 0.0699 | BNI13: 0.0609 | BNK13: 0.0699 | BNL13: 0.0672 | BNN13: 0.0699 | BNO13: 0.0672 | BNQ13: 0.0699 | BNR13: 0.0823 | BNT13: 0.0699 | BNU13: 0.0823 | BNW13: 0.0699 | BNX13: 0.0893 | BNZ13: 0.0699 | BOA13: 0.0893 | BOC13: 0.0699 | BOD13: 0.0788 | BOF13: 0.0699 | BOG13: 0.0788 | BOI13: 0.0699 | BOJ13: 0.0903 | BOL13: 0.0699 | BOM13: 0.0903 | BOO13: 0.0699 | BOP13: 0.1019 | BOR13: 0.0699 | BOS13: 0.1019 | BOU13: 0.0699 | BOV13: 0.1177 | BOX13: 0.0699 | BOY13: 0.1134 | BPA13: 0.0699 | BPB13: 0.1134 | BPD13: 0.0699 | BPE13: 0.1197 | BPG13: 0.0699 | BPH13: 0.1259 | BPJ13: 0.0699 | BPK13: 0.132 | BPM13: 0.0699 | BPN13: 0.125 | BPP13: 0.0699 | BPQ13: 0.125 | BPS13: 0.0699 | BPT13: 0.1462 | BPV13: 0.0699 | BPW13: 0.1366 | BPY13: 0.0699 | BPZ13: 0.1366 | BQB13: 0.0699 | BQC13: 0.1481 | BQE13: 0.0699 | BQF13: 0.1481 | BQH13: 0.0699 | BQI13: 0.1597 | BQK13: 0.0699 | BQL13: 0.1597 | BQN13: 0.0699 | BQO13: 0.1712 | BQQ13: 0.0699 | BQR13: 0.1712 | BQT13: 0.0699 | BQU13: 0.1828 | BQW13: 0.0699 | BQX13: 0.1828 | BQZ13: 0.0699 | BRA13: 0.1943 | BRC13: 0.0699 | BRD13: 0.1943 | BRF13: 0 | BRG13: 0 | BRI13: 0 | BRJ13: 0 | BRL13: 0 | BRM13: 0 | BRO13: 0.0659 | BRP13: 0.0001
